Workbook

Sheet Index
B1: Massachusetts Department of Elementary and Secondary Education
B2: FY21 Charter School End of Year Financial Report Summary
B3: Last Updated: March 2022
B5: Data Context
B6: This data was collected via the FY2021 Charter School End of Year Financial Report (21CSEOYFR) as well as SIMS and EPIMS databases.
B8: Technical Tips
B9: Please be sure to enable macros before using this file. You will receive a Security Warning message at the top of this page that reads "Macros have been disabled". Please click "Enable Content".
B11: Instructions for Viewing Data
B12: Use the drop-down menu to select a charter school that was operating in FY21 or a statewide charter summary total then navigate to any of the first three tabs linked below. There is additional statewide summary data provided in tabs 4 and 5.
C15: =VLOOKUP(E15, CSORDER, 2, FALSE) -> Baystate Academy Charter Public School | D15: =VLOOKUP(E15, CSORDER, 3, FALSE) -> 3502 | E15: 8
B18: 1. Statement of Net Position
B19: 2. Statement of Revenues, Expenses and Change in Net Position
B20: 3. Schedule of Functional Expenses
B22: In addition, statewide summary data is available for the following:
B23: 4. Expenditures Per Pupil
B24: 5. Average Teacher Salaries
B26: For researchers, the following raw data sets are available:
B27: BAL21_raw (Balance Sheet Data)
B28: INC21_raw (Income Statement Data)
B29: FE21_raw (Schedule of Functional Expenses Data)
B30: FTE_raw (Student FTE Enrollment Data)
B31: EPIMS21_raw (Teacher FTE Enrollment Data)

Sheet 1. Statement of Net Position
A1: NAME: | B1: =SCHOOLNAME -> Baystate Academy Charter Public School | F1: LEA | G1: =LEA -> 3502
C2: Return to Index
A3: Statement of Net Position
A4: For the Year Ended June 30, 2021
F6: =B1 -> Baystate Academy Charter Public School | G6: Charter School Foundation (Component Unit) | H6: 2021 Total (Memorandum Only) | J6: Line | K6: Rec. Acct#
C7: ASSETS
C8: Current Assets
A9: 01 | C9: Cash and Cash Equivalents | D9: Assets that are cash or can be converted into cash immediately. | F9: =VLOOKUP($G$1&$A9, BAL, 6,FALSE) -> 3415447 | G9: =VLOOKUP($G$1&$A9, BAL, 7,FALSE) -> 138631 | H9: =VLOOKUP($G$1&$A9, BAL, 8,FALSE) -> 3554078 | J9: =A9 -> 01 | K9: 10XX
A10: 02 | C10: Accounts Receivable net of doubtful accounts | D10: A school's claim for money, goods and services from customers and other entities. | F10: 0 | G10: 0 | H10: 0 | J10: 02 | K10: 11XX
A11: 03 | C11: Grants Receivable - State | D11: Claims for goods and services provided under state awarded contracts. | F11: 0 | G11: 0 | H11: 0 | J11: 03 | K11: 11XX
A12: 04 | C12: Grants Receivable - Federal | D12: Claims for goods and services provided under federal awarded contracts. | F12: 67792 | G12: 0 | H12: 67792 | J12: 04 | K12: 11XX
A13: 05 | C13: Grants Receivable - Private | D13: Claims for goods and services provided from private awards received. | F13: 0 | G13: 0 | H13: 0 | J13: 05 | K13: 11XX
A14: 06 | C14: Contributions Receivable | D14: Unconditional promises to give by private individuals or corporations. | F14: 0 | G14: 0 | H14: 0 | J14: 06 | K14: 11XX
A15: 07 | C15: Due from related parties | D15: Amounts to be received from related parties. | F15: 750000 | G15: 0 | H15: 750000 | J15: 07 | K15: 12XX
A16: 08 | C16: Prepaid Expenses / Inventory | D16: An expense paid but not incurred as of year end. Also include short-term inventories of supplies such as uniforms. | F16: 38336 | G16: 0 | H16: 38336 | J16: 08 | K16: 13XX
A17: 09 | C17: Short-Term Investments | D17: Readily marketable security for which the intention of the school is the conversion to cash in the short term. | F17: 0 | G17: 0 | H17: 0 | J17: 09 | K17: 14XX
A18: 10 | C18: Deposit (Security, Other) | D18: Security deposits for leases, or other deposits. | F18: =VLOOKUP($G$1&$A19, BAL, 6,FALSE) -> 0 | G18: =VLOOKUP($G$1&$A19, BAL, 7,FALSE) -> 0 | H18: =VLOOKUP($G$1&$A19, BAL, 8,FALSE) -> 0 | J18: =A19 -> 11 | K18: 15XX
A19: 11 | C19: Restricted Current Assets | D19: Current assets restricted by external sources for future purchases. | F19: 0 | G19: 0 | H19: 0 | J19: 11 | K19: 15XX
A20: 12 | C20: TOTAL CURRENT ASSETS | D20: Calculates automatically. | F20: 4271575 | G20: 138631 | H20: 4410206 | J20: 12 | K20: NA
C21: Noncurrent Assets
C22: Capital Assets
A23: 13 | C23: - Land and Buildings | D23: Value of land and building inclusive of remodeling, reconditioning, or altering the building purchased to make it available for the purpose for which it was acquired, including construction in progress. | F23: =VLOOKUP($G$1&$A23, BAL, 6,FALSE) -> 0 | G23: =VLOOKUP($G$1&$A23, BAL, 7,FALSE) -> 7000000 | H23: =VLOOKUP($G$1&$A23, BAL, 8,FALSE) -> 7000000 | J23: =A23 -> 13 | K23: 15XX
A24: 14 | C24: - Building/Leasehold Improvement | D24: Value of improvements on leased property that revert back to the owners upon termination of the lease. | F24: 388023 | G24: 0 | H24: 388023 | J24: 14 | K24: 15XX
A25: 15 | C25: - Furniture and Equipment | D25: Value of furniture and equipment that meet the school's capitalization policy. | F25: 1288368.46 | G25: 0 | H25: 1288368.46 | J25: 15 | K25: 15XX
A26: 16 | C26: - Less Accumulated Depreciation | D26: The aggregate, at a given point in time, of the depreciation charges made during the useful life of the fixed asset. Enter as a negative number. | F26: -1245323.74 | G26: -150848.52 | H26: -1396172.26 | J26: 16 | K26: 16XX
A27: 17 | C27: Net Capital Assets | D27: Calculates automatically. | F27: 431067.72 | G27: 6849151.48 | H27: 7280219.2 | J27: 17 | K27: NA
A28: 19 | C28: Restricted Noncurrent Assets | D28: Noncurrent assets restricted by external sources for future purchases. | F28: 89890 | G28: 0 | H28: 89890 | J28: 19 | K28: 10XX
A29: 19 | C29: Long-Term Investments | D29: Investments that do not meet the criteria of "Short-Term Investments" above. | F29: 89890 | G29: 0 | H29: 89890 | J29: 19 | K29: 14XX
A30: 20 | C30: Building Acquisition / Financing Costs / Deferred Expenses | D30: Costs related to building acquisition, construction, and/or financing costs which are amortized. Also include long-term pre-paid leases or expenses which are amortized. | F30: 0 | G30: 0 | H30: 0 | J30: 20 | K30: 14XX
A31: 21 | C31: Long-Term Grants / Contributions Receivable | D31: Please enter a brief description in the highlighted green cell, if applicable. | F31: 0 | G31: 0 | H31: 0 | J31: 21 | K31: 14XX
A32: 22 | C32: TOTAL NONCURRENT ASSETS | D32: Calculates automatically. | F32: 520957.72 | G32: 6849151.48 | H32: 7370109.2 | J32: 22 | K32: NA
A33: 23 | C33: TOTAL ASSETS | D33: Calculates automatically. | F33: 4792533 | G33: 6987782 | H33: 11780315 | J33: 23 | K33: NA
C35: LIABILITIES AND NET ASSETS
C36: Current Liabilities
A37: 24 | C37: Accounts Payable | D37: Obligations for goods or services purchased for which invoices have been received. | F37: =VLOOKUP($G$1&$A37, BAL, 6,FALSE) -> 96173 | G37: =VLOOKUP($G$1&$A37, BAL, 7,FALSE) -> 3814 | H37: =VLOOKUP($G$1&$A37, BAL, 8,FALSE) -> 99987 | J37: =A37 -> 24 | K37: 20XX
A38: 25 | C38: Accrued Expenses / Accrued Payroll | D38: An unpaid expense incurred that has not been paid as of the end of the period, including accrued payroll. | F38: 256499 | G38: 0 | H38: 256499 | J38: 25 | K38: 21XX
A39: 26 | C39: Deferred Revenue | D39: Cash received for services not performed (i.e., grant funds received that were not expended). | F39: 9893 | G39: 0 | H39: 9893 | J39: 26 | K39: 22XX
A40: 27 | C40: Due to related parties | D40: Amounts due to related parties such as the school's component unit. | F40: 0 | G40: 750000 | H40: 750000 | J40: 27 | K40: 23XX
A41: 28 | C41: Current Debt Payable | D41: Debt obligations due within one year of financial statement date. | F41: 52473 | G41: 160828 | H41: 213301 | J41: 28 | K41: 24XX
A42: 29 | C42: Current Lease Obligations Payable | D42: Lease obligations due within one year of financial statement date. | F42: 0 | G42: 0 | H42: 0 | J42: 29 | K42: 24XX
A43: 30 | C43: TOTAL CURRENT LIABILITIES | D43: Calculates automatically. | F43: 415038 | G43: 914642 | H43: 1329680 | J43: 30 | K43: NA
C44: Noncurrent Liabilities
A45: 31 | C45: Noncurrent Lease Obligations | D45: Lease obligations due after one year of financial statement date. | F45: =VLOOKUP($G$1&$A45, BAL, 6,FALSE) -> 0 | G45: =VLOOKUP($G$1&$A45, BAL, 7,FALSE) -> 0 | H45: =VLOOKUP($G$1&$A45, BAL, 8,FALSE) -> 0 | J45: =A45 -> 31 | K45: 26XX
A46: 32 | C46: Long-Term Debt | D46: Debt obligations due after one year of financial statement date. | F46: =VLOOKUP($G$1&$A46, BAL, 6,FALSE) -> 94480 | G46: =VLOOKUP($G$1&$A46, BAL, 7,FALSE) -> 5937782 | H46: =VLOOKUP($G$1&$A46, BAL, 8,FALSE) -> 6032262 | J46: =A46 -> 32 | K46: 26XX
A47: 33 | C47: Deferred Revenue | D47: Cash received for services not performed (i.e., grant funds received that were not expended). | F47: =VLOOKUP($G$1&$A47, BAL, 6,FALSE) -> 0 | G47: =VLOOKUP($G$1&$A47, BAL, 7,FALSE) -> 0 | H47: =VLOOKUP($G$1&$A47, BAL, 8,FALSE) -> 0 | J47: =A47 -> 33 | K47: 2XXX
A48: 34 | C48: TOTAL NONCURRENT LIABILITIES | D48: Calculates automatically. | F48: =VLOOKUP($G$1&$A48, BAL, 6,FALSE) -> 94480 | G48: =VLOOKUP($G$1&$A48, BAL, 7,FALSE) -> 5937782 | H48: =VLOOKUP($G$1&$A48, BAL, 8,FALSE) -> 6032262 | J48: =A48 -> 34 | K48: NA
A49: 35 | C49: TOTAL LIABILITIES | D49: Calculates automatically. | F49: =VLOOKUP($G$1&$A49, BAL, 6,FALSE) -> 509518 | G49: =VLOOKUP($G$1&$A49, BAL, 7,FALSE) -> 6852424 | H49: =VLOOKUP($G$1&$A49, BAL, 8,FALSE) -> 7361942 | J49: =A49 -> 35 | K49: NA
C51: NET ASSETS
A52: 36 | C52: Investment in capital assets (net of related debt) | D52: Represents capital assets reduced by accumulated depreciation and any outstanding debt used to acquire, construct or improve those assets. | F52: =VLOOKUP($G$1&$A52, BAL, 6,FALSE) -> 284115 | G52: =VLOOKUP($G$1&$A52, BAL, 7,FALSE) -> 90431 | H52: =VLOOKUP($G$1&$A52, BAL, 8,FALSE) -> 374546 | J52: =A52 -> 36 | K52: 3XXX
A53: 37 | C53: Temporarily Restricted | D53: Net assets that are temporarily restricted by a funder or the school's Board for a specific purpose. | F53: 0 | G53: 0 | H53: 0 | J53: 37 | K53: 32XX
A54: 38 | C54: Permanently Restricted | D54: Net assets that are restricted by an outside agency or person, as contrasted with assets over which the entity has control and discretion. E.g., a donor scholarship fund. | F54: 0 | G54: 0 | H54: 0 | J54: 38 | K54: 33XX
A55: 39 | C55: Unrestricted (non-capital) | D55: Net assets that do not meet the definitions of any of the above categories. | F55: 3998900 | G55: 44927 | H55: 4043827 | J55: 39 | K55: 30XX
A56: 40 | C56: TOTAL NET ASSETS | D56: Calculates automatically. | F56: 4283015 | G56: 135358 | H56: 4418373 | J56: 40 | K56: NA
A57: 41 | C57: TOTAL LIABILITIES AND NET ASSETS | D57: Calculates automatically. MUST RECONCILE WITH LINE 23 (TOTAL ASSETS) | F57: 4792533 | G57: 6987782 | H57: 11780315 | J57: 41 | K57: NA

Sheet 2. Stmt Rev, Exp and Change
B1: NAME: | C1: =SCHOOLNAME -> Baystate Academy Charter Public School | F1: LEA | G1: =LEA -> 3502 | M1: =3 -> 3
C2: Return to Index
A3: Statement of Revenues, Expenses and Change in Net Position
A4: =YEAREND -> For the Year Ended June 30, 2021
D6: Restricted – The use of these funds are restricted to a particular purpose or project. Unrestricted – These use of these funds are unrestricted and came be used toward any purpose. | F6: =C1 -> Baystate Academy Charter Public School | G6: Charter School Foundation (Component Unit) | H6: ='1. Statement of Net Position'!H6 -> 2021 Total (Memorandum Only) | J6: Line | K6: Rec. Acct#
C7: REVENUES
A8: 01 | C8: Tuition | D8: Total tuition paid to the charter school by either the Commonwealth or sending school district (Horace Mann), inclusive of local transportation and facilities reimbursement embedded in Commonwealth tuition payments. This should include any reimbursements received for local transportation reimbursement, if applicable. | F8: =VLOOKUP($G$1&$A8, INC, 6,FALSE) -> 7199145 | H8: =VLOOKUP($G$1&$A8, INC, 8,FALSE) -> 7199145 | J8: =A8 -> 01 | K8: 4000
A9: 02a | B9: ^ | C9: Grants - State - passed through ESE | D9: Grants awarded through the ESE. | F9: 37900 | G9: =VLOOKUP($G$1&$A9, INC, 7,FALSE) -> 0 | H9: 37900 | J9: 02a | K9: 41XX
A10: 02b | B10: ^ | C10: Grants - State - other non-ESE pass-through | D10: Grants awarded directly by the Commonwealth of MA. | F10: 0 | G10: 0 | H10: 0 | J10: 02b | K10: 41XX
A11: 03 | B11: ^ | C11: Grants - Federal - Passed through ESE | D11: Grants from federal sources that pass through ESE such as Title I, IDEA, Charter School Start-Up Assistance, etc. | F11: 889522.98 | G11: 0 | H11: 889522.98 | J11: 03 | K11: 41XX
A12: 04 | B12: ^ | C12: Grants - Federal - Direct or other pass-through | D12: Grants from federal sources awarded directly from federal agencies or passed-through other agencies. | F12: 0 | G12: 0 | H12: 0 | J12: 04 | K12: 41XX
A13: 05a | B13: ^ | C13: Grants - Private (restricted) | D13: Grants awarded by private (non-governmental) foundations, corporations, or individuals that are restricted. | F13: 17448.2 | G13: 30000 | H13: 47448.2 | J13: 05a | K13: 41XX
A14: 05b | C14: Grants - Private (unrestricted) | D14: Grants awarded by private (non-governmental) foundations, corporations, or individuals that are unrestricted. | F14: 0 | G14: 0 | H14: 0 | J14: 05b | K14: 41XX
A15: 06 | B15: ^ | C15: Nutrition Funding - State | D15: Funding for nutrition programs is split between the federal and state governments. | F15: 0 | H15: 0 | J15: 06 | K15: 42XX
A16: 07 | B16: ^ | C16: Nutrition Funding - Federal | D16: Funding for nutrition programs is split between the federal and state governments. | F16: 0 | H16: 0 | J16: 07 | K16: 42XX
A17: 08 | C17: Nutrition Funding - Fees | D17: Fees collected from students for nutrition programs. | F17: 0 | H17: 0 | J17: 08 | K17: 42XX
A18: 09 | C18: Other Program / Student Activity Fees | D18: Any fees that the school collects for transportation, uniforms, etc. | F18: =VLOOKUP($G$1&$A19, INC, 6,FALSE) -> 0 | G18: =VLOOKUP($G$1&$A19, INC, 7,FALSE) -> 0 | H18: =VLOOKUP($G$1&$A19, INC, 8,FALSE) -> 0 | J18: =A19 -> 10 | K18: 43XX
A19: 10 | C19: Regional Transportation Aid | D19: Reimbursements from the Commonwealth for regional transportation costs, if applicable. | F19: 0 | H19: 0 | J19: 10 | K19: 45XX
A20: 11 | C20: Medicaid Reimbursements | D20: Reimbursement from Medicaid | F20: 12059 | H20: 12059 | J20: 11 | K20: 45XX
A21: 12 | C21: Circuit Breaker Reimbursements | D21: Reimbursements from the Commonwealth for high-cost special education students, if applicable. | F21: 0 | H21: 0 | J21: 12 | K21: 45XX
A22: 13a | C22: Contributions, in-kind, host district | D22: Recorded monetary value of in-kind donations for services that would otherwise have been purchased, provided by the school's host district (e.g. transportation, food). | F22: 370880 | H22: 370880 | J22: 13a | K22: 44XX
A23: 13b | C23: Contributions, in-kind, other | D23: Recorded monetary value of in-kind donations for services that would otherwise have been purchased, provided by individuals/organizations other than the host district. | F23: 0 | G23: =VLOOKUP($G$1&$A23, INC, 7,FALSE) -> 0 | H23: 0 | J23: 13b | K23: 44XX
A24: 13c | C24: Contributions, on-behalf, pension | D24: In accordance with GASB 68, recorded retirement payments to former retired School’s employees. | F24: 1711767 | G24: 0 | H24: 1711767 | J24: 13c | K24: 44XX
A25: 14 | C25: Contributions, from Component Unit (restricted) | D25: Restricted contributions made to the School by the Component Unit | F25: 0 | G25: 0 | H25: 0 | J25: 14 | K25: 44XX
A26: 14b | C26: Contributions, from Component Unit (unrestricted) | D26: Unrestricted contributions made to the School by the Component Unit | F26: 0 | G26: 0 | H26: 0 | J26: 14b | K26: 44XX
A27: 15 | C27: Contributions / Fundraising (restricted) | D27: Restricted donations from individuals, businesses, or corporations. | F27: 0 | G27: 0 | H27: 0 | J27: 15 | K27: 44XX
A28: 15b | C28: Contributions / Fundraising (unrestricted) | D28: Unrestricted donations from individuals, businesses, or corporations. | F28: 3483 | G28: 600 | H28: 4083 | J28: 15b | K28: 44XX
A29: 16 | C29: Interest / Investment Income (restricted) | D29: Restricted income generated from interest/investments. | F29: 0 | G29: 0 | H29: 0 | J29: 16 | K29: 47XX
A30: 16a | C30: Interest / Investment Income (unrestricted) | D30: Unrestricted income generated from interest/investments. | F30: 1681.05 | G30: 49 | H30: 1730.05 | J30: 16b | K30: 47XX
A31: 17 | C31: Rental Income | D31: Income generated from rental of space. | F31: 0 | G31: 394612 | H31: 394612 | J31: =A31 -> 17 | K31: 46XX
A32: 19 | C32: Loan Forgiveness or Other Reimbursement | D32: Revenue recorded for loan forgiveness or other credit. | F32: 2755.29 | G32: 0 | H32: 2755.29 | J32: =A32 -> 19 | K32: 4XXX
A33: 19 | C33: Miscellaneous Income | D33: Miscellaneous Income. | F33: 2755.29 | G33: 0 | H33: 2755.29 | J33: =A33 -> 19 | K33: 4XXX
A34: 20 | C34: TOTAL REVENUES | D34: Calculates automatically. | F34: 10252142.52 | G34: 425261 | H34: 10677403.52 | J34: =A34 -> 20 | K34: NA
B35: ^ | C35: Non-"General Fund" revenue sources
C37: EXPENSES
A38: 21 | C38: Administration | D38: Charter School figures will be populated from the Sch_FuncExp sheet. | F38: =VLOOKUP($G$1&$A38, INC, 6,FALSE) -> 602599.82 | H38: =VLOOKUP($G$1&$A38, INC, 8,FALSE) -> 602599.82 | J38: =A38 -> 21 | K38: NA
A39: 22 | C39: Instructional Services | D39: Charter School figures will be populated from the Sch_FuncExp sheet. | F39: 4312100.66 | H39: 4312100.66 | J39: 22 | K39: NA
A40: 23 | C40: Pupil Services | D40: Charter School figures will be populated from the Sch_FuncExp sheet. | F40: 528783.45 | H40: 528783.45 | J40: 23 | K40: NA
A41: 24 | C41: Operation & Maintenance of Plant | D41: Charter School figures will be populated from the Sch_FuncExp sheet. | F41: 470396.39 | H41: 470396.39 | J41: 24 | K41: NA
A42: 25 | C42: Fixed Charges | D42: Charter School figures will be populated from the Sch_FuncExp sheet. | F42: 2302883.87 | H42: 2302883.87 | J42: 25 | K42: NA
A43: 26 | C43: Community Services | D43: Charter School figures will be populated from the Sch_FuncExp sheet. | F43: 0 | H43: 0 | J43: 26 | K43: NA
A44: 27 | C44: Non-Operating Financing Expenses | D44: Charter School figures will be populated from the Sch_FuncExp sheet. | F44: 523430.46 | H44: 523430.46 | J44: 27 | K44: NA
A45: 28 | C45: Component Unit Expenses | D45: Aggregate operating expenses for the Component Unit. | G45: =VLOOKUP($G$1&$A45, INC, 7,FALSE) -> 387050 | H45: 387050 | J45: 28 | K45: NA
A46: 29 | C46: Contributions to School | D46: Contributions made by the Component Unit to the School | G46: =VLOOKUP($G$1&$A46, INC, 7,FALSE) -> 0 | H46: 0 | J46: 29 | K46: NA
A47: 30 | C47: TOTAL EXPENSES | D47: Calculates automatically. | F47: =VLOOKUP($G$1&$A47, INC, 6,FALSE) -> 8740194.65 | G47: =VLOOKUP($G$1&$A47, INC, 7,FALSE) -> 387050 | H47: 9127244.65 | J47: 30 | K47: NA
A49: 31 | C49: TOTAL GAIN/(LOSS) | D49: Calculates automatically. | F49: =VLOOKUP($G$1&$A49, INC, 6,FALSE) -> 1511947.87 | G49: =VLOOKUP($G$1&$A49, INC, 7,FALSE) -> 38211 | H49: =VLOOKUP($G$1&$A49, INC, 8,FALSE) -> 1550158.87 | J49: =A49 -> 31 | K49: NA
A50: 32 | C50: Gain/Loss on Sale of Asset or Lease Transaction | D50: Gain/Loss recorded on sale of school assets or lease transaction. | F50: =VLOOKUP($G$1&$A50, INC, 6,FALSE) -> 0 | G50: =VLOOKUP($G$1&$A50, INC, 7,FALSE) -> 0 | H50: =VLOOKUP($G$1&$A50, INC, 8,FALSE) -> 0 | J50: =A50 -> 32 | K50: 5XXX
A51: 33 | C51: Other Gain/Loss | D51: Other Gain or Loss that is a non-recurring, unusual occurrence such as a prior-period adjustment | F51: =VLOOKUP($G$1&$A51, INC, 6,FALSE) -> 0 | G51: =VLOOKUP($G$1&$A51, INC, 7,FALSE) -> 0 | H51: =VLOOKUP($G$1&$A51, INC, 8,FALSE) -> 0 | J51: =A51 -> 33 | K51: 5XXX
A52: 34 | C52: TOTAL CHANGES IN NET ASSETS: | D52: Calculates automatically. | F52: =VLOOKUP($G$1&$A52, INC, 6,FALSE) -> 1511947.87 | G52: =VLOOKUP($G$1&$A52, INC, 7,FALSE) -> 38211 | H52: =VLOOKUP($G$1&$A52, INC, 8,FALSE) -> 1550158.87 | J52: =A52 -> 34 | K52: NA
A54: 35 | C54: NET ASSETS AT BEGINNING OF YEAR | D54: Please enter values from previous year's audit. | F54: =VLOOKUP($G$1&$A54, INC, 6,FALSE) -> 2771067 | G54: =VLOOKUP($G$1&$A54, INC, 7,FALSE) -> 97147 | H54: =VLOOKUP($G$1&$A54, INC, 8,FALSE) -> 2868214 | J54: =A54 -> 35 | K54: NA
A55: 36 | C55: NET ASSETS AT END OF YEAR | D55: Calculates automatically. MUST RECONCILE WITH BALANCE SHEET LINE 40 (TOTAL NET ASSETS) | F55: =VLOOKUP($G$1&$A55, INC, 6,FALSE) -> 4283015 | G55: =VLOOKUP($G$1&$A55, INC, 7,FALSE) -> 135358 | H55: =VLOOKUP($G$1&$A55, INC, 8,FALSE) -> 4418373 | J55: =A55 -> 36 | K55: NA
F56: 0 | G56: 0 | H56: 0

Sheet 3. Schedule of Func Exp
B1: NAME: | C1: =SCHOOLNAME -> Baystate Academy Charter Public School | H1: LEA: | I1: =LEA -> 3502
C2: Return to Index
A3: Schedule of Functional Expenses
A4: For the Year Ended June 30, 2021
F5: 6 | G5: 7 | H5: 8 | I5: 9 | J5: 10 | K5: 11 | L5: 12 | M5: 13 | N5: 14 | O5: 15 | P5: 16 | Q5: 17 | R5: 18 | S5: 19 | T5: 20 | U5: 21
F6: "General" Fund (Charter School Tuition) | I6: State | K6: Federal
F7: 1 | G7: 2 | H7: 3 | I7: 4 | J7: 4a | K7: 5 | L7: 5a | M7: 5b | N7: 5c | O7: 5d | P7: 5e | Q7: 5f | R7: 5g | S7: 5h | T7: 6 | U7: 7
F8: General Education | G8: Special Education | H8: Undistributed (not assigned to a program) | I8: State Grants & Nutrition Reimbursement | J8: State Coronavirus Prevention Fund | K8: Charter School Program FC 532 or 534 | L8: ESSER 1 FC 113 | M8: ESSER II FC115 | N8: ESSER III FC 119 | O8: ESSER SEA Reserve Grants | P8: GEER Funded Grants | Q8: CvRF FC 102 and CvRF School Nutrition | R8: CvRF RLTE FC118 | S8: All Other Federal Grants & Nutrition Reimbursement | T8: Private Grants & Contributions | U8: TOTAL
A9: Line | C9: Functional Category | F9: Expenses | G9: Expenses | H9: Expenses | I9: Expenses | J9: Expenses | K9: Expenses | L9: Expenses | M9: Expenses | N9: Expenses | O9: Expenses | P9: Expenses | Q9: Expenses | R9: Expenses | S9: Expenses | T9: Expenses | U9: Expenses
A11: 100 | C11: Administration | D11: Administration - Calculates automatically. | F11: =VLOOKUP($I$1&$A11, FE, $F$5, FALSE) -> 0 | G11: =VLOOKUP($I$1&$A11, FE, $G$5, FALSE) -> 0 | H11: =VLOOKUP($I$1&$A11, FE, $H$5, FALSE) -> 600164.16 | I11: =VLOOKUP($I$1&$A11, FE, $I$5, FALSE) -> 0 | J11: =VLOOKUP($I$1&$A11, FE, $J$5, FALSE) -> 0 | K11: =VLOOKUP($I$1&$A11, FE, $K$5, FALSE) -> 1635.66 | L11: =VLOOKUP($I$1&$A11, FE, $L$5, FALSE) -> 800 | M11: =VLOOKUP($I$1&$A11, FE, $M$5, FALSE) -> 0 | N11: =VLOOKUP($I$1&$A11, FE, $N$5, FALSE) -> 0 | O11: =VLOOKUP($I$1&$A11, FE, $O$5, FALSE) -> 0 | P11: =VLOOKUP($I$1&$A11, FE, $P$5, FALSE) -> 0 | Q11: =VLOOKUP($I$1&$A11, FE, $Q$5, FALSE) -> 0 | R11: =VLOOKUP($I$1&$A11, FE, $R$5, FALSE) -> 0 | S11: =VLOOKUP($I$1&$A11, FE, $S$5, FALSE) -> 0 | T11: =VLOOKUP($I$1&$A11, FE, $T$5, FALSE) -> 0 | U11: =VLOOKUP($I$1&$A11, FE, $U$5, FALSE) -> 602599.82
A12: 110 | C12: Subtotal - Board of Trustees | D12: Calculates automatically | F12: 0 | G12: 0 | H12: 12370.21 | I12: 0 | J12: 0 | K12: 0 | L12: 0 | M12: 0 | N12: 0 | O12: 0 | P12: 0 | Q12: 0 | R12: 0 | S12: 0 | T12: 0 | U12: 12370.21
A13: 111 | C13: Contracted Services | D13: Contracted professional services, including all related expenses covered by the contract. (Ex: board training consultant, facilitator for board retreat, board attorney) Do not include auditor see Non-Instructional Administration-Contracted Services. | F13: 0 | G13: 0 | H13: 9495 | I13: 0 | J13: 0 | K13: 0 | L13: 0 | M13: 0 | N13: 0 | O13: 0 | P13: 0 | Q13: 0 | R13: 0 | S13: 0 | T13: 0 | U13: 9495
A14: 112 | C14: Travel and other expenses | D14: Travel and other expenses for board members such as dues, subscriptions and memberships. (Ex: board member travels to charter school conference, dues for board-specific professional association). | F14: 0 | G14: 0 | H14: 2875.21 | I14: 0 | J14: 0 | K14: 0 | L14: 0 | M14: 0 | N14: 0 | O14: 0 | P14: 0 | Q14: 0 | R14: 0 | S14: 0 | T14: 0 | U14: 2875.21
A15: 120 | C15: Subtotal - School Leaders | D15: Calculates automatically | F15: 0 | G15: 0 | H15: 140939 | I15: 0 | J15: 0 | K15: 0 | L15: 0 | M15: 0 | N15: 0 | O15: 0 | P15: 0 | Q15: 0 | R15: 0 | S15: 0 | T15: 0 | U15: 140939
A16: 121 | C16: Salaries - Professional | D16: Salaries for non-instructional school-wide administrative personnel (Ex: executive director). Principals and Instructional Leaders should be noted in Instructional Services. If role is instructional and administrative, split accordingly. | F16: 0 | G16: 0 | H16: 140939 | I16: 0 | J16: 0 | K16: 0 | L16: 0 | M16: 0 | N16: 0 | O16: 0 | P16: 0 | Q16: 0 | R16: 0 | S16: 0 | T16: 0 | U16: 140939
A17: 122 | C17: Contracted Services | D17: Contracted professional services, including all related expenses covered by the contract. (Ex: interim school leader) | F17: 0 | G17: 0 | H17: 0 | I17: 0 | J17: 0 | K17: 0 | L17: 0 | M17: 0 | N17: 0 | O17: 0 | P17: 0 | Q17: 0 | R17: 0 | S17: 0 | T17: 0 | U17: 0
A18: 120a | C18: Subtotal - Non-Instructional Administration and Support Staff | D18: Calculates automatically | F18: 0 | G18: 0 | H18: 382641.46 | I18: 0 | J18: 0 | K18: 1635.66 | L18: 800 | M18: 0 | N18: 0 | O18: 0 | P18: 0 | Q18: 0 | R18: 0 | S18: 0 | T18: 0 | U18: 385077.12
A19: 121a | C19: Salaries - Professional and Support Staff | D19: Salaries for non-instructional school-wide administrative personnel, excluding school leaders, legal, and development staff. (Ex: Business and Finance, Human Resources, Information Technology, Student Recruitment and Enrollment/Registrar, Enrollment Director, SIMS administrator, and respective Support Staff). Principals and Instructional Leaders should be noted in Instructional Services. If role is instructional and administrative, split accordingly. | F19: 0 | G19: 0 | H19: 146876.16 | I19: 0 | J19: 0 | K19: 0 | L19: 0 | M19: 0 | N19: 0 | O19: 0 | P19: 0 | Q19: 0 | R19: 0 | S19: 0 | T19: 0 | U19: 146876.16
A20: 122a | C20: Contracted Services - Professional and Support Staff | D20: Contracted professional services, including all related expenses covered by the contract, excluding school leaders, legal, and development staff. (Ex: auditor, licensing for district wide software - Microsoft, Anti virus). | F20: 0 | G20: 0 | H20: 167986.67 | I20: 0 | J20: 0 | K20: 0 | L20: 0 | M20: 0 | N20: 0 | O20: 0 | P20: 0 | Q20: 0 | R20: 0 | S20: 0 | T20: 0 | U20: 167986.67
A21: 123 | C21: Recruitment/Advertising | D21: Recruiting/advertising for students, staff, and board members. (Ex: brochures, newspaper advertising, web based staff recruitment such as School Spring, radio, advertising for bids). | F21: 0 | G21: 0 | H21: 29959.05 | I21: 0 | J21: 0 | K21: 1060.89 | L21: 0 | M21: 0 | N21: 0 | O21: 0 | P21: 0 | Q21: 0 | R21: 0 | S21: 0 | T21: 0 | U21: 31019.94
A22: 124 | C22: Travel, Dues, and other expenses | D22: Travel and other expenses for all non-instructional administrative and support staff, dues such as charter school association dues, professional dues, subscriptions, memberships, professional development and conferences. | F22: 0 | G22: 0 | H22: 22438.5 | I22: 0 | J22: 0 | K22: 0 | L22: 0 | M22: 0 | N22: 0 | O22: 0 | P22: 0 | Q22: 0 | R22: 0 | S22: 0 | T22: 0 | U22: 22438.5
A23: 125 | C23: Supplies and Materials | D23: Materials and items of an expendable nature. Unit price of less than $5000. (Ex: office furniture, office supplies, non-instructional computers and software). | F23: 0 | G23: 0 | H23: 15381.08 | I23: 0 | J23: 0 | K23: 574.77 | L23: 800 | M23: 0 | N23: 0 | O23: 0 | P23: 0 | Q23: 0 | R23: 0 | S23: 0 | T23: 0 | U23: 16755.85
A24: 126 | C24: Depreciation - non instructional | D24: Annual depreciation expense for capitalized costs (Ex: district wide information management, computers, furniture). | F24: 0 | G24: 0 | H24: 0 | I24: 0 | J24: 0 | K24: 0 | L24: 0 | M24: 0 | N24: 0 | O24: 0 | P24: 0 | Q24: 0 | R24: 0 | S24: 0 | T24: 0 | U24: 0
A25: 130 | C25: Legal | F25: 0 | G25: 0 | H25: 3396.57 | I25: 0 | J25: 0 | K25: 0 | L25: 0 | M25: 0 | N25: 0 | O25: 0 | P25: 0 | Q25: 0 | R25: 0 | S25: 0 | T25: 0 | U25: 3396.57
A26: 131 | C26: Salaries - Professional | D26: Salaries for non-instructional legal personnel such as in-house attorney, paralegal, or other staff working on legal matters. | F26: 0 | G26: 0 | H26: 0 | I26: 0 | J26: 0 | K26: 0 | L26: 0 | M26: 0 | N26: 0 | O26: 0 | P26: 0 | Q26: 0 | R26: 0 | S26: 0 | T26: 0 | U26: 0
A27: 132 | C27: Contracted Services | D27: Contracted legal professional services, including all related expenses covered by the contract. (Ex: attorney fees, expert witness and consultation fees, filing and copy fees, travel etc.) | F27: 0 | G27: 0 | H27: 3396.57 | I27: 0 | J27: 0 | K27: 0 | L27: 0 | M27: 0 | N27: 0 | O27: 0 | P27: 0 | Q27: 0 | R27: 0 | S27: 0 | T27: 0 | U27: 3396.57
A28: 133 | C28: Legal Settlements | D28: Funds paid toward legal settlements only. (Due to employee/landlord/contractor/tenant etc issues or lawsuits) | F28: 0 | G28: 0 | H28: 0 | I28: 0 | J28: 0 | K28: 0 | L28: 0 | M28: 0 | N28: 0 | O28: 0 | P28: 0 | Q28: 0 | R28: 0 | S28: 0 | T28: 0 | U28: 0
A29: 170 | C29: Subtotal - Development (Private) | D29: Calculates automatically | F29: 0 | G29: 0 | H29: 60816.92 | I29: 0 | J29: 0 | K29: 0 | L29: 0 | M29: 0 | N29: 0 | O29: 0 | P29: 0 | Q29: 0 | R29: 0 | S29: 0 | T29: 0 | U29: 60816.92
A30: 170a | C30: Salaries - Professional - Private | D30: Salaries apportioned to private development personnel (this could be % of a salary). (Ex: grant writer and fundraiser). | F30: 0 | G30: 0 | H30: 57816.92 | I30: 0 | J30: 0 | K30: 0 | L30: 0 | M30: 0 | N30: 0 | O30: 0 | P30: 0 | Q30: 0 | R30: 0 | S30: 0 | T30: 0 | U30: 57816.92
A31: 170b | C31: Contracted Services - Private | D31: Contracts apportioned to professional services for private development (including all related expenses covered by the contract). (Ex: contracted fundraiser, contracted grant writer). | F31: 0 | G31: 0 | H31: 3000 | I31: 0 | J31: 0 | K31: 0 | L31: 0 | M31: 0 | N31: 0 | O31: 0 | P31: 0 | Q31: 0 | R31: 0 | S31: 0 | T31: 0 | U31: 3000
A32: 170c | C32: Fundraising - Private | D32: Expenses related to private fundraising. (Ex: invitations to fundraiser, fundraising software, space rental for fundraising event). | F32: 0 | G32: 0 | H32: 0 | I32: 0 | J32: 0 | K32: 0 | L32: 0 | M32: 0 | N32: 0 | O32: 0 | P32: 0 | Q32: 0 | R32: 0 | S32: 0 | T32: 0 | U32: 0
A33: 171 | C33: Subtotal - Development (Public) | D33: Calculates automatically | F33: 0 | G33: 0 | H33: 0 | I33: 0 | J33: 0 | K33: 0 | L33: 0 | M33: 0 | N33: 0 | O33: 0 | P33: 0 | Q33: 0 | R33: 0 | S33: 0 | T33: 0 | U33: 0
A34: 171a | C34: Salaries - Professional - Public | D34: Salaries apportioned to public development personnel (this could be a % of a salary). (Ex: grant writer and fundraiser). | F34: 0 | G34: 0 | H34: 0 | I34: 0 | J34: 0 | K34: 0 | L34: 0 | M34: 0 | N34: 0 | O34: 0 | P34: 0 | Q34: 0 | R34: 0 | S34: 0 | T34: 0 | U34: 0
A35: 171b | C35: Contracted Services - Public | D35: Contracts apportioned to professional services for public development (including all related expenses covered by the contract). (Ex: contracted grant writer). | F35: 0 | G35: 0 | H35: 0 | I35: 0 | J35: 0 | K35: 0 | L35: 0 | M35: 0 | N35: 0 | O35: 0 | P35: 0 | Q35: 0 | R35: 0 | S35: 0 | T35: 0 | U35: 0
A37: 200 | C37: Instructional Services | D37: Calculates automatically | F37: =VLOOKUP($I$1&$A37, FE, $F$5, FALSE) -> 3072539.69 | G37: =VLOOKUP($I$1&$A37, FE, $G$5, FALSE) -> 415050.31 | H37: =VLOOKUP($I$1&$A37, FE, $H$5, FALSE) -> 96598.88 | I37: =VLOOKUP($I$1&$A37, FE, $I$5, FALSE) -> 0 | J37: =VLOOKUP($I$1&$A37, FE, $J$5, FALSE) -> 773.16 | K37: =VLOOKUP($I$1&$A37, FE, $K$5, FALSE) -> 47605.94 | L37: =VLOOKUP($I$1&$A37, FE, $L$5, FALSE) -> 307182.01 | M37: =VLOOKUP($I$1&$A37, FE, $M$5, FALSE) -> 0 | N37: =VLOOKUP($I$1&$A37, FE, $N$5, FALSE) -> 0 | O37: =VLOOKUP($I$1&$A37, FE, $O$5, FALSE) -> 0 | P37: =VLOOKUP($I$1&$A37, FE, $P$5, FALSE) -> 10000 | Q37: =VLOOKUP($I$1&$A37, FE, $Q$5, FALSE) -> 37111.85 | R37: =VLOOKUP($I$1&$A37, FE, $R$5, FALSE) -> 18379 | S37: =VLOOKUP($I$1&$A37, FE, $S$5, FALSE) -> 306859.82 | T37: =VLOOKUP($I$1&$A37, FE, $T$5, FALSE) -> 0 | U37: =VLOOKUP($I$1&$A37, FE, $U$5, FALSE) -> 4312100.66
A38: 210 | C38: Instructional Subtotal - Instructional Leadership | D38: Calculates automatically | F38: 444733.04 | G38: 95647.8 | H38: 0 | I38: 0 | J38: 0 | K38: 7595 | L38: 25770 | M38: 0 | N38: 0 | O38: 0 | P38: 0 | Q38: 0 | R38: 0 | S38: 53475.63 | T38: 0 | U38: 627221.47
A39: 211 | C39: Salaries - Professional | D39: Salaries for instructional personnel in leadership roles. (Ex: principal/asst. principals (undistributed), curriculum directors (including SPED), department heads, technology/tnstructional coordinators, team leaders, network school administrators). | F39: 439205.04 | G39: 95647.8 | H39: 0 | I39: 0 | J39: 0 | K39: 0 | L39: 0 | M39: 0 | N39: 0 | O39: 0 | P39: 0 | Q39: 0 | R39: 0 | S39: 19198.13 | T39: 0 | U39: 554050.97
A40: 212 | C40: Salaries - Clerical | D40: Salaries for administrative support personnel who prepare, transcribe, systematize or preserve communications, records and transactions. (Ex: instructional school secretary and respective clerical support staff to the various instructional personnel in leadership roles). | F40: 0 | G40: 0 | H40: 0 | I40: 0 | J40: 0 | K40: 0 | L40: 0 | M40: 0 | N40: 0 | O40: 0 | P40: 0 | Q40: 0 | R40: 0 | S40: 0 | T40: 0 | U40: 0
A41: 213 | C41: Contracted Services | D41: Contracted professional services, including all related expenses covered by the contract. (Ex: contracted instructional consultant such as a reading specialist). | F41: 2795 | G41: 0 | H41: 0 | I41: 0 | J41: 0 | K41: 7595 | L41: 24170 | M41: 0 | N41: 0 | O41: 0 | P41: 0 | Q41: 0 | R41: 0 | S41: 34277.5 | T41: 0 | U41: 68837.5
A42: 214 | C42: Supplies and Materials | D42: Materials and items of an expendable nature. Unit price of less than $5000. (Ex: white boards and computers for instructional leaders). | F42: 0 | G42: 0 | H42: 0 | I42: 0 | J42: 0 | K42: 0 | L42: 1600 | M42: 0 | N42: 0 | O42: 0 | P42: 0 | Q42: 0 | R42: 0 | S42: 0 | T42: 0 | U42: 1600
A43: 215 | C43: Travel and other expenses | D43: Travel and other expenses for all instructional leadership and their support staff, professional dues, subscriptions, memberships, teaching seminars and conferences. | F43: 2733 | G43: 0 | H43: 0 | I43: 0 | J43: 0 | K43: 0 | L43: 0 | M43: 0 | N43: 0 | O43: 0 | P43: 0 | Q43: 0 | R43: 0 | S43: 0 | T43: 0 | U43: 2733
A44: 220 | C44: Instructional Subtotal - Classroom and Specialist Teachers | D44: Calculates automatically | F44: 2434235.85 | G44: 133667.18 | H44: 0 | I44: 0 | J44: 0 | K44: 0 | L44: 0 | M44: 0 | N44: 0 | O44: 0 | P44: 8730 | Q44: 0 | R44: 0 | S44: 80365.33 | T44: 0 | U44: 2656998.36
A45: 221 | C45: Salaries - Teachers, Classroom | D45: Salaries for teachers with primary responsibility for teaching designated curriculum to established "classes" of students in a group instruction setting. Also includes itinerant music, art, health, physical education teachers who travel from classroom-to-classroom. Teacher EPIMS codes: 2305 - Teacher, 2306 - Co Teacher, 2307 - Virtual Teacher, 2308 - Virtual Teacher – Co Teacher | F45: 2434235.85 | G45: 0 | H45: 0 | I45: 0 | J45: 0 | K45: 0 | L45: 0 | M45: 0 | N45: 0 | O45: 0 | P45: 8730 | Q45: 0 | R45: 0 | S45: 1471.2 | T45: 0 | U45: 2444437.05
A46: 222 | C46: Salaries - Teachers, Specialists | D46: Salaries for teachers/specialists who provide individualized instruction to students (1-on-1 or small groups) to supplement the services delivered by the students' classroom teachers, e.g. reading recovery, Title I reading specialists, special education, academic support, and language acquisitions services. NOT paraprofessionals. Teacher EPIMS codes: 2310 - Teacher - specialized content instruction | F46: 0 | G46: 133667.18 | H46: 0 | I46: 0 | J46: 0 | K46: 0 | L46: 0 | M46: 0 | N46: 0 | O46: 0 | P46: 0 | Q46: 0 | R46: 0 | S46: 78894.13 | T46: 0 | U46: 212561.31
A47: 230 | C47: Instructional Subtotal - Other Teaching Services | D47: Calculates automatically | F47: 11640 | G47: 118769.43 | H47: 0 | I47: 0 | J47: 0 | K47: 0 | L47: 60763.79 | M47: 0 | N47: 0 | O47: 0 | P47: 0 | Q47: 7132.13 | R47: 0 | S47: 120353.7 | T47: 0 | U47: 318659.05
A48: 231 | C48: Salaries - Professional | D48: Salaries for Medical/Therapeutic service and other professionals. (Ex: OT, PT, Speech, Vision and other therapeutic services that are provided by licensed practitioners, librarians, media center directors, substitute teachers on payroll, extended-day teachers, MCAS administrator). | F48: 11640 | G48: 53371 | H48: 0 | I48: 0 | J48: 0 | K48: 0 | L48: 0 | M48: 0 | N48: 0 | O48: 0 | P48: 0 | Q48: 0 | R48: 0 | S48: 0 | T48: 0 | U48: 65011
A49: 232 | C49: Salaries - Non-clerical Paraprofessionals | D49: Salaries for paraprofessionals hired to assist teachers/specialists with classroom instruction in the preparation or reproduction of instructional materials or classroom instruction. (Ex: American Sign Language Specialists, general teacher's assistant, after-school employees). | F49: 0 | G49: 35543.43 | H49: 0 | I49: 0 | J49: 0 | K49: 0 | L49: 60763.79 | M49: 0 | N49: 0 | O49: 0 | P49: 0 | Q49: 0 | R49: 0 | S49: 120353.7 | T49: 0 | U49: 216660.92
A50: 233 | C50: Salaries - Clerical | D50: Salaries for administrative support personnel who prepare, transcribe, systematize or preserve communications, records and transactions. (Ex: secretary, after-school employees). | F50: 0 | G50: 29855 | H50: 0 | I50: 0 | J50: 0 | K50: 0 | L50: 0 | M50: 0 | N50: 0 | O50: 0 | P50: 0 | Q50: 0 | R50: 0 | S50: 0 | T50: 0 | U50: 29855
A51: 234 | C51: Contracted Services | D51: Contracted professional services, including all related expenses covered by the contract, for other teaching services (Ex: non-payroll substitute teachers should be included here, contracted OT, PT, after-school contracted workers). | F51: 0 | G51: 0 | H51: 0 | I51: 0 | J51: 0 | K51: 0 | L51: 0 | M51: 0 | N51: 0 | O51: 0 | P51: 0 | Q51: 7132.13 | R51: 0 | S51: 0 | T51: 0 | U51: 7132.13
A52: 240 | C52: Instructional Subtotal - Professional Development | D52: Calculates automatically | F52: 0 | G52: 0 | H52: 4751 | I52: 0 | J52: 0 | K52: 3520 | L52: 69526.02 | M52: 0 | N52: 0 | O52: 0 | P52: 0 | Q52: 2818.98 | R52: 0 | S52: 14531 | T52: 0 | U52: 95147
A53: 241 | C53: Salaries - Professional | D53: Salaries for full-time or prorated salary of director/staff for professional development, including training for new teachers, new curriculum or instructional practices, master and mentor teachers, and coaches. | F53: 0 | G53: 0 | H53: 0 | I53: 0 | J53: 0 | K53: 0 | L53: 0 | M53: 0 | N53: 0 | O53: 0 | P53: 0 | Q53: 0 | R53: 0 | S53: 0 | T53: 0 | U53: 0
A54: 242 | C54: Contracted Services | D54: Contracted professional services, including all related expenses covered by the contract, for professional development (Ex: non-payroll substitute teachers, speakers and trainers). | F54: 0 | G54: 0 | H54: 4751 | I54: 0 | J54: 0 | K54: 3520 | L54: 69526.02 | M54: 0 | N54: 0 | O54: 0 | P54: 0 | Q54: 2818.98 | R54: 0 | S54: 11467 | T54: 0 | U54: 92083
A55: 243 | C55: Supplies and Materials | D55: Materials and items of an expendable nature. Unit price of less than $5000. (Ex: professional development handouts). | F55: 0 | G55: 0 | H55: 0 | I55: 0 | J55: 0 | K55: 0 | L55: 0 | M55: 0 | N55: 0 | O55: 0 | P55: 0 | Q55: 0 | R55: 0 | S55: 0 | T55: 0 | U55: 0
A56: 244 | C56: Travel and other expenses | D56: Travel and other expenses for staff such as dues, subscriptions and memberships. (Ex: professional development seminar, tuition reimbursements for teacher higher education coursework). | F56: 0 | G56: 0 | H56: 0 | I56: 0 | J56: 0 | K56: 0 | L56: 0 | M56: 0 | N56: 0 | O56: 0 | P56: 0 | Q56: 0 | R56: 0 | S56: 3064 | T56: 0 | U56: 3064
A57: 250 | C57: Instructional Subtotal - Guidance, Psychological & Testing | D57: Calculates automatically | F57: 55780.01 | G57: 66965.9 | H57: 0 | I57: 0 | J57: 0 | K57: 0 | L57: 0 | M57: 0 | N57: 0 | O57: 0 | P57: 0 | Q57: 8020.25 | R57: 0 | S57: 5600 | T57: 0 | U57: 136366.16
A58: 251 | C58: Salaries - Professional | D58: Salaries for Guidance, Pyschological & Testing Professionals (Ex: director of guidance, school social workers, and counselors for guidance, truancy officer, school adjustment, higher education, career planning, and workplace learning placement; psychological evaluators and other licensed mental health professionals). | F58: 55780.01 | G58: 0 | H58: 0 | I58: 0 | J58: 0 | K58: 0 | L58: 0 | M58: 0 | N58: 0 | O58: 0 | P58: 0 | Q58: 0 | R58: 0 | S58: 0 | T58: 0 | U58: 55780.01
A59: 252 | C59: Salaries - Clerical | D59: Salaries for administrative support personnel who prepare, transcribe, systematize or preserve communications, records and transactions. (Ex: secretary). | F59: 0 | G59: 0 | H59: 0 | I59: 0 | J59: 0 | K59: 0 | L59: 0 | M59: 0 | N59: 0 | O59: 0 | P59: 0 | Q59: 0 | R59: 0 | S59: 0 | T59: 0 | U59: 0
A60: 253 | C60: Contracted Services | D60: Contracted professional services, including all related expenses covered by the contract, for guidance, truancy, psychological, and testing. (Ex: contracted guidance counselor). | F60: 0 | G60: 66965.9 | H60: 0 | I60: 0 | J60: 0 | K60: 0 | L60: 0 | M60: 0 | N60: 0 | O60: 0 | P60: 0 | Q60: 8020.25 | R60: 0 | S60: 5600 | T60: 0 | U60: 80586.15
A61: 254 | C61: Supplies and Materials | D61: Materials and items of an expendable nature. Unit price of less than $5000. (Ex: pyschological (not academic related) testing materials). | F61: 0 | G61: 0 | H61: 0 | I61: 0 | J61: 0 | K61: 0 | L61: 0 | M61: 0 | N61: 0 | O61: 0 | P61: 0 | Q61: 0 | R61: 0 | S61: 0 | T61: 0 | U61: 0
A62: 260 | C62: Instructional Subtotal - Materials, Equipment & Technology | D62: Calculates automatically | F62: 126150.79 | G62: 0 | H62: 91847.88 | I62: 0 | J62: 773.16 | K62: 36490.94 | L62: 151122.2 | M62: 0 | N62: 0 | O62: 0 | P62: 1270 | Q62: 19140.49 | R62: 18379 | S62: 32534.16 | T62: 0 | U62: 477708.62
A63: 261 | C63: Textbooks & Related Media/Materials | D63: Expenditures for all textbooks and related media/materials (Ex: hard copy and online text books). | F63: 448.06 | G63: 0 | H63: 0 | I63: 0 | J63: 0 | K63: 3033.2 | L63: 1808.4 | M63: 0 | N63: 0 | O63: 0 | P63: 0 | Q63: 0 | R63: 0 | S63: 0 | T63: 0 | U63: 5289.66
A64: 262 | C64: Other Instructional Materials | D64: Books, furniture and other materials, excluding textbooks but including online materials, for use in school libraries or classroom libraries (Ex: trade books, subscription to online magazine, periodicals, reference materials, student desks etc.). | F64: 0 | G64: 0 | H64: 15040.6 | I64: 0 | J64: 0 | K64: 2617.87 | L64: 16231.67 | M64: 0 | N64: 0 | O64: 0 | P64: 0 | Q64: 19140.49 | R64: 0 | S64: 19211.99 | T64: 0 | U64: 72242.62
A65: 263 | C65: Instructional Equipment | D65: Non-capitalized expenditures for purchase of science laboratory, physical education, equipment, irrespective of unit cost. Also includes lease/purchase of copy equipment primarily used to produce instructional materials. Does not include classroom technology equipment. | F65: 0 | G65: 0 | H65: 0 | I65: 0 | J65: 0 | K65: 0 | L65: 0 | M65: 0 | N65: 0 | O65: 0 | P65: 0 | Q65: 0 | R65: 0 | S65: 0 | T65: 0 | U65: 0
A66: 264 | C66: General Supplies | D66: Papers, pens, pencils, crayons, chalk, paint, toner printer cartridges, calculators, etc. | F66: 0 | G66: 0 | H66: 0 | I66: 0 | J66: 773.16 | K66: 718.42 | L66: 7840 | M66: 0 | N66: 0 | O66: 0 | P66: 585.64 | Q66: 0 | R66: 0 | S66: 0 | T66: 0 | U66: 9917.22
A67: 265 | C67: Other Instructional Services | D67: Cost for field trips, including admissions and transportation costs. Also, distance learning services. | F67: 5584.04 | G67: 0 | H67: 0 | I67: 0 | J67: 0 | K67: 0 | L67: 0 | M67: 0 | N67: 0 | O67: 0 | P67: 0 | Q67: 0 | R67: 0 | S67: 0 | T67: 0 | U67: 5584.04
A68: 266 | C68: Classroom Instructional Technology Hardware | D68: Computers, servers, networks, scanners, digital cameras, etc. used in the classroom or in computer laboratories. | F68: 107674.52 | G68: 0 | H68: 0 | I68: 0 | J68: 0 | K68: 15909.25 | L68: 87419.6 | M68: 0 | N68: 0 | O68: 0 | P68: 0 | Q68: 0 | R68: 0 | S68: 13322.17 | T68: 0 | U68: 224325.54
A69: 267 | C69: Other Instructional Technology Hardware | D69: Computers, servers, networks, scanners, digital cameras, etc. for school libraries and media centers. | F69: 0 | G69: 0 | H69: 0 | I69: 0 | J69: 0 | K69: 0 | L69: 0 | M69: 0 | N69: 0 | O69: 0 | P69: 0 | Q69: 0 | R69: 0 | S69: 0 | T69: 0 | U69: 0
A70: 268a | C70: Classroom Instructional Software | D70: Software licenses used in the classroom or in computer laboratories. (Ex: Online textbook guide, student data communication software such as Edline, Powerschool, School Brains). | F70: 12444.17 | G70: 0 | H70: 0 | I70: 0 | J70: 0 | K70: 14212.2 | L70: 37822.53 | M70: 0 | N70: 0 | O70: 0 | P70: 684.36 | Q70: 0 | R70: 18379 | S70: 0 | T70: 0 | U70: 83542.26
A71: 268b | C71: Other Instructional Software | D71: Software licenses used for school libraries and media centers. | F71: 0 | G71: 0 | H71: 0 | I71: 0 | J71: 0 | K71: 0 | L71: 0 | M71: 0 | N71: 0 | O71: 0 | P71: 0 | Q71: 0 | R71: 0 | S71: 0 | T71: 0 | U71: 0
A72: 269 | C72: Depreciation for Furniture, Equipment & Technology | D72: Annual depreciation expense for capitalized Instructional Materials, Equipment, & Technology. | F72: 0 | G72: 0 | H72: 76807.28 | I72: 0 | J72: 0 | K72: 0 | L72: 0 | M72: 0 | N72: 0 | O72: 0 | P72: 0 | Q72: 0 | R72: 0 | S72: 0 | T72: 0 | U72: 76807.28
A74: 300 | C74: Pupil Services | D74: Calculates automatically | F74: =VLOOKUP($I$1&$A74, FE, $F$5, FALSE) -> 298412.26 | G74: =VLOOKUP($I$1&$A74, FE, $G$5, FALSE) -> 0 | H74: =VLOOKUP($I$1&$A74, FE, $H$5, FALSE) -> 191017.71 | I74: =VLOOKUP($I$1&$A74, FE, $I$5, FALSE) -> 0 | J74: =VLOOKUP($I$1&$A74, FE, $J$5, FALSE) -> 15705.84 | K74: =VLOOKUP($I$1&$A74, FE, $K$5, FALSE) -> 5452.24 | L74: =VLOOKUP($I$1&$A74, FE, $L$5, FALSE) -> 8394.11 | M74: =VLOOKUP($I$1&$A74, FE, $M$5, FALSE) -> 0 | N74: =VLOOKUP($I$1&$A74, FE, $N$5, FALSE) -> 0 | O74: =VLOOKUP($I$1&$A74, FE, $O$5, FALSE) -> 0 | P74: =VLOOKUP($I$1&$A74, FE, $P$5, FALSE) -> 0 | Q74: =VLOOKUP($I$1&$A74, FE, $Q$5, FALSE) -> 0 | R74: =VLOOKUP($I$1&$A74, FE, $R$5, FALSE) -> 0 | S74: =VLOOKUP($I$1&$A74, FE, $S$5, FALSE) -> 9801.29 | T74: =VLOOKUP($I$1&$A74, FE, $T$5, FALSE) -> 0 | U74: =VLOOKUP($I$1&$A74, FE, $U$5, FALSE) -> 528783.45
A75: 310 | C75: Health Services | D75: Salaries for school physicians, school nurses, and clerical support staff. Expenses for school medical supplies, dues and subscriptions, and travel. | F75: 0 | G75: 0 | H75: 48873.37 | I75: 0 | J75: 0 | K75: 5452.24 | L75: 8394.11 | M75: 0 | N75: 0 | O75: 0 | P75: 0 | Q75: 0 | R75: 0 | S75: 0 | T75: 0 | U75: 62719.72
A76: 315 | C76: Health Services - Contracted | D76: Contracted services for school physicians, school nurses, clerical support staff and associated contracted expenses. | F76: 0 | G76: 0 | H76: 2047.65 | I76: 0 | J76: 0 | K76: 0 | L76: 0 | M76: 0 | N76: 0 | O76: 0 | P76: 0 | Q76: 0 | R76: 0 | S76: 1179.31 | T76: 0 | U76: 3226.96
A77: 320 | C77: Athletic Services (including Transportation) | D77: Salaries for coaches, trainers and assistants. Expenses for athletic supplies, uniforms, travel expenses and transportation to and from athletic events. | F77: 0 | G77: 0 | H77: 0 | I77: 0 | J77: 0 | K77: 0 | L77: 0 | M77: 0 | N77: 0 | O77: 0 | P77: 0 | Q77: 0 | R77: 0 | S77: 0 | T77: 0 | U77: 0
A78: 325 | C78: Athletic Services (including Transportation) - Contracted | D78: Contracted services for coaches, trainers and assistants. Expenses for vendors providing athletic supplies, uniforms, and transportation to and from athletic events. | F78: 0 | G78: 0 | H78: 20265 | I78: 0 | J78: 0 | K78: 0 | L78: 0 | M78: 0 | N78: 0 | O78: 0 | P78: 0 | Q78: 0 | R78: 0 | S78: 0 | T78: 0 | U78: 20265
A79: 330 | C79: Food Services | D79: Salaries for cafeteria workers, food directors, and other food-related services for personell on payroll. Expenses for food, supplies, dues and subscriptions, and travel. | F79: 0 | G79: 0 | H79: 0 | I79: 0 | J79: 0 | K79: 0 | L79: 0 | M79: 0 | N79: 0 | O79: 0 | P79: 0 | Q79: 0 | R79: 0 | S79: 0 | T79: 0 | U79: 0
A80: 335 | C80: Food Services - Contracted | D80: Contracted services for cafeteria workers, food directors, and other food-related services for personell on payroll. Expenses for food, supplies, dues and subscriptions, and travel. | F80: 0 | G80: 0 | H80: 84251.04 | I80: 0 | J80: 0 | K80: 0 | L80: 0 | M80: 0 | N80: 0 | O80: 0 | P80: 0 | Q80: 0 | R80: 0 | S80: 0 | T80: 0 | U80: 84251.04
A81: 340 | C81: Student Transportation (to and from school) | D81: Salaries and related costs incurred by the school; Or, monetary fair market value of services provided by sending district. (Please note: More detail is required in the Schedule 7C worksheet for those seeking reimbursement). | F81: 0 | G81: 0 | H81: 0 | I81: 0 | J81: 0 | K81: 0 | L81: 0 | M81: 0 | N81: 0 | O81: 0 | P81: 0 | Q81: 0 | R81: 0 | S81: 0 | T81: 0 | U81: 0
A82: 345 | C82: Student Transportation (to and from school) - Contracted | D82: Contracted professional services and related costs incurred by the school; Or, monetary fair market value of services provided by sending district. (Please note: More detail is required in the Schedule 7C worksheet for those seeking reimbursement). | F82: 298412.26 | G82: 0 | H82: 0 | I82: 0 | J82: 15705.84 | K82: 0 | L82: 0 | M82: 0 | N82: 0 | O82: 0 | P82: 0 | Q82: 0 | R82: 0 | S82: 8621.98 | T82: 0 | U82: 322740.08
A83: 350 | C83: Depreciation of Transportation Vehicles | D83: Annual depreciation expense for capitalized transportation vehicles. (Please note: More detail is required in the Schedule 7C worksheet for those seeking state or district reimbursement for transportation costs). | F83: 0 | G83: 0 | H83: 0 | I83: 0 | J83: 0 | K83: 0 | L83: 0 | M83: 0 | N83: 0 | O83: 0 | P83: 0 | Q83: 0 | R83: 0 | S83: 0 | T83: 0 | U83: 0
A84: 360 | C84: Other Student Activities | D84: Salaries and contracted services for other student activities such as musical directors, drama coaches and other extra-curricular personnel. Expenses for supplies and materials, travel expenses and transportation to and from related events. Includes expenses related to extended-day programs. | F84: 0 | G84: 0 | H84: 35580.65 | I84: 0 | J84: 0 | K84: 0 | L84: 0 | M84: 0 | N84: 0 | O84: 0 | P84: 0 | Q84: 0 | R84: 0 | S84: 0 | T84: 0 | U84: 35580.65
A86: 400 | C86: Operation & Maintenance of Plant | D86: Calculates automatically | F86: =VLOOKUP($I$1&$A86, FE, $F$5, FALSE) -> 0 | G86: =VLOOKUP($I$1&$A86, FE, $G$5, FALSE) -> 0 | H86: =VLOOKUP($I$1&$A86, FE, $H$5, FALSE) -> 321557.94 | I86: =VLOOKUP($I$1&$A86, FE, $I$5, FALSE) -> 0 | J86: =VLOOKUP($I$1&$A86, FE, $J$5, FALSE) -> 21421 | K86: =VLOOKUP($I$1&$A86, FE, $K$5, FALSE) -> 12466.16 | L86: =VLOOKUP($I$1&$A86, FE, $L$5, FALSE) -> 30440.14 | M86: =VLOOKUP($I$1&$A86, FE, $M$5, FALSE) -> 0 | N86: =VLOOKUP($I$1&$A86, FE, $N$5, FALSE) -> 0 | O86: =VLOOKUP($I$1&$A86, FE, $O$5, FALSE) -> 0 | P86: =VLOOKUP($I$1&$A86, FE, $P$5, FALSE) -> 0 | Q86: =VLOOKUP($I$1&$A86, FE, $Q$5, FALSE) -> 67063.15 | R86: =VLOOKUP($I$1&$A86, FE, $R$5, FALSE) -> 0 | S86: =VLOOKUP($I$1&$A86, FE, $S$5, FALSE) -> 0 | T86: =VLOOKUP($I$1&$A86, FE, $T$5, FALSE) -> 17448 | U86: =VLOOKUP($I$1&$A86, FE, $U$5, FALSE) -> 470396.39
A87: 410 | C87: Operation & Maintenance of Buildings and Grounds | D87: Salaries and contracted services for plant managers, custodians, security officers, maintenance, etc. Expenses for supplies, travel expenses and professional development. | F87: =VLOOKUP($I$1&$A87, FE, $F$5, FALSE) -> 0 | G87: =VLOOKUP($I$1&$A87, FE, $G$5, FALSE) -> 0 | H87: =VLOOKUP($I$1&$A87, FE, $H$5, FALSE) -> 202974.61 | I87: =VLOOKUP($I$1&$A87, FE, $I$5, FALSE) -> 0 | J87: =VLOOKUP($I$1&$A87, FE, $J$5, FALSE) -> 21421 | K87: =VLOOKUP($I$1&$A87, FE, $K$5, FALSE) -> 10380 | L87: =VLOOKUP($I$1&$A87, FE, $L$5, FALSE) -> 30440.14 | M87: =VLOOKUP($I$1&$A87, FE, $M$5, FALSE) -> 0 | N87: =VLOOKUP($I$1&$A87, FE, $N$5, FALSE) -> 0 | O87: =VLOOKUP($I$1&$A87, FE, $O$5, FALSE) -> 0 | P87: =VLOOKUP($I$1&$A87, FE, $P$5, FALSE) -> 0 | Q87: =VLOOKUP($I$1&$A87, FE, $Q$5, FALSE) -> 67063.15 | R87: =VLOOKUP($I$1&$A87, FE, $R$5, FALSE) -> 0 | S87: =VLOOKUP($I$1&$A87, FE, $S$5, FALSE) -> 0 | T87: =VLOOKUP($I$1&$A87, FE, $T$5, FALSE) -> 0 | U87: =VLOOKUP($I$1&$A87, FE, $U$5, FALSE) -> 332278.9
A88: 420 | C88: Utilities | D88: Cost of fuel, oil, electricity, gas, water, trash, waste disposal, telephone services, etc. | F88: =VLOOKUP($I$1&$A88, FE, $F$5, FALSE) -> 0 | G88: =VLOOKUP($I$1&$A88, FE, $G$5, FALSE) -> 0 | H88: =VLOOKUP($I$1&$A88, FE, $H$5, FALSE) -> 116591.45 | I88: =VLOOKUP($I$1&$A88, FE, $I$5, FALSE) -> 0 | J88: =VLOOKUP($I$1&$A88, FE, $J$5, FALSE) -> 0 | K88: =VLOOKUP($I$1&$A88, FE, $K$5, FALSE) -> 0 | L88: =VLOOKUP($I$1&$A88, FE, $L$5, FALSE) -> 0 | M88: =VLOOKUP($I$1&$A88, FE, $M$5, FALSE) -> 0 | N88: =VLOOKUP($I$1&$A88, FE, $N$5, FALSE) -> 0 | O88: =VLOOKUP($I$1&$A88, FE, $O$5, FALSE) -> 0 | P88: =VLOOKUP($I$1&$A88, FE, $P$5, FALSE) -> 0 | Q88: =VLOOKUP($I$1&$A88, FE, $Q$5, FALSE) -> 0 | R88: =VLOOKUP($I$1&$A88, FE, $R$5, FALSE) -> 0 | S88: =VLOOKUP($I$1&$A88, FE, $S$5, FALSE) -> 0 | T88: =VLOOKUP($I$1&$A88, FE, $T$5, FALSE) -> 17448 | U88: =VLOOKUP($I$1&$A88, FE, $U$5, FALSE) -> 134039.45
A89: 430 | C89: Maintenance of Equipment | D89: Equipment parts and repair, materials, and tools, contracted services, including vehicles. | F89: =VLOOKUP($I$1&$A89, FE, $F$5, FALSE) -> 0 | G89: =VLOOKUP($I$1&$A89, FE, $G$5, FALSE) -> 0 | H89: =VLOOKUP($I$1&$A89, FE, $H$5, FALSE) -> 1631.88 | I89: =VLOOKUP($I$1&$A89, FE, $I$5, FALSE) -> 0 | J89: =VLOOKUP($I$1&$A89, FE, $J$5, FALSE) -> 0 | K89: =VLOOKUP($I$1&$A89, FE, $K$5, FALSE) -> 2086.16 | L89: =VLOOKUP($I$1&$A89, FE, $L$5, FALSE) -> 0 | M89: =VLOOKUP($I$1&$A89, FE, $M$5, FALSE) -> 0 | N89: =VLOOKUP($I$1&$A89, FE, $N$5, FALSE) -> 0 | O89: =VLOOKUP($I$1&$A89, FE, $O$5, FALSE) -> 0 | P89: =VLOOKUP($I$1&$A89, FE, $P$5, FALSE) -> 0 | Q89: =VLOOKUP($I$1&$A89, FE, $Q$5, FALSE) -> 0 | R89: =VLOOKUP($I$1&$A89, FE, $R$5, FALSE) -> 0 | S89: =VLOOKUP($I$1&$A89, FE, $S$5, FALSE) -> 0 | T89: =VLOOKUP($I$1&$A89, FE, $T$5, FALSE) -> 0 | U89: =VLOOKUP($I$1&$A89, FE, $U$5, FALSE) -> 3718.04
A90: 440 | C90: Networking and Telecommunications | D90: Costs for installing and maintaining school technology infrastructure, including wiring, file servers, security systems, etc. | F90: =VLOOKUP($I$1&$A90, FE, $F$5, FALSE) -> 0 | G90: =VLOOKUP($I$1&$A90, FE, $G$5, FALSE) -> 0 | H90: =VLOOKUP($I$1&$A90, FE, $H$5, FALSE) -> 360 | I90: =VLOOKUP($I$1&$A90, FE, $I$5, FALSE) -> 0 | J90: =VLOOKUP($I$1&$A90, FE, $J$5, FALSE) -> 0 | K90: =VLOOKUP($I$1&$A90, FE, $K$5, FALSE) -> 0 | L90: =VLOOKUP($I$1&$A90, FE, $L$5, FALSE) -> 0 | M90: =VLOOKUP($I$1&$A90, FE, $M$5, FALSE) -> 0 | N90: =VLOOKUP($I$1&$A90, FE, $N$5, FALSE) -> 0 | O90: =VLOOKUP($I$1&$A90, FE, $O$5, FALSE) -> 0 | P90: =VLOOKUP($I$1&$A90, FE, $P$5, FALSE) -> 0 | Q90: =VLOOKUP($I$1&$A90, FE, $Q$5, FALSE) -> 0 | R90: =VLOOKUP($I$1&$A90, FE, $R$5, FALSE) -> 0 | S90: =VLOOKUP($I$1&$A90, FE, $S$5, FALSE) -> 0 | T90: =VLOOKUP($I$1&$A90, FE, $T$5, FALSE) -> 0 | U90: =VLOOKUP($I$1&$A90, FE, $U$5, FALSE) -> 360
A92: 500 | C92: Fixed Charges | D92: Calculates automatically | F92: =VLOOKUP($I$1&$A92, FE, $F$5, FALSE) -> 0 | G92: =VLOOKUP($I$1&$A92, FE, $G$5, FALSE) -> 0 | H92: =VLOOKUP($I$1&$A92, FE, $H$5, FALSE) -> 2276551.73 | I92: =VLOOKUP($I$1&$A92, FE, $I$5, FALSE) -> 0 | J92: =VLOOKUP($I$1&$A92, FE, $J$5, FALSE) -> 0 | K92: =VLOOKUP($I$1&$A92, FE, $K$5, FALSE) -> 0 | L92: =VLOOKUP($I$1&$A92, FE, $L$5, FALSE) -> 0 | M92: =VLOOKUP($I$1&$A92, FE, $M$5, FALSE) -> 0 | N92: =VLOOKUP($I$1&$A92, FE, $N$5, FALSE) -> 0 | O92: =VLOOKUP($I$1&$A92, FE, $O$5, FALSE) -> 0 | P92: =VLOOKUP($I$1&$A92, FE, $P$5, FALSE) -> 0 | Q92: =VLOOKUP($I$1&$A92, FE, $Q$5, FALSE) -> 0 | R92: =VLOOKUP($I$1&$A92, FE, $R$5, FALSE) -> 0 | S92: =VLOOKUP($I$1&$A92, FE, $S$5, FALSE) -> 26332.14 | T92: =VLOOKUP($I$1&$A92, FE, $T$5, FALSE) -> 0 | U92: =VLOOKUP($I$1&$A92, FE, $U$5, FALSE) -> 2302883.87
A93: 510 | C93: Employee Retirement & Taxes | D93: Payroll taxes including contributions to Medicaid, social security, pension plans, and other employee retirement systems, school's portion, for non-MTRS employees; and Federal grant MTRS surcharge. Include MTRS on-behalf pension recorded expense according to GASB 68. | F93: 0 | G93: 0 | H93: 1827883.85 | I93: 0 | J93: 0 | K93: 0 | L93: 0 | M93: 0 | N93: 0 | O93: 0 | P93: 0 | Q93: 0 | R93: 0 | S93: 26332.14 | T93: 0 | U93: 1854215.99
A94: 520 | C94: Fringe Benefits | D94: Employee unemployment, health, and life insurance premiums or payments, and worker's compensation or other benefits, paid by the school for the benefit of the employee. | F94: 0 | G94: 0 | H94: 389464.58 | I94: 0 | J94: 0 | K94: 0 | L94: 0 | M94: 0 | N94: 0 | O94: 0 | P94: 0 | Q94: 0 | R94: 0 | S94: 0 | T94: 0 | U94: 389464.58
A95: 530 | C95: Insurance (non-employee) | D95: Insurance premiums for property, fire, liability, fidelity bonds; self-insurance costs. | F95: 0 | G95: 0 | H95: 30660.34 | I95: 0 | J95: 0 | K95: 0 | L95: 0 | M95: 0 | N95: 0 | O95: 0 | P95: 0 | Q95: 0 | R95: 0 | S95: 0 | T95: 0 | U95: 30660.34
A96: 550 | C96: Rental/Lease of Equipment | D96: Annual operating lease/rental costs of equipment. | F96: 0 | G96: 0 | H96: 28542.96 | I96: 0 | J96: 0 | K96: 0 | L96: 0 | M96: 0 | N96: 0 | O96: 0 | P96: 0 | Q96: 0 | R96: 0 | S96: 0 | T96: 0 | U96: 28542.96
A97: 560 | C97: Short-Term Interest | D97: Interest costs for short-term (less than one year) lines of credit that are needed to sustain cash flow for ongoing operations. | F97: 0 | G97: 0 | H97: 0 | I97: 0 | J97: 0 | K97: 0 | L97: 0 | M97: 0 | N97: 0 | O97: 0 | P97: 0 | Q97: 0 | R97: 0 | S97: 0 | T97: 0 | U97: 0
A99: 600 | C99: Community Services | D99: Calculates automatically | F99: =VLOOKUP($I$1&$A99, FE, $F$5, FALSE) -> 0 | G99: =VLOOKUP($I$1&$A99, FE, $G$5, FALSE) -> 0 | H99: =VLOOKUP($I$1&$A99, FE, $H$5, FALSE) -> 0 | I99: =VLOOKUP($I$1&$A99, FE, $I$5, FALSE) -> 0 | J99: =VLOOKUP($I$1&$A99, FE, $J$5, FALSE) -> 0 | K99: =VLOOKUP($I$1&$A99, FE, $K$5, FALSE) -> 0 | L99: =VLOOKUP($I$1&$A99, FE, $L$5, FALSE) -> 0 | M99: =VLOOKUP($I$1&$A99, FE, $M$5, FALSE) -> 0 | N99: =VLOOKUP($I$1&$A99, FE, $N$5, FALSE) -> 0 | O99: =VLOOKUP($I$1&$A99, FE, $O$5, FALSE) -> 0 | P99: =VLOOKUP($I$1&$A99, FE, $P$5, FALSE) -> 0 | Q99: =VLOOKUP($I$1&$A99, FE, $Q$5, FALSE) -> 0 | R99: =VLOOKUP($I$1&$A99, FE, $R$5, FALSE) -> 0 | S99: =VLOOKUP($I$1&$A99, FE, $S$5, FALSE) -> 0 | T99: =VLOOKUP($I$1&$A99, FE, $T$5, FALSE) -> 0 | U99: =VLOOKUP($I$1&$A99, FE, $U$5, FALSE) -> 0
A100: 610 | C100: Dissemination Activities | D100: Activities designed to disseminate the school's best practices to external groups, including presentations at or hosting of conferences, etc. | F100: =VLOOKUP($I$1&$A100, FE, $F$5, FALSE) -> 0 | G100: =VLOOKUP($I$1&$A100, FE, $G$5, FALSE) -> 0 | H100: =VLOOKUP($I$1&$A100, FE, $H$5, FALSE) -> 0 | I100: =VLOOKUP($I$1&$A100, FE, $I$5, FALSE) -> 0 | J100: =VLOOKUP($I$1&$A100, FE, $J$5, FALSE) -> 0 | K100: =VLOOKUP($I$1&$A100, FE, $K$5, FALSE) -> 0 | L100: =VLOOKUP($I$1&$A100, FE, $L$5, FALSE) -> 0 | M100: =VLOOKUP($I$1&$A100, FE, $M$5, FALSE) -> 0 | N100: =VLOOKUP($I$1&$A100, FE, $N$5, FALSE) -> 0 | O100: =VLOOKUP($I$1&$A100, FE, $O$5, FALSE) -> 0 | P100: =VLOOKUP($I$1&$A100, FE, $P$5, FALSE) -> 0 | Q100: =VLOOKUP($I$1&$A100, FE, $Q$5, FALSE) -> 0 | R100: =VLOOKUP($I$1&$A100, FE, $R$5, FALSE) -> 0 | S100: =VLOOKUP($I$1&$A100, FE, $S$5, FALSE) -> 0 | T100: =VLOOKUP($I$1&$A100, FE, $T$5, FALSE) -> 0 | U100: =VLOOKUP($I$1&$A100, FE, $U$5, FALSE) -> 0
A101: 620 | C101: Civic Activities | D101: Expenses associated with civic activities (Ex: fundraising activities for a charitable agency, community service). | F101: =VLOOKUP($I$1&$A101, FE, $F$5, FALSE) -> 0 | G101: =VLOOKUP($I$1&$A101, FE, $G$5, FALSE) -> 0 | H101: =VLOOKUP($I$1&$A101, FE, $H$5, FALSE) -> 0 | I101: =VLOOKUP($I$1&$A101, FE, $I$5, FALSE) -> 0 | J101: =VLOOKUP($I$1&$A101, FE, $J$5, FALSE) -> 0 | K101: =VLOOKUP($I$1&$A101, FE, $K$5, FALSE) -> 0 | L101: =VLOOKUP($I$1&$A101, FE, $L$5, FALSE) -> 0 | M101: =VLOOKUP($I$1&$A101, FE, $M$5, FALSE) -> 0 | N101: =VLOOKUP($I$1&$A101, FE, $N$5, FALSE) -> 0 | O101: =VLOOKUP($I$1&$A101, FE, $O$5, FALSE) -> 0 | P101: =VLOOKUP($I$1&$A101, FE, $P$5, FALSE) -> 0 | Q101: =VLOOKUP($I$1&$A101, FE, $Q$5, FALSE) -> 0 | R101: =VLOOKUP($I$1&$A101, FE, $R$5, FALSE) -> 0 | S101: =VLOOKUP($I$1&$A101, FE, $S$5, FALSE) -> 0 | T101: =VLOOKUP($I$1&$A101, FE, $T$5, FALSE) -> 0 | U101: =VLOOKUP($I$1&$A101, FE, $U$5, FALSE) -> 0
A103: 700 | C103: Non-Operating / Capital Facilities Costs | D103: Calculates automatically | F103: =VLOOKUP($I$1&$A103, FE, $F$5, FALSE) -> 0 | G103: =VLOOKUP($I$1&$A103, FE, $G$5, FALSE) -> 0 | H103: =VLOOKUP($I$1&$A103, FE, $H$5, FALSE) -> 523430.46 | I103: =VLOOKUP($I$1&$A103, FE, $I$5, FALSE) -> 0 | J103: =VLOOKUP($I$1&$A103, FE, $J$5, FALSE) -> 0 | K103: =VLOOKUP($I$1&$A103, FE, $K$5, FALSE) -> 0 | L103: =VLOOKUP($I$1&$A103, FE, $L$5, FALSE) -> 0 | M103: =VLOOKUP($I$1&$A103, FE, $M$5, FALSE) -> 0 | N103: =VLOOKUP($I$1&$A103, FE, $N$5, FALSE) -> 0 | O103: =VLOOKUP($I$1&$A103, FE, $O$5, FALSE) -> 0 | P103: =VLOOKUP($I$1&$A103, FE, $P$5, FALSE) -> 0 | Q103: =VLOOKUP($I$1&$A103, FE, $Q$5, FALSE) -> 0 | R103: =VLOOKUP($I$1&$A103, FE, $R$5, FALSE) -> 0 | S103: =VLOOKUP($I$1&$A103, FE, $S$5, FALSE) -> 0 | T103: =VLOOKUP($I$1&$A103, FE, $T$5, FALSE) -> 0 | U103: =VLOOKUP($I$1&$A103, FE, $U$5, FALSE) -> 523430.46
A104: 720 | C104: Long-Term Interest, facilities related | D104: Annual debt service costs for long-term financing (greater than one year) related to capital facilities costs. | F104: 0 | G104: 0 | H104: 0 | I104: 0 | J104: 0 | K104: 0 | L104: 0 | M104: 0 | N104: 0 | O104: 0 | P104: 0 | Q104: 0 | R104: 0 | S104: 0 | T104: 0 | U104: 0
A105: 725 | C105: Long-Term Interest, non-facilities related | D105: Annual debt service costs for long-term financing (greater than one year) not related to capital facilities costs. | F105: 0 | G105: 0 | H105: 8045.91 | I105: 0 | J105: 0 | K105: 0 | L105: 0 | M105: 0 | N105: 0 | O105: 0 | P105: 0 | Q105: 0 | R105: 0 | S105: 0 | T105: 0 | U105: 8045.91
A106: 730 | C106: Other costs related to capital facilities acquisition | D106: Expenses (Ex: architectural design, closing costs, site exploration, etc.) related to capital facilities acquisition or lease. | F106: 0 | G106: 0 | H106: 0 | I106: 0 | J106: 0 | K106: 0 | L106: 0 | M106: 0 | N106: 0 | O106: 0 | P106: 0 | Q106: 0 | R106: 0 | S106: 0 | T106: 0 | U106: 0
A107: 740 | C107: Rental/Lease of Buildings & Grounds | D107: Annual operating lease/rental costs of Building & Grounds. | F107: 0 | G107: 0 | H107: 394611.96 | I107: 0 | J107: 0 | K107: 0 | L107: 0 | M107: 0 | N107: 0 | O107: 0 | P107: 0 | Q107: 0 | R107: 0 | S107: 0 | T107: 0 | U107: 394611.96
A108: 750 | C108: Depreciation of Equipment, Building, & Grounds | D108: Annual depreciation expense for capitalized Equipment, Networking and Telecommunications, Building, & Grounds. | F108: 0 | G108: 0 | H108: 120772.59 | I108: 0 | J108: 0 | K108: 0 | L108: 0 | M108: 0 | N108: 0 | O108: 0 | P108: 0 | Q108: 0 | R108: 0 | S108: 0 | T108: 0 | U108: 120772.59
A109: 760 | C109: Bad debt / loss on disposal of assets | D109: Write-off costs for bad debt or loss on disposal of assets. | F109: 0 | G109: 0 | H109: 0 | I109: 0 | J109: 0 | K109: 0 | L109: 0 | M109: 0 | N109: 0 | O109: 0 | P109: 0 | Q109: 0 | R109: 0 | S109: 0 | T109: 0 | U109: 0
A111: 800 | C111: TOTALS | D111: Calculates automatically | F111: =VLOOKUP($I$1&$A111, FE, $F$5, FALSE) -> 3370951.95 | G111: =VLOOKUP($I$1&$A111, FE, $G$5, FALSE) -> 415050.31 | H111: =VLOOKUP($I$1&$A111, FE, $H$5, FALSE) -> 4009320.88 | I111: =VLOOKUP($I$1&$A111, FE, $I$5, FALSE) -> 0 | J111: =VLOOKUP($I$1&$A111, FE, $J$5, FALSE) -> 37900 | K111: =VLOOKUP($I$1&$A111, FE, $K$5, FALSE) -> 67160 | L111: =VLOOKUP($I$1&$A111, FE, $L$5, FALSE) -> 346816.26 | M111: =VLOOKUP($I$1&$A111, FE, $M$5, FALSE) -> 0 | N111: =VLOOKUP($I$1&$A111, FE, $N$5, FALSE) -> 0 | O111: =VLOOKUP($I$1&$A111, FE, $O$5, FALSE) -> 0 | P111: =VLOOKUP($I$1&$A111, FE, $P$5, FALSE) -> 10000 | Q111: =VLOOKUP($I$1&$A111, FE, $Q$5, FALSE) -> 104175 | R111: =VLOOKUP($I$1&$A111, FE, $R$5, FALSE) -> 18379 | S111: =VLOOKUP($I$1&$A111, FE, $S$5, FALSE) -> 342993.25 | T111: =VLOOKUP($I$1&$A111, FE, $T$5, FALSE) -> 17448 | U111: =VLOOKUP($I$1&$A111, FE, $U$5, FALSE) -> 8740194.65
A113: 910 | C113: Reference: Capitalized Expenditures | D113: Reference line for cash expenditures that are not expensed in the fiscal year | F113: =VLOOKUP($I$1&$A113, FE, $F$5, FALSE) -> 0 | G113: =VLOOKUP($I$1&$A113, FE, $G$5, FALSE) -> 0 | H113: =VLOOKUP($I$1&$A113, FE, $H$5, FALSE) -> 0 | I113: =VLOOKUP($I$1&$A113, FE, $I$5, FALSE) -> 0 | J113: =VLOOKUP($I$1&$A113, FE, $J$5, FALSE) -> 0 | K113: =VLOOKUP($I$1&$A113, FE, $K$5, FALSE) -> 0 | L113: =VLOOKUP($I$1&$A113, FE, $L$5, FALSE) -> 0 | M113: =VLOOKUP($I$1&$A113, FE, $M$5, FALSE) -> 0 | N113: =VLOOKUP($I$1&$A113, FE, $N$5, FALSE) -> 0 | O113: =VLOOKUP($I$1&$A113, FE, $O$5, FALSE) -> 0 | P113: =VLOOKUP($I$1&$A113, FE, $P$5, FALSE) -> 0 | Q113: =VLOOKUP($I$1&$A113, FE, $Q$5, FALSE) -> 0 | R113: =VLOOKUP($I$1&$A113, FE, $R$5, FALSE) -> 0 | S113: =VLOOKUP($I$1&$A113, FE, $S$5, FALSE) -> 0 | T113: =VLOOKUP($I$1&$A113, FE, $T$5, FALSE) -> 0 | U113: =VLOOKUP($I$1&$A113, FE, $U$5, FALSE) -> 0
A114: 920 | C114: Reference: Deferrals/Carryovers | D114: Reference line for cash expenditures that are not expensed in the fiscal year | F114: =VLOOKUP($I$1&$A114, FE, $F$5, FALSE) -> 0 | G114: =VLOOKUP($I$1&$A114, FE, $G$5, FALSE) -> 0 | H114: =VLOOKUP($I$1&$A114, FE, $H$5, FALSE) -> 0 | I114: =VLOOKUP($I$1&$A114, FE, $I$5, FALSE) -> 0 | J114: =VLOOKUP($I$1&$A114, FE, $J$5, FALSE) -> 0 | K114: =VLOOKUP($I$1&$A114, FE, $K$5, FALSE) -> 0 | L114: =VLOOKUP($I$1&$A114, FE, $L$5, FALSE) -> 0 | M114: =VLOOKUP($I$1&$A114, FE, $M$5, FALSE) -> 0 | N114: =VLOOKUP($I$1&$A114, FE, $N$5, FALSE) -> 0 | O114: =VLOOKUP($I$1&$A114, FE, $O$5, FALSE) -> 0 | P114: =VLOOKUP($I$1&$A114, FE, $P$5, FALSE) -> 0 | Q114: =VLOOKUP($I$1&$A114, FE, $Q$5, FALSE) -> 0 | R114: =VLOOKUP($I$1&$A114, FE, $R$5, FALSE) -> 0 | S114: =VLOOKUP($I$1&$A114, FE, $S$5, FALSE) -> 0 | T114: =VLOOKUP($I$1&$A114, FE, $T$5, FALSE) -> 0 | U114: =VLOOKUP($I$1&$A114, FE, $U$5, FALSE) -> 0
A115: 900 | C115: Reference: Totals | F115: =VLOOKUP($I$1&$A115, FE, $F$5, FALSE) -> 0 | G115: =VLOOKUP($I$1&$A115, FE, $G$5, FALSE) -> 0 | H115: =VLOOKUP($I$1&$A115, FE, $H$5, FALSE) -> 4009320.88 | I115: =VLOOKUP($I$1&$A115, FE, $I$5, FALSE) -> 0 | J115: =VLOOKUP($I$1&$A115, FE, $J$5, FALSE) -> 37900 | K115: =VLOOKUP($I$1&$A115, FE, $K$5, FALSE) -> 67160 | L115: =VLOOKUP($I$1&$A115, FE, $L$5, FALSE) -> 346816.26 | M115: =VLOOKUP($I$1&$A115, FE, $M$5, FALSE) -> 0 | N115: =VLOOKUP($I$1&$A115, FE, $N$5, FALSE) -> 0 | O115: =VLOOKUP($I$1&$A115, FE, $O$5, FALSE) -> 0 | P115: =VLOOKUP($I$1&$A115, FE, $P$5, FALSE) -> 10000 | Q115: =VLOOKUP($I$1&$A115, FE, $Q$5, FALSE) -> 104175 | R115: =VLOOKUP($I$1&$A115, FE, $R$5, FALSE) -> 18379 | S115: =VLOOKUP($I$1&$A115, FE, $S$5, FALSE) -> 342993.25 | T115: =VLOOKUP($I$1&$A115, FE, $T$5, FALSE) -> 17448 | U115: =VLOOKUP($I$1&$A115, FE, $U$5, FALSE) -> 8740194.65

Sheet 4. EXPPP
A1: Massachusetts Department of Elementary and Secondary Education
A2: FY21 Charter School Expenditures Per Pupil, All Funds, Summary By Function
A3: =Index!B3 -> Last Updated: March 2022
B4: Return to Index | F4: ----------------------------- Operating Expenditures Per Pupil In The Charter School ------------------------------------------- | S4: --- Exp pp Facilities Costs2 ---
E5: fte pupils | G5: instruc- | H5: classroom & | I5: other | J5: profes- | K5: instructn'l | L5: guidance, | N5: operations | O5: insurance, | P5: total operating | Q5: total operating | S5: Rental/Lease of | T5: Capital
D6: location | E6: at the | F6: admini- | G6: tional | H6: specialist | I6: teaching | J6: sional dev- | K6: materials, | L6: counseling | M6: pupil | N6: and | O6: retirement | P6: expenditures | Q6: expenditures | S6: Building & | T6: Facilities
A7: LEA | B7: Charter School | C7: type | D7: in FY14 | E7: charter | F7: stration | G7: leadership | H7: teachers | I7: services | J7: elopment | K7: equip & tech | L7: & testing | M7: services | N7: maintenance | O7: & other | P7: aggregate | Q7: per pupil | S7: Grounds | T7: Expenses3
F8: 100 | G8: 210 | H8: 220 | I8: 230 | J8: 240 | K8: 260 | L8: 250 | M8: 300 | N8: 400 | O8: 500 | S8: 540 | T8: 720
A9: 445 | B9: Abby Kelley Foster Charter Public School | C9: =VLOOKUP(A9, TYPE, 3, FALSE) -> C | D9: =VLOOKUP(A9, FACTS, 6, FALSE) -> Worcester | E9: =VLOOKUP(A9, FTE, 2, FALSE) -> 1424.25 | F9: =VLOOKUP($A9&100, FE, 21, FALSE)/$E9 -> 1066.244704 | G9: =VLOOKUP($A9&210, FE, 21, FALSE)/$E9 -> 1045.219575 | H9: =VLOOKUP($A9&220, FE, 21, FALSE)/$E9 -> 5326.606544 | I9: =VLOOKUP($A9&230, FE, 21, FALSE)/$E9 -> 860.8397121 | J9: =VLOOKUP($A9&240, FE, 21, FALSE)/$E9 -> 45.62910304 | K9: =VLOOKUP($A9&260, FE, 21, FALSE)/$E9 -> 509.2733649 | L9: =VLOOKUP($A9&250, FE, 21, FALSE)/$E9 -> 437.6196524 | M9: =VLOOKUP($A9&300, FE, 21, FALSE)/$E9 -> 1312.983044 | N9: =VLOOKUP($A9&400, FE, 21, FALSE)/$E9 -> 1445.186231 | O9: =VLOOKUP($A9&500, FE, 21, FALSE)/$E9 -> 4898.432515 | P9: =VLOOKUP($A9&800,FE, 21,FALSE)-VLOOKUP($A9&700,FE, 21,FALSE)-VLOOKUP($A9&600,FE, 21,FALSE) -> 24138238.06 | Q9: =SUM(F9:O9) -> 16948.03445 | S9: =VLOOKUP($A9&740, FE, 21, FALSE)/$E9 -> 0 | T9: =(VLOOKUP($A9&700, FE, 21, FALSE)-VLOOKUP($A9&740, FE, 21, FALSE)-VLOOKUP($A9&725, FE, 21, FALSE))/$E9 -> 1545.851424
A10: 412 | B10: Academy of the Pacific Rim Charter Public School | C10: C | D10: Boston | E10: 538.95 | F10: 2046.462566 | G10: 2152.841083 | H10: 6500.510669 | I10: 840.0445125 | J10: 209.7644865 | K10: 829.6371076 | L10: 810.1725578 | M10: 1061.394267 | N10: 1185.588645 | O10: 5879.545412 | P10: 11596027.35 | Q10: =SUM(F10:O10) -> 21515.96131 | S10: 0 | T10: 1770.080712
A11: 430 | B11: Advanced Math and Science Academy Charter School | C11: C | D11: Marlborough | E11: 963.87 | F11: 1697.914999 | G11: 1026.213079 | H11: 5523.381784 | I11: 346.8361916 | J11: 494.2959113 | K11: 735.3325656 | L11: 352.5942295 | M11: 830.3733906 | N11: 815.9450963 | O11: 5278.701485 | P11: 16483708.33 | Q11: 17101.58873 | S11: 1466.201874 | T11: 163.3519043
A12: 409 | B12: Alma del Mar Charter School | C12: C | D12: New Bedford | E12: 787.69 | F12: 1032.982519 | G12: 1291.358275 | H12: 5099.23574 | I12: 1157.906029 | J12: 895.1262553 | K12: 852.877401 | L12: 283.3767091 | M12: 1430.981731 | N12: 1015.198873 | O12: 3809.676396 | P12: 13287322 | Q12: 16868.71993 | S12: 2151.964605 | T12: 0
A13: 3509 | B13: Argosy Collegiate Charter School | C13: C | D13: Fall River | E13: 568.81 | F13: 1647.404494 | G13: 1622.919165 | H13: 4467.383186 | I13: 520.2459099 | J13: 50.71215344 | K13: 1878.750226 | L13: 447.2044268 | M13: 1064.175806 | N13: 889.1975879 | O13: 3800.317417 | P13: 9321834.822 | Q13: 16388.31037 | S13: 1527.903166 | T13: 231.3988854
A14: 491 | B14: Atlantis Charter School | C14: C | D14: Fall River | E14: 1296.08 | F14: 1269.104531 | G14: 701.7105426 | H14: 3775.238411 | I14: 1148.407506 | J14: 41.03836183 | K14: 621.3832094 | L14: 908.6082649 | M14: 923.2408493 | N14: 990.0091044 | O14: 4342.556015 | P14: 19079978.35 | Q14: 14721.29679 | S14: 90.0322511 | T14: 1045.140732
A15: 3502 | B15: Baystate Academy Charter Public School | C15: C | D15: Springfield | E15: 474.3 | F15: 1270.503521 | G15: 1322.415075 | H15: 5601.936243 | I15: 671.8512545 | J15: 200.6051023 | K15: 1007.186633 | L15: 287.5103521 | M15: 1114.871284 | N15: 991.7697449 | O15: 4855.331794 | P15: 8216764.19 | Q15: 17323.981 | S15: 831.9881088 | T15: 254.6333333
A16: 420 | B16: Benjamin Banneker Charter Public School | C16: C | D16: Cambridge | E16: 341.31 | F16: 3988.990654 | G16: 2199.083238 | H16: 5447.200287 | I16: 2617.177024 | J16: 57.37731095 | K16: 1187.270663 | L16: 225.2439718 | M16: 2661.388943 | N16: 1113.231022 | O16: 5455.242302 | P16: 8516437.23 | Q16: 24952.20541 | S16: 1504.446925 | T16: 286.3103923
A17: 447 | B17: Benjamin Franklin Classical Charter Public School | C17: C | D17: Franklin | E17: 773.87 | F17: 1298.73042 | G17: 677.2765452 | H17: 5182.931242 | I17: 1498.700105 | J17: 76.96348224 | K17: 261.4731156 | L17: 285.496272 | M17: 667.2834585 | N17: 781.3400959 | O17: 4300.083696 | P17: 11631481.57 | Q17: 15030.27843 | S17: 0 | T17: 3151.588096
A18: 414 | B18: Berkshire Arts and Technology Charter Public School | C18: C | D18: Adams | E18: 371.42 | F18: 2288.9092 | G18: 1695.269641 | H18: 5443.353239 | I18: 718.8963707 | J18: 210.7603522 | K18: 612.7840181 | L18: 683.3025416 | M18: 1091.927683 | N18: 965.5206397 | O18: 4688.672016 | P18: 6833903.551 | Q18: 18399.3957 | S18: 0 | T18: 1430.474342
A19: 449 | B19: Boston Collegiate Charter School | C19: C | D19: Boston | E19: 720.71 | F19: 2341.916957 | G19: 2227.04694 | H19: 7758.718486 | I19: 506.1050908 | J19: 115.3099027 | K19: 702.5161993 | L19: 1331.054099 | M19: 1309.77024 | N19: 1367.941336 | O19: 5773.213664 | P19: 16888824.75 | Q19: 23433.59292 | S19: 1569.223405 | T19: 312.7693524
A20: 424 | B20: Boston Day and Evening Academy Charter School | C20: HM | D20: Boston | E20: 386.1436478 | F20: 2714.875734 | G20: 2125.879223 | H20: 7866.627322 | I20: 775.8722795 | J20: 204.2062856 | K20: 257.7305896 | L20: 661.8019602 | M20: 600.0298558 | N20: 719.6234138 | O20: 3197.706572 | P20: 7384747.519 | Q20: 19124.35323 | S20: 0 | T20: 0
A21: 411 | B21: Boston Green Academy Horace Mann Charter School | C21: HM | D21: Boston | E21: 495.5176471 | F21: 1418.30311 | G21: 1435.441396 | H21: 8113.031695 | I21: 1808.143617 | J21: 75.13667822 | K21: 283.0010662 | L21: 345.1300655 | M21: 687.0507882 | N21: 563.5188205 | O21: 2841.33362 | P21: 8706290.08 | Q21: 17570.09086 | S21: 0 | T21: 0
A22: 416 | B22: Boston Preparatory Charter Public School | C22: C | D22: Boston | E22: 665.59 | F22: 1586.478012 | G22: 2627.581649 | H22: 6713.506152 | I22: 588.4048889 | J22: 374.6698418 | K22: 1258.243063 | L22: 890.2095584 | M22: 2652.732177 | N22: 1936.137878 | O22: 6492.830421 | P22: 16720149.04 | Q22: 25120.79364 | S22: 2796.188945 | T22: 248.728196
A23: 481 | B23: Boston Renaissance Charter Public School | C23: C | D23: Boston | E23: 945.15 | F23: 2685.30392 | G23: 617.4067608 | H23: 6718.635137 | I23: 2217.19198 | J23: 414.0951172 | K23: 162.2208115 | L23: 465.8043697 | M23: 827.9987304 | N23: 1070.197323 | O23: 6878.40766 | P23: 20847421 | Q23: 22057.26181 | S23: 0 | T23: 1558.496535
A24: 417 | B24: Bridge Boston Charter School | C24: C | D24: Boston | E24: 336.66 | F24: 4620.913117 | G24: 1539.116616 | H24: 8119.790709 | I24: 2854.671092 | J24: 233.0836452 | K24: 1357.274075 | L24: 586.7768669 | M24: 1757.367879 | N24: 1355.838858 | O24: 6581.962871 | P24: 9765427.85 | Q24: 29006.79573 | S24: 283.7373017 | T24: 3303.600071
A25: 428 | B25: Brooke Charter School | C25: C | D25: Boston | E25: 2062.94 | F25: 920.0068737 | G25: 2243.912053 | H25: 6747.368595 | I25: 894.9249566 | J25: 23.3079537 | K25: 1654.402653 | L25: 412.0806228 | M25: 737.635971 | N25: 2085.231383 | O25: 5431.323659 | P25: 43631582.7 | Q25: 21150.19472 | S25: 543.7428815 | T25: 2604.152462
A26: 432 | B26: Cape Cod Lighthouse Charter School | C26: C | D26: Harwich | E26: 254.06 | F26: 1508.531449 | G26: 496.6503975 | H26: 7063.544045 | I26: 1901.865701 | J26: 220.7273872 | K26: 487.9937868 | L26: 407.5648075 | M26: 747.9987405 | N26: 700.1731874 | O26: 6430.685665 | P26: 5072494.676 | Q26: 19965.73517 | S26: 0 | T26: 948.9608754
A27: 418 | B27: Christa McAuliffe Charter School | C27: C | D27: Framingham | E27: 398.73 | F27: 2149.823189 | G27: 1193.567075 | H27: 6687.595616 | I27: 522.3785519 | J27: 20.09630577 | K27: 158.287563 | L27: 268.1990319 | M27: 1668.851102 | N27: 625.4081709 | O27: 5926.667168 | P27: 7663939 | Q27: 19220.87377 | S27: 1313.931733 | T27: 69.08183483
A28: 437 | B28: City on a Hill Charter Public School | C28: C | D28: Boston | E28: 300.44 | F28: 3771.232193 | G28: 2412.062309 | H28: 4348.242578 | I28: 693.6892558 | J28: 0 | K28: 786.313407 | L28: 531.3473572 | M28: 622.2007722 | N28: 1649.900146 | O28: 9551.487818 | P28: 7320664 | Q28: 24366.47584 | S28: 625.7821861 | T28: 65.17773932
A29: 438 | B29: Codman Academy Charter Public School | C29: C | D29: Boston | E29: 346.97 | F29: 2616.501744 | G29: 4725.879376 | H29: 6899.359768 | I29: 1675.280341 | J29: 339.8300671 | K29: 1142.6089 | L29: 782.8064386 | M29: 1708.27475 | N29: 978.8709399 | O29: 7176.508488 | P29: 9731093.144 | Q29: 28045.92081 | S29: 1020.520506 | T29: 22.08548289
A30: 3503 | B30: Collegiate Charter School of Lowell | C30: C | D30: Lowell | E30: 1019.31 | F30: 864.8716387 | G30: 2275.272488 | H30: 2620.048719 | I30: 551.2299006 | J30: 16.32322846 | K30: 1083.862211 | L30: 97.31911783 | M30: 767.2504537 | N30: 875.0614926 | O30: 2363.422923 | P30: 11737010.3 | Q30: 11514.66217 | S30: 0 | T30: 3332.287086
A31: 436 | B31: Community Charter School of Cambridge | C31: C | D31: =VLOOKUP(A31, FACTS, 6, FALSE) -> Cambridge | E31: 304.75 | F31: 3795.38251 | G31: 3491.268253 | H31: 8352.754717 | I31: 508.8597211 | J31: 296.8088597 | K31: 568.9256768 | L31: 654.0328138 | M31: 774.7764725 | N31: 1101.220902 | O31: 7037.801477 | P31: 8100813.12 | Q31: 26581.8314 | S31: 5066.438064 | T31: 468.5086136
A32: 426 | B32: Community Day Charter Public School - Gateway | C32: C | D32: Lawrence | E32: 399.7 | F32: 1445.171379 | G32: 1960.567576 | H32: 5854.881161 | I32: 753.7337753 | J32: 19.40455342 | K32: 386.4498374 | L32: 451.9139355 | M32: 1000.217663 | N32: 630.1676257 | O32: 4836.707531 | P32: 6930484.25 | Q32: 17339.21504 | S32: 534.0330248 | T32: 2.824618464
A33: 440 | B33: Community Day Charter Public School - Prospect | C33: C | D33: Lawrence | E33: 399.86 | F33: 1527.472115 | G33: 1765.702996 | H33: 5970.687241 | I33: 721.8929875 | J33: 16.7608663 | K33: 626.1591557 | L33: 688.5184815 | M33: 1086.070125 | N33: 802.1707598 | O33: 5686.340219 | P33: 7554065.13 | Q33: 18891.77495 | S33: 681.3634772 | T33: 21.36747862
A34: 431 | B34: Community Day Charter Public School - R. Kingman Webster | C34: C | D34: Lawrence | E34: 399.7 | F34: 1582.682012 | G34: 1627.12034 | H34: 5464.836127 | I34: 662.5569177 | J34: 11.80385289 | K34: 384.1781336 | L34: 465.1388541 | M34: 1077.290468 | N34: 493.9954966 | O34: 4316.204653 | P34: 6429497 | Q34: 16085.80686 | S34: 1375.126345 | T34: 25.69677258
A35: 439 | B35: Conservatory Lab Charter School | C35: C | D35: Boston | E35: 454.83 | F35: 1501.570543 | G35: 822.4703296 | H35: 5989.608601 | I35: 1942.937405 | J35: 83.9279511 | K35: 342.6515181 | L35: 355.4437482 | M35: 2668.103841 | N35: 1066.020051 | O35: 3234.671262 | P35: 8190308.13 | Q35: 18007.40525 | S35: 2015.006728 | T35: 355.7095178
A36: 407 | B36: Dudley Street Neighborhood Charter School | C36: HM | D36: Boston | E36: 279.4678363 | F36: 4464.328263 | G36: 934.0543567 | H36: 6801.304957 | I36: 858.5766191 | J36: 82.93247735 | K36: 403.7293576 | L36: 0 | M36: 1822.875816 | N36: 1176.545338 | O36: 3567.205383 | P36: 5620532.08 | Q36: 20111.55257 | S36: 0 | T36: 0
A37: 452 | B37: Edward M. Kennedy Academy for Health Careers: A Horace Mann Charter Public School | C37: HM | D37: Boston | E37: 394.6611693 | F37: 3060.549388 | G37: 886.7479936 | H37: 9209.09956 | I37: 1594.552616 | J37: 800.9022033 | K37: 216.1905114 | L37: 2890.367963 | M37: 3320.12395 | N37: 2.777065709 | O37: 2854.326921 | P37: 9801662 | Q37: 24835.63817 | S37: 804.0314698 | T37: 28.5814792
A38: 410 | B38: Excel Academy Charter School | C38: C | D38: =VLOOKUP(A38, FACTS, 6, FALSE) -> Boston/Chelsea | E38: 1395.77 | F38: 1521.540636 | G38: 2663.555588 | H38: 5447.037838 | I38: 1157.303382 | J38: 125.0119576 | K38: 878.1490145 | L38: 903.545226 | M38: 1051.851178 | N38: 757.8204289 | O38: 5104.612508 | P38: 27371646.75 | Q38: 19610.42776 | S38: 224.8075041 | T38: 2057.904956
A39: 413 | B39: Four Rivers Charter Public School | C39: C | D39: Greenfield | E39: 215.24 | F39: 1945.112433 | G39: 1484.352351 | H39: 6624.698012 | I39: 634.5753577 | J39: 363.6173574 | K39: 911.1689277 | L39: 440.4060584 | M39: 515.9031778 | N39: 1549.563278 | O39: 6022.653782 | P39: 4410709 | Q39: 20492.05073 | S39: 1686.312953 | T39: 67.31090875
A40: 446 | B40: Foxborough Regional Charter School | C40: =VLOOKUP(A40, TYPE, 3, FALSE) -> C | D40: Foxborough | E40: 1694.81 | F40: 1169.845092 | G40: 804.2764381 | H40: 4788.172769 | I40: 666.7527805 | J40: 114.873803 | K40: 448.7854922 | L40: 989.1589913 | M40: 1282.925118 | N40: 1043.305161 | O40: 4059.757241 | P40: 26045590.75 | Q40: 15367.85289 | S40: 0 | T40: 2371.192057
A41: 478 | B41: Francis W. Parker Charter Essential School | C41: C | D41: Devens | E41: =VLOOKUP(A41, FTE, 2, FALSE) -> 394.67 | F41: =VLOOKUP($A41&100, FE, 21, FALSE)/$E41 -> 1584.676094 | G41: =VLOOKUP($A41&210, FE, 21, FALSE)/$E41 -> 1992.919543 | H41: =VLOOKUP($A41&220, FE, 21, FALSE)/$E41 -> 6531.426204 | I41: =VLOOKUP($A41&230, FE, 21, FALSE)/$E41 -> 482.6687359 | J41: =VLOOKUP($A41&240, FE, 21, FALSE)/$E41 -> 292.6582208 | K41: =VLOOKUP($A41&260, FE, 21, FALSE)/$E41 -> 525.8017838 | L41: =VLOOKUP($A41&250, FE, 21, FALSE)/$E41 -> 472.4065675 | M41: =VLOOKUP($A41&300, FE, 21, FALSE)/$E41 -> 880.1402184 | N41: =VLOOKUP($A41&400, FE, 21, FALSE)/$E41 -> 891.5456204 | O41: =VLOOKUP($A41&500, FE, 21, FALSE)/$E41 -> 5804.228064 | P41: =VLOOKUP($A41&800,FE, 21,FALSE)-VLOOKUP($A41&700,FE, 21,FALSE)-VLOOKUP($A41&600,FE, 21,FALSE) -> 7679674.77 | Q41: 19458.47105 | S41: =VLOOKUP($A41&740, FE, 21, FALSE)/$E41 -> 715.9424076 | T41: =(VLOOKUP($A41&700, FE, 21, FALSE)-VLOOKUP($A41&740, FE, 21, FALSE)-VLOOKUP($A41&725, FE, 21, FALSE))/$E41 -> 148.259964
A42: 496 | B42: Global Learning Charter Public School | C42: C | D42: New Bedford | E42: 500.44 | F42: 1659.331788 | G42: 1322.252418 | H42: 5262.910639 | I42: 695.342099 | J42: 50.46958676 | K42: 993.627228 | L42: 694.846535 | M42: 1224.760211 | N42: 595.4180321 | O42: 4773.695148 | P42: 8643926.81 | Q42: 17272.65368 | S42: 239.7889857 | T42: 346.9326992
A43: 499 | B43: Hampden Charter School of Science East | C43: C | D43: Chicopee | E43: 537.01 | F43: 1224.073388 | G43: 1091.974079 | H43: 4715.346083 | I43: 683.6129681 | J43: 110.0109868 | K43: 744.0401482 | L43: 497.4376641 | M43: 587.9760153 | N43: 1554.553919 | O43: 4679.568351 | P43: 8532333.65 | Q43: 15888.5936 | S43: 0 | T43: 976.6857228
A44: 3516 | B44: Hampden Charter School of Science West | C44: C | D44: Westfield | E44: 320.35 | F44: 1451.687217 | G44: 928.3377556 | H44: 4867.816451 | I44: 337.1312627 | J44: 134.031528 | K44: 875.7788669 | L44: 510.7039176 | M44: 1345.031996 | N44: 1277.466022 | O44: 3598.832527 | P44: 4909946 | Q44: 15326.81754 | S44: 0 | T44: 1414.549711
A45: 419 | B45: Helen Y Davis Leadership Academy Charter Public School | C45: C | D45: Boston | E45: 186.91 | F45: 2184.714569 | G45: 1340.147665 | H45: 7606.393451 | I45: 448.0445134 | J45: 162.4257664 | K45: 894.3716227 | L45: 563.6456048 | M45: 903.1405489 | N45: 630.9346744 | O45: 5628.387994 | P45: 3805900 | Q45: 20362.20641 | S45: 1933.454604 | T45: 241.8169172
A46: 455 | B46: Hill View Montessori Charter Public School | C46: C | D46: Haverhill | E46: 305.13 | F46: 1342.763085 | G46: 730.8360371 | H46: 5007.98676 | I46: 2039.695638 | J46: 420.3421492 | K46: 238.7638056 | L46: 501.8713335 | M46: 570.7842559 | N46: 765.2705404 | O46: 4092.358667 | P46: 4793797.43 | Q46: 15710.67227 | S46: 0 | T46: 539.150526
A47: 450 | B47: Hilltown Cooperative Charter Public School | C47: C | D47: East Hampton | E47: 218 | F47: 793.8182569 | G47: 1539.466422 | H47: 6206.023991 | I47: 1934.870505 | J47: 57.8233945 | K47: 432.583945 | L47: 501.8354587 | M47: 387.559633 | N47: 492.587156 | O47: 3497.284404 | P47: 3453959.99 | Q47: 15843.85317 | S47: 0 | T47: 900.011789
A48: 453 | B48: Holyoke Community Charter School | C48: C | D48: Holyoke | E48: 700.77 | F48: 812.387802 | G48: 3025.503375 | H48: 4003.979908 | I48: 761.8976269 | J48: 131.9034776 | K48: 770.1200108 | L48: 271.6055196 | M48: 1842.621688 | N48: 1476.230432 | O48: 3860.3636 | P48: 11882686 | Q48: 16956.61344 | S48: 0 | T48: 801.8251352
A49: 435 | B49: Innovation Academy Charter School | C49: C | D49: Tyngsborough | E49: 785.28 | F49: 1302.730236 | G49: 982.7131724 | H49: 5328.929808 | I49: 1297.655613 | J49: 25.58577832 | K49: 248.3789222 | L49: 356.0691728 | M49: 1138.499643 | N49: 1048.624694 | O49: 5204.465923 | P49: 13297659 | Q49: 16933.65296 | S49: 57.30440098 | T49: 1075.655817
A50: 463 | B50: KIPP Academy Boston Charter School | C50: C | D50: Boston | E50: 621.38 | F50: 1911.189852 | G50: 2295.186826 | H50: 4741.965673 | I50: 615.5044256 | J50: 40.24381216 | K50: 1422.365895 | L50: 4.987270269 | M50: 1725.495333 | N50: 1113.193553 | O50: 4687.258055 | P50: 11531191.43 | Q50: 18557.39069 | S50: 0 | T50: 3136.181531
A51: 429 | B51: KIPP Academy Lynn Charter School | C51: C | D51: Lynn | E51: 1613.82 | F51: 2708.470984 | G51: 4069.376743 | H51: 4283.864371 | I51: 201.1171072 | J51: 70.62638956 | K51: 1439.029229 | L51: 3.420192463 | M51: 896.3005354 | N51: 855.4161926 | O51: 5042.828153 | P51: 31583183.45 | Q51: 19570.4499 | S51: 0 | T51: 2253.306503
A52: 454 | B52: Lawrence Family Development Charter School | C52: C | D52: Lawrence | E52: 793.9 | F52: 1816.955536 | G52: 1162.033002 | H52: 4810.217912 | I52: 1323.775035 | J52: 47.57778058 | K52: 793.891611 | L52: 304.5169417 | M52: 823.640257 | N52: 975.1845321 | O52: 2848.18365 | P52: 11833854.55 | Q52: 14905.97626 | S52: 2019.384053 | T52: 182.1765965
A53: 486 | B53: Learning First Charter Public School | C53: C | D53: Worcester | E53: 668.55 | F53: 1195.324209 | G53: 1080.052352 | H53: 4748.751776 | I53: 1150.473413 | J53: 198.0988707 | K53: 563.4342981 | L53: 1181.4868 | M53: 1006.29721 | N53: 805.3937626 | O53: 3549.607359 | P53: 10348432 | Q53: 15478.92005 | S53: 1217.261237 | T53: 76.86336101
A54: 3514 | B54: Libertas Academy Charter School | C54: C | D54: Springfield | E54: 255.38 | F54: 3646.299632 | G54: 2004.197666 | H54: 6619.351555 | I54: 496.049025 | J54: 507.7570679 | K54: 746.5854805 | L54: 940.5748297 | M54: 868.5135876 | N54: 619.844937 | O54: 5634.474117 | P54: 5639722 | Q54: 22083.6479 | S54: 1475.272143 | T54: 20.32265643
A55: 456 | B55: Lowell Community Charter Public School | C55: C | D55: Lowell | E55: 803.75 | F55: 1318.438159 | G55: 717.5664075 | H55: 5375.473381 | I55: 1214.407963 | J55: 186.8693748 | K55: 898.3808398 | L55: 429.0462955 | M55: 549.2868554 | N55: 1226.155123 | O55: 5011.320684 | P55: 13605032.11 | Q55: 16926.94508 | S55: 0 | T55: 821.1981337
A56: 458 | B56: Lowell Middlesex Academy Charter School | C56: C | D56: Lowell | E56: 83.9 | F56: 3351.688677 | G56: 3032.680334 | H56: 8862.682122 | I56: 0 | J56: 37.43384982 | K56: 1630.174613 | L56: 162.776758 | M56: 1316.128605 | N56: 955.6376639 | O56: 4818.638737 | P56: 2027681.89 | Q56: 24167.84136 | S56: 0 | T56: 940.6912992
A57: 3517 | B57: Map Academy Charter School | C57: C | D57: Plymouth | E57: 197.21 | F57: 3236.118605 | G57: 1064.207342 | H57: 5660.9068 | I57: 2265.17636 | J57: 25.06764363 | K57: 331.2146443 | L57: 29.95588459 | M57: 624.9747477 | N57: 996.1836621 | O57: 3811.224279 | P57: 3558660.36 | Q57: 18045.02997 | S57: 2599.09031 | T57: 766.2162669
A58: 464 | B58: Marblehead Community Charter Public School | C58: C | D58: Marblehead | E58: 210.89 | F58: 1893.279435 | G58: 849.9687989 | H58: 6306.982029 | I58: 1047.437242 | J58: 80.54185594 | K58: 476.9515387 | L58: 441.1778652 | M58: 1078.227038 | N58: 1061.854853 | O58: 5728.19982 | P58: 3999448.812 | Q58: 18964.62048 | S58: 0 | T58: 1041.508654
A59: 466 | B59: Martha's Vineyard Public Charter School | C59: C | D59: West Tisbury | E59: 168.32 | F59: 2271.304658 | G59: 1937.292063 | H59: 8685.848384 | I59: 6291.90827 | J59: 251.289211 | K59: 749.3702471 | L59: 621.3937738 | M59: 2746.768061 | N59: 1381.915399 | O59: 10142.15185 | P59: 5904538 | Q59: 35079.24192 | S59: 1649.192015 | T59: 106.6955798
A60: 492 | B60: Martin Luther King, Jr. Charter School of Excellence | C60: C | D60: Springfield | E60: 362.61 | F60: 1833.285651 | G60: 868.3446954 | H60: 6505.958606 | I60: 773.8365737 | J60: 206.9105375 | K60: 1207.984777 | L60: 303.2842999 | M60: 714.4248366 | N60: 1095.160779 | O60: 5606.671851 | P60: 6931602.94 | Q60: 19115.86261 | S60: 995.559968 | T60: 195.7738893
A61: 469 | B61: Match Charter Public School | C61: C | D61: Boston | E61: 1223.51 | F61: 1655.250877 | G61: 3071.956094 | H61: 6363.422449 | I61: 1651.791158 | J61: 183.8857059 | K61: 814.7035987 | L61: 953.4298861 | M61: 940.3494863 | N61: 1327.912318 | O61: 7091.854582 | P61: 29430990 | Q61: 24054.55615 | S61: 0 | T61: 2132.275176
A62: 470 | B62: Mystic Valley Regional Charter School | C62: C | D62: Malden | E62: 1626.1 | F62: 1224.309083 | G62: 671.9986471 | H62: 4298.93549 | I62: 1209.290327 | J62: 194.9203616 | K62: 567.1613062 | L62: 82.2212656 | M62: 1456.522354 | N62: 2151.129697 | O62: 3285.036591 | P62: 24621634 | Q62: 15141.52512 | S62: 233.8312527 | T62: 709.9649468
A63: 444 | B63: Neighborhood House Charter School | C63: C | D63: =VLOOKUP(A63, FACTS, 6, FALSE) -> Boston | E63: 802.17 | F63: 2091.451937 | G63: 1057.294588 | H63: 6464.664597 | I63: 1059.391401 | J63: 455.8784298 | K63: 223.5448845 | L63: 1469.520177 | M63: 839.1301096 | N63: 2213.672912 | O63: 5518.239276 | P63: 17160653 | Q63: 21392.78831 | S63: 1016.808158 | T63: 232.0443298
A64: 3513 | B64: New Heights Charter School of Brockton | C64: C | D64: Brockton | E64: 740.36 | F64: 1434.263737 | G64: 2794.167162 | H64: 4389.949484 | I64: 558.1689989 | J64: 176.9917743 | K64: 1094.304676 | L64: 730.1280323 | M64: 1202.940056 | N64: 897.4404344 | O64: 4560.963585 | P64: 13207517.43 | Q64: 17839.31794 | S64: 817.4172024 | T64: 581.7156518
A65: 3515 | B65: Old Sturbridge Academy Charter Public School | C65: C | D65: =VLOOKUP(A65, FACTS, 6, FALSE) -> Sturbridge | E65: 279.37 | F65: 1828.307979 | G65: 880.6982854 | H65: 4435.058668 | I65: 1612.254788 | J65: 41.96850055 | K65: 698.7819379 | L65: 108.9031392 | M65: 2223.035437 | N65: 941.2228586 | O65: 2857.518774 | P65: 4365924.62 | Q65: 15627.75037 | S65: 1656.090489 | T65: 6.721552064
A66: 3501 | B66: Paulo Freire Social Justice Charter School | C66: C | D66: Holyoke | E66: 261.19 | F66: 2574.742525 | G66: 2034.116926 | H66: 5069.841878 | I66: 963.8309277 | J66: 676.1744324 | K66: 353.2294498 | L66: 442.2527662 | M66: 1346.012481 | N66: 961.5299207 | O66: 5134.947739 | P66: 5108009 | Q66: 19556.67905 | S66: 1365.320265 | T66: 194.5327156
A67: 493 | B67: Phoenix Academy Charter Public High School, Chelsea | C67: C | D67: Chelsea | E67: 208.59 | F67: 5983.83911 | G67: 2253.976701 | H67: 3728.53924 | I67: 43.94266264 | J67: 0 | K67: 1624.344408 | L67: 116.2519776 | M67: 310.2258018 | N67: 1573.148281 | O67: 5838.621219 | P67: 4479030 | Q67: 21472.8894 | S67: 1525.816194 | T67: 379.4093677
A68: 3518 | B68: Phoenix Academy Public Charter High School, Lawrence | C68: C | D68: Lawrence | E68: 153.58 | F68: 5528.369579 | G68: 2434.223206 | H68: 4332.75166 | I68: 4.590441464 | J68: 50.68368277 | K68: 1260.553848 | L68: 182.8558406 | M68: 234.8800625 | N68: 329.0614012 | O68: 4416.232582 | P68: 2883341.99 | Q68: 18774.2023 | S68: 2236.925381 | T68: 177.8747233
A69: 3508 | B69: Phoenix Academy Public Charter High School, Springfield | C69: C | D69: Springfield | E69: 199.34 | F69: 4995.710846 | G69: 1307.16364 | H69: 4311.34243 | I69: 3.12029698 | J69: 40.60399318 | K69: 1185.005518 | L69: 373.372128 | M69: 494.7978328 | N69: 651.5400823 | O69: 3687.217819 | P69: 3398722 | Q69: 17049.87459 | S69: 1994.040333 | T69: 430.1244106
A70: 494 | B70: Pioneer Charter School of Science | C70: C | D70: Everett | E70: 791.61 | F70: 1742.848751 | G70: 586.9484216 | H70: 5454.171638 | I70: 566.6120943 | J70: 44.27801569 | K70: 829.8028954 | L70: 448.2294312 | M70: 912.4346206 | N70: 1039.25169 | O70: 4750.081391 | P70: 12962343.77 | Q70: 16374.65895 | S70: 1943.276752 | T70: 0
A71: 3506 | B71: Pioneer Charter School of Science II | C71: C | D71: Saugus | E71: 361.08 | F71: 1573.586214 | G71: 1424.429739 | H71: 5537.894179 | I71: 689.9685665 | J71: 144.3769525 | K71: 786.6690207 | L71: 141.0284148 | M71: 871.6913703 | N71: 830.5407943 | O71: 4576.258973 | P71: 5985422.48 | Q71: 16576.44422 | S71: 2264.016866 | T71: 0
A72: 497 | B72: Pioneer Valley Chinese Immersion Charter School | C72: =VLOOKUP(A72, TYPE, 3, FALSE) -> C | D72: Hadley | E72: 558.88 | F72: 830.316508 | G72: 1235.711369 | H72: 6946.701117 | I72: 733.3667871 | J72: 34.05040438 | K72: 532.4707272 | L72: 480.6086459 | M72: 731.3411466 | N72: 735.7195104 | O72: 5651.928035 | P72: 10010778.3 | Q72: 17912.21425 | S72: 1355.283925 | T72: 190.9292335
A73: 479 | B73: Pioneer Valley Performing Arts Charter Public School | C73: C | D73: South Hadley | E73: =VLOOKUP(A73, FTE, 2, FALSE) -> 396.68 | F73: =VLOOKUP($A73&100, FE, 21, FALSE)/$E73 -> 1548.633458 | G73: =VLOOKUP($A73&210, FE, 21, FALSE)/$E73 -> 1110.049284 | H73: =VLOOKUP($A73&220, FE, 21, FALSE)/$E73 -> 5525.712186 | I73: =VLOOKUP($A73&230, FE, 21, FALSE)/$E73 -> 1356.370425 | J73: =VLOOKUP($A73&240, FE, 21, FALSE)/$E73 -> 129.3622819 | K73: =VLOOKUP($A73&260, FE, 21, FALSE)/$E73 -> 283.007588 | L73: =VLOOKUP($A73&250, FE, 21, FALSE)/$E73 -> 539.5472673 | M73: =VLOOKUP($A73&300, FE, 21, FALSE)/$E73 -> 773.0721236 | N73: =VLOOKUP($A73&400, FE, 21, FALSE)/$E73 -> 1056.965539 | O73: =VLOOKUP($A73&500, FE, 21, FALSE)/$E73 -> 5649.98437 | P73: =VLOOKUP($A73&800,FE, 21,FALSE)-VLOOKUP($A73&700,FE, 21,FALSE)-VLOOKUP($A73&600,FE, 21,FALSE) -> 7129412.43 | Q73: 17972.70452 | S73: =VLOOKUP($A73&740, FE, 21, FALSE)/$E73 -> 758.1072905 | T73: =(VLOOKUP($A73&700, FE, 21, FALSE)-VLOOKUP($A73&740, FE, 21, FALSE)-VLOOKUP($A73&725, FE, 21, FALSE))/$E73 -> 315.7640415
A74: 487 | B74: Prospect Hill Academy Charter School | C74: C | D74: Somerville (K-6); Cambridge (7-12) | E74: 1106.26 | F74: 3042.617468 | G74: 2121.4154 | H74: 6920.866704 | I74: 1849.908701 | J74: 87.36463399 | K74: 981.3814112 | L74: 458.8740441 | M74: 556.6657025 | N74: 874.288142 | O74: 6398.463291 | P74: 25766837 | Q74: =SUM(F74:O74) -> 23291.8455 | S74: 2049.490174 | T74: 104.8668487
A75: 483 | B75: Rising Tide Charter Public School | C75: C | D75: Plymouth | E75: 668.1 | F75: 1044.024532 | G75: 1089.975468 | H75: 5538.212244 | I75: 869.9614279 | J75: 54.72447238 | K75: 332.2274959 | L75: 535.9319114 | M75: 2561.985122 | N75: 843.7128574 | O75: 5450.933947 | P75: 12240720.74 | Q75: 18321.68948 | S75: 0 | T75: 1724.416809
A76: 482 | B76: River Valley Charter School | C76: C | D76: Newburyport | E76: 287.86 | F76: 1518.456889 | G76: 1179.757521 | H76: 6244.202043 | I76: 1971.020635 | J76: 53.23421107 | K76: 572.6186341 | L76: 350.7885778 | M76: 611.9085667 | N76: 984.4195095 | O76: 5074.015146 | P76: 5342803 | Q76: 18560.42173 | S76: 0 | T76: 1114.284722
A77: 484 | B77: Roxbury Preparatory Charter School | C77: C | D77: Boston | E77: 1601.06 | F77: 1801.813486 | G77: 1795.900841 | H77: 5261.699124 | I77: 1961.658239 | J77: 512.0538893 | K77: 716.152424 | L77: 603.4024334 | M77: 575.6036626 | N77: 1204.150563 | O77: 5203.666946 | P77: 31438576.84 | Q77: 19636.10161 | S77: 1556.410128 | T77: 1189.676215
A78: 441 | B78: Springfield International Charter School | C78: C | D78: Springfield | E78: 1567.9 | F78: 1269.534058 | G78: 1187.185273 | H78: 3610.118266 | I78: 763.6250016 | J78: 64.43604822 | K78: 1034.185171 | L78: 679.6076854 | M78: 891.0579501 | N78: 753.8796862 | O78: 3533.462115 | P78: 21616780.38 | Q78: 13787.09126 | S78: 0 | T78: 1712.03388
A79: 485 | B79: Salem Academy Charter School | C79: C | D79: Salem | E79: 493.15 | F79: 2612.110838 | G79: 1301.620501 | H79: 6151.37299 | I79: 857.3160093 | J79: 155.2535942 | K79: 213.1975058 | L79: 1129.35693 | M79: 802.2771571 | N79: 963.1910372 | O79: 5510.155267 | P79: 9713009.33 | Q79: 19695.85183 | S79: 2254.115381 | T79: 0
A80: 474 | B80: Sizer School, A North Central Charter Essential School | C80: C | D80: =VLOOKUP(A80, FACTS, 6, FALSE) -> Fitchburg | E80: 368.38 | F80: 1893.244747 | G80: 1038.789701 | H80: 5929.28134 | I80: 805.4940822 | J80: 65.65065964 | K80: 565.1645583 | L80: 1050.740024 | M80: 850.4454911 | N80: 1163.045062 | O80: 4717.742033 | P80: 6660162.2 | Q80: 18079.5977 | S80: 0.002714588197 | T80: 25.99771975
A81: 488 | B81: South Shore Charter Public School | C81: C | D81: Norwell | E81: 1008.06 | F81: 916.8789556 | G81: 865.6875583 | H81: 7646.706545 | I81: 1240.73071 | J81: 86.29942662 | K81: 686.3361308 | L81: 569.2627423 | M81: 545.8018372 | N81: 746.4555681 | O81: 5643.029185 | P81: 19099903 | Q81: 18947.18866 | S81: 0.8997480309 | T81: 1848.040791
A82: 3510 | B82: Springfield Preparatory Charter School | C82: C | D82: Springfield | E82: 379.51 | F82: 1416.475692 | G82: 1973.837158 | H82: 5177.254881 | I82: 822.3503201 | J82: 123.0806197 | K82: 733.7460673 | L82: 231.8619799 | M82: 1906.964454 | N82: 547.1993096 | O82: 3623.829807 | P82: 6283395.376 | Q82: 16556.60029 | S82: 644.8502543 | T82: 7.904930041
A83: 489 | B83: Sturgis Charter Public School | C83: C | D83: Hyannis | E83: 851.46 | F83: 1034.547718 | G83: 1049.389284 | H83: 8021.824866 | I83: 1392.626782 | J83: 44.35440303 | K83: 570.3920325 | L83: 1134.74855 | M83: 877.7088765 | N83: 889.8961783 | O83: 1545.825993 | P83: 14101297 | Q83: 16561.31468 | S83: 1985.060954 | T83: 62.22605877
A84: 480 | B84: UP Academy Charter School of Boston | C84: HM | D84: Boston | E84: 351.4022346 | F84: 1489.572201 | G84: 3403.940883 | H84: 7811.26916 | I84: 1239.239969 | J84: 73.37147422 | K84: 1176.944195 | L84: 719.1499686 | M84: 1343.086934 | N84: 1427.009309 | O84: 3002.988274 | P84: 7620709.991 | Q84: 21686.57237 | S84: 0 | T84: 18.28958204
A85: 3505 | B85: UP Academy Charter School of Dorchester | C85: HM | D85: Boston | E85: 687 | F85: 1122.135259 | G85: 2512.759007 | H85: 6306.356462 | I85: 771.7009216 | J85: 34.45717613 | K85: 793.2309729 | L85: 663.0078894 | M85: 872.1146731 | N85: 1345.969869 | O85: 2431.636725 | P85: 11578264.47 | Q85: 16853.36896 | S85: 0 | T85: 69.38646288
A86: 498 | B86: Veritas Preparatory Charter School | C86: =VLOOKUP(A86, TYPE, 3, FALSE) -> C | D86: =VLOOKUP(A86, FACTS, 6, FALSE) -> Springfield | E86: 410.94 | F86: 2029.224631 | G86: 2683.067723 | H86: 6135.191439 | I86: 335.9542026 | J86: 229.1254441 | K86: 790.4411593 | L86: 1029.61004 | M86: 576.3057137 | N86: 1121.892174 | O86: 5308.437801 | P86: 8317117.53 | Q86: 20239.25033 | S86: 713.5172775 | T86: 156.5420743
A87: C | B87: Commonwealth Charter Statewide Totals | C87: C | E87: =SUMIF(C9:C86,"C",E9:E86) -> 45929.18 | F87: 1708.534942 | G87: 1632.211411 | H87: 5531.482481 | I87: 1043.029599 | J87: 161.8280622 | K87: 788.1334915 | L87: 554.9452152 | M87: 1063.121157 | N87: 1115.834565 | O87: 4881.614606 | P87: =VLOOKUP($A87&800,FE,21,FALSE)-VLOOKUP($A87&700,FE,21,FALSE)-VLOOKUP($A87&600,FE,21,FALSE) -> 848805028.7 | Q87: =SUM(F87:O87) -> 18480.73553 | S87: 748.9260609 | T87: 1095.035185
A88: HM | B88: Horace Mann Charter Statewide Totals | C88: HM | E88: =SUMIF(C9:C86,"HM",E9:E86) -> 2594.192535 | F88: 2120.501176 | G88: 1952.670148 | H88: 7582.468374 | I88: 1168.166186 | J88: 194.5890458 | K88: 538.2927065 | L88: 877.1446052 | M88: 1334.90832 | N88: 891.6646081 | O88: 2887.953503 | P88: =VLOOKUP($A88&800,FE,21,FALSE)-VLOOKUP($A88&700,FE,21,FALSE)-VLOOKUP($A88&600,FE,21,FALSE) -> 50712206.14 | Q88: =SUM(F88:O88) -> 19548.35867 | S88: 122.3193713 | T88: 25.20071241
A89: ALL | B89: All Charter Schools Statewide Totals | C89: ALL | E89: =SUM(E87:E88) -> 48523.37253 | F89: 1730.559786 | G89: 1649.344014 | H89: 5641.13381 | I89: 1049.719744 | J89: 163.5795542 | K89: 774.7763182 | L89: 572.170878 | M89: 1077.651643 | N89: 1103.849825 | O89: 4775.028017 | P89: =VLOOKUP($A89&800,FE,21,FALSE)-VLOOKUP($A89&700,FE,21,FALSE)-VLOOKUP($A89&600,FE,21,FALSE) -> 899517234.8 | Q89: 18537.81359 | S89: 715.4259493 | T89: 1037.838901
F90: ----------------------------- Operating Expenditures Per Pupil In The Charter School ------------------------------------------- | S90: -------- Per Pupil --------
A91: Notes: | B91: 1. These figures do not include facilities lease costs -- see data presented at right.
B92: 2. The majority of charter schools lease their facilities. In many cases, Horace Mann charter schools are provided their facilities in kind by their host districts; some report a monetary figure for these in-kind revenues and expenditures, some do not.
B93: 3. Capital facilities costs include facilities-related long-term interest; depreciation of equipment, buildings, and grounds; bad debt or loss on disposal of assets; and other costs related to capital facilities acquisition.
B94: Charter schools that report significant costs in this category either own their buildings or have invested heavily in leasehold improvements.

Sheet 5. AVGTCHSAL
A1: Massachusetts Department of Elementary and Secondary Education
A2: FY21 Average Teacher Salaries
A3: =Index!B3 -> Last Updated: March 2022
A5: Return to Index
A6: Average teacher salaries are calculated from data submitted on the Charter School End of Year Financial Report. The calculation includes professional teachers paid from all funding sources, including tuition revenue, federal and state grants, and private grants/contributions. Beginning in FY08, the Educator Personnel Management Information System (EPIMS) was the source for the total number of teachers, which is shown in full-time equivalents (e.g., a teacher who worked half-time would count as .5 FTE's).
A8: LEA | B8: Charter School | C8: Type | D8: Location | E8: Total Salaries | F8: Total Teachers | G8: Average Salaries
A9: 445 | B9: Abby Kelley Foster Charter Public School | C9: =VLOOKUP(A9, TYPE, 3, FALSE) -> C | D9: =VLOOKUP(A9, FACTS, 6, FALSE) -> Worcester | E9: =VLOOKUP($A9&220, FE, 21, FALSE) -> 7586419.37 | F9: =VLOOKUP(A9, TEACHEREPIMS, 2, FALSE) -> 114.216 | G9: =E9/F9 -> 66421.68672
A10: 412 | B10: Academy of the Pacific Rim Charter Public School | C10: C | D10: Boston | E10: 3503450.225 | F10: 51.899 | G10: =E10/F10 -> 67505.15858
A11: 430 | B11: Advanced Math and Science Academy Charter School | C11: C | D11: Marlborough | E11: 5323822 | F11: 73.548 | G11: 72385.6801
A12: 409 | B12: Alma del Mar Charter School | C12: C | D12: New Bedford | E12: 4016617 | F12: 63.002 | G12: 63753.80147
A13: 3509 | B13: Argosy Collegiate Charter School | C13: C | D13: Fall River | E13: 2541092.23 | F13: 38.633 | G13: 65775.17226
A14: 491 | B14: Atlantis Charter School | C14: C | D14: Fall River | E14: 4893011 | F14: 98.761 | G14: 49543.95966
A15: 3502 | B15: Baystate Academy Charter Public School | C15: C | D15: Springfield | E15: 2656998.36 | F15: 52.541 | G15: 50569.99981
A16: 420 | B16: Benjamin Banneker Charter Public School | C16: C | D16: Cambridge | E16: 1859183.93 | F16: 19.967 | G16: 93112.83267
A17: 447 | B17: Benjamin Franklin Classical Charter Public School | C17: C | D17: Franklin | E17: 4010915 | F17: 54.985 | G17: 72945.62153
A18: 414 | B18: Berkshire Arts and Technology Charter Public School | C18: C | D18: Adams | E18: 2021770.26 | F18: 37.688 | G18: 53644.93367
A19: 449 | B19: Boston Collegiate Charter School | C19: C | D19: Boston | E19: 5591786 | F19: 69.229 | G19: 80772.3064
A20: 424 | B20: Boston Day and Evening Academy Charter School | C20: HM | D20: Boston | E20: 3037648.17 | F20: 26.042 | G20: 116644.1967
A21: 411 | B21: Boston Green Academy Horace Mann Charter School | C21: HM | D21: Boston | E21: 4020150.376 | F21: 43.256 | G21: 92938.56057
A22: 416 | B22: Boston Preparatory Charter Public School | C22: C | D22: Boston | E22: 4468442.56 | F22: 58.549 | G22: 76319.7076
A23: 481 | B23: Boston Renaissance Charter Public School | C23: C | D23: Boston | E23: 6350118 | F23: 83.003 | G23: 76504.68055
A24: 417 | B24: Bridge Boston Charter School | C24: C | D24: Boston | E24: 2733608.74 | F24: 41.999 | G24: 65087.47208
A25: 428 | B25: Brooke Charter School | C25: C | D25: Boston | E25: 13919416.57 | F25: 179.211 | G25: 77670.54796
A26: 432 | B26: Cape Cod Lighthouse Charter School | C26: C | D26: Harwich | E26: 1794564 | F26: 18.011 | G26: 99637.11065
A27: 418 | B27: Christa McAuliffe Charter School | C27: C | D27: Framingham | E27: 2666545 | F27: 39.3 | G27: 67851.01781
A28: 437 | B28: City on a Hill Charter Public School | C28: C | D28: Boston | E28: 1306386 | F28: 21.464 | G28: 60864.05143
A29: 438 | B29: Codman Academy Charter Public School | C29: C | D29: Boston | E29: 2393870.859 | F29: 47.134 | G29: 50788.62092
A30: 3503 | B30: Collegiate Charter School of Lowell | C30: C | D30: Lowell | E30: 2670641.86 | F30: 47.556 | G30: 56157.83203
A31: 436 | B31: Community Charter School of Cambridge | C31: C | D31: Cambridge | E31: 2545502 | F31: 30.106 | G31: 84551.31867
A32: 426 | B32: Community Day Charter Public School - Gateway | C32: C | D32: Lawrence | E32: 2340196 | F32: 40.996 | G32: 57083.52034
A33: 440 | B33: Community Day Charter Public School - Prospect | C33: C | D33: Lawrence | E33: 2387439 | F33: 42.974 | G33: 55555.42886
A34: 431 | B34: Community Day Charter Public School - R. Kingman Webster | C34: C | D34: Lawrence | E34: 2184295 | F34: 41.496 | G34: 52638.68807
A35: 439 | B35: Conservatory Lab Charter School | C35: C | D35: Boston | E35: 2724253.68 | F35: 28 | G35: 97294.77429
A36: 407 | B36: Dudley Street Neighborhood Charter School | C36: HM | D36: Boston | E36: 1900745.98 | F36: 20.5 | G36: 92719.3161
A37: 452 | B37: Edward M. Kennedy Academy for Health Careers: A Horace Mann Charter Public School | C37: HM | D37: Boston | E37: 3634474 | F37: 34.275 | G37: 106038.6287
A38: 410 | B38: Excel Academy Charter School | C38: C | D38: Boston/Chelsea | E38: 7602812.003 | F38: 113.207 | G38: 67158.49729
A39: 413 | B39: Four Rivers Charter Public School | C39: C | D39: Greenfield | E39: 1425900 | F39: 19.92 | G39: 71581.3253
A40: 446 | B40: Foxborough Regional Charter School | C40: C | D40: Foxborough | E40: 8115043.09 | F40: 128.347 | G40: 63227.3687
A41: 478 | B41: Francis W. Parker Charter Essential School | C41: C | D41: Devens | E41: =VLOOKUP($A41&220, FE, 21, FALSE) -> 2577757.98 | F41: =VLOOKUP(A41, TEACHEREPIMS, 2, FALSE) -> 46.412 | G41: 55540.76489
A42: 496 | B42: Global Learning Charter Public School | C42: C | D42: New Bedford | E42: 2633771 | F42: 42.819 | G42: 61509.40003
A43: 499 | B43: Hampden Charter School of Science East | C43: C | D43: Chicopee | E43: 2532188 | F43: 44.535 | G43: 56858.38105
A44: 3516 | B44: Hampden Charter School of Science West | C44: C | D44: Westfield | E44: 1559405 | F44: 32.997 | G44: 47258.99324
A45: 419 | B45: Helen Y Davis Leadership Academy Charter Public School | C45: C | D45: Boston | E45: 1421711 | F45: 16.5 | G45: 86164.30303
A46: 455 | B46: Hill View Montessori Charter Public School | C46: C | D46: Haverhill | E46: 1528087 | F46: 24 | G46: 63670.29167
A47: 450 | B47: Hilltown Cooperative Charter Public School | C47: C | D47: East Hampton | E47: 1352913.23 | F47: 19.95 | G47: 67815.1995
A48: 453 | B48: Holyoke Community Charter School | C48: C | D48: Holyoke | E48: 2805869 | F48: 42.5 | G48: 66020.44706
A49: 435 | B49: Innovation Academy Charter School | C49: C | D49: Tyngsborough | E49: 4184702 | F49: 62.648 | G49: 66797.05657
A50: 463 | B50: KIPP Academy Boston Charter School | C50: C | D50: Boston | E50: 2946562.63 | F50: 43.504 | G50: 67730.84383
A51: 429 | B51: KIPP Academy Lynn Charter School | C51: C | D51: Lynn | E51: 6913386 | F51: 106.939 | G51: 64647.93948
A52: 454 | B52: Lawrence Family Development Charter School | C52: C | D52: Lawrence | E52: 3818832 | F52: 57 | G52: 66997.05263
A53: 486 | B53: Learning First Charter Public School | C53: C | D53: Worcester | E53: 3174778 | F53: 37.5 | G53: 84660.74667
A54: 3514 | B54: Libertas Academy Charter School | C54: C | D54: Springfield | E54: 1690450 | F54: 25.998 | G54: 65022.30941
A55: 456 | B55: Lowell Community Charter Public School | C55: C | D55: Lowell | E55: 4320536.73 | F55: 64.695 | G55: 66783.163
A56: 458 | B56: Lowell Middlesex Academy Charter School | C56: C | D56: Lowell | E56: 743579.03 | F56: 7.004 | G56: 106164.9101
A57: 3517 | B57: Map Academy Charter School | C57: C | D57: Plymouth | E57: 1116387.43 | F57: 20.202 | G57: 55261.23305
A58: 464 | B58: Marblehead Community Charter Public School | C58: C | D58: Marblehead | E58: 1330079.44 | F58: 20.75 | G58: 64100.21398
A59: 466 | B59: Martha's Vineyard Public Charter School | C59: C | D59: West Tisbury | E59: 1462002 | F59: 17.99 | G59: 81267.48193
A60: 492 | B60: Martin Luther King, Jr. Charter School of Excellence | C60: C | D60: Springfield | E60: 2359125.65 | F60: 39.89 | G60: 59140.77839
A61: 469 | B61: Match Charter Public School | C61: C | D61: Boston | E61: 7785711 | F61: 112.997 | G61: 68901.9266
A62: 470 | B62: Mystic Valley Regional Charter School | C62: C | D62: Malden | E62: 6990499 | F62: 94.693 | G62: 73822.76409
A63: 444 | B63: Neighborhood House Charter School | C63: C | D63: Boston | E63: 5185760 | F63: 76.887 | G63: 67446.51241
A64: 3513 | B64: New Heights Charter School of Brockton | C64: C | D64: Brockton | E64: 3250143 | F64: 46.572 | G64: 69787.49034
A65: 3515 | B65: Old Sturbridge Academy Charter Public School | C65: C | D65: Sturbridge | E65: 1239022.34 | F65: 20 | G65: 61951.117
A66: 3501 | B66: Paulo Freire Social Justice Charter School | C66: C | D66: Holyoke | E66: 1324192 | F66: 21.779 | G66: 60801.32237
A67: 493 | B67: Phoenix Academy Charter Public High School, Chelsea | C67: C | D67: Chelsea | E67: 777736 | F67: 12.498 | G67: 62228.83661
A68: 3518 | B68: Phoenix Academy Public Charter High School, Lawrence | C68: C | D68: Lawrence | E68: 665424 | F68: 10 | G68: 66542.4
A69: 3508 | B69: Phoenix Academy Public Charter High School, Springfield | C69: =VLOOKUP(A69, TYPE, 3, FALSE) -> C | D69: =VLOOKUP(A69, FACTS, 6, FALSE) -> Springfield | E69: 859423 | F69: 7.6 | G69: 113081.9737 | H69: *
A70: 494 | B70: Pioneer Charter School of Science | C70: C | D70: Everett | E70: 4317576.81 | F70: 72.299 | G70: 59718.34756
A71: 3506 | B71: Pioneer Charter School of Science II | C71: C | D71: Saugus | E71: 1999622.83 | F71: 35.25 | G71: =E71/F71 -> 56726.88879
A72: 497 | B72: Pioneer Valley Chinese Immersion Charter School | C72: C | D72: Hadley | E72: 3882372.32 | F72: 69.647 | G72: 55743.56857
A73: 479 | B73: Pioneer Valley Performing Arts Charter Public School | C73: C | D73: South Hadley | E73: =VLOOKUP($A73&220, FE, 21, FALSE) -> 2191939.51 | F73: =VLOOKUP(A73, TEACHEREPIMS, 2, FALSE) -> 40.84 | G73: 53671.38859
A74: 487 | B74: Prospect Hill Academy Charter School | C74: C | D74: Somerville (K-6); Cambridge (7-12) | E74: 7656278 | F74: 97.31 | G74: 78679.25188
A75: 483 | B75: Rising Tide Charter Public School | C75: C | D75: Plymouth | E75: 3700079.6 | F75: 59.088 | G75: 62619.81451
A76: 482 | B76: River Valley Charter School | C76: C | D76: Newburyport | E76: 1797456 | F76: 24.71 | G76: 72742.04775
A77: 484 | B77: Roxbury Preparatory Charter School | C77: C | D77: Boston | E77: 8424296 | F77: 120.072 | G77: 70160.37044
A78: 441 | B78: Springfield International Charter School | C78: C | D78: Springfield | E78: 5660304.43 | F78: 83.523 | G78: 67769.40998
A79: 485 | B79: Salem Academy Charter School | C79: C | D79: Salem | E79: 3033549.59 | F79: 43.789 | G79: 69276.52127
A80: 474 | B80: Sizer School, A North Central Charter Essential School | C80: C | D80: Fitchburg | E80: 2184228.66 | F80: 38.665 | G80: 56491.1072
A81: 488 | B81: South Shore Charter Public School | C81: C | D81: Norwell | E81: 7708339 | F81: 99.546 | G81: 77434.94465
A82: 3510 | B82: Springfield Preparatory Charter School | C82: C | D82: Springfield | E82: 1964820 | F82: 30.43 | G82: 64568.51791
A83: 489 | B83: Sturgis Charter Public School | C83: C | D83: Hyannis | E83: 6830263 | F83: 90.689 | G83: 75315.23117
A84: 480 | B84: UP Academy Charter School of Boston | C84: HM | D84: Boston | E84: 2744897.438 | F84: 30.808 | G84: 89096.90464
A85: 3505 | B85: UP Academy Charter School of Dorchester | C85: HM | D85: Boston | E85: 4332466.889 | F85: 39.2 | G85: 110522.1145
A86: 498 | B86: Veritas Preparatory Charter School | C86: C | D86: Springfield | E86: 2521195.57 | F86: 32 | G86: 78787.36156
A87: C | B87: Commonwealth Charter Statewide Totals | C87: C | E87: =SUMIF(C9:C86,C87, E9:E86) -> 254056454.5 | F87: =SUMIF($C9:$C86,C87,F9:F86) -> 3770.459 | G87: =E87/F87 -> 67380.77632
A88: HM | B88: Horace Mann Charter Statewide Totals | C88: HM | E88: =SUMIF(C9:C86,C88, E9:E86) -> 19670382.85 | F88: =SUMIF($C9:$C86,C88,F9:F86) -> 194.081 | G88: =E88/F88 -> 101351.4092
A89: ALL | B89: All Charter Schools Statewide Totals | C89: ALL | E89: =SUM(E87:E88) -> 273726837.4 | F89: =SUM(F87:F88) -> 3964.54 | G89: =E89/F89 -> 69043.78247
A91: *Phoenix Charter Academy Springfield submitted an FTE for teachers that was lower than actual on its FY21 EPIMS submission. Therefore, teacher salaries reflected in column G are higher than what teachers actually earned.

Sheet CSLIST (hidden)
B1: Select a Charter School | C1: LEA
A2: 2 | B2: Abby Kelley Foster Charter Public School | C2: 445 | D2: Abby Kelley Foster Charter Public School
A3: 3 | B3: Academy of the Pacific Rim Charter Public School | C3: 412 | D3: Academy of the Pacific Rim Charter Public School
A4: 4 | B4: Advanced Math and Science Academy Charter School | C4: 430 | D4: Advanced Math and Science Academy Charter School
A5: 5 | B5: Alma del Mar Charter School | C5: 409 | D5: Alma del Mar Charter School
A6: 6 | B6: Argosy Collegiate Charter School | C6: 3509 | D6: Argosy Collegiate Charter School
A7: 7 | B7: Atlantis Charter School | C7: 491 | D7: Atlantis Charter School
A8: 8 | B8: Baystate Academy Charter Public School | C8: 3502 | D8: Baystate Academy Charter Public School
A9: 9 | B9: Benjamin Banneker Charter Public School | C9: 420 | D9: Benjamin Banneker Charter Public School
A10: 10 | B10: Benjamin Franklin Classical Charter Public School | C10: 447 | D10: Benjamin Franklin Classical Charter Public School
A11: 11 | B11: Berkshire Arts and Technology Charter Public School | C11: 414 | D11: Berkshire Arts and Technology Charter Public School
A12: 12 | B12: Boston Collegiate Charter School | C12: 449 | D12: Boston Collegiate Charter School
A13: 13 | B13: Boston Day and Evening Academy Charter School | C13: 424 | D13: Boston Day and Evening Academy Charter School
A14: 14 | B14: Boston Green Academy Horace Mann Charter School | C14: 411 | D14: Boston Green Academy Horace Mann Charter School
A15: 15 | B15: Boston Preparatory Charter Public School | C15: 416 | D15: Boston Preparatory Charter Public School
A16: 16 | B16: Boston Renaissance Charter Public School | C16: 481 | D16: Boston Renaissance Charter Public School
A17: 17 | B17: Bridge Boston Charter School | C17: 417 | D17: Bridge Boston Charter School
A18: 18 | B18: Brooke Charter School | C18: 428 | D18: Brooke Charter School
A19: 19 | B19: Cape Cod Lighthouse Charter School | C19: 432 | D19: Cape Cod Lighthouse Charter School
A20: 20 | B20: Christa McAuliffe Charter School | C20: 418 | D20: Christa McAuliffe Charter School
A21: 21 | B21: City on a Hill Charter Public School | C21: 437 | D21: City on a Hill Charter Public School
A22: 22 | B22: Codman Academy Charter Public School | C22: 438 | D22: Codman Academy Charter Public School
A23: 23 | B23: Collegiate Charter School of Lowell | C23: 3503 | D23: Collegiate Charter School of Lowell
A24: 24 | B24: Community Charter School of Cambridge | C24: 436 | D24: Community Charter School of Cambridge
A25: 25 | B25: Community Day Charter Public School - Gateway | C25: 426 | D25: Community Day Charter Public School - Gateway
A26: 26 | B26: Community Day Charter Public School - Prospect | C26: 440 | D26: Community Day Charter Public School - Prospect
A27: 27 | B27: Community Day Charter Public School - R. Kingman Webster | C27: 431 | D27: Community Day Charter Public School - R. Kingman Webster
A28: 28 | B28: Conservatory Lab Charter School | C28: 439 | D28: Conservatory Lab Charter School
A29: 29 | B29: Dudley Street Neighborhood Charter School | C29: 407 | D29: Dudley Street Neighborhood Charter School
A30: 30 | B30: Edward M. Kennedy Academy for Health Careers: A Horace Mann Charter Public School | C30: 452 | D30: Edward M. Kennedy Academy for Health Careers: A Horace Mann Charter Public School
A31: 31 | B31: Excel Academy Charter School | C31: 410 | D31: Excel Academy Charter School
A32: 32 | B32: Four Rivers Charter Public School | C32: 413 | D32: Four Rivers Charter Public School
A33: 33 | B33: Foxborough Regional Charter School | C33: 446 | D33: Foxborough Regional Charter School
A34: 34 | B34: Francis W. Parker Charter Essential School | C34: 478 | D34: Francis W. Parker Charter Essential School
A35: 35 | B35: Global Learning Charter Public School | C35: 496 | D35: Global Learning Charter Public School
A36: 36 | B36: Hampden Charter School of Science East | C36: 499 | D36: Hampden Charter School of Science East
A37: 37 | B37: Hampden Charter School of Science West | C37: 3516 | D37: Hampden Charter School of Science West
A38: 38 | B38: Helen Y Davis Leadership Academy Charter Public School | C38: 419 | D38: Helen Y Davis Leadership Academy Charter Public School
A39: 39 | B39: Hill View Montessori Charter Public School | C39: 455 | D39: Hill View Montessori Charter Public School
A40: 40 | B40: Hilltown Cooperative Charter Public School | C40: 450 | D40: Hilltown Cooperative Charter Public School
A41: 41 | B41: Holyoke Community Charter School | C41: 453 | D41: Holyoke Community Charter School
A42: 42 | B42: Innovation Academy Charter School | C42: 435 | D42: Innovation Academy Charter School
A43: 43 | B43: KIPP Academy Boston Charter School | C43: 463 | D43: KIPP Academy Boston Charter School
A44: 44 | B44: KIPP Academy Lynn Charter School | C44: 429 | D44: KIPP Academy Lynn Charter School
A45: 45 | B45: Lawrence Family Development Charter School | C45: 454 | D45: Lawrence Family Development Charter School
A46: 46 | B46: Learning First Charter Public School | C46: 486 | D46: Learning First Charter Public School
A47: 47 | B47: Libertas Academy Charter School | C47: 3514 | D47: Libertas Academy Charter School
A48: 48 | B48: Lowell Community Charter Public School | C48: 456 | D48: Lowell Community Charter Public School
A49: 49 | B49: Lowell Middlesex Academy Charter School | C49: 458 | D49: Lowell Middlesex Academy Charter School
A50: 50 | B50: Map Academy Charter School | C50: 3517 | D50: Map Academy Charter School
A51: 51 | B51: Marblehead Community Charter Public School | C51: 464 | D51: Marblehead Community Charter Public School
A52: 52 | B52: Martha's Vineyard Public Charter School | C52: 466 | D52: Martha's Vineyard Public Charter School
A53: 53 | B53: Martin Luther King, Jr. Charter School of Excellence | C53: 492 | D53: Martin Luther King, Jr. Charter School of Excellence
A54: 54 | B54: Match Charter Public School | C54: 469 | D54: Match Charter Public School
A55: 55 | B55: Mystic Valley Regional Charter School | C55: 470 | D55: Mystic Valley Regional Charter School
A56: 56 | B56: Neighborhood House Charter School | C56: 444 | D56: Neighborhood House Charter School
A57: 57 | B57: New Heights Charter School of Brockton | C57: 3513 | D57: New Heights Charter School of Brockton
A58: 58 | B58: Old Sturbridge Academy Charter Public School | C58: 3515 | D58: Old Sturbridge Academy Charter Public School
A59: 59 | B59: Paulo Freire Social Justice Charter School | C59: 3501 | D59: Paulo Freire Social Justice Charter School
A60: 60 | B60: Phoenix Academy Charter Public High School, Chelsea | C60: 493 | D60: Phoenix Academy Charter Public High School, Chelsea
A61: 61 | B61: Phoenix Academy Public Charter High School, Lawrence | C61: 3518 | D61: Phoenix Academy Public Charter High School, Lawrence
A62: 62 | B62: Phoenix Academy Public Charter High School, Springfield | C62: 3508 | D62: Phoenix Academy Public Charter High School, Springfield
A63: 63 | B63: Pioneer Charter School of Science | C63: 494 | D63: Pioneer Charter School of Science
A64: 64 | B64: Pioneer Charter School of Science II | C64: 3506 | D64: Pioneer Charter School of Science II
A65: 65 | B65: Pioneer Valley Chinese Immersion Charter School | C65: 497 | D65: Pioneer Valley Chinese Immersion Charter School
A66: 66 | B66: Pioneer Valley Performing Arts Charter Public School | C66: 479 | D66: Pioneer Valley Performing Arts Charter Public School
A67: 67 | B67: Prospect Hill Academy Charter School | C67: 487 | D67: Prospect Hill Academy Charter School
A68: 68 | B68: Rising Tide Charter Public School | C68: 483 | D68: Rising Tide Charter Public School
A69: 69 | B69: River Valley Charter School | C69: 482 | D69: River Valley Charter School
A70: 70 | B70: Roxbury Preparatory Charter School | C70: 484 | D70: Roxbury Preparatory Charter School
A71: 71 | B71: Springfield International Charter School | C71: 441 | D71: Springfield International Charter School
A72: 72 | B72: Salem Academy Charter School | C72: 485 | D72: Salem Academy Charter School
A73: 73 | B73: Sizer School, A North Central Charter Essential School | C73: 474 | D73: Sizer School, A North Central Charter Essential School
A74: 74 | B74: South Shore Charter Public School | C74: 488 | D74: South Shore Charter Public School
A75: 75 | B75: Springfield Preparatory Charter School | C75: 3510 | D75: Springfield Preparatory Charter School
A76: 76 | B76: Sturgis Charter Public School | C76: 489 | D76: Sturgis Charter Public School
A77: 77 | B77: UP Academy Charter School of Boston | C77: 480 | D77: UP Academy Charter School of Boston
A78: 78 | B78: UP Academy Charter School of Dorchester | C78: 3505 | D78: UP Academy Charter School of Dorchester
A79: 79 | B79: Veritas Preparatory Charter School | C79: 498 | D79: Veritas Preparatory Charter School
A80: 80 | B80: Commonwealth Charter Statewide Totals | C80: C
A81: 81 | B81: Horace Mann Charter Statewide Totals | C81: HM
A82: 82 | B82: All Charter Schools Statewide Totals | C82: ALL
A83: 83
A84: 84
A85: 85
A86: 86

Sheet BAL21 (hidden)
B1: 1 | C1: 2 | D1: 3 | E1: 4 | F1: 5 | G1: 6 | H1: 7 | I1: 8
A2: FY | B2: vlookup | C2: cha_code | D2: cha_type | E2: balance_id | F2: Line_Desc | G2: balance_sch | H2: balance_found | I2: balance_total
A3: 2021 | B3: =C3&E3 -> 40701 | C3: 407 | D3: =VLOOKUP(C3, TYPE, 3, FALSE) -> HM | E3: 01 | F3: Cash and Cash Equivalents | G3: 395299 | H3: 0 | I3: 395299 | J3: =D3&E3 -> HM01
A4: 2021 | B4: =C4&E4 -> 40702 | C4: 407 | D4: HM | E4: 02 | F4: Accounts Receivable net of doubtful accounts | G4: 0 | H4: 0 | I4: 0 | J4: =D4&E4 -> HM02
A5: 2021 | B5: 40703 | C5: 407 | D5: HM | E5: 03 | F5: Grants Receivable - State | G5: 0 | H5: 0 | I5: 0 | J5: HM03
A6: 2021 | B6: 40704 | C6: 407 | D6: HM | E6: 04 | F6: Grants Receivable - Federal | G6: 1531 | H6: 0 | I6: 1531 | J6: HM04
A7: 2021 | B7: 40705 | C7: 407 | D7: HM | E7: 05 | F7: Grants Receivable - Private | G7: 0 | H7: 0 | I7: 0 | J7: HM05
A8: 2021 | B8: 40706 | C8: 407 | D8: HM | E8: 06 | F8: Contributions Receivable | G8: 0 | H8: 0 | I8: 0 | J8: HM06
A9: 2021 | B9: 40707 | C9: 407 | D9: HM | E9: 07 | F9: Due from related parties | G9: 28177 | H9: 0 | I9: 28177 | J9: HM07
A10: 2021 | B10: 40708 | C10: 407 | D10: HM | E10: 08 | F10: Prepaid Expenses / Inventory | G10: 9382 | H10: 0 | I10: 9382 | J10: HM08
A11: 2021 | B11: 40709 | C11: 407 | D11: HM | E11: 09 | F11: Short-Term Investments | G11: 0 | H11: 0 | I11: 0 | J11: HM09
A12: 2021 | B12: 40710 | C12: 407 | D12: HM | E12: 10 | F12: Deposit (Security, Other) | G12: 0 | H12: 0 | I12: 0 | J12: HM10
A13: 2021 | B13: 40711 | C13: 407 | D13: HM | E13: 11 | F13: Restricted Current Assets | G13: 0 | H13: 0 | I13: 0 | J13: HM11
A14: 2021 | B14: 40712 | C14: 407 | D14: HM | E14: 12 | F14: TOTAL CURRENT ASSETS | G14: 434389 | H14: 0 | I14: 434389 | J14: HM12
A15: 2021 | B15: 40713 | C15: 407 | D15: HM | E15: 13 | F15: - Land and Buildings | G15: 0 | H15: 0 | I15: 0 | J15: HM13
A16: 2021 | B16: 40714 | C16: 407 | D16: HM | E16: 14 | F16: - Building/Leasehold Improvement | G16: 0 | H16: 0 | I16: 0 | J16: HM14
A17: 2021 | B17: 40715 | C17: 407 | D17: HM | E17: 15 | F17: - Furniture and Equipment | G17: 0 | H17: 0 | I17: 0 | J17: HM15
A18: 2021 | B18: 40716 | C18: 407 | D18: HM | E18: 16 | F18: - Less Accumulated Depreciation | G18: 0 | H18: 0 | I18: 0 | J18: HM16
A19: 2021 | B19: 40717 | C19: 407 | D19: HM | E19: 17 | F19: Net Capital Assets | G19: 0 | H19: 0 | I19: 0 | J19: HM17
A20: 2021 | B20: 40718 | C20: 407 | D20: HM | E20: 18 | F20: Restricted Noncurrent Assets | G20: 0 | H20: 0 | I20: 0 | J20: HM18
A21: 2021 | B21: 40719 | C21: 407 | D21: HM | E21: 19 | F21: Long-Term Investments | G21: 0 | H21: 0 | I21: 0 | J21: HM19
A22: 2021 | B22: 40720 | C22: 407 | D22: HM | E22: 20 | F22: Building Acquisition / Financing Costs / Deferred Expenses | G22: 0 | H22: 0 | I22: 0 | J22: HM20
A23: 2021 | B23: 40721 | C23: 407 | D23: HM | E23: 21 | F23: Long-Term Grants / Contributions Receivable | G23: 0 | H23: 0 | I23: 0 | J23: HM21
A24: 2021 | B24: 40722 | C24: 407 | D24: HM | E24: 22 | F24: TOTAL NONCURRENT ASSETS | G24: 0 | H24: 0 | I24: 0 | J24: HM22
A25: 2021 | B25: 40723 | C25: 407 | D25: HM | E25: 23 | F25: TOTAL ASSETS | G25: 434389 | H25: 0 | I25: 434389 | J25: HM23
A26: 2021 | B26: 40724 | C26: 407 | D26: HM | E26: 24 | F26: Accounts Payable | G26: 19020 | H26: 0 | I26: 19020 | J26: HM24
A27: 2021 | B27: 40725 | C27: 407 | D27: HM | E27: 25 | F27: Accrued Expenses / Accrued Payroll | G27: 0 | H27: 0 | I27: 0 | J27: HM25
A28: 2021 | B28: 40726 | C28: 407 | D28: HM | E28: 26 | F28: Deferred Revenue | G28: 0 | H28: 0 | I28: 0 | J28: HM26
A29: 2021 | B29: 40727 | C29: 407 | D29: HM | E29: 27 | F29: Due to related parties | G29: 0 | H29: 0 | I29: 0 | J29: HM27
A30: 2021 | B30: 40728 | C30: 407 | D30: HM | E30: 28 | F30: Current Debt Payable | G30: 0 | H30: 0 | I30: 0 | J30: HM28
A31: 2021 | B31: 40729 | C31: 407 | D31: HM | E31: 29 | F31: Current Lease Obligations Payable | G31: 0 | H31: 0 | I31: 0 | J31: HM29
A32: 2021 | B32: 40730 | C32: 407 | D32: HM | E32: 30 | F32: TOTAL CURRENT LIABILITIES | G32: 19020 | H32: 0 | I32: 19020 | J32: HM30
A33: 2021 | B33: 40731 | C33: 407 | D33: HM | E33: 31 | F33: Noncurrent Lease Obligations | G33: 0 | H33: 0 | I33: 0 | J33: HM31
A34: 2021 | B34: 40732 | C34: 407 | D34: HM | E34: 32 | F34: Long-Term Debt | G34: 0 | H34: 0 | I34: 0 | J34: HM32
A35: 2021 | B35: 40733 | C35: 407 | D35: HM | E35: 33 | F35: Deferred Revenue | G35: 0 | H35: 0 | I35: 0 | J35: HM33
A36: 2021 | B36: 40734 | C36: 407 | D36: HM | E36: 34 | F36: TOTAL NONCURRENT LIABILITIES | G36: 0 | H36: 0 | I36: 0 | J36: HM34
A37: 2021 | B37: 40735 | C37: 407 | D37: HM | E37: 35 | F37: TOTAL LIABILITIES | G37: 19020 | H37: 0 | I37: 19020 | J37: HM35
A38: 2021 | B38: 40736 | C38: 407 | D38: HM | E38: 36 | F38: Investment in capital assets (net of related debt) | G38: 0 | H38: 0 | I38: 0 | J38: HM36
A39: 2021 | B39: 40737 | C39: 407 | D39: HM | E39: 37 | F39: Temporarily Restricted | G39: 0 | H39: 0 | I39: 0 | J39: HM37
A40: 2021 | B40: 40738 | C40: 407 | D40: HM | E40: 38 | F40: Permanently Restricted | G40: 0 | H40: 0 | I40: 0 | J40: HM38
A41: 2021 | B41: 40739 | C41: 407 | D41: HM | E41: 39 | F41: Unrestricted (non-capital) | G41: 415369 | H41: 0 | I41: 415369 | J41: HM39
A42: 2021 | B42: 40740 | C42: 407 | D42: HM | E42: 40 | F42: TOTAL NET ASSETS | G42: 415369 | H42: 0 | I42: 415369 | J42: HM40
A43: 2021 | B43: 40741 | C43: 407 | D43: HM | E43: 41 | F43: TOTAL LIABILITIES AND NET ASSETS | G43: 434389 | H43: 0 | I43: 434389 | J43: HM41
A44: 2021 | B44: 40901 | C44: 409 | D44: C | E44: 01 | F44: Cash and Cash Equivalents | G44: 2566918 | H44: 2556715 | I44: 5123633 | J44: C01
A45: 2021 | B45: 40902 | C45: 409 | D45: C | E45: 02 | F45: Accounts Receivable net of doubtful accounts | G45: 15315 | H45: 0 | I45: 15315 | J45: C02
A46: 2021 | B46: 40903 | C46: 409 | D46: C | E46: 03 | F46: Grants Receivable - State | G46: 1471.81 | H46: 0 | I46: 1471.81 | J46: C03
A47: 2021 | B47: 40904 | C47: 409 | D47: C | E47: 04 | F47: Grants Receivable - Federal | G47: 1494510 | H47: 0 | I47: 1494510 | J47: C04
A48: 2021 | B48: 40905 | C48: 409 | D48: C | E48: 05 | F48: Grants Receivable - Private | G48: 0 | H48: 0 | I48: 0 | J48: C05
A49: 2021 | B49: 40906 | C49: 409 | D49: C | E49: 06 | F49: Contributions Receivable | G49: 0 | H49: 116600 | I49: 116600 | J49: C06
A50: 2021 | B50: 40907 | C50: 409 | D50: C | E50: 07 | F50: Due from related parties | G50: 73305 | H50: -73305 | I50: 0 | J50: C07
A51: 2021 | B51: 40908 | C51: 409 | D51: C | E51: 08 | F51: Prepaid Expenses / Inventory | G51: 13791 | H51: 0 | I51: 13791 | J51: C08
A52: 2021 | B52: 40909 | C52: 409 | D52: C | E52: 09 | F52: Short-Term Investments | G52: 0 | H52: 0 | I52: 0 | J52: C09
A53: 2021 | B53: 40910 | C53: 409 | D53: C | E53: 10 | F53: Deposit (Security, Other) | G53: 6000 | H53: 5000 | I53: 11000 | J53: C10
A54: 2021 | B54: 40911 | C54: 409 | D54: C | E54: 11 | F54: Restricted Current Assets | G54: 0 | H54: 0 | I54: 0 | J54: C11
A55: 2021 | B55: 40912 | C55: 409 | D55: C | E55: 12 | F55: TOTAL CURRENT ASSETS | G55: 4171310.81 | H55: 2605010 | I55: 6776320.81 | J55: C12
A56: 2021 | B56: 40913 | C56: 409 | D56: C | E56: 13 | F56: - Land and Buildings | G56: 0 | H56: 28394630 | I56: 28394630 | J56: C13
A57: 2021 | B57: 40914 | C57: 409 | D57: C | E57: 14 | F57: - Building/Leasehold Improvement | G57: 111525 | H57: 397557 | I57: 509082 | J57: C14
A58: 2021 | B58: 40915 | C58: 409 | D58: C | E58: 15 | F58: - Furniture and Equipment | G58: 849493 | H58: 435473 | I58: 1284966 | J58: C15
A59: 2021 | B59: 40916 | C59: 409 | D59: C | E59: 16 | F59: - Less Accumulated Depreciation | G59: -271703 | H59: -2159874 | I59: -2431577 | J59: C16
A60: 2021 | B60: 40917 | C60: 409 | D60: C | E60: 17 | F60: Net Capital Assets | G60: 689315 | H60: 27067786 | I60: 27757101 | J60: C17
A61: 2021 | B61: 40918 | C61: 409 | D61: C | E61: 18 | F61: Restricted Noncurrent Assets | G61: 0 | H61: 13213878 | I61: 13213878 | J61: C18
A62: 2021 | B62: 40919 | C62: 409 | D62: C | E62: 19 | F62: Long-Term Investments | G62: 0 | H62: 10042850 | I62: 10042850 | J62: C19
A63: 2021 | B63: 40920 | C63: 409 | D63: C | E63: 20 | F63: Building Acquisition / Financing Costs / Deferred Expenses | G63: 0 | H63: 0 | I63: 0 | J63: C20
A64: 2021 | B64: 40921 | C64: 409 | D64: C | E64: 21 | F64: Long-Term Grants / Contributions Receivable | G64: 0 | H64: 0 | I64: 0 | J64: C21
A65: 2021 | B65: 40922 | C65: 409 | D65: C | E65: 22 | F65: TOTAL NONCURRENT ASSETS | G65: 689315 | H65: 50324514 | I65: 51013829 | J65: C22
A66: 2021 | B66: 40923 | C66: 409 | D66: C | E66: 23 | F66: TOTAL ASSETS | G66: 4860626 | H66: 52929524 | I66: 57790150 | J66: C23
A67: 2021 | B67: 40924 | C67: 409 | D67: =VLOOKUP(C67, TYPE, 3, FALSE) -> C | E67: 24 | F67: Accounts Payable | G67: 285117 | H67: 4023860 | I67: 4308977 | J67: C24
A68: 2021 | B68: =C68&E68 -> 40925 | C68: 409 | D68: C | E68: 25 | F68: Accrued Expenses / Accrued Payroll | G68: 438934 | H68: 13794 | I68: 452728 | J68: =D68&E68 -> C25
A69: 2021 | B69: 40926 | C69: 409 | D69: C | E69: 26 | F69: Deferred Revenue | G69: 0 | H69: 0 | I69: 0 | J69: C26
A70: 2021 | B70: 40927 | C70: 409 | D70: C | E70: 27 | F70: Due to related parties | G70: 0 | H70: 0 | I70: 0 | J70: C27
A71: 2021 | B71: 40928 | C71: 409 | D71: C | E71: 28 | F71: Current Debt Payable | G71: 0 | H71: 212470 | I71: 212470 | J71: C28
A72: 2021 | B72: 40929 | C72: 409 | D72: C | E72: 29 | F72: Current Lease Obligations Payable | G72: 0 | H72: 0 | I72: 0 | J72: C29
A73: 2021 | B73: 40930 | C73: 409 | D73: C | E73: 30 | F73: TOTAL CURRENT LIABILITIES | G73: 724051 | H73: 4250124 | I73: 4974175 | J73: C30
A74: 2021 | B74: 40931 | C74: 409 | D74: C | E74: 31 | F74: Noncurrent Lease Obligations | G74: 2191018 | H74: -2191018 | I74: 0 | J74: C31
A75: 2021 | B75: 40932 | C75: 409 | D75: C | E75: 32 | F75: Long-Term Debt | G75: 0 | H75: 44374972 | I75: 44374972 | J75: C32
A76: 2021 | B76: 40933 | C76: 409 | D76: C | E76: 33 | F76: Deferred Revenue | G76: 0 | H76: 0 | I76: 0 | J76: C33
A77: 2021 | B77: 40934 | C77: 409 | D77: C | E77: 34 | F77: TOTAL NONCURRENT LIABILITIES | G77: 2191018 | H77: 42183954 | I77: 44374972 | J77: C34
A78: 2021 | B78: 40935 | C78: 409 | D78: C | E78: 35 | F78: TOTAL LIABILITIES | G78: 2915069 | H78: 46434078 | I78: 49349147 | J78: C35
A79: 2021 | B79: 40936 | C79: 409 | D79: C | E79: 36 | F79: Investment in capital assets (net of related debt) | G79: 689315 | H79: -8298620 | I79: -7609305 | J79: C36
A80: 2021 | B80: 40937 | C80: 409 | D80: C | E80: 37 | F80: Temporarily Restricted | G80: 0 | H80: 563150 | I80: 563150 | J80: C37
A81: 2021 | B81: 40938 | C81: 409 | D81: C | E81: 38 | F81: Permanently Restricted | G81: 0 | H81: 0 | I81: 0 | J81: C38
A82: 2021 | B82: 40939 | C82: 409 | D82: C | E82: 39 | F82: Unrestricted (non-capital) | G82: 1256242 | H82: 14230916 | I82: 15487158 | J82: C39
A83: 2021 | B83: 40940 | C83: 409 | D83: C | E83: 40 | F83: TOTAL NET ASSETS | G83: 1945557 | H83: 6495446 | I83: 8441003 | J83: C40
A84: 2021 | B84: 40941 | C84: 409 | D84: C | E84: 41 | F84: TOTAL LIABILITIES AND NET ASSETS | G84: 4860626 | H84: 52929524 | I84: 57790150 | J84: C41
A85: 2021 | B85: 41001 | C85: 410 | D85: C | E85: 01 | F85: Cash and Cash Equivalents | G85: 5851580 | H85: 6570163 | I85: 12421743 | J85: C01
A86: 2021 | B86: 41002 | C86: 410 | D86: C | E86: 02 | F86: Accounts Receivable net of doubtful accounts | G86: 0 | H86: 52940 | I86: 52940 | J86: C02
A87: 2021 | B87: 41003 | C87: 410 | D87: C | E87: 03 | F87: Grants Receivable - State | G87: 78802 | H87: 0 | I87: 78802 | J87: C03
A88: 2021 | B88: 41004 | C88: 410 | D88: C | E88: 04 | F88: Grants Receivable - Federal | G88: 90881 | H88: 0 | I88: 90881 | J88: C04
A89: 2021 | B89: 41005 | C89: 410 | D89: C | E89: 05 | F89: Grants Receivable - Private | G89: 0 | H89: 138000 | I89: 138000 | J89: C05
A90: 2021 | B90: 41006 | C90: 410 | D90: C | E90: 06 | F90: Contributions Receivable | G90: 0 | H90: 0 | I90: 0 | J90: C06
A91: 2021 | B91: 41007 | C91: 410 | D91: C | E91: 07 | F91: Due from related parties | G91: -1634728 | H91: 1634728 | I91: 0 | J91: C07
A92: 2021 | B92: 41008 | C92: 410 | D92: C | E92: 08 | F92: Prepaid Expenses / Inventory | G92: 84785 | H92: 12500 | I92: 97285 | J92: C08
A93: 2021 | B93: 41009 | C93: 410 | D93: C | E93: 09 | F93: Short-Term Investments | G93: 0 | H93: 0 | I93: 0 | J93: C09
A94: 2021 | B94: 41010 | C94: 410 | D94: C | E94: 10 | F94: Deposit (Security, Other) | G94: 31250 | H94: 96000 | I94: 127250 | J94: C10
A95: 2021 | B95: 41011 | C95: 410 | D95: C | E95: 11 | F95: Restricted Current Assets | G95: 0 | H95: 0 | I95: 0 | J95: C11
A96: 2021 | B96: 41012 | C96: 410 | D96: C | E96: 12 | F96: TOTAL CURRENT ASSETS | G96: 4502570 | H96: 8504331 | I96: 13006901 | J96: C12
A97: 2021 | B97: 41013 | C97: 410 | D97: C | E97: 13 | F97: - Land and Buildings | G97: 0 | H97: 44256245 | I97: 44256245 | J97: C13
A98: 2021 | B98: 41014 | C98: 410 | D98: C | E98: 14 | F98: - Building/Leasehold Improvement | G98: 633340 | H98: 0 | I98: 633340 | J98: C14
A99: 2021 | B99: 41015 | C99: 410 | D99: C | E99: 15 | F99: - Furniture and Equipment | G99: 293612 | H99: 1089854 | I99: 1383466 | J99: C15
A100: 2021 | B100: 41016 | C100: 410 | D100: C | E100: 16 | F100: - Less Accumulated Depreciation | G100: -253381 | H100: -4935648 | I100: -5189029 | J100: C16
A101: 2021 | B101: 41017 | C101: 410 | D101: C | E101: 17 | F101: Net Capital Assets | G101: 673571 | H101: 40410451 | I101: 41084022 | J101: C17
A102: 2021 | B102: 41018 | C102: 410 | D102: C | E102: 18 | F102: Restricted Noncurrent Assets | G102: 168151 | H102: 0 | I102: 168151 | J102: C18
A103: 2021 | B103: 41019 | C103: 410 | D103: C | E103: 19 | F103: Long-Term Investments | G103: 0 | H103: 0 | I103: 0 | J103: C19
A104: 2021 | B104: 41020 | C104: 410 | D104: C | E104: 20 | F104: Building Acquisition / Financing Costs / Deferred Expenses | G104: 3505423 | H104: 31928643 | I104: 35434066 | J104: C20
A105: 2021 | B105: 41021 | C105: 410 | D105: C | E105: 21 | F105: Long-Term Grants / Contributions Receivable | G105: 0 | H105: 55980 | I105: 55980 | J105: C21
A106: 2021 | B106: 41022 | C106: 410 | D106: C | E106: 22 | F106: TOTAL NONCURRENT ASSETS | G106: 4347145 | H106: 72395074 | I106: 76742219 | J106: C22
A107: 2021 | B107: 41023 | C107: 410 | D107: C | E107: 23 | F107: TOTAL ASSETS | G107: 8849715 | H107: 80899405 | I107: 89749120 | J107: C23
A108: 2021 | B108: 41024 | C108: 410 | D108: C | E108: 24 | F108: Accounts Payable | G108: 690708 | H108: 51718 | I108: 742426 | J108: C24
A109: 2021 | B109: 41025 | C109: 410 | D109: C | E109: 25 | F109: Accrued Expenses / Accrued Payroll | G109: 1419145 | H109: 86250 | I109: 1505395 | J109: C25
A110: 2021 | B110: 41026 | C110: 410 | D110: C | E110: 26 | F110: Deferred Revenue | G110: 0 | H110: 10000 | I110: 10000 | J110: C26
A111: 2021 | B111: 41027 | C111: 410 | D111: C | E111: 27 | F111: Due to related parties | G111: 0 | H111: 0 | I111: 0 | J111: C27
A112: 2021 | B112: 41028 | C112: 410 | D112: C | E112: 28 | F112: Current Debt Payable | G112: 0 | H112: 1406121 | I112: 1406121 | J112: C28
A113: 2021 | B113: 41029 | C113: 410 | D113: C | E113: 29 | F113: Current Lease Obligations Payable | G113: 151926 | H113: 0 | I113: 151926 | J113: C29
A114: 2021 | B114: 41030 | C114: 410 | D114: C | E114: 30 | F114: TOTAL CURRENT LIABILITIES | G114: 2261779 | H114: 1554089 | I114: 3815868 | J114: C30
A115: 2021 | B115: 41031 | C115: 410 | D115: C | E115: 31 | F115: Noncurrent Lease Obligations | G115: 1816266 | H115: 0 | I115: 1816266 | J115: C31
A116: 2021 | B116: 41032 | C116: 410 | D116: C | E116: 32 | F116: Long-Term Debt | G116: 0 | H116: 29114218 | I116: 29114218 | J116: C32
A117: 2021 | B117: 41033 | C117: 410 | D117: C | E117: 33 | F117: Deferred Revenue | G117: 0 | H117: 33511140 | I117: 33511140 | J117: C33
A118: 2021 | B118: 41034 | C118: 410 | D118: C | E118: 34 | F118: TOTAL NONCURRENT LIABILITIES | G118: 1816266 | H118: 62625358 | I118: 64441624 | J118: C34
A119: 2021 | B119: 41035 | C119: 410 | D119: C | E119: 35 | F119: TOTAL LIABILITIES | G119: 4078045 | H119: 64179447 | I119: 68257492 | J119: C35
A120: 2021 | B120: 41036 | C120: 410 | D120: C | E120: 36 | F120: Investment in capital assets (net of related debt) | G120: 301047 | H120: 10217370 | I120: 10518417 | J120: C36
A121: 2021 | B121: 41037 | C121: 410 | D121: C | E121: 37 | F121: Temporarily Restricted | G121: 0 | H121: 364913 | I121: 364913 | J121: C37
A122: 2021 | B122: 41038 | C122: 410 | D122: C | E122: 38 | F122: Permanently Restricted | G122: 0 | H122: 0 | I122: 0 | J122: C38
A123: 2021 | B123: 41039 | C123: 410 | D123: C | E123: 39 | F123: Unrestricted (non-capital) | G123: 4470623 | H123: 6137675 | I123: 10608298 | J123: C39
A124: 2021 | B124: 41040 | C124: 410 | D124: C | E124: 40 | F124: TOTAL NET ASSETS | G124: 4771670 | H124: 16719958 | I124: 21491628 | J124: C40
A125: 2021 | B125: 41041 | C125: 410 | D125: C | E125: 41 | F125: TOTAL LIABILITIES AND NET ASSETS | G125: 8849715 | H125: 80899405 | I125: 89749120 | J125: C41
A126: 2021 | B126: 41101 | C126: 411 | D126: HM | E126: 01 | F126: Cash and Cash Equivalents | G126: 364466 | H126: 352225 | I126: 716691 | J126: HM01
A127: 2021 | B127: 41102 | C127: 411 | D127: HM | E127: 02 | F127: Accounts Receivable net of doubtful accounts | G127: 0 | H127: 0 | I127: 0 | J127: HM02
A128: 2021 | B128: 41103 | C128: 411 | D128: HM | E128: 03 | F128: Grants Receivable - State | G128: 0 | H128: 0 | I128: 0 | J128: HM03
A129: 2021 | B129: 41104 | C129: 411 | D129: HM | E129: 04 | F129: Grants Receivable - Federal | G129: 89782 | H129: 0 | I129: 89782 | J129: HM04
A130: 2021 | B130: 41105 | C130: 411 | D130: HM | E130: 05 | F130: Grants Receivable - Private | G130: 0 | H130: 0 | I130: 0 | J130: HM05
A131: 2021 | B131: 41106 | C131: 411 | D131: =VLOOKUP(C131, TYPE, 3, FALSE) -> HM | E131: 06 | F131: Contributions Receivable | G131: 0 | H131: 0 | I131: 0 | J131: HM06
A132: 2021 | B132: =C132&E132 -> 41107 | C132: 411 | D132: HM | E132: 07 | F132: Due from related parties | G132: 112962 | H132: 106567 | I132: 219529 | J132: =D132&E132 -> HM07
A133: 2021 | B133: 41108 | C133: 411 | D133: HM | E133: 08 | F133: Prepaid Expenses / Inventory | G133: 19243 | H133: 0 | I133: 19243 | J133: HM08
A134: 2021 | B134: 41109 | C134: 411 | D134: HM | E134: 09 | F134: Short-Term Investments | G134: 0 | H134: 0 | I134: 0 | J134: HM09
A135: 2021 | B135: 41110 | C135: 411 | D135: HM | E135: 10 | F135: Deposit (Security, Other) | G135: 0 | H135: 0 | I135: 0 | J135: HM10
A136: 2021 | B136: 41111 | C136: 411 | D136: HM | E136: 11 | F136: Restricted Current Assets | G136: 0 | H136: 0 | I136: 0 | J136: HM11
A137: 2021 | B137: 41112 | C137: 411 | D137: HM | E137: 12 | F137: TOTAL CURRENT ASSETS | G137: 586453 | H137: 458792 | I137: 1045245 | J137: HM12
A138: 2021 | B138: 41113 | C138: 411 | D138: HM | E138: 13 | F138: - Land and Buildings | G138: 0 | H138: 0 | I138: 0 | J138: HM13
A139: 2021 | B139: 41114 | C139: 411 | D139: HM | E139: 14 | F139: - Building/Leasehold Improvement | G139: 0 | H139: 0 | I139: 0 | J139: HM14
A140: 2021 | B140: 41115 | C140: 411 | D140: HM | E140: 15 | F140: - Furniture and Equipment | G140: 316082 | H140: 0 | I140: 316082 | J140: HM15
A141: 2021 | B141: 41116 | C141: 411 | D141: HM | E141: 16 | F141: - Less Accumulated Depreciation | G141: -198679 | H141: 0 | I141: -198679 | J141: HM16
A142: 2021 | B142: 41117 | C142: 411 | D142: HM | E142: 17 | F142: Net Capital Assets | G142: 117403 | H142: 0 | I142: 117403 | J142: HM17
A143: 2021 | B143: 41118 | C143: 411 | D143: HM | E143: 18 | F143: Restricted Noncurrent Assets | G143: 0 | H143: 0 | I143: 0 | J143: HM18
A144: 2021 | B144: 41119 | C144: 411 | D144: HM | E144: 19 | F144: Long-Term Investments | G144: 0 | H144: 0 | I144: 0 | J144: HM19
A145: 2021 | B145: 41120 | C145: 411 | D145: HM | E145: 20 | F145: Building Acquisition / Financing Costs / Deferred Expenses | G145: 0 | H145: 0 | I145: 0 | J145: HM20
A146: 2021 | B146: 41121 | C146: 411 | D146: HM | E146: 21 | F146: Long-Term Grants / Contributions Receivable | G146: 0 | H146: 0 | I146: 0 | J146: HM21
A147: 2021 | B147: 41122 | C147: 411 | D147: HM | E147: 22 | F147: TOTAL NONCURRENT ASSETS | G147: 117403 | H147: 0 | I147: 117403 | J147: HM22
A148: 2021 | B148: 41123 | C148: 411 | D148: HM | E148: 23 | F148: TOTAL ASSETS | G148: 703856 | H148: 458792 | I148: 1162648 | J148: HM23
A149: 2021 | B149: 41124 | C149: 411 | D149: HM | E149: 24 | F149: Accounts Payable | G149: 28259 | H149: 0 | I149: 28259 | J149: HM24
A150: 2021 | B150: 41125 | C150: 411 | D150: HM | E150: 25 | F150: Accrued Expenses / Accrued Payroll | G150: 0 | H150: 0 | I150: 0 | J150: HM25
A151: 2021 | B151: 41126 | C151: 411 | D151: HM | E151: 26 | F151: Deferred Revenue | G151: 152046 | H151: 0 | I151: 152046 | J151: HM26
A152: 2021 | B152: 41127 | C152: 411 | D152: HM | E152: 27 | F152: Due to related parties | G152: 120817 | H152: 0 | I152: 120817 | J152: HM27
A153: 2021 | B153: 41128 | C153: 411 | D153: HM | E153: 28 | F153: Current Debt Payable | G153: 0 | H153: 0 | I153: 0 | J153: HM28
A154: 2021 | B154: 41129 | C154: 411 | D154: HM | E154: 29 | F154: Current Lease Obligations Payable | G154: 0 | H154: 0 | I154: 0 | J154: HM29
A155: 2021 | B155: 41130 | C155: 411 | D155: HM | E155: 30 | F155: TOTAL CURRENT LIABILITIES | G155: 301122 | H155: 0 | I155: 301122 | J155: HM30
A156: 2021 | B156: 41131 | C156: 411 | D156: HM | E156: 31 | F156: Noncurrent Lease Obligations | G156: 0 | H156: 0 | I156: 0 | J156: HM31
A157: 2021 | B157: 41132 | C157: 411 | D157: HM | E157: 32 | F157: Long-Term Debt | G157: 0 | H157: 0 | I157: 0 | J157: HM32
A158: 2021 | B158: 41133 | C158: 411 | D158: HM | E158: 33 | F158: Deferred Revenue | G158: 0 | H158: 0 | I158: 0 | J158: HM33
A159: 2021 | B159: 41134 | C159: 411 | D159: HM | E159: 34 | F159: TOTAL NONCURRENT LIABILITIES | G159: 0 | H159: 0 | I159: 0 | J159: HM34
A160: 2021 | B160: 41135 | C160: 411 | D160: HM | E160: 35 | F160: TOTAL LIABILITIES | G160: 301122 | H160: 0 | I160: 301122 | J160: HM35
A161: 2021 | B161: 41136 | C161: 411 | D161: HM | E161: 36 | F161: Investment in capital assets (net of related debt) | G161: 117404 | H161: 0 | I161: 117404 | J161: HM36
A162: 2021 | B162: 41137 | C162: 411 | D162: HM | E162: 37 | F162: Temporarily Restricted | G162: 0 | H162: 0 | I162: 0 | J162: HM37
A163: 2021 | B163: 41138 | C163: 411 | D163: HM | E163: 38 | F163: Permanently Restricted | G163: 0 | H163: 0 | I163: 0 | J163: HM38
A164: 2021 | B164: 41139 | C164: 411 | D164: HM | E164: 39 | F164: Unrestricted (non-capital) | G164: 285330 | H164: 458792 | I164: 744122 | J164: HM39
A165: 2021 | B165: 41140 | C165: 411 | D165: HM | E165: 40 | F165: TOTAL NET ASSETS | G165: 402734 | H165: 458792 | I165: 861526 | J165: HM40
A166: 2021 | B166: 41141 | C166: 411 | D166: HM | E166: 41 | F166: TOTAL LIABILITIES AND NET ASSETS | G166: 703856 | H166: 458792 | I166: 1162648 | J166: HM41
A167: 2021 | B167: 41201 | C167: 412 | D167: C | E167: 01 | F167: Cash and Cash Equivalents | G167: 6744949 | H167: 535542 | I167: 7280491 | J167: C01
A168: 2021 | B168: 41202 | C168: 412 | D168: C | E168: 02 | F168: Accounts Receivable net of doubtful accounts | G168: 0 | H168: 0 | I168: 0 | J168: C02
A169: 2021 | B169: 41203 | C169: 412 | D169: C | E169: 03 | F169: Grants Receivable - State | G169: 0 | H169: 0 | I169: 0 | J169: C03
A170: 2021 | B170: 41204 | C170: 412 | D170: C | E170: 04 | F170: Grants Receivable - Federal | G170: 8245 | H170: 0 | I170: 8245 | J170: C04
A171: 2021 | B171: 41205 | C171: 412 | D171: C | E171: 05 | F171: Grants Receivable - Private | G171: 0 | H171: 0 | I171: 0 | J171: C05
A172: 2021 | B172: 41206 | C172: 412 | D172: C | E172: 06 | F172: Contributions Receivable | G172: 0 | H172: 0 | I172: 0 | J172: C06
A173: 2021 | B173: 41207 | C173: 412 | D173: C | E173: 07 | F173: Due from related parties | G173: 60550 | H173: -60550 | I173: 0 | J173: C07
A174: 2021 | B174: 41208 | C174: 412 | D174: C | E174: 08 | F174: Prepaid Expenses / Inventory | G174: 145830 | H174: 0 | I174: 145830 | J174: C08
A175: 2021 | B175: 41209 | C175: 412 | D175: C | E175: 09 | F175: Short-Term Investments | G175: 0 | H175: 0 | I175: 0 | J175: C09
A176: 2021 | B176: 41210 | C176: 412 | D176: C | E176: 10 | F176: Deposit (Security, Other) | G176: 0 | H176: 0 | I176: 0 | J176: C10
A177: 2021 | B177: 41211 | C177: 412 | D177: C | E177: 11 | F177: Restricted Current Assets | G177: 302700 | H177: 0 | I177: 302700 | J177: C11
A178: 2021 | B178: 41212 | C178: 412 | D178: C | E178: 12 | F178: TOTAL CURRENT ASSETS | G178: 7262274 | H178: 474992 | I178: 7737266 | J178: C12
A179: 2021 | B179: 41213 | C179: 412 | D179: C | E179: 13 | F179: - Land and Buildings | G179: 5000000 | H179: 0 | I179: 5000000 | J179: C13
A180: 2021 | B180: 41214 | C180: 412 | D180: C | E180: 14 | F180: - Building/Leasehold Improvement | G180: 12111469 | H180: 0 | I180: 12111469 | J180: C14
A181: 2021 | B181: 41215 | C181: 412 | D181: C | E181: 15 | F181: - Furniture and Equipment | G181: 1347772 | H181: 0 | I181: 1347772 | J181: C15
A182: 2021 | B182: 41216 | C182: 412 | D182: C | E182: 16 | F182: - Less Accumulated Depreciation | G182: -7992697 | H182: 0 | I182: -7992697 | J182: C16
A183: 2021 | B183: 41217 | C183: 412 | D183: C | E183: 17 | F183: Net Capital Assets | G183: 10466544 | H183: 0 | I183: 10466544 | J183: C17
A184: 2021 | B184: 41218 | C184: 412 | D184: C | E184: 18 | F184: Restricted Noncurrent Assets | G184: 0 | H184: 0 | I184: 0 | J184: C18
A185: 2021 | B185: 41219 | C185: 412 | D185: C | E185: 19 | F185: Long-Term Investments | G185: 0 | H185: 0 | I185: 0 | J185: C19
A186: 2021 | B186: 41220 | C186: 412 | D186: C | E186: 20 | F186: Building Acquisition / Financing Costs / Deferred Expenses | G186: 0 | H186: 0 | I186: 0 | J186: C20
A187: 2021 | B187: 41221 | C187: 412 | D187: C | E187: 21 | F187: Long-Term Grants / Contributions Receivable | G187: 0 | H187: 0 | I187: 0 | J187: C21
A188: 2021 | B188: 41222 | C188: 412 | D188: C | E188: 22 | F188: TOTAL NONCURRENT ASSETS | G188: 10466544 | H188: 0 | I188: 10466544 | J188: C22
A189: 2021 | B189: 41223 | C189: 412 | D189: C | E189: 23 | F189: TOTAL ASSETS | G189: 17728818 | H189: 474992 | I189: 18203810 | J189: C23
A190: 2021 | B190: 41224 | C190: 412 | D190: C | E190: 24 | F190: Accounts Payable | G190: 350564 | H190: 0 | I190: 350564 | J190: C24
A191: 2021 | B191: 41225 | C191: 412 | D191: C | E191: 25 | F191: Accrued Expenses / Accrued Payroll | G191: 491138 | H191: 0 | I191: 491138 | J191: C25
A192: 2021 | B192: 41226 | C192: 412 | D192: C | E192: 26 | F192: Deferred Revenue | G192: 71168 | H192: 0 | I192: 71168 | J192: C26
A193: 2021 | B193: 41227 | C193: 412 | D193: C | E193: 27 | F193: Due to related parties | G193: 0 | H193: 0 | I193: 0 | J193: C27
A194: 2021 | B194: 41228 | C194: 412 | D194: C | E194: 28 | F194: Current Debt Payable | G194: 230813 | H194: 0 | I194: 230813 | J194: C28
A195: 2021 | B195: 41229 | C195: 412 | D195: =VLOOKUP(C195, TYPE, 3, FALSE) -> C | E195: 29 | F195: Current Lease Obligations Payable | G195: 0 | H195: 0 | I195: 0 | J195: C29
A196: 2021 | B196: =C196&E196 -> 41230 | C196: 412 | D196: C | E196: 30 | F196: TOTAL CURRENT LIABILITIES | G196: 1143683 | H196: 0 | I196: 1143683 | J196: =D196&E196 -> C30
A197: 2021 | B197: 41231 | C197: 412 | D197: C | E197: 31 | F197: Noncurrent Lease Obligations | G197: 0 | H197: 0 | I197: 0 | J197: C31
A198: 2021 | B198: 41232 | C198: 412 | D198: C | E198: 32 | F198: Long-Term Debt | G198: 9039442 | H198: 0 | I198: 9039442 | J198: C32
A199: 2021 | B199: 41233 | C199: 412 | D199: C | E199: 33 | F199: Deferred Revenue | G199: 0 | H199: 0 | I199: 0 | J199: C33
A200: 2021 | B200: 41234 | C200: 412 | D200: C | E200: 34 | F200: TOTAL NONCURRENT LIABILITIES | G200: 9039442 | H200: 0 | I200: 9039442 | J200: C34
... 3123 more rows

Sheet INC21 (hidden)
B1: 1 | C1: 2 | D1: 3 | E1: 4 | F1: 5 | G1: 6 | H1: 7 | I1: 8
A2: FY | B2: vlookup | C2: cha_code | D2: cha_type | E2: income_id | F2: Line_Desc | G2: income_sch | H2: income_found | I2: income_total
A3: 2021 | B3: =C3&E3 -> 40701 | C3: 407 | D3: =VLOOKUP(C3, TYPE, 3, FALSE) -> HM | E3: 01 | F3: Tuition | G3: 4291293 | H3: 0 | I3: 4291293 | J3: =D3&E3 -> HM01
A4: 2021 | B4: =C4&E4 -> 40702a | C4: 407 | D4: HM | E4: 02a | F4: Grants - State - passed through ESE | G4: 0 | H4: 0 | I4: 0 | J4: =D4&E4 -> HM02a
A5: 2021 | B5: 40702b | C5: 407 | D5: HM | E5: 02b | F5: Grants - State - other non-ESE pass-through | G5: 0 | H5: 0 | I5: 0 | J5: HM02b
A6: 2021 | B6: 40703 | C6: 407 | D6: HM | E6: 03 | F6: Grants - Federal - Passed through ESE | G6: 530220 | H6: 0 | I6: 530220 | J6: HM03
A7: 2021 | B7: 40704 | C7: 407 | D7: HM | E7: 04 | F7: Grants - Federal - Direct or other pass-through | G7: 0 | H7: 0 | I7: 0 | J7: HM04
A8: 2021 | B8: 40705a | C8: 407 | D8: HM | E8: 05a | F8: Grants - Private (restricted) | G8: 11387 | H8: 0 | I8: 11387 | J8: HM05a
A9: 2021 | B9: 40705b | C9: 407 | D9: HM | E9: 05b | F9: Grants - Private (unrestricted) | G9: 0 | H9: 0 | I9: 0 | J9: HM05b
A10: 2021 | B10: 40706 | C10: 407 | D10: HM | E10: 06 | F10: Nutrition Funding - State | G10: 0 | H10: 0 | I10: 0 | J10: HM06
A11: 2021 | B11: 40707 | C11: 407 | D11: HM | E11: 07 | F11: Nutrition Funding - Federal | G11: 0 | H11: 0 | I11: 0 | J11: HM07
A12: 2021 | B12: 40708 | C12: 407 | D12: HM | E12: 08 | F12: Nutrition Funding - Fees | G12: 0 | H12: 0 | I12: 0 | J12: HM08
A13: 2021 | B13: 40709 | C13: 407 | D13: HM | E13: 09 | F13: Other Program / Student Activity Fees | G13: 0 | H13: 0 | I13: 0 | J13: HM09
A14: 2021 | B14: 40710 | C14: 407 | D14: HM | E14: 10 | F14: Regional Transportation Aid | G14: 0 | H14: 0 | I14: 0 | J14: HM10
A15: 2021 | B15: 40711 | C15: 407 | D15: HM | E15: 11 | F15: Medicaid Reimbursements | G15: 0 | H15: 0 | I15: 0 | J15: HM11
A16: 2021 | B16: 40712 | C16: 407 | D16: HM | E16: 12 | F16: Circuit Breaker Reimbursements | G16: 0 | H16: 0 | I16: 0 | J16: HM12
A17: 2021 | B17: 40713a | C17: 407 | D17: HM | E17: 13a | F17: Contributions, in-kind, host district | G17: 1034971 | H17: 0 | I17: 1034971 | J17: HM13a
A18: 2021 | B18: 40713b | C18: 407 | D18: HM | E18: 13b | F18: Contributions, in-kind, other | G18: 0 | H18: 0 | I18: 0 | J18: HM13b
A19: 2021 | B19: 40713c | C19: 407 | D19: HM | E19: 13c | F19: Contributions, on-behalf, pension | G19: 0 | H19: 0 | I19: 0 | J19: HM13c
A20: 2021 | B20: 40714 | C20: 407 | D20: HM | E20: 14 | F20: Contributions, from Component Unit (restricted) | G20: 0 | H20: 0 | I20: 0 | J20: HM14
A21: 2021 | B21: 40714b | C21: 407 | D21: HM | E21: 14b | F21: Contributions, from Component Unit (unrestricted) | G21: 0 | H21: 0 | I21: 0 | J21: HM14b
A22: 2021 | B22: 40715 | C22: 407 | D22: HM | E22: 15 | F22: Contributions / Fundraising (restricted) | G22: 0 | H22: 0 | I22: 0 | J22: HM15
A23: 2021 | B23: 40715b | C23: 407 | D23: HM | E23: 15b | F23: Contributions / Fundraising (unrestricted) | G23: 0 | H23: 0 | I23: 0 | J23: HM15b
A24: 2021 | B24: 40716 | C24: 407 | D24: HM | E24: 16 | F24: Interest / Investment Income (restricted) | G24: 0 | H24: 0 | I24: 0 | J24: HM16
A25: 2021 | B25: 40716a | C25: 407 | D25: HM | E25: 16a | F25: Interest / Investment Income (unrestricted) | G25: 0 | H25: 0 | I25: 0 | J25: HM16a
A26: 2021 | B26: 40717 | C26: 407 | D26: HM | E26: 17 | F26: Rental Income | G26: 0 | H26: 0 | I26: 0 | J26: HM17
A27: 2021 | B27: 40718 | C27: 407 | D27: HM | E27: 18 | F27: Loan Forgiveness or Other Reimbursement | G27: 0 | H27: 0 | I27: 0 | J27: HM18
A28: 2021 | B28: 40719 | C28: 407 | D28: HM | E28: 19 | F28: Miscellaneous Income | G28: 0 | H28: 0 | I28: 0 | J28: HM19
A29: 2021 | B29: 40720 | C29: 407 | D29: HM | E29: 20 | F29: TOTAL REVENUES | G29: 5867871 | H29: 0 | I29: 5867871 | J29: HM20
A30: 2021 | B30: 40721 | C30: 407 | D30: HM | E30: 21 | F30: Administration | G30: 1247636.16 | H30: 0 | I30: 1247636.16 | J30: HM21
A31: 2021 | B31: 40722 | C31: 407 | D31: HM | E31: 22 | F31: Instructional Services | G31: 2537735.01 | H31: 0 | I31: 2537735.01 | J31: HM22
A32: 2021 | B32: 40723 | C32: 407 | D32: HM | E32: 23 | F32: Pupil Services | G32: 509435.16 | H32: 0 | I32: 509435.16 | J32: HM23
A33: 2021 | B33: 40724 | C33: 407 | D33: HM | E33: 24 | F33: Operation & Maintenance of Plant | G33: 328806.58 | H33: 0 | I33: 328806.58 | J33: HM24
A34: 2021 | B34: 40725 | C34: 407 | D34: HM | E34: 25 | F34: Benefits and Other Fixed Charges | G34: 996919.17 | H34: 0 | I34: 996919.17 | J34: HM25
A35: 2021 | B35: 40726 | C35: 407 | D35: HM | E35: 26 | F35: Community Services | G35: 0 | H35: 0 | I35: 0 | J35: HM26
A36: 2021 | B36: 40727 | C36: 407 | D36: HM | E36: 27 | F36: Non-Operating Financing Expenses | G36: 0 | H36: 0 | I36: 0 | J36: HM27
A37: 2021 | B37: 40728 | C37: 407 | D37: HM | E37: 28 | F37: Component Unit Expenses | G37: 0 | H37: 0 | I37: 0 | J37: HM28
A38: 2021 | B38: 40729 | C38: 407 | D38: HM | E38: 29 | F38: Contributions to School | G38: 0 | H38: 0 | I38: 0 | J38: HM29
A39: 2021 | B39: 40730 | C39: 407 | D39: HM | E39: 30 | F39: TOTAL EXPENSES | G39: 5620532.08 | H39: 0 | I39: 5620532.08 | J39: HM30
A40: 2021 | B40: 40731 | C40: 407 | D40: HM | E40: 31 | F40: TOTAL GAIN/(LOSS) | G40: 247338.92 | H40: 0 | I40: 247338.92 | J40: HM31
A41: 2021 | B41: 40732 | C41: 407 | D41: HM | E41: 32 | F41: Gain/Loss on Sale of Asset or Lease Transaction | G41: 0 | H41: 0 | I41: 0 | J41: HM32
A42: 2021 | B42: 40733 | C42: 407 | D42: HM | E42: 33 | F42: Other Gain/Loss | G42: 0 | H42: 0 | I42: 0 | J42: HM33
A43: 2021 | B43: 40734 | C43: 407 | D43: HM | E43: 34 | F43: TOTAL CHANGES IN NET ASSETS: | G43: 247338.92 | H43: 0 | I43: 247338.92 | J43: HM34
A44: 2021 | B44: 40735 | C44: 407 | D44: HM | E44: 35 | F44: NET ASSETS AT BEGINNING OF YEAR | G44: 168030 | H44: 0 | I44: 168030 | J44: HM35
A45: 2021 | B45: 40736 | C45: 407 | D45: HM | E45: 36 | F45: NET ASSETS AT END OF YEAR | G45: 415369 | H45: 0 | I45: 415369 | J45: HM36
A46: 2021 | B46: 40901 | C46: 409 | D46: C | E46: 01 | F46: Tuition | G46: 11455987 | H46: 0 | I46: 11455987 | J46: C01
A47: 2021 | B47: 40902a | C47: 409 | D47: C | E47: 02a | F47: Grants - State - passed through ESE | G47: 49850 | H47: 0 | I47: 49850 | J47: C02a
A48: 2021 | B48: 40902b | C48: 409 | D48: C | E48: 02b | F48: Grants - State - other non-ESE pass-through | G48: 0 | H48: 0 | I48: 0 | J48: C02b
A49: 2021 | B49: 40903 | C49: 409 | D49: C | E49: 03 | F49: Grants - Federal - Passed through ESE | G49: 1356761 | H49: 0 | I49: 1356761 | J49: C03
A50: 2021 | B50: 40904 | C50: 409 | D50: C | E50: 04 | F50: Grants - Federal - Direct or other pass-through | G50: 228230 | H50: 0 | I50: 228230 | J50: C04
A51: 2021 | B51: 40905a | C51: 409 | D51: C | E51: 05a | F51: Grants - Private (restricted) | G51: 0 | H51: 0 | I51: 0 | J51: C05a
A52: 2021 | B52: 40905b | C52: 409 | D52: C | E52: 05b | F52: Grants - Private (unrestricted) | G52: 218 | H52: 0 | I52: 218 | J52: C05b
A53: 2021 | B53: 40906 | C53: 409 | D53: C | E53: 06 | F53: Nutrition Funding - State | G53: 2786 | H53: 0 | I53: 2786 | J53: C06
A54: 2021 | B54: 40907 | C54: 409 | D54: C | E54: 07 | F54: Nutrition Funding - Federal | G54: 302397 | H54: 0 | I54: 302397 | J54: C07
A55: 2021 | B55: 40908 | C55: 409 | D55: C | E55: 08 | F55: Nutrition Funding - Fees | G55: 0 | H55: 0 | I55: 0 | J55: C08
A56: 2021 | B56: 40909 | C56: 409 | D56: C | E56: 09 | F56: Other Program / Student Activity Fees | G56: 0 | H56: 0 | I56: 0 | J56: C09
A57: 2021 | B57: 40910 | C57: 409 | D57: C | E57: 10 | F57: Regional Transportation Aid | G57: 0 | H57: 0 | I57: 0 | J57: C10
A58: 2021 | B58: 40911 | C58: 409 | D58: C | E58: 11 | F58: Medicaid Reimbursements | G58: 11075 | H58: 0 | I58: 11075 | J58: C11
A59: 2021 | B59: 40912 | C59: 409 | D59: C | E59: 12 | F59: Circuit Breaker Reimbursements | G59: 0 | H59: 0 | I59: 0 | J59: C12
A60: 2021 | B60: 40913a | C60: 409 | D60: C | E60: 13a | F60: Contributions, in-kind, host district | G60: 381750 | H60: 0 | I60: 381750 | J60: C13a
A61: 2021 | B61: 40913b | C61: 409 | D61: C | E61: 13b | F61: Contributions, in-kind, other | G61: 0 | H61: 0 | I61: 0 | J61: C13b
A62: 2021 | B62: 40913c | C62: 409 | D62: C | E62: 13c | F62: Contributions, on-behalf, pension | G62: 1983941 | H62: 0 | I62: 1983941 | J62: C13c
A63: 2021 | B63: 40914 | C63: 409 | D63: C | E63: 14 | F63: Contributions, from Component Unit (restricted) | G63: 0 | H63: 0 | I63: 0 | J63: C14
A64: 2021 | B64: 40914b | C64: 409 | D64: C | E64: 14b | F64: Contributions, from Component Unit (unrestricted) | G64: 392027 | H64: 0 | I64: 392027 | J64: C14b
A65: 2021 | B65: 40915 | C65: 409 | D65: C | E65: 15 | F65: Contributions / Fundraising (restricted) | G65: 0 | H65: 921481 | I65: 921481 | J65: C15
A66: 2021 | B66: 40915b | C66: 409 | D66: C | E66: 15b | F66: Contributions / Fundraising (unrestricted) | G66: 0 | H66: 329119 | I66: 329119 | J66: C15b
A67: 2021 | B67: 40916 | C67: 409 | D67: =VLOOKUP(C67, TYPE, 3, FALSE) -> C | E67: 16 | F67: Interest / Investment Income (restricted) | G67: 0 | H67: 0 | I67: 0 | J67: C16
A68: 2021 | B68: =C68&E68 -> 40916a | C68: 409 | D68: C | E68: 16a | F68: Interest / Investment Income (unrestricted) | G68: 625 | H68: -788781 | I68: -788156 | J68: =D68&E68 -> C16a
A69: 2021 | B69: 40917 | C69: 409 | D69: C | E69: 17 | F69: Rental Income | G69: 0 | H69: 1573793 | I69: 1573793 | J69: C17
A70: 2021 | B70: 40918 | C70: 409 | D70: C | E70: 18 | F70: Loan Forgiveness or Other Reimbursement | G70: 0 | H70: 0 | I70: 0 | J70: C18
A71: 2021 | B71: 40919 | C71: 409 | D71: C | E71: 19 | F71: Miscellaneous Income | G71: 5916 | H71: 0 | I71: 5916 | J71: C19
A72: 2021 | B72: 40920 | C72: 409 | D72: C | E72: 20 | F72: TOTAL REVENUES | G72: 16171563 | H72: 2035612 | I72: 18207175 | J72: C20
A73: 2021 | B73: 40921 | C73: 409 | D73: C | E73: 21 | F73: Administration | G73: 813670 | H73: 0 | I73: 813670 | J73: C21
A74: 2021 | B74: 40922 | C74: 409 | D74: C | E74: 22 | F74: Instructional Services | G74: 7545976 | H74: 0 | I74: 7545976 | J74: C22
A75: 2021 | B75: 40923 | C75: 409 | D75: C | E75: 23 | F75: Pupil Services | G75: 1127170 | H75: 0 | I75: 1127170 | J75: C23
A76: 2021 | B76: 40924 | C76: 409 | D76: C | E76: 24 | F76: Operation & Maintenance of Plant | G76: 799662 | H76: 0 | I76: 799662 | J76: C24
A77: 2021 | B77: 40925 | C77: 409 | D77: C | E77: 25 | F77: Benefits and Other Fixed Charges | G77: 3000844 | H77: 0 | I77: 3000844 | J77: C25
A78: 2021 | B78: 40926 | C78: 409 | D78: C | E78: 26 | F78: Community Services | G78: 0 | H78: 0 | I78: 0 | J78: C26
A79: 2021 | B79: 40927 | C79: 409 | D79: C | E79: 27 | F79: Non-Operating Financing Expenses | G79: 1695081 | H79: 0 | I79: 1695081 | J79: C27
A80: 2021 | B80: 40928 | C80: 409 | D80: C | E80: 28 | F80: Component Unit Expenses | G80: 0 | H80: 588714 | I80: 588714 | J80: C28
A81: 2021 | B81: 40929 | C81: 409 | D81: C | E81: 29 | F81: Contributions to School | G81: 0 | H81: 392027 | I81: 392027 | J81: C29
A82: 2021 | B82: 40930 | C82: 409 | D82: C | E82: 30 | F82: TOTAL EXPENSES | G82: 14982403 | H82: 980741 | I82: 15963144 | J82: C30
A83: 2021 | B83: 40931 | C83: 409 | D83: C | E83: 31 | F83: TOTAL GAIN/(LOSS) | G83: 1189160 | H83: 1054871 | I83: 2244031 | J83: C31
A84: 2021 | B84: 40932 | C84: 409 | D84: C | E84: 32 | F84: Gain/Loss on Sale of Asset or Lease Transaction | G84: 0 | H84: 0 | I84: 0 | J84: C32
A85: 2021 | B85: 40933 | C85: 409 | D85: C | E85: 33 | F85: Other Gain/Loss | G85: 0 | H85: -908785 | I85: -908785 | J85: C33
A86: 2021 | B86: 40934 | C86: 409 | D86: C | E86: 34 | F86: TOTAL CHANGES IN NET ASSETS: | G86: 1189160 | H86: 146086 | I86: 1335246 | J86: C34
A87: 2021 | B87: 40935 | C87: 409 | D87: C | E87: 35 | F87: NET ASSETS AT BEGINNING OF YEAR | G87: 756397 | H87: 6349360 | I87: 7105757 | J87: C35
A88: 2021 | B88: 40936 | C88: 409 | D88: C | E88: 36 | F88: NET ASSETS AT END OF YEAR | G88: 1945557 | H88: 6495446 | I88: 8441003 | J88: C36
A89: 2021 | B89: 41001 | C89: 410 | D89: C | E89: 01 | F89: Tuition | G89: 24312422 | H89: 0 | I89: 24312422 | J89: C01
A90: 2021 | B90: 41002a | C90: 410 | D90: C | E90: 02a | F90: Grants - State - passed through ESE | G90: 96325 | H90: 0 | I90: 96325 | J90: C02a
A91: 2021 | B91: 41002b | C91: 410 | D91: C | E91: 02b | F91: Grants - State - other non-ESE pass-through | G91: 0 | H91: 0 | I91: 0 | J91: C02b
A92: 2021 | B92: 41003 | C92: 410 | D92: C | E92: 03 | F92: Grants - Federal - Passed through ESE | G92: 1653662 | H92: 0 | I92: 1653662 | J92: C03
A93: 2021 | B93: 41004 | C93: 410 | D93: C | E93: 04 | F93: Grants - Federal - Direct or other pass-through | G93: 0 | H93: 0 | I93: 0 | J93: C04
A94: 2021 | B94: 41005a | C94: 410 | D94: C | E94: 05a | F94: Grants - Private (restricted) | G94: 0 | H94: 0 | I94: 0 | J94: C05a
A95: 2021 | B95: 41005b | C95: 410 | D95: C | E95: 05b | F95: Grants - Private (unrestricted) | G95: 0 | H95: 0 | I95: 0 | J95: C05b
A96: 2021 | B96: 41006 | C96: 410 | D96: C | E96: 06 | F96: Nutrition Funding - State | G96: 3612 | H96: 0 | I96: 3612 | J96: C06
A97: 2021 | B97: 41007 | C97: 410 | D97: C | E97: 07 | F97: Nutrition Funding - Federal | G97: 102243 | H97: 0 | I97: 102243 | J97: C07
A98: 2021 | B98: 41008 | C98: 410 | D98: C | E98: 08 | F98: Nutrition Funding - Fees | G98: 0 | H98: 0 | I98: 0 | J98: C08
A99: 2021 | B99: 41009 | C99: 410 | D99: C | E99: 09 | F99: Other Program / Student Activity Fees | G99: 0 | H99: 0 | I99: 0 | J99: C09
A100: 2021 | B100: 41010 | C100: 410 | D100: C | E100: 10 | F100: Regional Transportation Aid | G100: 103063 | H100: 0 | I100: 103063 | J100: C10
A101: 2021 | B101: 41011 | C101: 410 | D101: C | E101: 11 | F101: Medicaid Reimbursements | G101: 149914 | H101: 0 | I101: 149914 | J101: C11
A102: 2021 | B102: 41012 | C102: 410 | D102: C | E102: 12 | F102: Circuit Breaker Reimbursements | G102: 0 | H102: 0 | I102: 0 | J102: C12
A103: 2021 | B103: 41013a | C103: 410 | D103: C | E103: 13a | F103: Contributions, in-kind, host district | G103: 148170 | H103: 0 | I103: 148170 | J103: C13a
A104: 2021 | B104: 41013b | C104: 410 | D104: C | E104: 13b | F104: Contributions, in-kind, other | G104: 1000 | H104: 8479 | I104: 9479 | J104: C13b
A105: 2021 | B105: 41013c | C105: 410 | D105: C | E105: 13c | F105: Contributions, on-behalf, pension | G105: 5409083 | H105: 0 | I105: 5409083 | J105: C13c
A106: 2021 | B106: 41014 | C106: 410 | D106: C | E106: 14 | F106: Contributions, from Component Unit (restricted) | G106: 346200 | H106: 0 | I106: 346200 | J106: C14
A107: 2021 | B107: 41014b | C107: 410 | D107: C | E107: 14b | F107: Contributions, from Component Unit (unrestricted) | G107: 0 | H107: 0 | I107: 0 | J107: C14b
A108: 2021 | B108: 41015 | C108: 410 | D108: C | E108: 15 | F108: Contributions / Fundraising (restricted) | G108: 0 | H108: 1212053 | I108: 1212053 | J108: C15
A109: 2021 | B109: 41015b | C109: 410 | D109: C | E109: 15b | F109: Contributions / Fundraising (unrestricted) | G109: 500 | H109: 578763 | I109: 579263 | J109: C15b
A110: 2021 | B110: 41016 | C110: 410 | D110: C | E110: 16 | F110: Interest / Investment Income (restricted) | G110: 0 | H110: 0 | I110: 0 | J110: C16
A111: 2021 | B111: 41016a | C111: 410 | D111: C | E111: 16a | F111: Interest / Investment Income (unrestricted) | G111: 0 | H111: 1405492 | I111: 1405492 | J111: C16a
A112: 2021 | B112: 41017 | C112: 410 | D112: C | E112: 17 | F112: Rental Income | G112: 0 | H112: 1251852 | I112: 1251852 | J112: C17
A113: 2021 | B113: 41018 | C113: 410 | D113: C | E113: 18 | F113: Loan Forgiveness or Other Reimbursement | G113: 0 | H113: 0 | I113: 0 | J113: C18
A114: 2021 | B114: 41019 | C114: 410 | D114: C | E114: 19 | F114: Miscellaneous Income | G114: 430130 | H114: 36259 | I114: 466389 | J114: C19
A115: 2021 | B115: 41020 | C115: 410 | D115: C | E115: 20 | F115: TOTAL REVENUES | G115: 32756324 | H115: 4492898 | I115: 37249222 | J115: C20
A116: 2021 | B116: 41021 | C116: 410 | D116: C | E116: 21 | F116: Administration | G116: 2123720.773 | H116: 0 | I116: 2123720.773 | J116: C21
A117: 2021 | B117: 41022 | C117: 410 | D117: C | E117: 22 | F117: Instructional Services | G117: 15597175.64 | H117: 0 | I117: 15597175.64 | J117: C22
A118: 2021 | B118: 41023 | C118: 410 | D118: C | E118: 23 | F118: Pupil Services | G118: 1468142.319 | H118: 0 | I118: 1468142.319 | J118: C23
A119: 2021 | B119: 41024 | C119: 410 | D119: C | E119: 24 | F119: Operation & Maintenance of Plant | G119: 1057743.02 | H119: 0 | I119: 1057743.02 | J119: C24
A120: 2021 | B120: 41025 | C120: 410 | D120: C | E120: 25 | F120: Benefits and Other Fixed Charges | G120: 7124865 | H120: 0 | I120: 7124865 | J120: C25
A121: 2021 | B121: 41026 | C121: 410 | D121: C | E121: 26 | F121: Community Services | G121: 0 | H121: 0 | I121: 0 | J121: C26
A122: 2021 | B122: 41027 | C122: 410 | D122: C | E122: 27 | F122: Non-Operating Financing Expenses | G122: 3186141.57 | H122: 0 | I122: 3186141.57 | J122: C27
A123: 2021 | B123: 41028 | C123: 410 | D123: C | E123: 28 | F123: Component Unit Expenses | G123: 0 | H123: 3274392 | I123: 3274392 | J123: C28
A124: 2021 | B124: 41029 | C124: 410 | D124: C | E124: 29 | F124: Contributions to School | G124: 0 | H124: 346200 | I124: 346200 | J124: C29
A125: 2021 | B125: 41030 | C125: 410 | D125: C | E125: 30 | F125: TOTAL EXPENSES | G125: 30557788.32 | H125: 3620592 | I125: 34178380.32 | J125: C30
A126: 2021 | B126: 41031 | C126: 410 | D126: C | E126: 31 | F126: TOTAL GAIN/(LOSS) | G126: 2198535.68 | H126: 872306 | I126: 3070841.68 | J126: C31
A127: 2021 | B127: 41032 | C127: 410 | D127: C | E127: 32 | F127: Gain/Loss on Sale of Asset or Lease Transaction | G127: 0 | H127: 0 | I127: 0 | J127: C32
A128: 2021 | B128: 41033 | C128: 410 | D128: C | E128: 33 | F128: Other Gain/Loss | G128: -209871 | H128: 209871 | I128: 0 | J128: C33
A129: 2021 | B129: 41034 | C129: 410 | D129: C | E129: 34 | F129: TOTAL CHANGES IN NET ASSETS: | G129: 1988664.68 | H129: 1082177 | I129: 3070841.68 | J129: C34
A130: 2021 | B130: 41035 | C130: 410 | D130: C | E130: 35 | F130: NET ASSETS AT BEGINNING OF YEAR | G130: 2783005 | H130: 15637781 | I130: 18420786 | J130: C35
A131: 2021 | B131: 41036 | C131: 410 | D131: =VLOOKUP(C131, TYPE, 3, FALSE) -> C | E131: 36 | F131: NET ASSETS AT END OF YEAR | G131: 4771670 | H131: 16719958 | I131: 21491628 | J131: C36
A132: 2021 | B132: =C132&E132 -> 41101 | C132: 411 | D132: HM | E132: 01 | F132: Tuition | G132: 5932813 | H132: 0 | I132: 5932813 | J132: =D132&E132 -> HM01
A133: 2021 | B133: 41102a | C133: 411 | D133: HM | E133: 02a | F133: Grants - State - passed through ESE | G133: 0 | H133: 0 | I133: 0 | J133: HM02a
A134: 2021 | B134: 41102b | C134: 411 | D134: HM | E134: 02b | F134: Grants - State - other non-ESE pass-through | G134: 5000 | H134: 0 | I134: 5000 | J134: HM02b
A135: 2021 | B135: 41103 | C135: 411 | D135: HM | E135: 03 | F135: Grants - Federal - Passed through ESE | G135: 711663 | H135: 0 | I135: 711663 | J135: HM03
A136: 2021 | B136: 41104 | C136: 411 | D136: HM | E136: 04 | F136: Grants - Federal - Direct or other pass-through | G136: 0 | H136: 0 | I136: 0 | J136: HM04
A137: 2021 | B137: 41105a | C137: 411 | D137: HM | E137: 05a | F137: Grants - Private (restricted) | G137: 15000 | H137: 0 | I137: 15000 | J137: HM05a
A138: 2021 | B138: 41105b | C138: 411 | D138: HM | E138: 05b | F138: Grants - Private (unrestricted) | G138: 14250 | H138: 79750 | I138: 94000 | J138: HM05b
A139: 2021 | B139: 41106 | C139: 411 | D139: HM | E139: 06 | F139: Nutrition Funding - State | G139: 0 | H139: 0 | I139: 0 | J139: HM06
A140: 2021 | B140: 41107 | C140: 411 | D140: HM | E140: 07 | F140: Nutrition Funding - Federal | G140: 0 | H140: 0 | I140: 0 | J140: HM07
A141: 2021 | B141: 41108 | C141: 411 | D141: HM | E141: 08 | F141: Nutrition Funding - Fees | G141: 0 | H141: 0 | I141: 0 | J141: HM08
A142: 2021 | B142: 41109 | C142: 411 | D142: HM | E142: 09 | F142: Other Program / Student Activity Fees | G142: -3210 | H142: 0 | I142: -3210 | J142: HM09
A143: 2021 | B143: 41110 | C143: 411 | D143: HM | E143: 10 | F143: Regional Transportation Aid | G143: 0 | H143: 0 | I143: 0 | J143: HM10
A144: 2021 | B144: 41111 | C144: 411 | D144: HM | E144: 11 | F144: Medicaid Reimbursements | G144: 0 | H144: 0 | I144: 0 | J144: HM11
A145: 2021 | B145: 41112 | C145: 411 | D145: HM | E145: 12 | F145: Circuit Breaker Reimbursements | G145: 0 | H145: 0 | I145: 0 | J145: HM12
A146: 2021 | B146: 41113a | C146: 411 | D146: HM | E146: 13a | F146: Contributions, in-kind, host district | G146: 2080608 | H146: 0 | I146: 2080608 | J146: HM13a
A147: 2021 | B147: 41113b | C147: 411 | D147: HM | E147: 13b | F147: Contributions, in-kind, other | G147: 0 | H147: 0 | I147: 0 | J147: HM13b
A148: 2021 | B148: 41113c | C148: 411 | D148: HM | E148: 13c | F148: Contributions, on-behalf, pension | G148: 0 | H148: 0 | I148: 0 | J148: HM13c
A149: 2021 | B149: 41114 | C149: 411 | D149: HM | E149: 14 | F149: Contributions, from Component Unit (restricted) | G149: 0 | H149: 0 | I149: 0 | J149: HM14
A150: 2021 | B150: 41114b | C150: 411 | D150: HM | E150: 14b | F150: Contributions, from Component Unit (unrestricted) | G150: 0 | H150: 0 | I150: 0 | J150: HM14b
A151: 2021 | B151: 41115 | C151: 411 | D151: HM | E151: 15 | F151: Contributions / Fundraising (restricted) | G151: 0 | H151: 0 | I151: 0 | J151: HM15
A152: 2021 | B152: 41115b | C152: 411 | D152: HM | E152: 15b | F152: Contributions / Fundraising (unrestricted) | G152: 858 | H152: 48395 | I152: 49253 | J152: HM15b
A153: 2021 | B153: 41116 | C153: 411 | D153: HM | E153: 16 | F153: Interest / Investment Income (restricted) | G153: 0 | H153: 0 | I153: 0 | J153: HM16
A154: 2021 | B154: 41116a | C154: 411 | D154: HM | E154: 16a | F154: Interest / Investment Income (unrestricted) | G154: 131 | H154: 0 | I154: 131 | J154: HM16a
A155: 2021 | B155: 41117 | C155: 411 | D155: HM | E155: 17 | F155: Rental Income | G155: 0 | H155: 0 | I155: 0 | J155: HM17
A156: 2021 | B156: 41118 | C156: 411 | D156: HM | E156: 18 | F156: Loan Forgiveness or Other Reimbursement | G156: 0 | H156: 0 | I156: 0 | J156: HM18
A157: 2021 | B157: 41119 | C157: 411 | D157: HM | E157: 19 | F157: Miscellaneous Income | G157: 0 | H157: 25 | I157: 25 | J157: HM19
A158: 2021 | B158: 41120 | C158: 411 | D158: HM | E158: 20 | F158: TOTAL REVENUES | G158: 8757113 | H158: 128170 | I158: 8885283 | J158: HM20
A159: 2021 | B159: 41121 | C159: 411 | D159: HM | E159: 21 | F159: Administration | G159: 702794.22 | H159: 0 | I159: 702794.22 | J159: HM21
A160: 2021 | B160: 41122 | C160: 411 | D160: HM | E160: 22 | F160: Instructional Services | G160: 5975885.6 | H160: 0 | I160: 5975885.6 | J160: HM22
A161: 2021 | B161: 41123 | C161: 411 | D161: HM | E161: 23 | F161: Pupil Services | G161: 340445.79 | H161: 0 | I161: 340445.79 | J161: HM23
A162: 2021 | B162: 41124 | C162: 411 | D162: HM | E162: 24 | F162: Operation & Maintenance of Plant | G162: 279233.52 | H162: 0 | I162: 279233.52 | J162: HM24
A163: 2021 | B163: 41125 | C163: 411 | D163: HM | E163: 25 | F163: Benefits and Other Fixed Charges | G163: 1407930.95 | H163: 0 | I163: 1407930.95 | J163: HM25
A164: 2021 | B164: 41126 | C164: 411 | D164: HM | E164: 26 | F164: Community Services | G164: 0 | H164: 0 | I164: 0 | J164: HM26
A165: 2021 | B165: 41127 | C165: 411 | D165: HM | E165: 27 | F165: Non-Operating Financing Expenses | G165: 0 | H165: 0 | I165: 0 | J165: HM27
A166: 2021 | B166: 41128 | C166: 411 | D166: HM | E166: 28 | F166: Component Unit Expenses | G166: 0 | H166: 319 | I166: 319 | J166: HM28
A167: 2021 | B167: 41129 | C167: 411 | D167: HM | E167: 29 | F167: Contributions to School | G167: 0 | H167: 14250 | I167: 14250 | J167: HM29
A168: 2021 | B168: 41130 | C168: 411 | D168: HM | E168: 30 | F168: TOTAL EXPENSES | G168: 8706290.08 | H168: 14569 | I168: 8720859.08 | J168: HM30
A169: 2021 | B169: 41131 | C169: 411 | D169: HM | E169: 31 | F169: TOTAL GAIN/(LOSS) | G169: 50822.92 | H169: 113601 | I169: 164423.92 | J169: HM31
A170: 2021 | B170: 41132 | C170: 411 | D170: HM | E170: 32 | F170: Gain/Loss on Sale of Asset or Lease Transaction | G170: 0 | H170: 0 | I170: 0 | J170: HM32
A171: 2021 | B171: 41133 | C171: 411 | D171: HM | E171: 33 | F171: Other Gain/Loss | G171: 0 | H171: 0 | I171: 0 | J171: HM33
A172: 2021 | B172: 41134 | C172: 411 | D172: HM | E172: 34 | F172: TOTAL CHANGES IN NET ASSETS: | G172: 50822.92 | H172: 113601 | I172: 164423.92 | J172: HM34
A173: 2021 | B173: 41135 | C173: 411 | D173: HM | E173: 35 | F173: NET ASSETS AT BEGINNING OF YEAR | G173: 351911 | H173: 345191 | I173: 697102 | J173: HM35
A174: 2021 | B174: 41136 | C174: 411 | D174: HM | E174: 36 | F174: NET ASSETS AT END OF YEAR | G174: 402734 | H174: 458792 | I174: 861526 | J174: HM36
A175: 2021 | B175: 41201 | C175: 412 | D175: C | E175: 01 | F175: Tuition | G175: 10502569 | H175: 0 | I175: 10502569 | J175: C01
A176: 2021 | B176: 41202a | C176: 412 | D176: C | E176: 02a | F176: Grants - State - passed through ESE | G176: 0 | H176: 0 | I176: 0 | J176: C02a
A177: 2021 | B177: 41202b | C177: 412 | D177: C | E177: 02b | F177: Grants - State - other non-ESE pass-through | G177: 37375 | H177: 0 | I177: 37375 | J177: C02b
A178: 2021 | B178: 41203 | C178: 412 | D178: C | E178: 03 | F178: Grants - Federal - Passed through ESE | G178: 368536 | H178: 0 | I178: 368536 | J178: C03
A179: 2021 | B179: 41204 | C179: 412 | D179: C | E179: 04 | F179: Grants - Federal - Direct or other pass-through | G179: 0 | H179: 0 | I179: 0 | J179: C04
A180: 2021 | B180: 41205a | C180: 412 | D180: C | E180: 05a | F180: Grants - Private (restricted) | G180: 0 | H180: 60550 | I180: 60550 | J180: C05a
A181: 2021 | B181: 41205b | C181: 412 | D181: C | E181: 05b | F181: Grants - Private (unrestricted) | G181: 0 | H181: 159194 | I181: 159194 | J181: C05b
A182: 2021 | B182: 41206 | C182: 412 | D182: C | E182: 06 | F182: Nutrition Funding - State | G182: 1968 | H182: 0 | I182: 1968 | J182: C06
A183: 2021 | B183: 41207 | C183: 412 | D183: C | E183: 07 | F183: Nutrition Funding - Federal | G183: 23050 | H183: 0 | I183: 23050 | J183: C07
A184: 2021 | B184: 41208 | C184: 412 | D184: C | E184: 08 | F184: Nutrition Funding - Fees | G184: 0 | H184: 0 | I184: 0 | J184: C08
A185: 2021 | B185: 41209 | C185: 412 | D185: C | E185: 09 | F185: Other Program / Student Activity Fees | G185: 0 | H185: 0 | I185: 0 | J185: C09
A186: 2021 | B186: 41210 | C186: 412 | D186: C | E186: 10 | F186: Regional Transportation Aid | G186: 0 | H186: 0 | I186: 0 | J186: C10
A187: 2021 | B187: 41211 | C187: 412 | D187: C | E187: 11 | F187: Medicaid Reimbursements | G187: 0 | H187: 0 | I187: 0 | J187: C11
A188: 2021 | B188: 41212 | C188: 412 | D188: C | E188: 12 | F188: Circuit Breaker Reimbursements | G188: 0 | H188: 0 | I188: 0 | J188: C12
A189: 2021 | B189: 41213a | C189: 412 | D189: C | E189: 13a | F189: Contributions, in-kind, host district | G189: 21173 | H189: 0 | I189: 21173 | J189: C13a
A190: 2021 | B190: 41213b | C190: 412 | D190: C | E190: 13b | F190: Contributions, in-kind, other | G190: 0 | H190: 0 | I190: 0 | J190: C13b
A191: 2021 | B191: 41213c | C191: 412 | D191: C | E191: 13c | F191: Contributions, on-behalf, pension | G191: 2203102 | H191: 0 | I191: 2203102 | J191: C13c
A192: 2021 | B192: 41214 | C192: 412 | D192: C | E192: 14 | F192: Contributions, from Component Unit (restricted) | G192: 0 | H192: 0 | I192: 0 | J192: C14
A193: 2021 | B193: 41214b | C193: 412 | D193: C | E193: 14b | F193: Contributions, from Component Unit (unrestricted) | G193: 60550 | H193: 0 | I193: 60550 | J193: C14b
A194: 2021 | B194: 41215 | C194: 412 | D194: C | E194: 15 | F194: Contributions / Fundraising (restricted) | G194: 9550 | H194: 2061 | I194: 11611 | J194: C15
A195: 2021 | B195: 41215b | C195: 412 | D195: =VLOOKUP(C195, TYPE, 3, FALSE) -> C | E195: 15b | F195: Contributions / Fundraising (unrestricted) | G195: 292 | H195: 6064 | I195: 6356 | J195: C15b
A196: 2021 | B196: =C196&E196 -> 41216 | C196: 412 | D196: C | E196: 16 | F196: Interest / Investment Income (restricted) | G196: 0 | H196: 0 | I196: 0 | J196: =D196&E196 -> C16
A197: 2021 | B197: 41216a | C197: 412 | D197: C | E197: 16a | F197: Interest / Investment Income (unrestricted) | G197: 12383 | H197: 1 | I197: 12384 | J197: C16a
A198: 2021 | B198: 41217 | C198: 412 | D198: C | E198: 17 | F198: Rental Income | G198: 0 | H198: 0 | I198: 0 | J198: C17
A199: 2021 | B199: 41218 | C199: 412 | D199: C | E199: 18 | F199: Loan Forgiveness or Other Reimbursement | G199: 0 | H199: 0 | I199: 0 | J199: C18
A200: 2021 | B200: 41219 | C200: 412 | D200: C | E200: 19 | F200: Miscellaneous Income | G200: 25172 | H200: 0 | I200: 25172 | J200: C19
... 3285 more rows

Sheet FE21 (hidden)
B1: 1 | C1: 2 | D1: 3 | E1: 4 | F1: 5 | G1: 6 | H1: 7 | I1: 8 | J1: 9 | K1: 10 | L1: 11 | M1: 12 | N1: 13 | O1: 14 | P1: 15 | Q1: 16 | R1: 17 | S1: 18 | T1: 19 | U1: 20 | V1: 21
A2: FY | B2: vlookup | C2: cha_code | D2: cha_type | E2: FuncExp_id | F2: Line_Desc | G2: General Education | H2: Special Education | I2: Undistributed (not assigned to a program) | J2: State Grants & Nutrition Reimbursement | K2: State Coronavirus Prevention Fund | L2: Charter School Program FC 532 or 534 | M2: ESSER 1 FC 113 | N2: ESSER II FC115 | O2: ESSER III FC 119 | P2: ESSER SEA Reserve Grants | Q2: GEER Funded Grants | R2: CvRF FC 102 and CvRF School Nutrition | S2: CvRF RLTE FC118 | T2: All Other Federal Grants & Nutrition Reimbursement | U2: Private Grants & Contributions | V2: TOTAL
A3: 2021 | B3: =C3&E3 -> 407100 | C3: 407 | D3: =VLOOKUP(C3, TYPE, 3, FALSE) -> HM | E3: 100 | F3: Administration | G3: 0 | H3: 0 | I3: 1199731.55 | J3: 0 | K3: 0 | L3: 0 | M3: 36375 | N3: 0 | O3: 0 | P3: 69.88 | Q3: 0 | R3: 0 | S3: 0 | T3: 72.73 | U3: 11387 | V3: 1247636.16 | W3: =D3&E3 -> HM100
A4: 2021 | B4: =C4&E4 -> 407110 | C4: 407 | D4: HM | E4: 110 | F4: Subtotal - Board of Trustees | G4: 0 | H4: 0 | I4: 61.07 | J4: 0 | K4: 0 | L4: 0 | M4: 0 | N4: 0 | O4: 0 | P4: 0 | Q4: 0 | R4: 0 | S4: 0 | T4: 0 | U4: 0 | V4: 61.07 | W4: =D4&E4 -> HM110
A5: 2021 | B5: 407111 | C5: 407 | D5: HM | E5: 111 | F5: Contracted Services | G5: 0 | H5: 0 | I5: 0 | J5: 0 | K5: 0 | L5: 0 | M5: 0 | N5: 0 | O5: 0 | P5: 0 | Q5: 0 | R5: 0 | S5: 0 | T5: 0 | U5: 0 | V5: 0 | W5: HM111
A6: 2021 | B6: 407112 | C6: 407 | D6: HM | E6: 112 | F6: Travel and other expenses | G6: 0 | H6: 0 | I6: 61.07 | J6: 0 | K6: 0 | L6: 0 | M6: 0 | N6: 0 | O6: 0 | P6: 0 | Q6: 0 | R6: 0 | S6: 0 | T6: 0 | U6: 0 | V6: 61.07 | W6: HM112
A7: 2021 | B7: 407120 | C7: 407 | D7: HM | E7: 120 | F7: Subtotal - School Leaders | G7: 0 | H7: 0 | I7: 0 | J7: 0 | K7: 0 | L7: 0 | M7: 0 | N7: 0 | O7: 0 | P7: 0 | Q7: 0 | R7: 0 | S7: 0 | T7: 0 | U7: 0 | V7: 0 | W7: HM120
A8: 2021 | B8: 407121 | C8: 407 | D8: HM | E8: 121 | F8: Salaries - Professional | G8: 0 | H8: 0 | I8: 0 | J8: 0 | K8: 0 | L8: 0 | M8: 0 | N8: 0 | O8: 0 | P8: 0 | Q8: 0 | R8: 0 | S8: 0 | T8: 0 | U8: 0 | V8: 0 | W8: HM121
A9: 2021 | B9: 407122 | C9: 407 | D9: HM | E9: 122 | F9: Contracted Services | G9: 0 | H9: 0 | I9: 0 | J9: 0 | K9: 0 | L9: 0 | M9: 0 | N9: 0 | O9: 0 | P9: 0 | Q9: 0 | R9: 0 | S9: 0 | T9: 0 | U9: 0 | V9: 0 | W9: HM122
A10: 2021 | B10: 407120a | C10: 407 | D10: HM | E10: 120a | F10: Subtotal - Non-Instructional Administration and Support Staff | G10: 0 | H10: 0 | I10: 1196956.48 | J10: 0 | K10: 0 | L10: 0 | M10: 36375 | N10: 0 | O10: 0 | P10: 69.88 | Q10: 0 | R10: 0 | S10: 0 | T10: 72.73 | U10: 11387 | V10: 1244861.09 | W10: HM120a
A11: 2021 | B11: 407121a | C11: 407 | D11: HM | E11: 121a | F11: Salaries - Professional and Support Staff | G11: 0 | H11: 0 | I11: 194809.45 | J11: 0 | K11: 0 | L11: 0 | M11: 36375 | N11: 0 | O11: 0 | P11: 0 | Q11: 0 | R11: 0 | S11: 0 | T11: 0 | U11: 0 | V11: 231184.45 | W11: HM121a
A12: 2021 | B12: 407122a | C12: 407 | D12: HM | E12: 122a | F12: Contracted Services - Professional and Support Staff | G12: 0 | H12: 0 | I12: 982568.82 | J12: 0 | K12: 0 | L12: 0 | M12: 0 | N12: 0 | O12: 0 | P12: 0 | Q12: 0 | R12: 0 | S12: 0 | T12: 0 | U12: 11387 | V12: 993955.82 | W12: HM122a
A13: 2021 | B13: 407123 | C13: 407 | D13: HM | E13: 123 | F13: Recruitment/Advertising | G13: 0 | H13: 0 | I13: 9708.93 | J13: 0 | K13: 0 | L13: 0 | M13: 0 | N13: 0 | O13: 0 | P13: 0 | Q13: 0 | R13: 0 | S13: 0 | T13: 0 | U13: 0 | V13: 9708.93 | W13: HM123
A14: 2021 | B14: 407124 | C14: 407 | D14: HM | E14: 124 | F14: Travel, Dues, and other expenses | G14: 0 | H14: 0 | I14: 7720.43 | J14: 0 | K14: 0 | L14: 0 | M14: 0 | N14: 0 | O14: 0 | P14: 69.88 | Q14: 0 | R14: 0 | S14: 0 | T14: 0 | U14: 0 | V14: 7790.31 | W14: HM124
A15: 2021 | B15: 407125 | C15: 407 | D15: HM | E15: 125 | F15: Supplies and Materials | G15: 0 | H15: 0 | I15: 2148.85 | J15: 0 | K15: 0 | L15: 0 | M15: 0 | N15: 0 | O15: 0 | P15: 0 | Q15: 0 | R15: 0 | S15: 0 | T15: 72.73 | U15: 0 | V15: 2221.58 | W15: HM125
A16: 2021 | B16: 407126 | C16: 407 | D16: HM | E16: 126 | F16: Depreciation - non instructional | G16: 0 | H16: 0 | I16: 0 | J16: 0 | K16: 0 | L16: 0 | M16: 0 | N16: 0 | O16: 0 | P16: 0 | Q16: 0 | R16: 0 | S16: 0 | T16: 0 | U16: 0 | V16: 0 | W16: HM126
A17: 2021 | B17: 407130 | C17: 407 | D17: HM | E17: 130 | F17: Legal | G17: 0 | H17: 0 | I17: 2714 | J17: 0 | K17: 0 | L17: 0 | M17: 0 | N17: 0 | O17: 0 | P17: 0 | Q17: 0 | R17: 0 | S17: 0 | T17: 0 | U17: 0 | V17: 2714 | W17: HM130
A18: 2021 | B18: 407131 | C18: 407 | D18: HM | E18: 131 | F18: Salaries - Professional | G18: 0 | H18: 0 | I18: 0 | J18: 0 | K18: 0 | L18: 0 | M18: 0 | N18: 0 | O18: 0 | P18: 0 | Q18: 0 | R18: 0 | S18: 0 | T18: 0 | U18: 0 | V18: 0 | W18: HM131
A19: 2021 | B19: 407132 | C19: 407 | D19: HM | E19: 132 | F19: Contracted Services | G19: 0 | H19: 0 | I19: 2714 | J19: 0 | K19: 0 | L19: 0 | M19: 0 | N19: 0 | O19: 0 | P19: 0 | Q19: 0 | R19: 0 | S19: 0 | T19: 0 | U19: 0 | V19: 2714 | W19: HM132
A20: 2021 | B20: 407133 | C20: 407 | D20: HM | E20: 133 | F20: Legal Settlements | G20: 0 | H20: 0 | I20: 0 | J20: 0 | K20: 0 | L20: 0 | M20: 0 | N20: 0 | O20: 0 | P20: 0 | Q20: 0 | R20: 0 | S20: 0 | T20: 0 | U20: 0 | V20: 0 | W20: HM133
A21: 2021 | B21: 407170 | C21: 407 | D21: HM | E21: 170 | F21: Subtotal - Development (Private) | G21: 0 | H21: 0 | I21: 0 | J21: 0 | K21: 0 | L21: 0 | M21: 0 | N21: 0 | O21: 0 | P21: 0 | Q21: 0 | R21: 0 | S21: 0 | T21: 0 | U21: 0 | V21: 0 | W21: HM170
A22: 2021 | B22: 407170a | C22: 407 | D22: HM | E22: 170a | F22: Salaries - Professional - Private | G22: 0 | H22: 0 | I22: 0 | J22: 0 | K22: 0 | L22: 0 | M22: 0 | N22: 0 | O22: 0 | P22: 0 | Q22: 0 | R22: 0 | S22: 0 | T22: 0 | U22: 0 | V22: 0 | W22: HM170a
A23: 2021 | B23: 407170b | C23: 407 | D23: HM | E23: 170b | F23: Contracted Services - Private | G23: 0 | H23: 0 | I23: 0 | J23: 0 | K23: 0 | L23: 0 | M23: 0 | N23: 0 | O23: 0 | P23: 0 | Q23: 0 | R23: 0 | S23: 0 | T23: 0 | U23: 0 | V23: 0 | W23: HM170b
A24: 2021 | B24: 407170c | C24: 407 | D24: HM | E24: 170c | F24: Fundraising - Private | G24: 0 | H24: 0 | I24: 0 | J24: 0 | K24: 0 | L24: 0 | M24: 0 | N24: 0 | O24: 0 | P24: 0 | Q24: 0 | R24: 0 | S24: 0 | T24: 0 | U24: 0 | V24: 0 | W24: HM170c
A25: 2021 | B25: 407171 | C25: 407 | D25: HM | E25: 171 | F25: Subtotal - Development (Public) | G25: 0 | H25: 0 | I25: 0 | J25: 0 | K25: 0 | L25: 0 | M25: 0 | N25: 0 | O25: 0 | P25: 0 | Q25: 0 | R25: 0 | S25: 0 | T25: 0 | U25: 0 | V25: 0 | W25: HM171
A26: 2021 | B26: 407171a | C26: 407 | D26: HM | E26: 171a | F26: Salaries - Professional - Public | G26: 0 | H26: 0 | I26: 0 | J26: 0 | K26: 0 | L26: 0 | M26: 0 | N26: 0 | O26: 0 | P26: 0 | Q26: 0 | R26: 0 | S26: 0 | T26: 0 | U26: 0 | V26: 0 | W26: HM171a
A27: 2021 | B27: 407171b | C27: 407 | D27: HM | E27: 171b | F27: Contracted Services - Public | G27: 0 | H27: 0 | I27: 0 | J27: 0 | K27: 0 | L27: 0 | M27: 0 | N27: 0 | O27: 0 | P27: 0 | Q27: 0 | R27: 0 | S27: 0 | T27: 0 | U27: 0 | V27: 0 | W27: HM171b
A28: 2021 | B28: 407200 | C28: 407 | D28: HM | E28: 200 | F28: Instructional Services | G28: 1197432.79 | H28: 828929.87 | I28: 17669.96 | J28: 0 | K28: 0 | L28: 46910 | M28: 116077 | N28: 0 | O28: 0 | P28: 11930.12 | Q28: 0 | R28: 0 | S28: 0 | T28: 318785.27 | U28: 0 | V28: 2537735.01 | W28: HM200
A29: 2021 | B29: 407210 | C29: 407 | D29: HM | E29: 210 | F29: Instructional Subtotal - Instructional Leadership | G29: 60870.4 | H29: 184851.75 | I29: 0 | J29: 0 | K29: 0 | L29: 0 | M29: 0 | N29: 0 | O29: 0 | P29: 0 | Q29: 0 | R29: 0 | S29: 0 | T29: 15316 | U29: 0 | V29: 261038.15 | W29: HM210
A30: 2021 | B30: 407211 | C30: 407 | D30: HM | E30: 211 | F30: Salaries - Professional | G30: 26783.13 | H30: 179241.01 | I30: 0 | J30: 0 | K30: 0 | L30: 0 | M30: 0 | N30: 0 | O30: 0 | P30: 0 | Q30: 0 | R30: 0 | S30: 0 | T30: 0 | U30: 0 | V30: 206024.14 | W30: HM211
A31: 2021 | B31: 407212 | C31: 407 | D31: HM | E31: 212 | F31: Salaries - Clerical | G31: 53242.27 | H31: 7955.74 | I31: 0 | J31: 0 | K31: 0 | L31: 0 | M31: 0 | N31: 0 | O31: 0 | P31: 0 | Q31: 0 | R31: 0 | S31: 0 | T31: 11316 | U31: 0 | V31: 72514.01 | W31: HM212
A32: 2021 | B32: 407213 | C32: 407 | D32: HM | E32: 213 | F32: Contracted Services | G32: -19155 | H32: -2345 | I32: 0 | J32: 0 | K32: 0 | L32: 0 | M32: 0 | N32: 0 | O32: 0 | P32: 0 | Q32: 0 | R32: 0 | S32: 0 | T32: 4000 | U32: 0 | V32: -17500 | W32: HM213
A33: 2021 | B33: 407214 | C33: 407 | D33: HM | E33: 214 | F33: Supplies and Materials | G33: 0 | H33: 0 | I33: 0 | J33: 0 | K33: 0 | L33: 0 | M33: 0 | N33: 0 | O33: 0 | P33: 0 | Q33: 0 | R33: 0 | S33: 0 | T33: 0 | U33: 0 | V33: 0 | W33: HM214
A34: 2021 | B34: 407215 | C34: 407 | D34: HM | E34: 215 | F34: Travel and other expenses | G34: 0 | H34: 0 | I34: 0 | J34: 0 | K34: 0 | L34: 0 | M34: 0 | N34: 0 | O34: 0 | P34: 0 | Q34: 0 | R34: 0 | S34: 0 | T34: 0 | U34: 0 | V34: 0 | W34: HM215
A35: 2021 | B35: 407220 | C35: 407 | D35: HM | E35: 220 | F35: Instructional Subtotal - Classroom and Specialist Teachers | G35: 1020623.54 | H35: 627055.44 | I35: 0 | J35: 0 | K35: 0 | L35: 0 | M35: 69472 | N35: 0 | O35: 0 | P35: 0 | Q35: 0 | R35: 0 | S35: 0 | T35: 183595 | U35: 0 | V35: 1900745.98 | W35: HM220
A36: 2021 | B36: 407221 | C36: 407 | D36: HM | E36: 221 | F36: Salaries - Teachers, Classroom | G36: 653347.97 | H36: 97626.71 | I36: 0 | J36: 0 | K36: 0 | L36: 0 | M36: 0 | N36: 0 | O36: 0 | P36: 0 | Q36: 0 | R36: 0 | S36: 0 | T36: 0 | U36: 0 | V36: 750974.68 | W36: HM221
A37: 2021 | B37: 407222 | C37: 407 | D37: HM | E37: 222 | F37: Salaries - Teachers, Specialists | G37: 367275.57 | H37: 529428.73 | I37: 0 | J37: 0 | K37: 0 | L37: 0 | M37: 69472 | N37: 0 | O37: 0 | P37: 0 | Q37: 0 | R37: 0 | S37: 0 | T37: 183595 | U37: 0 | V37: 1149771.3 | W37: HM222
A38: 2021 | B38: 407230 | C38: 407 | D38: HM | E38: 230 | F38: Instructional Subtotal - Other Teaching Services | G38: 60302.1 | H38: 9010.45 | I38: 0 | J38: 0 | K38: 0 | L38: 15000 | M38: 31642 | N38: 0 | O38: 0 | P38: 8900 | Q38: 0 | R38: 0 | S38: 0 | T38: 115090 | U38: 0 | V38: 239944.55 | W38: HM230
A39: 2021 | B39: 407231 | C39: 407 | D39: HM | E39: 231 | F39: Salaries - Professional | G39: 14003.07 | H39: 2092.41 | I39: 0 | J39: 0 | K39: 0 | L39: 0 | M39: 0 | N39: 0 | O39: 0 | P39: 0 | Q39: 0 | R39: 0 | S39: 0 | T39: 0 | U39: 0 | V39: 16095.48 | W39: HM231
A40: 2021 | B40: 407232 | C40: 407 | D40: HM | E40: 232 | F40: Salaries - Non-clerical Paraprofessionals | G40: 33144.75 | H40: 4952.66 | I40: 0 | J40: 0 | K40: 0 | L40: 0 | M40: 0 | N40: 0 | O40: 0 | P40: 0 | Q40: 0 | R40: 0 | S40: 0 | T40: 95590 | U40: 0 | V40: 133687.41 | W40: HM232
A41: 2021 | B41: 407233 | C41: 407 | D41: HM | E41: 233 | F41: Salaries - Clerical | G41: 5898.48 | H41: 881.38 | I41: 0 | J41: 0 | K41: 0 | L41: 0 | M41: 31642 | N41: 0 | O41: 0 | P41: 0 | Q41: 0 | R41: 0 | S41: 0 | T41: 0 | U41: 0 | V41: 38421.86 | W41: HM233
A42: 2021 | B42: 407234 | C42: 407 | D42: HM | E42: 234 | F42: Contracted Services | G42: 7255.8 | H42: 1084 | I42: 0 | J42: 0 | K42: 0 | L42: 15000 | M42: 0 | N42: 0 | O42: 0 | P42: 8900 | Q42: 0 | R42: 0 | S42: 0 | T42: 19500 | U42: 0 | V42: 51739.8 | W42: HM234
A43: 2021 | B43: 407240 | C43: 407 | D43: HM | E43: 240 | F43: Instructional Subtotal - Professional Development | G43: 5893 | H43: 0 | I43: 17133.96 | J43: 0 | K43: 0 | L43: 0 | M43: 0 | N43: 0 | O43: 0 | P43: 0 | Q43: 0 | R43: 0 | S43: 0 | T43: 150 | U43: 0 | V43: 23176.96 | W43: HM240
A44: 2021 | B44: 407241 | C44: 407 | D44: HM | E44: 241 | F44: Salaries - Professional | G44: 0 | H44: 0 | I44: 0 | J44: 0 | K44: 0 | L44: 0 | M44: 0 | N44: 0 | O44: 0 | P44: 0 | Q44: 0 | R44: 0 | S44: 0 | T44: 0 | U44: 0 | V44: 0 | W44: HM241
A45: 2021 | B45: 407242 | C45: 407 | D45: HM | E45: 242 | F45: Contracted Services | G45: 0 | H45: 0 | I45: 0 | J45: 0 | K45: 0 | L45: 0 | M45: 0 | N45: 0 | O45: 0 | P45: 0 | Q45: 0 | R45: 0 | S45: 0 | T45: 0 | U45: 0 | V45: 0 | W45: HM242
A46: 2021 | B46: 407243 | C46: 407 | D46: HM | E46: 243 | F46: Supplies and Materials | G46: 0 | H46: 0 | I46: 0 | J46: 0 | K46: 0 | L46: 0 | M46: 0 | N46: 0 | O46: 0 | P46: 0 | Q46: 0 | R46: 0 | S46: 0 | T46: 0 | U46: 0 | V46: 0 | W46: HM243
A47: 2021 | B47: 407244 | C47: 407 | D47: HM | E47: 244 | F47: Travel and other expenses | G47: 5893 | H47: 0 | I47: 17133.96 | J47: 0 | K47: 0 | L47: 0 | M47: 0 | N47: 0 | O47: 0 | P47: 0 | Q47: 0 | R47: 0 | S47: 0 | T47: 150 | U47: 0 | V47: 23176.96 | W47: HM244
A48: 2021 | B48: 407250 | C48: 407 | D48: HM | E48: 250 | F48: Instructional Subtotal - Guidance, Psychological & Testing | G48: 0 | H48: 0 | I48: 0 | J48: 0 | K48: 0 | L48: 0 | M48: 0 | N48: 0 | O48: 0 | P48: 0 | Q48: 0 | R48: 0 | S48: 0 | T48: 0 | U48: 0 | V48: 0 | W48: HM250
A49: 2021 | B49: 407251 | C49: 407 | D49: HM | E49: 251 | F49: Salaries - Professional | G49: 0 | H49: 0 | I49: 0 | J49: 0 | K49: 0 | L49: 0 | M49: 0 | N49: 0 | O49: 0 | P49: 0 | Q49: 0 | R49: 0 | S49: 0 | T49: 0 | U49: 0 | V49: 0 | W49: HM251
A50: 2021 | B50: 407252 | C50: 407 | D50: HM | E50: 252 | F50: Salaries - Clerical | G50: 0 | H50: 0 | I50: 0 | J50: 0 | K50: 0 | L50: 0 | M50: 0 | N50: 0 | O50: 0 | P50: 0 | Q50: 0 | R50: 0 | S50: 0 | T50: 0 | U50: 0 | V50: 0 | W50: HM252
A51: 2021 | B51: 407253 | C51: 407 | D51: HM | E51: 253 | F51: Contracted Services | G51: 0 | H51: 0 | I51: 0 | J51: 0 | K51: 0 | L51: 0 | M51: 0 | N51: 0 | O51: 0 | P51: 0 | Q51: 0 | R51: 0 | S51: 0 | T51: 0 | U51: 0 | V51: 0 | W51: HM253
A52: 2021 | B52: 407254 | C52: 407 | D52: HM | E52: 254 | F52: Supplies and Materials | G52: 0 | H52: 0 | I52: 0 | J52: 0 | K52: 0 | L52: 0 | M52: 0 | N52: 0 | O52: 0 | P52: 0 | Q52: 0 | R52: 0 | S52: 0 | T52: 0 | U52: 0 | V52: 0 | W52: HM254
A53: 2021 | B53: 407260 | C53: 407 | D53: HM | E53: 260 | F53: Instructional Subtotal - Materials, Equipment & Technology | G53: 49743.75 | H53: 8012.23 | I53: 536 | J53: 0 | K53: 0 | L53: 31910 | M53: 14963 | N53: 0 | O53: 0 | P53: 3030.12 | Q53: 0 | R53: 0 | S53: 0 | T53: 4634.27 | U53: 0 | V53: 112829.37 | W53: HM260
A54: 2021 | B54: 407261 | C54: 407 | D54: HM | E54: 261 | F54: Textbooks & Related Media/Materials | G54: 4864.36 | H54: 733.63 | I54: 0 | J54: 0 | K54: 0 | L54: 21124.61 | M54: 6450 | N54: 0 | O54: 0 | P54: 2781.79 | Q54: 0 | R54: 0 | S54: 0 | T54: 4125.33 | U54: 0 | V54: 40079.72 | W54: HM261
A55: 2021 | B55: 407262 | C55: 407 | D55: HM | E55: 262 | F55: Other Instructional Materials | G55: 0 | H55: 0 | I55: 0 | J55: 0 | K55: 0 | L55: 0 | M55: 0 | N55: 0 | O55: 0 | P55: 0 | Q55: 0 | R55: 0 | S55: 0 | T55: 0 | U55: 0 | V55: 0 | W55: HM262
A56: 2021 | B56: 407263 | C56: 407 | D56: HM | E56: 263 | F56: Instructional Equipment | G56: 0 | H56: 0 | I56: 0 | J56: 0 | K56: 0 | L56: 0 | M56: 0 | N56: 0 | O56: 0 | P56: 0 | Q56: 0 | R56: 0 | S56: 0 | T56: 0 | U56: 0 | V56: 0 | W56: HM263
A57: 2021 | B57: 407264 | C57: 407 | D57: HM | E57: 264 | F57: General Supplies | G57: 733.92 | H57: 109.66 | I57: 0 | J57: 0 | K57: 0 | L57: 8580.21 | M57: 3550 | N57: 0 | O57: 0 | P57: 188.36 | Q57: 0 | R57: 0 | S57: 0 | T57: 508.94 | U57: 0 | V57: 13671.09 | W57: HM264
A58: 2021 | B58: 407265 | C58: 407 | D58: HM | E58: 265 | F58: Other Instructional Services | G58: 501.28 | H58: 74.9 | I58: 0 | J58: 0 | K58: 0 | L58: 0 | M58: 0 | N58: 0 | O58: 0 | P58: 0 | Q58: 0 | R58: 0 | S58: 0 | T58: 0 | U58: 0 | V58: 576.18 | W58: HM265
A59: 2021 | B59: 407266 | C59: 407 | D59: HM | E59: 266 | F59: Classroom Instructional Technology Hardware | G59: 31174.39 | H59: 5263.92 | I59: 0 | J59: 0 | K59: 0 | L59: 786.18 | M59: 3391 | N59: 0 | O59: 0 | P59: 59.97 | Q59: 0 | R59: 0 | S59: 0 | T59: 0 | U59: 0 | V59: 40675.46 | W59: HM266
A60: 2021 | B60: 407267 | C60: 407 | D60: HM | E60: 267 | F60: Other Instructional Technology Hardware | G60: 0 | H60: 0 | I60: 536 | J60: 0 | K60: 0 | L60: 1419 | M60: 1572 | N60: 0 | O60: 0 | P60: 0 | Q60: 0 | R60: 0 | S60: 0 | T60: 0 | U60: 0 | V60: 3527 | W60: HM267
A61: 2021 | B61: 407268a | C61: 407 | D61: HM | E61: 268a | F61: Classroom Instructional Software | G61: 12469.8 | H61: 1830.12 | I61: 0 | J61: 0 | K61: 0 | L61: 0 | M61: 0 | N61: 0 | O61: 0 | P61: 0 | Q61: 0 | R61: 0 | S61: 0 | T61: 0 | U61: 0 | V61: 14299.92 | W61: HM268a
A62: 2021 | B62: 407268b | C62: 407 | D62: HM | E62: 268b | F62: Other Instructional Software | G62: 0 | H62: 0 | I62: 0 | J62: 0 | K62: 0 | L62: 0 | M62: 0 | N62: 0 | O62: 0 | P62: 0 | Q62: 0 | R62: 0 | S62: 0 | T62: 0 | U62: 0 | V62: 0 | W62: HM268b
A63: 2021 | B63: 407269 | C63: 407 | D63: HM | E63: 269 | F63: Depreciation for Furniture, Equipment & Technology | G63: 0 | H63: 0 | I63: 0 | J63: 0 | K63: 0 | L63: 0 | M63: 0 | N63: 0 | O63: 0 | P63: 0 | Q63: 0 | R63: 0 | S63: 0 | T63: 0 | U63: 0 | V63: 0 | W63: HM269
A64: 2021 | B64: 407300 | C64: 407 | D64: HM | E64: 300 | F64: Pupil Services | G64: 199755.48 | H64: 29848.52 | I64: 279831.16 | J64: 0 | K64: 0 | L64: 0 | M64: 0 | N64: 0 | O64: 0 | P64: 0 | Q64: 0 | R64: 0 | S64: 0 | T64: 0 | U64: 0 | V64: 509435.16 | W64: HM300
A65: 2021 | B65: 407310 | C65: 407 | D65: HM | E65: 310 | F65: Health Services | G65: 0 | H65: 0 | I65: 82466.28 | J65: 0 | K65: 0 | L65: 0 | M65: 0 | N65: 0 | O65: 0 | P65: 0 | Q65: 0 | R65: 0 | S65: 0 | T65: 0 | U65: 0 | V65: 82466.28 | W65: HM310
A66: 2021 | B66: 407315 | C66: 407 | D66: HM | E66: 315 | F66: Health Services - Contracted | G66: 0 | H66: 0 | I66: 0 | J66: 0 | K66: 0 | L66: 0 | M66: 0 | N66: 0 | O66: 0 | P66: 0 | Q66: 0 | R66: 0 | S66: 0 | T66: 0 | U66: 0 | V66: 0 | W66: HM315
A67: 2021 | B67: 407320 | C67: 407 | D67: =VLOOKUP(C67, TYPE, 3, FALSE) -> HM | E67: 320 | F67: Athletic Services (including Transportation) | G67: 0 | H67: 0 | I67: 88407.02 | J67: 0 | K67: 0 | L67: 0 | M67: 0 | N67: 0 | O67: 0 | P67: 0 | Q67: 0 | R67: 0 | S67: 0 | T67: 0 | U67: 0 | V67: 88407.02 | W67: HM320
A68: 2021 | B68: =C68&E68 -> 407325 | C68: 407 | D68: HM | E68: 325 | F68: Athletic Services (including Transportation) - Contracted | G68: 0 | H68: 0 | I68: 0 | J68: 0 | K68: 0 | L68: 0 | M68: 0 | N68: 0 | O68: 0 | P68: 0 | Q68: 0 | R68: 0 | S68: 0 | T68: 0 | U68: 0 | V68: 0 | W68: =D68&E68 -> HM325
A69: 2021 | B69: 407330 | C69: 407 | D69: HM | E69: 330 | F69: Food Services | G69: 0 | H69: 0 | I69: 72969.24 | J69: 0 | K69: 0 | L69: 0 | M69: 0 | N69: 0 | O69: 0 | P69: 0 | Q69: 0 | R69: 0 | S69: 0 | T69: 0 | U69: 0 | V69: 72969.24 | W69: HM330
A70: 2021 | B70: 407335 | C70: 407 | D70: HM | E70: 335 | F70: Food Services - Contracted | G70: 0 | H70: 0 | I70: 35988.62 | J70: 0 | K70: 0 | L70: 0 | M70: 0 | N70: 0 | O70: 0 | P70: 0 | Q70: 0 | R70: 0 | S70: 0 | T70: 0 | U70: 0 | V70: 35988.62 | W70: HM335
A71: 2021 | B71: 407340 | C71: 407 | D71: HM | E71: 340 | F71: Student Transportation (to and from school) | G71: 199755.48 | H71: 29848.52 | I71: 0 | J71: 0 | K71: 0 | L71: 0 | M71: 0 | N71: 0 | O71: 0 | P71: 0 | Q71: 0 | R71: 0 | S71: 0 | T71: 0 | U71: 0 | V71: 229604 | W71: HM340
A72: 2021 | B72: 407345 | C72: 407 | D72: HM | E72: 345 | F72: Student Transportation (to and from school) - Contracted | G72: 0 | H72: 0 | I72: 0 | J72: 0 | K72: 0 | L72: 0 | M72: 0 | N72: 0 | O72: 0 | P72: 0 | Q72: 0 | R72: 0 | S72: 0 | T72: 0 | U72: 0 | V72: 0 | W72: HM345
A73: 2021 | B73: 407350 | C73: 407 | D73: HM | E73: 350 | F73: Depreciation of Transportation Vehicles | G73: 0 | H73: 0 | I73: 0 | J73: 0 | K73: 0 | L73: 0 | M73: 0 | N73: 0 | O73: 0 | P73: 0 | Q73: 0 | R73: 0 | S73: 0 | T73: 0 | U73: 0 | V73: 0 | W73: HM350
A74: 2021 | B74: 407360 | C74: 407 | D74: HM | E74: 360 | F74: Other Student Activities | G74: 0 | H74: 0 | I74: 0 | J74: 0 | K74: 0 | L74: 0 | M74: 0 | N74: 0 | O74: 0 | P74: 0 | Q74: 0 | R74: 0 | S74: 0 | T74: 0 | U74: 0 | V74: 0 | W74: HM360
A75: 2021 | B75: 407400 | C75: 407 | D75: HM | E75: 400 | F75: Operation & Maintenance of Plant | G75: 0 | H75: 0 | I75: 328806.58 | J75: 0 | K75: 0 | L75: 0 | M75: 0 | N75: 0 | O75: 0 | P75: 0 | Q75: 0 | R75: 0 | S75: 0 | T75: 0 | U75: 0 | V75: 328806.58 | W75: HM400
A76: 2021 | B76: 407410 | C76: 407 | D76: HM | E76: 410 | F76: Operation & Maintenance of Buildings and Grounds | G76: 0 | H76: 0 | I76: 219868.6 | J76: 0 | K76: 0 | L76: 0 | M76: 0 | N76: 0 | O76: 0 | P76: 0 | Q76: 0 | R76: 0 | S76: 0 | T76: 0 | U76: 0 | V76: 219868.6 | W76: HM410
A77: 2021 | B77: 407420 | C77: 407 | D77: HM | E77: 420 | F77: Utilities | G77: 0 | H77: 0 | I77: 99494.98 | J77: 0 | K77: 0 | L77: 0 | M77: 0 | N77: 0 | O77: 0 | P77: 0 | Q77: 0 | R77: 0 | S77: 0 | T77: 0 | U77: 0 | V77: 99494.98 | W77: HM420
A78: 2021 | B78: 407430 | C78: 407 | D78: HM | E78: 430 | F78: Maintenance of Equipment | G78: 0 | H78: 0 | I78: 9443 | J78: 0 | K78: 0 | L78: 0 | M78: 0 | N78: 0 | O78: 0 | P78: 0 | Q78: 0 | R78: 0 | S78: 0 | T78: 0 | U78: 0 | V78: 9443 | W78: HM430
A79: 2021 | B79: 407440 | C79: 407 | D79: HM | E79: 440 | F79: Networking and Telecommunications | G79: 0 | H79: 0 | I79: 0 | J79: 0 | K79: 0 | L79: 0 | M79: 0 | N79: 0 | O79: 0 | P79: 0 | Q79: 0 | R79: 0 | S79: 0 | T79: 0 | U79: 0 | V79: 0 | W79: HM440
A80: 2021 | B80: 407500 | C80: 407 | D80: HM | E80: 500 | F80: Fixed Charges | G80: 0 | H80: 0 | I80: 996919.17 | J80: 0 | K80: 0 | L80: 0 | M80: 0 | N80: 0 | O80: 0 | P80: 0 | Q80: 0 | R80: 0 | S80: 0 | T80: 0 | U80: 0 | V80: 996919.17 | W80: HM500
A81: 2021 | B81: 407510 | C81: 407 | D81: HM | E81: 510 | F81: Employee Retirement & Taxes | G81: 0 | H81: 0 | I81: 1165.51 | J81: 0 | K81: 0 | L81: 0 | M81: 0 | N81: 0 | O81: 0 | P81: 0 | Q81: 0 | R81: 0 | S81: 0 | T81: 0 | U81: 0 | V81: 1165.51 | W81: HM510
A82: 2021 | B82: 407520 | C82: 407 | D82: HM | E82: 520 | F82: Fringe Benefits | G82: 0 | H82: 0 | I82: 988036.4 | J82: 0 | K82: 0 | L82: 0 | M82: 0 | N82: 0 | O82: 0 | P82: 0 | Q82: 0 | R82: 0 | S82: 0 | T82: 0 | U82: 0 | V82: 988036.4 | W82: HM520
A83: 2021 | B83: 407530 | C83: 407 | D83: HM | E83: 530 | F83: Insurance (non-employee) | G83: 0 | H83: 0 | I83: 7717.26 | J83: 0 | K83: 0 | L83: 0 | M83: 0 | N83: 0 | O83: 0 | P83: 0 | Q83: 0 | R83: 0 | S83: 0 | T83: 0 | U83: 0 | V83: 7717.26 | W83: HM530
A84: 2021 | B84: 407550 | C84: 407 | D84: HM | E84: 550 | F84: Rental/Lease of Equipment | G84: 0 | H84: 0 | I84: 0 | J84: 0 | K84: 0 | L84: 0 | M84: 0 | N84: 0 | O84: 0 | P84: 0 | Q84: 0 | R84: 0 | S84: 0 | T84: 0 | U84: 0 | V84: 0 | W84: HM550
A85: 2021 | B85: 407560 | C85: 407 | D85: HM | E85: 560 | F85: Short-Term Interest | G85: 0 | H85: 0 | I85: 0 | J85: 0 | K85: 0 | L85: 0 | M85: 0 | N85: 0 | O85: 0 | P85: 0 | Q85: 0 | R85: 0 | S85: 0 | T85: 0 | U85: 0 | V85: 0 | W85: HM560
A86: 2021 | B86: 407600 | C86: 407 | D86: HM | E86: 600 | F86: Community Services | G86: 0 | H86: 0 | I86: 0 | J86: 0 | K86: 0 | L86: 0 | M86: 0 | N86: 0 | O86: 0 | P86: 0 | Q86: 0 | R86: 0 | S86: 0 | T86: 0 | U86: 0 | V86: 0 | W86: HM600
A87: 2021 | B87: 407610 | C87: 407 | D87: HM | E87: 610 | F87: Dissemination Activities | G87: 0 | H87: 0 | I87: 0 | J87: 0 | K87: 0 | L87: 0 | M87: 0 | N87: 0 | O87: 0 | P87: 0 | Q87: 0 | R87: 0 | S87: 0 | T87: 0 | U87: 0 | V87: 0 | W87: HM610
A88: 2021 | B88: 407620 | C88: 407 | D88: HM | E88: 620 | F88: Civic Activities | G88: 0 | H88: 0 | I88: 0 | J88: 0 | K88: 0 | L88: 0 | M88: 0 | N88: 0 | O88: 0 | P88: 0 | Q88: 0 | R88: 0 | S88: 0 | T88: 0 | U88: 0 | V88: 0 | W88: HM620
A89: 2021 | B89: 407700 | C89: 407 | D89: HM | E89: 700 | F89: Non-Operating / Capital Facilities Costs | G89: 0 | H89: 0 | I89: 0 | J89: 0 | K89: 0 | L89: 0 | M89: 0 | N89: 0 | O89: 0 | P89: 0 | Q89: 0 | R89: 0 | S89: 0 | T89: 0 | U89: 0 | V89: 0 | W89: HM700
A90: 2021 | B90: 407720 | C90: 407 | D90: HM | E90: 720 | F90: Long-Term Interest, facilities related | G90: 0 | H90: 0 | I90: 0 | J90: 0 | K90: 0 | L90: 0 | M90: 0 | N90: 0 | O90: 0 | P90: 0 | Q90: 0 | R90: 0 | S90: 0 | T90: 0 | U90: 0 | V90: 0 | W90: HM720
A91: 2021 | B91: 407725 | C91: 407 | D91: HM | E91: 725 | F91: Long-Term Interest, non-facilities related | G91: 0 | H91: 0 | I91: 0 | J91: 0 | K91: 0 | L91: 0 | M91: 0 | N91: 0 | O91: 0 | P91: 0 | Q91: 0 | R91: 0 | S91: 0 | T91: 0 | U91: 0 | V91: 0 | W91: HM725
A92: 2021 | B92: 407730 | C92: 407 | D92: HM | E92: 730 | F92: Other costs related to capital facilities acquisition | G92: 0 | H92: 0 | I92: 0 | J92: 0 | K92: 0 | L92: 0 | M92: 0 | N92: 0 | O92: 0 | P92: 0 | Q92: 0 | R92: 0 | S92: 0 | T92: 0 | U92: 0 | V92: 0 | W92: HM730
A93: 2021 | B93: 407740 | C93: 407 | D93: HM | E93: 740 | F93: Rental/Lease of Buildings & Grounds | G93: 0 | H93: 0 | I93: 0 | J93: 0 | K93: 0 | L93: 0 | M93: 0 | N93: 0 | O93: 0 | P93: 0 | Q93: 0 | R93: 0 | S93: 0 | T93: 0 | U93: 0 | V93: 0 | W93: HM740
A94: 2021 | B94: 407750 | C94: 407 | D94: HM | E94: 750 | F94: Depreciation of Equipment, Building, & Grounds | G94: 0 | H94: 0 | I94: 0 | J94: 0 | K94: 0 | L94: 0 | M94: 0 | N94: 0 | O94: 0 | P94: 0 | Q94: 0 | R94: 0 | S94: 0 | T94: 0 | U94: 0 | V94: 0 | W94: HM750
A95: 2021 | B95: 407760 | C95: 407 | D95: HM | E95: 760 | F95: Bad debt / loss on disposal of assets | G95: 0 | H95: 0 | I95: 0 | J95: 0 | K95: 0 | L95: 0 | M95: 0 | N95: 0 | O95: 0 | P95: 0 | Q95: 0 | R95: 0 | S95: 0 | T95: 0 | U95: 0 | V95: 0 | W95: HM760
A96: 2021 | B96: 407800 | C96: 407 | D96: HM | E96: 800 | F96: TOTALS | G96: 1397188.27 | H96: 858778.39 | I96: 2822958.42 | J96: 0 | K96: 0 | L96: 46910 | M96: 152452 | N96: 0 | O96: 0 | P96: 12000 | Q96: 0 | R96: 0 | S96: 0 | T96: 318858 | U96: 11387 | V96: 5620532.08 | W96: HM800
A97: 2021 | B97: 407910 | C97: 407 | D97: HM | E97: 910 | F97: Reference: Capitalized Expenditures | G97: 0 | H97: 0 | I97: 0 | J97: 0 | K97: 0 | L97: 0 | M97: 0 | N97: 0 | O97: 0 | P97: 0 | Q97: 0 | R97: 0 | S97: 0 | T97: 0 | U97: 0 | V97: 0 | W97: HM910
A98: 2021 | B98: 407920 | C98: 407 | D98: HM | E98: 920 | F98: Reference: Deferrals/Carryovers | G98: 0 | H98: 0 | I98: 0 | J98: 0 | K98: 0 | L98: 0 | M98: 0 | N98: 0 | O98: 0 | P98: 0 | Q98: 0 | R98: 0 | S98: 0 | T98: 0 | U98: 0 | V98: 0 | W98: HM920
A99: 2021 | B99: 407900 | C99: 407 | D99: HM | E99: 900 | F99: Reference: Totals | G99: 0 | H99: 0 | I99: 2822958.42 | J99: 0 | K99: 0 | L99: 46910 | M99: 152452 | N99: 0 | O99: 0 | P99: 12000 | Q99: 0 | R99: 0 | S99: 0 | T99: 318858 | U99: 11387 | V99: 5620532.08 | W99: HM900
A100: 2021 | B100: 409100 | C100: 409 | D100: C | E100: 100 | F100: Administration | G100: 0 | H100: 0 | I100: 695409 | J100: 0 | K100: 0 | L100: 61000 | M100: 0 | N100: 0 | O100: 0 | P100: 0 | Q100: 0 | R100: 0 | S100: 0 | T100: 57261 | U100: 0 | V100: 813670 | W100: C100
A101: 2021 | B101: 409110 | C101: 409 | D101: C | E101: 110 | F101: Subtotal - Board of Trustees | G101: 0 | H101: 0 | I101: 10445 | J101: 0 | K101: 0 | L101: 0 | M101: 0 | N101: 0 | O101: 0 | P101: 0 | Q101: 0 | R101: 0 | S101: 0 | T101: 0 | U101: 0 | V101: 10445 | W101: C110
A102: 2021 | B102: 409111 | C102: 409 | D102: C | E102: 111 | F102: Contracted Services | G102: 0 | H102: 0 | I102: 10445 | J102: 0 | K102: 0 | L102: 0 | M102: 0 | N102: 0 | O102: 0 | P102: 0 | Q102: 0 | R102: 0 | S102: 0 | T102: 0 | U102: 0 | V102: 10445 | W102: C111
A103: 2021 | B103: 409112 | C103: 409 | D103: C | E103: 112 | F103: Travel and other expenses | G103: 0 | H103: 0 | I103: 0 | J103: 0 | K103: 0 | L103: 0 | M103: 0 | N103: 0 | O103: 0 | P103: 0 | Q103: 0 | R103: 0 | S103: 0 | T103: 0 | U103: 0 | V103: 0 | W103: C112
A104: 2021 | B104: 409120 | C104: 409 | D104: C | E104: 120 | F104: Subtotal - School Leaders | G104: 0 | H104: 0 | I104: 120640 | J104: 0 | K104: 0 | L104: 0 | M104: 0 | N104: 0 | O104: 0 | P104: 0 | Q104: 0 | R104: 0 | S104: 0 | T104: 0 | U104: 0 | V104: 120640 | W104: C120
A105: 2021 | B105: 409121 | C105: 409 | D105: C | E105: 121 | F105: Salaries - Professional | G105: 0 | H105: 0 | I105: 120640 | J105: 0 | K105: 0 | L105: 0 | M105: 0 | N105: 0 | O105: 0 | P105: 0 | Q105: 0 | R105: 0 | S105: 0 | T105: 0 | U105: 0 | V105: 120640 | W105: C121
A106: 2021 | B106: 409122 | C106: 409 | D106: C | E106: 122 | F106: Contracted Services | G106: 0 | H106: 0 | I106: 0 | J106: 0 | K106: 0 | L106: 0 | M106: 0 | N106: 0 | O106: 0 | P106: 0 | Q106: 0 | R106: 0 | S106: 0 | T106: 0 | U106: 0 | V106: 0 | W106: C122
A107: 2021 | B107: 409120a | C107: 409 | D107: C | E107: 120a | F107: Subtotal - Non-Instructional Administration and Support Staff | G107: 0 | H107: 0 | I107: 424370 | J107: 0 | K107: 0 | L107: 61000 | M107: 0 | N107: 0 | O107: 0 | P107: 0 | Q107: 0 | R107: 0 | S107: 0 | T107: 57261 | U107: 0 | V107: 542631 | W107: C120a
A108: 2021 | B108: 409121a | C108: 409 | D108: C | E108: 121a | F108: Salaries - Professional and Support Staff | G108: 0 | H108: 0 | I108: 172217 | J108: 0 | K108: 0 | L108: 0 | M108: 0 | N108: 0 | O108: 0 | P108: 0 | Q108: 0 | R108: 0 | S108: 0 | T108: 48738 | U108: 0 | V108: 220955 | W108: C121a
A109: 2021 | B109: 409122a | C109: 409 | D109: C | E109: 122a | F109: Contracted Services - Professional and Support Staff | G109: 0 | H109: 0 | I109: 200604 | J109: 0 | K109: 0 | L109: 61000 | M109: 0 | N109: 0 | O109: 0 | P109: 0 | Q109: 0 | R109: 0 | S109: 0 | T109: 0 | U109: 0 | V109: 261604 | W109: C122a
A110: 2021 | B110: 409123 | C110: 409 | D110: C | E110: 123 | F110: Recruitment/Advertising | G110: 0 | H110: 0 | I110: 14811 | J110: 0 | K110: 0 | L110: 0 | M110: 0 | N110: 0 | O110: 0 | P110: 0 | Q110: 0 | R110: 0 | S110: 0 | T110: 8523 | U110: 0 | V110: 23334 | W110: C123
A111: 2021 | B111: 409124 | C111: 409 | D111: C | E111: 124 | F111: Travel, Dues, and other expenses | G111: 0 | H111: 0 | I111: 17462 | J111: 0 | K111: 0 | L111: 0 | M111: 0 | N111: 0 | O111: 0 | P111: 0 | Q111: 0 | R111: 0 | S111: 0 | T111: 0 | U111: 0 | V111: 17462 | W111: C124
A112: 2021 | B112: 409125 | C112: 409 | D112: C | E112: 125 | F112: Supplies and Materials | G112: 0 | H112: 0 | I112: 19276 | J112: 0 | K112: 0 | L112: 0 | M112: 0 | N112: 0 | O112: 0 | P112: 0 | Q112: 0 | R112: 0 | S112: 0 | T112: 0 | U112: 0 | V112: 19276 | W112: C125
A113: 2021 | B113: 409126 | C113: 409 | D113: C | E113: 126 | F113: Depreciation - non instructional | G113: 0 | H113: 0 | I113: 0 | J113: 0 | K113: 0 | L113: 0 | M113: 0 | N113: 0 | O113: 0 | P113: 0 | Q113: 0 | R113: 0 | S113: 0 | T113: 0 | U113: 0 | V113: 0 | W113: C126
A114: 2021 | B114: 409130 | C114: 409 | D114: C | E114: 130 | F114: Legal | G114: 0 | H114: 0 | I114: 24893 | J114: 0 | K114: 0 | L114: 0 | M114: 0 | N114: 0 | O114: 0 | P114: 0 | Q114: 0 | R114: 0 | S114: 0 | T114: 0 | U114: 0 | V114: 24893 | W114: C130
A115: 2021 | B115: 409131 | C115: 409 | D115: C | E115: 131 | F115: Salaries - Professional | G115: 0 | H115: 0 | I115: 0 | J115: 0 | K115: 0 | L115: 0 | M115: 0 | N115: 0 | O115: 0 | P115: 0 | Q115: 0 | R115: 0 | S115: 0 | T115: 0 | U115: 0 | V115: 0 | W115: C131
A116: 2021 | B116: 409132 | C116: 409 | D116: C | E116: 132 | F116: Contracted Services | G116: 0 | H116: 0 | I116: 24893 | J116: 0 | K116: 0 | L116: 0 | M116: 0 | N116: 0 | O116: 0 | P116: 0 | Q116: 0 | R116: 0 | S116: 0 | T116: 0 | U116: 0 | V116: 24893 | W116: C132
A117: 2021 | B117: 409133 | C117: 409 | D117: C | E117: 133 | F117: Legal Settlements | G117: 0 | H117: 0 | I117: 0 | J117: 0 | K117: 0 | L117: 0 | M117: 0 | N117: 0 | O117: 0 | P117: 0 | Q117: 0 | R117: 0 | S117: 0 | T117: 0 | U117: 0 | V117: 0 | W117: C133
A118: 2021 | B118: 409170 | C118: 409 | D118: C | E118: 170 | F118: Subtotal - Development (Private) | G118: 0 | H118: 0 | I118: 115061 | J118: 0 | K118: 0 | L118: 0 | M118: 0 | N118: 0 | O118: 0 | P118: 0 | Q118: 0 | R118: 0 | S118: 0 | T118: 0 | U118: 0 | V118: 115061 | W118: C170
A119: 2021 | B119: 409170a | C119: 409 | D119: C | E119: 170a | F119: Salaries - Professional - Private | G119: 0 | H119: 0 | I119: 72450 | J119: 0 | K119: 0 | L119: 0 | M119: 0 | N119: 0 | O119: 0 | P119: 0 | Q119: 0 | R119: 0 | S119: 0 | T119: 0 | U119: 0 | V119: 72450 | W119: C170a
A120: 2021 | B120: 409170b | C120: 409 | D120: C | E120: 170b | F120: Contracted Services - Private | G120: 0 | H120: 0 | I120: 19533 | J120: 0 | K120: 0 | L120: 0 | M120: 0 | N120: 0 | O120: 0 | P120: 0 | Q120: 0 | R120: 0 | S120: 0 | T120: 0 | U120: 0 | V120: 19533 | W120: C170b
A121: 2021 | B121: 409170c | C121: 409 | D121: C | E121: 170c | F121: Fundraising - Private | G121: 0 | H121: 0 | I121: 23078 | J121: 0 | K121: 0 | L121: 0 | M121: 0 | N121: 0 | O121: 0 | P121: 0 | Q121: 0 | R121: 0 | S121: 0 | T121: 0 | U121: 0 | V121: 23078 | W121: C170c
A122: 2021 | B122: 409171 | C122: 409 | D122: C | E122: 171 | F122: Subtotal - Development (Public) | G122: 0 | H122: 0 | I122: 0 | J122: 0 | K122: 0 | L122: 0 | M122: 0 | N122: 0 | O122: 0 | P122: 0 | Q122: 0 | R122: 0 | S122: 0 | T122: 0 | U122: 0 | V122: 0 | W122: C171
A123: 2021 | B123: 409171a | C123: 409 | D123: C | E123: 171a | F123: Salaries - Professional - Public | G123: 0 | H123: 0 | I123: 0 | J123: 0 | K123: 0 | L123: 0 | M123: 0 | N123: 0 | O123: 0 | P123: 0 | Q123: 0 | R123: 0 | S123: 0 | T123: 0 | U123: 0 | V123: 0 | W123: C171a
A124: 2021 | B124: 409171b | C124: 409 | D124: C | E124: 171b | F124: Contracted Services - Public | G124: 0 | H124: 0 | I124: 0 | J124: 0 | K124: 0 | L124: 0 | M124: 0 | N124: 0 | O124: 0 | P124: 0 | Q124: 0 | R124: 0 | S124: 0 | T124: 0 | U124: 0 | V124: 0 | W124: C171b
A125: 2021 | B125: 409200 | C125: 409 | D125: C | E125: 200 | F125: Instructional Services | G125: 5097201 | H125: 1177667 | I125: -30090 | J125: 0 | K125: 49850 | L125: 354000 | M125: 27045 | N125: 0 | O125: 0 | P125: 0 | Q125: 0 | R125: 59925 | S125: 43760 | T125: 766618 | U125: 0 | V125: 7545976 | W125: C200
A126: 2021 | B126: 409210 | C126: 409 | D126: C | E126: 210 | F126: Instructional Subtotal - Instructional Leadership | G126: 977190 | H126: 0 | I126: 0 | J126: 0 | K126: 0 | L126: 0 | M126: 0 | N126: 0 | O126: 0 | P126: 0 | Q126: 0 | R126: 0 | S126: 0 | T126: 40000 | U126: 0 | V126: 1017190 | W126: C210
A127: 2021 | B127: 409211 | C127: 409 | D127: C | E127: 211 | F127: Salaries - Professional | G127: 482833 | H127: 0 | I127: 0 | J127: 0 | K127: 0 | L127: 0 | M127: 0 | N127: 0 | O127: 0 | P127: 0 | Q127: 0 | R127: 0 | S127: 0 | T127: 0 | U127: 0 | V127: 482833 | W127: C211
A128: 2021 | B128: 409212 | C128: 409 | D128: C | E128: 212 | F128: Salaries - Clerical | G128: 382446 | H128: 0 | I128: 0 | J128: 0 | K128: 0 | L128: 0 | M128: 0 | N128: 0 | O128: 0 | P128: 0 | Q128: 0 | R128: 0 | S128: 0 | T128: 0 | U128: 0 | V128: 382446 | W128: C212
A129: 2021 | B129: 409213 | C129: 409 | D129: C | E129: 213 | F129: Contracted Services | G129: 107251 | H129: 0 | I129: 0 | J129: 0 | K129: 0 | L129: 0 | M129: 0 | N129: 0 | O129: 0 | P129: 0 | Q129: 0 | R129: 0 | S129: 0 | T129: 40000 | U129: 0 | V129: 147251 | W129: C213
A130: 2021 | B130: 409214 | C130: 409 | D130: C | E130: 214 | F130: Supplies and Materials | G130: 4660 | H130: 0 | I130: 0 | J130: 0 | K130: 0 | L130: 0 | M130: 0 | N130: 0 | O130: 0 | P130: 0 | Q130: 0 | R130: 0 | S130: 0 | T130: 0 | U130: 0 | V130: 4660 | W130: C214
A131: 2021 | B131: 409215 | C131: 409 | D131: =VLOOKUP(C131, TYPE, 3, FALSE) -> C | E131: 215 | F131: Travel and other expenses | G131: 0 | H131: 0 | I131: 0 | J131: 0 | K131: 0 | L131: 0 | M131: 0 | N131: 0 | O131: 0 | P131: 0 | Q131: 0 | R131: 0 | S131: 0 | T131: 0 | U131: 0 | V131: 0 | W131: C215
A132: 2021 | B132: =C132&E132 -> 409220 | C132: 409 | D132: C | E132: 220 | F132: Instructional Subtotal - Classroom and Specialist Teachers | G132: 3399612 | H132: 466005 | I132: 0 | J132: 0 | K132: 0 | L132: 0 | M132: 0 | N132: 0 | O132: 0 | P132: 0 | Q132: 0 | R132: 0 | S132: 0 | T132: 151000 | U132: 0 | V132: 4016617 | W132: =D132&E132 -> C220
A133: 2021 | B133: 409221 | C133: 409 | D133: C | E133: 221 | F133: Salaries - Teachers, Classroom | G133: 3090395 | H133: 286788 | I133: 0 | J133: 0 | K133: 0 | L133: 0 | M133: 0 | N133: 0 | O133: 0 | P133: 0 | Q133: 0 | R133: 0 | S133: 0 | T133: 21000 | U133: 0 | V133: 3398183 | W133: C221
A134: 2021 | B134: 409222 | C134: 409 | D134: C | E134: 222 | F134: Salaries - Teachers, Specialists | G134: 309217 | H134: 179217 | I134: 0 | J134: 0 | K134: 0 | L134: 0 | M134: 0 | N134: 0 | O134: 0 | P134: 0 | Q134: 0 | R134: 0 | S134: 0 | T134: 130000 | U134: 0 | V134: 618434 | W134: C222
A135: 2021 | B135: 409230 | C135: 409 | D135: C | E135: 230 | F135: Instructional Subtotal - Other Teaching Services | G135: 0 | H135: 549094 | I135: 0 | J135: 0 | K135: 0 | L135: 0 | M135: 0 | N135: 0 | O135: 0 | P135: 0 | Q135: 0 | R135: 12925 | S135: 0 | T135: 350052 | U135: 0 | V135: 912071 | W135: C230
A136: 2021 | B136: 409231 | C136: 409 | D136: C | E136: 231 | F136: Salaries - Professional | G136: 0 | H136: 173158 | I136: 0 | J136: 0 | K136: 0 | L136: 0 | M136: 0 | N136: 0 | O136: 0 | P136: 0 | Q136: 0 | R136: 0 | S136: 0 | T136: 82149 | U136: 0 | V136: 255307 | W136: C231
A137: 2021 | B137: 409232 | C137: 409 | D137: C | E137: 232 | F137: Salaries - Non-clerical Paraprofessionals | G137: 0 | H137: 177010 | I137: 0 | J137: 0 | K137: 0 | L137: 0 | M137: 0 | N137: 0 | O137: 0 | P137: 0 | Q137: 0 | R137: 0 | S137: 0 | T137: 30000 | U137: 0 | V137: 207010 | W137: C232
A138: 2021 | B138: 409233 | C138: 409 | D138: C | E138: 233 | F138: Salaries - Clerical | G138: 0 | H138: 0 | I138: 0 | J138: 0 | K138: 0 | L138: 0 | M138: 0 | N138: 0 | O138: 0 | P138: 0 | Q138: 0 | R138: 0 | S138: 0 | T138: 0 | U138: 0 | V138: 0 | W138: C233
A139: 2021 | B139: 409234 | C139: 409 | D139: C | E139: 234 | F139: Contracted Services | G139: 0 | H139: 198926 | I139: 0 | J139: 0 | K139: 0 | L139: 0 | M139: 0 | N139: 0 | O139: 0 | P139: 0 | Q139: 0 | R139: 12925 | S139: 0 | T139: 237903 | U139: 0 | V139: 449754 | W139: C234
A140: 2021 | B140: 409240 | C140: 409 | D140: C | E140: 240 | F140: Instructional Subtotal - Professional Development | G140: 548812 | H140: 0 | I140: 0 | J140: 0 | K140: 0 | L140: 75000 | M140: 0 | N140: 0 | O140: 0 | P140: 0 | Q140: 0 | R140: 0 | S140: 0 | T140: 81270 | U140: 0 | V140: 705082 | W140: C240
A141: 2021 | B141: 409241 | C141: 409 | D141: C | E141: 241 | F141: Salaries - Professional | G141: 418824 | H141: 0 | I141: 0 | J141: 0 | K141: 0 | L141: 25000 | M141: 0 | N141: 0 | O141: 0 | P141: 0 | Q141: 0 | R141: 0 | S141: 0 | T141: 0 | U141: 0 | V141: 443824 | W141: C241
A142: 2021 | B142: 409242 | C142: 409 | D142: C | E142: 242 | F142: Contracted Services | G142: 82129 | H142: 0 | I142: 0 | J142: 0 | K142: 0 | L142: 50000 | M142: 0 | N142: 0 | O142: 0 | P142: 0 | Q142: 0 | R142: 0 | S142: 0 | T142: 81270 | U142: 0 | V142: 213399 | W142: C242
A143: 2021 | B143: 409243 | C143: 409 | D143: C | E143: 243 | F143: Supplies and Materials | G143: 2887 | H143: 0 | I143: 0 | J143: 0 | K143: 0 | L143: 0 | M143: 0 | N143: 0 | O143: 0 | P143: 0 | Q143: 0 | R143: 0 | S143: 0 | T143: 0 | U143: 0 | V143: 2887 | W143: C243
A144: 2021 | B144: 409244 | C144: 409 | D144: C | E144: 244 | F144: Travel and other expenses | G144: 44972 | H144: 0 | I144: 0 | J144: 0 | K144: 0 | L144: 0 | M144: 0 | N144: 0 | O144: 0 | P144: 0 | Q144: 0 | R144: 0 | S144: 0 | T144: 0 | U144: 0 | V144: 44972 | W144: C244
A145: 2021 | B145: 409250 | C145: 409 | D145: C | E145: 250 | F145: Instructional Subtotal - Guidance, Psychological & Testing | G145: 0 | H145: 162568 | I145: 0 | J145: 0 | K145: 0 | L145: 0 | M145: 27045 | N145: 0 | O145: 0 | P145: 0 | Q145: 0 | R145: 0 | S145: 0 | T145: 33600 | U145: 0 | V145: 223213 | W145: C250
A146: 2021 | B146: 409251 | C146: 409 | D146: C | E146: 251 | F146: Salaries - Professional | G146: 0 | H146: 136016 | I146: 0 | J146: 0 | K146: 0 | L146: 0 | M146: 27045 | N146: 0 | O146: 0 | P146: 0 | Q146: 0 | R146: 0 | S146: 0 | T146: 0 | U146: 0 | V146: 163061 | W146: C251
A147: 2021 | B147: 409252 | C147: 409 | D147: C | E147: 252 | F147: Salaries - Clerical | G147: 0 | H147: 0 | I147: 0 | J147: 0 | K147: 0 | L147: 0 | M147: 0 | N147: 0 | O147: 0 | P147: 0 | Q147: 0 | R147: 0 | S147: 0 | T147: 0 | U147: 0 | V147: 0 | W147: C252
A148: 2021 | B148: 409253 | C148: 409 | D148: C | E148: 253 | F148: Contracted Services | G148: 0 | H148: 13200 | I148: 0 | J148: 0 | K148: 0 | L148: 0 | M148: 0 | N148: 0 | O148: 0 | P148: 0 | Q148: 0 | R148: 0 | S148: 0 | T148: 33600 | U148: 0 | V148: 46800 | W148: C253
A149: 2021 | B149: 409254 | C149: 409 | D149: C | E149: 254 | F149: Supplies and Materials | G149: 0 | H149: 13352 | I149: 0 | J149: 0 | K149: 0 | L149: 0 | M149: 0 | N149: 0 | O149: 0 | P149: 0 | Q149: 0 | R149: 0 | S149: 0 | T149: 0 | U149: 0 | V149: 13352 | W149: C254
A150: 2021 | B150: 409260 | C150: 409 | D150: C | E150: 260 | F150: Instructional Subtotal - Materials, Equipment & Technology | G150: 171587 | H150: 0 | I150: -30090 | J150: 0 | K150: 49850 | L150: 279000 | M150: 0 | N150: 0 | O150: 0 | P150: 0 | Q150: 0 | R150: 47000 | S150: 43760 | T150: 110696 | U150: 0 | V150: 671803 | W150: C260
A151: 2021 | B151: 409261 | C151: 409 | D151: C | E151: 261 | F151: Textbooks & Related Media/Materials | G151: 3304 | H151: 0 | I151: 0 | J151: 0 | K151: 0 | L151: 60000 | M151: 0 | N151: 0 | O151: 0 | P151: 0 | Q151: 0 | R151: 0 | S151: 0 | T151: 15547 | U151: 0 | V151: 78851 | W151: C261
A152: 2021 | B152: 409262 | C152: 409 | D152: C | E152: 262 | F152: Other Instructional Materials | G152: 0 | H152: 0 | I152: -30090 | J152: 0 | K152: 0 | L152: 100000 | M152: 0 | N152: 0 | O152: 0 | P152: 0 | Q152: 0 | R152: 0 | S152: 0 | T152: 20526 | U152: 0 | V152: 90436 | W152: C262
A153: 2021 | B153: 409263 | C153: 409 | D153: C | E153: 263 | F153: Instructional Equipment | G153: 11433 | H153: 0 | I153: 0 | J153: 0 | K153: 0 | L153: 0 | M153: 0 | N153: 0 | O153: 0 | P153: 0 | Q153: 0 | R153: 0 | S153: 0 | T153: 0 | U153: 0 | V153: 11433 | W153: C263
A154: 2021 | B154: 409264 | C154: 409 | D154: C | E154: 264 | F154: General Supplies | G154: 188230 | H154: 0 | I154: 0 | J154: 0 | K154: 0 | L154: 0 | M154: 0 | N154: 0 | O154: 0 | P154: 0 | Q154: 0 | R154: 0 | S154: 0 | T154: 24784 | U154: 0 | V154: 213014 | W154: C264
A155: 2021 | B155: 409265 | C155: 409 | D155: C | E155: 265 | F155: Other Instructional Services | G155: 0 | H155: 0 | I155: 0 | J155: 0 | K155: 0 | L155: 0 | M155: 0 | N155: 0 | O155: 0 | P155: 0 | Q155: 0 | R155: 0 | S155: 0 | T155: 0 | U155: 0 | V155: 0 | W155: C265
A156: 2021 | B156: 409266 | C156: 409 | D156: C | E156: 266 | F156: Classroom Instructional Technology Hardware | G156: -224271 | H156: 0 | I156: 0 | J156: 0 | K156: 49850 | L156: 119000 | M156: 0 | N156: 0 | O156: 0 | P156: 0 | Q156: 0 | R156: 47000 | S156: 43760 | T156: 10957 | U156: 0 | V156: 46296 | W156: C266
A157: 2021 | B157: 409267 | C157: 409 | D157: C | E157: 267 | F157: Other Instructional Technology Hardware | G157: 0 | H157: 0 | I157: 0 | J157: 0 | K157: 0 | L157: 0 | M157: 0 | N157: 0 | O157: 0 | P157: 0 | Q157: 0 | R157: 0 | S157: 0 | T157: 0 | U157: 0 | V157: 0 | W157: C267
A158: 2021 | B158: 409268a | C158: 409 | D158: C | E158: 268a | F158: Classroom Instructional Software | G158: 34757 | H158: 0 | I158: 0 | J158: 0 | K158: 0 | L158: 0 | M158: 0 | N158: 0 | O158: 0 | P158: 0 | Q158: 0 | R158: 0 | S158: 0 | T158: 38882 | U158: 0 | V158: 73639 | W158: C268a
A159: 2021 | B159: 409268b | C159: 409 | D159: C | E159: 268b | F159: Other Instructional Software | G159: 0 | H159: 0 | I159: 0 | J159: 0 | K159: 0 | L159: 0 | M159: 0 | N159: 0 | O159: 0 | P159: 0 | Q159: 0 | R159: 0 | S159: 0 | T159: 0 | U159: 0 | V159: 0 | W159: C268b
A160: 2021 | B160: 409269 | C160: 409 | D160: C | E160: 269 | F160: Depreciation for Furniture, Equipment & Technology | G160: 158134 | H160: 0 | I160: 0 | J160: 0 | K160: 0 | L160: 0 | M160: 0 | N160: 0 | O160: 0 | P160: 0 | Q160: 0 | R160: 0 | S160: 0 | T160: 0 | U160: 0 | V160: 158134 | W160: C269
A161: 2021 | B161: 409300 | C161: 409 | D161: C | E161: 300 | F161: Pupil Services | G161: 422807 | H161: 0 | I161: 287380 | J161: 2786 | K161: 0 | L161: 50000 | M161: 0 | N161: 0 | O161: 0 | P161: 0 | Q161: 0 | R161: 51300 | S161: 0 | T161: 312897 | U161: 0 | V161: 1127170 | W161: C300
A162: 2021 | B162: 409310 | C162: 409 | D162: C | E162: 310 | F162: Health Services | G162: 0 | H162: 0 | I162: 112035 | J162: 0 | K162: 0 | L162: 50000 | M162: 0 | N162: 0 | O162: 0 | P162: 0 | Q162: 0 | R162: 51300 | S162: 0 | T162: 0 | U162: 0 | V162: 213335 | W162: C310
A163: 2021 | B163: 409315 | C163: 409 | D163: C | E163: 315 | F163: Health Services - Contracted | G163: 0 | H163: 0 | I163: 29500 | J163: 0 | K163: 0 | L163: 0 | M163: 0 | N163: 0 | O163: 0 | P163: 0 | Q163: 0 | R163: 0 | S163: 0 | T163: 10500 | U163: 0 | V163: 40000 | W163: C315
A164: 2021 | B164: 409320 | C164: 409 | D164: C | E164: 320 | F164: Athletic Services (including Transportation) | G164: 0 | H164: 0 | I164: 0 | J164: 0 | K164: 0 | L164: 0 | M164: 0 | N164: 0 | O164: 0 | P164: 0 | Q164: 0 | R164: 0 | S164: 0 | T164: 0 | U164: 0 | V164: 0 | W164: C320
A165: 2021 | B165: 409325 | C165: 409 | D165: C | E165: 325 | F165: Athletic Services (including Transportation) - Contracted | G165: 0 | H165: 0 | I165: 0 | J165: 0 | K165: 0 | L165: 0 | M165: 0 | N165: 0 | O165: 0 | P165: 0 | Q165: 0 | R165: 0 | S165: 0 | T165: 0 | U165: 0 | V165: 0 | W165: C325
A166: 2021 | B166: 409330 | C166: 409 | D166: C | E166: 330 | F166: Food Services | G166: 0 | H166: 0 | I166: 91946 | J166: 0 | K166: 0 | L166: 0 | M166: 0 | N166: 0 | O166: 0 | P166: 0 | Q166: 0 | R166: 0 | S166: 0 | T166: 0 | U166: 0 | V166: 91946 | W166: C330
A167: 2021 | B167: 409335 | C167: 409 | D167: C | E167: 335 | F167: Food Services - Contracted | G167: 0 | H167: 0 | I167: 4162 | J167: 2786 | K167: 0 | L167: 0 | M167: 0 | N167: 0 | O167: 0 | P167: 0 | Q167: 0 | R167: 0 | S167: 0 | T167: 302397 | U167: 0 | V167: 309345 | W167: C335
A168: 2021 | B168: 409340 | C168: 409 | D168: C | E168: 340 | F168: Student Transportation (to and from school) | G168: 0 | H168: 0 | I168: 0 | J168: 0 | K168: 0 | L168: 0 | M168: 0 | N168: 0 | O168: 0 | P168: 0 | Q168: 0 | R168: 0 | S168: 0 | T168: 0 | U168: 0 | V168: 0 | W168: C340
A169: 2021 | B169: 409345 | C169: 409 | D169: C | E169: 345 | F169: Student Transportation (to and from school) - Contracted | G169: 422807 | H169: 0 | I169: 0 | J169: 0 | K169: 0 | L169: 0 | M169: 0 | N169: 0 | O169: 0 | P169: 0 | Q169: 0 | R169: 0 | S169: 0 | T169: 0 | U169: 0 | V169: 422807 | W169: C345
A170: 2021 | B170: 409350 | C170: 409 | D170: C | E170: 350 | F170: Depreciation of Transportation Vehicles | G170: 0 | H170: 0 | I170: 0 | J170: 0 | K170: 0 | L170: 0 | M170: 0 | N170: 0 | O170: 0 | P170: 0 | Q170: 0 | R170: 0 | S170: 0 | T170: 0 | U170: 0 | V170: 0 | W170: C350
A171: 2021 | B171: 409360 | C171: 409 | D171: C | E171: 360 | F171: Other Student Activities | G171: 0 | H171: 0 | I171: 49737 | J171: 0 | K171: 0 | L171: 0 | M171: 0 | N171: 0 | O171: 0 | P171: 0 | Q171: 0 | R171: 0 | S171: 0 | T171: 0 | U171: 0 | V171: 49737 | W171: C360
A172: 2021 | B172: 409400 | C172: 409 | D172: C | E172: 400 | F172: Operation & Maintenance of Plant | G172: 0 | H172: 0 | I172: 776962 | J172: 0 | K172: 0 | L172: 0 | M172: 0 | N172: 0 | O172: 0 | P172: 0 | Q172: 0 | R172: 22700 | S172: 0 | T172: 0 | U172: 0 | V172: 799662 | W172: C400
A173: 2021 | B173: 409410 | C173: 409 | D173: C | E173: 410 | F173: Operation & Maintenance of Buildings and Grounds | G173: 0 | H173: 0 | I173: 493758 | J173: 0 | K173: 0 | L173: 0 | M173: 0 | N173: 0 | O173: 0 | P173: 0 | Q173: 0 | R173: 22700 | S173: 0 | T173: 0 | U173: 0 | V173: 516458 | W173: C410
A174: 2021 | B174: 409420 | C174: 409 | D174: C | E174: 420 | F174: Utilities | G174: 0 | H174: 0 | I174: 190056 | J174: 0 | K174: 0 | L174: 0 | M174: 0 | N174: 0 | O174: 0 | P174: 0 | Q174: 0 | R174: 0 | S174: 0 | T174: 0 | U174: 0 | V174: 190056 | W174: C420
A175: 2021 | B175: 409430 | C175: 409 | D175: C | E175: 430 | F175: Maintenance of Equipment | G175: 0 | H175: 0 | I175: 5638 | J175: 0 | K175: 0 | L175: 0 | M175: 0 | N175: 0 | O175: 0 | P175: 0 | Q175: 0 | R175: 0 | S175: 0 | T175: 0 | U175: 0 | V175: 5638 | W175: C430
A176: 2021 | B176: 409440 | C176: 409 | D176: C | E176: 440 | F176: Networking and Telecommunications | G176: 0 | H176: 0 | I176: 87510 | J176: 0 | K176: 0 | L176: 0 | M176: 0 | N176: 0 | O176: 0 | P176: 0 | Q176: 0 | R176: 0 | S176: 0 | T176: 0 | U176: 0 | V176: 87510 | W176: C440
A177: 2021 | B177: 409500 | C177: 409 | D177: C | E177: 500 | F177: Fixed Charges | G177: 0 | H177: 0 | I177: 2919962 | J177: 0 | K177: 0 | L177: 0 | M177: 0 | N177: 0 | O177: 0 | P177: 0 | Q177: 0 | R177: 13000 | S177: 0 | T177: 67882 | U177: 0 | V177: 3000844 | W177: C500
A178: 2021 | B178: 409510 | C178: 409 | D178: C | E178: 510 | F178: Employee Retirement & Taxes | G178: 0 | H178: 0 | I178: 2091822 | J178: 0 | K178: 0 | L178: 0 | M178: 0 | N178: 0 | O178: 0 | P178: 0 | Q178: 0 | R178: 0 | S178: 0 | T178: 17882 | U178: 0 | V178: 2109704 | W178: C510
A179: 2021 | B179: 409520 | C179: 409 | D179: C | E179: 520 | F179: Fringe Benefits | G179: 0 | H179: 0 | I179: 779949 | J179: 0 | K179: 0 | L179: 0 | M179: 0 | N179: 0 | O179: 0 | P179: 0 | Q179: 0 | R179: 0 | S179: 0 | T179: 0 | U179: 0 | V179: 779949 | W179: C520
A180: 2021 | B180: 409530 | C180: 409 | D180: C | E180: 530 | F180: Insurance (non-employee) | G180: 0 | H180: 0 | I180: 45077 | J180: 0 | K180: 0 | L180: 0 | M180: 0 | N180: 0 | O180: 0 | P180: 0 | Q180: 0 | R180: 0 | S180: 0 | T180: 0 | U180: 0 | V180: 45077 | W180: C530
A181: 2021 | B181: 409550 | C181: 409 | D181: C | E181: 550 | F181: Rental/Lease of Equipment | G181: 0 | H181: 0 | I181: 3114 | J181: 0 | K181: 0 | L181: 0 | M181: 0 | N181: 0 | O181: 0 | P181: 0 | Q181: 0 | R181: 13000 | S181: 0 | T181: 50000 | U181: 0 | V181: 66114 | W181: C550
A182: 2021 | B182: 409560 | C182: 409 | D182: C | E182: 560 | F182: Short-Term Interest | G182: 0 | H182: 0 | I182: 0 | J182: 0 | K182: 0 | L182: 0 | M182: 0 | N182: 0 | O182: 0 | P182: 0 | Q182: 0 | R182: 0 | S182: 0 | T182: 0 | U182: 0 | V182: 0 | W182: C560
A183: 2021 | B183: 409600 | C183: 409 | D183: C | E183: 600 | F183: Community Services | G183: 0 | H183: 0 | I183: 0 | J183: 0 | K183: 0 | L183: 0 | M183: 0 | N183: 0 | O183: 0 | P183: 0 | Q183: 0 | R183: 0 | S183: 0 | T183: 0 | U183: 0 | V183: 0 | W183: C600
A184: 2021 | B184: 409610 | C184: 409 | D184: C | E184: 610 | F184: Dissemination Activities | G184: 0 | H184: 0 | I184: 0 | J184: 0 | K184: 0 | L184: 0 | M184: 0 | N184: 0 | O184: 0 | P184: 0 | Q184: 0 | R184: 0 | S184: 0 | T184: 0 | U184: 0 | V184: 0 | W184: C610
A185: 2021 | B185: 409620 | C185: 409 | D185: C | E185: 620 | F185: Civic Activities | G185: 0 | H185: 0 | I185: 0 | J185: 0 | K185: 0 | L185: 0 | M185: 0 | N185: 0 | O185: 0 | P185: 0 | Q185: 0 | R185: 0 | S185: 0 | T185: 0 | U185: 0 | V185: 0 | W185: C620
A186: 2021 | B186: 409700 | C186: 409 | D186: C | E186: 700 | F186: Non-Operating / Capital Facilities Costs | G186: 0 | H186: 0 | I186: 1695081 | J186: 0 | K186: 0 | L186: 0 | M186: 0 | N186: 0 | O186: 0 | P186: 0 | Q186: 0 | R186: 0 | S186: 0 | T186: 0 | U186: 0 | V186: 1695081 | W186: C700
A187: 2021 | B187: 409720 | C187: 409 | D187: C | E187: 720 | F187: Long-Term Interest, facilities related | G187: 0 | H187: 0 | I187: 0 | J187: 0 | K187: 0 | L187: 0 | M187: 0 | N187: 0 | O187: 0 | P187: 0 | Q187: 0 | R187: 0 | S187: 0 | T187: 0 | U187: 0 | V187: 0 | W187: C720
A188: 2021 | B188: 409725 | C188: 409 | D188: C | E188: 725 | F188: Long-Term Interest, non-facilities related | G188: 0 | H188: 0 | I188: 0 | J188: 0 | K188: 0 | L188: 0 | M188: 0 | N188: 0 | O188: 0 | P188: 0 | Q188: 0 | R188: 0 | S188: 0 | T188: 0 | U188: 0 | V188: 0 | W188: C725
A189: 2021 | B189: 409730 | C189: 409 | D189: C | E189: 730 | F189: Other costs related to capital facilities acquisition | G189: 0 | H189: 0 | I189: 0 | J189: 0 | K189: 0 | L189: 0 | M189: 0 | N189: 0 | O189: 0 | P189: 0 | Q189: 0 | R189: 0 | S189: 0 | T189: 0 | U189: 0 | V189: 0 | W189: C730
A190: 2021 | B190: 409740 | C190: 409 | D190: C | E190: 740 | F190: Rental/Lease of Buildings & Grounds | G190: 0 | H190: 0 | I190: 1695081 | J190: 0 | K190: 0 | L190: 0 | M190: 0 | N190: 0 | O190: 0 | P190: 0 | Q190: 0 | R190: 0 | S190: 0 | T190: 0 | U190: 0 | V190: 1695081 | W190: C740
A191: 2021 | B191: 409750 | C191: 409 | D191: C | E191: 750 | F191: Depreciation of Equipment, Building, & Grounds | G191: 0 | H191: 0 | I191: 0 | J191: 0 | K191: 0 | L191: 0 | M191: 0 | N191: 0 | O191: 0 | P191: 0 | Q191: 0 | R191: 0 | S191: 0 | T191: 0 | U191: 0 | V191: 0 | W191: C750
A192: 2021 | B192: 409760 | C192: 409 | D192: C | E192: 760 | F192: Bad debt / loss on disposal of assets | G192: 0 | H192: 0 | I192: 0 | J192: 0 | K192: 0 | L192: 0 | M192: 0 | N192: 0 | O192: 0 | P192: 0 | Q192: 0 | R192: 0 | S192: 0 | T192: 0 | U192: 0 | V192: 0 | W192: C760
A193: 2021 | B193: 409800 | C193: 409 | D193: C | E193: 800 | F193: TOTALS | G193: 5520008 | H193: 1177667 | I193: 6344704 | J193: 2786 | K193: 49850 | L193: 465000 | M193: 27045 | N193: 0 | O193: 0 | P193: 0 | Q193: 0 | R193: 146925 | S193: 43760 | T193: 1204658 | U193: 0 | V193: 14982403 | W193: C800
A194: 2021 | B194: 409910 | C194: 409 | D194: C | E194: 910 | F194: Reference: Capitalized Expenditures | G194: 0 | H194: 0 | I194: 0 | J194: 0 | K194: 0 | L194: 0 | M194: 0 | N194: 0 | O194: 0 | P194: 0 | Q194: 0 | R194: 0 | S194: 0 | T194: 0 | U194: 0 | V194: 0 | W194: C910
A195: 2021 | B195: 409920 | C195: 409 | D195: =VLOOKUP(C195, TYPE, 3, FALSE) -> C | E195: 920 | F195: Reference: Deferrals/Carryovers | G195: 0 | H195: 0 | I195: 0 | J195: 0 | K195: 0 | L195: 0 | M195: 0 | N195: 0 | O195: 0 | P195: 0 | Q195: 0 | R195: 0 | S195: 0 | T195: 0 | U195: 0 | V195: 0 | W195: C920
A196: 2021 | B196: =C196&E196 -> 409900 | C196: 409 | D196: C | E196: 900 | F196: Reference: Totals | G196: 0 | H196: 0 | I196: 6344704 | J196: 2786 | K196: 49850 | L196: 465000 | M196: 27045 | N196: 0 | O196: 0 | P196: 0 | Q196: 0 | R196: 146925 | S196: 43760 | T196: 1204658 | U196: 0 | V196: 14982403 | W196: =D196&E196 -> C900
A197: 2021 | B197: 410100 | C197: 410 | D197: C | E197: 100 | F197: Administration | G197: 0 | H197: 0 | I197: 1947417.393 | J197: 0 | K197: 0 | L197: 0 | M197: 13557.69 | N197: 0 | O197: 0 | P197: 0 | Q197: 0 | R197: 0 | S197: 0 | T197: 159387.22 | U197: 3358.47 | V197: 2123720.773 | W197: C100
A198: 2021 | B198: 410110 | C198: 410 | D198: C | E198: 110 | F198: Subtotal - Board of Trustees | G198: 0 | H198: 0 | I198: 1192 | J198: 0 | K198: 0 | L198: 0 | M198: 0 | N198: 0 | O198: 0 | P198: 0 | Q198: 0 | R198: 0 | S198: 0 | T198: 0 | U198: 0 | V198: 1192 | W198: C110
A199: 2021 | B199: 410111 | C199: 410 | D199: C | E199: 111 | F199: Contracted Services | G199: 0 | H199: 0 | I199: 0 | J199: 0 | K199: 0 | L199: 0 | M199: 0 | N199: 0 | O199: 0 | P199: 0 | Q199: 0 | R199: 0 | S199: 0 | T199: 0 | U199: 0 | V199: 0 | W199: C111
A200: 2021 | B200: 410112 | C200: 410 | D200: C | E200: 112 | F200: Travel and other expenses | G200: 0 | H200: 0 | I200: 1192 | J200: 0 | K200: 0 | L200: 0 | M200: 0 | N200: 0 | O200: 0 | P200: 0 | Q200: 0 | R200: 0 | S200: 0 | T200: 0 | U200: 0 | V200: 1192 | W200: C112
... 2050 more rows

Sheet FACTS (hidden)
A1: LEA | B1: Charter School | C1: Type | D1: Acct. Cohort | E1: Acct. Liaison | F1: Location | G1: Charter Status 7/1/2018 | H1: Charter Granted | I1: Counts Toward Numeric Cap | J1: Year Opened (Fall) | K1: FY19 Years of Operation | L1: 1st Charter Renewal | M1: 2nd Charter Renewal | N1: 3rd Charter Renewal | O1: 4th Charter Renewal Year | P1: 1st Charter Renewal | Q1: 2nd Charter Renewal | R1: 3rd Charter Renewal | S1: 4th Charter Renewal | T1: Last Charter Renewal | U1: Charter Expires | V1: Charter Expires | W1: Regional | X1: EMO | Y1: Max Grade Span | Z1: Max. Enroll # | AA1: Location Type | AB1: School Type | AC1: If Closed: School Year of Closure | AD1: Closure type
A2: 445 | B2: Abby Kelley Foster Charter Public School | C2: C | D2: 2 | F2: Worcester | G2: No Status | H2: 1998 | I2: Yes | J2: 1998 | K2: 21 | L2: 2003 | M2: 2008 | N2: 2013 | O2: 2018 | P2: 2003 | Q2: 2008 | R2: 2013 | S2: 2018 | T2: 2018 | U2: 2023 | V2: 2023 | W2: Yes | X2: Former | Y2: K-12 | Z2: 1426 | AA2: Urban | AB2: K12 | AC2: NA
A3: 412 | B3: Academy of the Pacific Rim Charter Public School | C3: C | D3: 1 | F3: Boston | G3: No Status | H3: 1995 | I3: Yes | J3: 1997 | K3: 22 | L3: 2002 | M3: 2007 | N3: 2012 | O3: 2017 | P3: 2002 | Q3: 2007 | R3: 2012 | S3: 2017 | T3: 2017 | U3: 2022 | V3: 2022 | W3: No | X3: No | Y3: 05-12 | Z3: 545 | AA3: Boston | AB3: MSHS | AC3: NA
A4: 430 | B4: Advanced Math and Science Academy Charter School | C4: C | D4: 4 | F4: Marlborough | G4: No Status | H4: 2004 | I4: Yes | J4: 2005 | K4: 14 | L4: 2010 | M4: 2015 | N4: 2020 | O4: 2025 | P4: 2010 | Q4: 2015 | R4: NA | S4: NA | T4: 2015 | U4: 2020 | V4: 2020 | W4: Yes | X4: No | Y4: 06-12 | Z4: 966 | AA4: Suburb | AB4: MSHS | AC4: NA
A5: 409 | B5: Alma del Mar Charter School | C5: C | D5: 5 | F5: New Bedford | G5: No Status | H5: 2011 | I5: Yes | J5: 2011 | K5: 8 | L5: 2016 | M5: 2021 | N5: 2026 | O5: 2031 | P5: 2016 | Q5: NA | R5: NA | S5: NA | T5: 2016 | U5: 2021 | V5: 2021 | W5: No | X5: No | Y5: K-08 | Z5: 450 | AA5: Urban | AB5: ESMS | AC5: NA
A6: 3509 | B6: Argosy Collegiate Charter School | C6: C | D6: 3 | F6: Fall River | G6: No Status | H6: 2014 | I6: No | J6: 2014 | K6: 5 | L6: 2019 | M6: 2024 | N6: 2029 | O6: 2034 | P6: NA | Q6: NA | R6: NA | S6: NA | T6: 0 | U6: 2019 | V6: 2019 | W6: No | X6: No | Y6: 06-12 | Z6: 644 | AA6: Urban | AB6: MSHS | AC6: NA
A7: 491 | B7: Atlantis Charter School | C7: C | D7: 4 | F7: Fall River | G7: No Status | H7: 1994 | I7: Yes | J7: 1995 | K7: 24 | L7: 2000 | M7: 2005 | N7: 2010 | O7: 2015 | P7: 2000 | Q7: 2005 | R7: 2010 | S7: 2015 | T7: 2015 | U7: 2020 | V7: 2020 | W7: No | X7: No | Y7: K-12 | Z7: 1378 | AA7: Urban | AB7: K12 | AC7: NA
A8: 427 | B8: Barnstable Community Horace Mann Charter Public School | C8: HM | D8: 3 | F8: Barnstable | G8: No Status | H8: 2004 | I8: Yes | J8: 2004 | K8: 15 | L8: 2009 | M8: 2014 | N8: 2019 | O8: 2024 | P8: 2009 | Q8: 2014 | R8: NA | S8: NA | T8: 2014 | U8: 2019 | V8: 2019 | W8: NA | X8: No | Y8: K-03 | Z8: 475 | AA8: Suburb | AB8: ES | AC8: NA
A9: 3502 | B9: Baystate Academy Charter Public School | C9: C | D9: 2 | F9: Springfield | G9: Conditions | H9: 2012 | I9: No | J9: 2013 | K9: 6 | L9: 2018 | M9: 2023 | N9: 2028 | O9: 2033 | P9: 2018 | Q9: NA | R9: NA | S9: NA | T9: 2018 | U9: 2023 | V9: 2023 | W9: No | X9: No | Y9: 06-12 | Z9: 560 | AA9: Urban | AB9: MSHS | AC9: NA
A10: 420 | B10: Benjamin Banneker Charter Public School | C10: C | D10: 5 | F10: Cambridge | G10: No Status | H10: 1995 | I10: Yes | J10: 1996 | K10: 23 | L10: 2001 | M10: 2006 | N10: 2011 | O10: 2016 | P10: 2001 | Q10: 2006 | R10: 2011 | S10: 2016 | T10: 2016 | U10: 2021 | V10: 2021 | W10: No | X10: No | Y10: PK-06 | Z10: 350 | AA10: Urban | AB10: ESMS | AC10: NA
A11: 447 | B11: Benjamin Franklin Classical Charter Public School | C11: C | D11: 4 | F11: Franklin | G11: No Status | H11: 1994 | I11: Yes | J11: 1995 | K11: 24 | L11: 2000 | M11: 2005 | N11: 2010 | O11: 2015 | P11: 2000 | Q11: 2005 | R11: 2010 | S11: 2015 | T11: 2015 | U11: 2020 | V11: 2020 | W11: Yes | X11: No | Y11: K-08 | Z11: 900 | AA11: Suburb | AB11: ESMS | AC11: NA
A12: 3511 | B12: Bentley Academy Charter School | C12: HM | D12: 4 | F12: Salem | G12: No Status | H12: 2015 | I12: Yes | J12: 2015 | K12: 4 | L12: 2020 | M12: 2025 | N12: 2030 | O12: 2035 | P12: NA | Q12: NA | R12: NA | S12: NA | T12: 0 | U12: 2020 | V12: 2020 | W12: No | X12: No | Y12: K-05 | Z12: 350 | AA12: Urban | AB12: ES | AC12: NA
A13: 414 | B13: Berkshire Arts and Technology Charter Public School | C13: C | D13: 3 | F13: Adams | G13: No Status | H13: 2003 | I13: Yes | J13: 2004 | K13: 15 | L13: 2009 | M13: 2014 | N13: 2019 | O13: 2024 | P13: 2009 | Q13: 2014 | R13: NA | S13: NA | T13: 2014 | U13: 2019 | V13: 2019 | W13: Yes | X13: No | Y13: 06-12 | Z13: 363 | AA13: Rural | AB13: MSHS | AC13: NA
A14: 449 | B14: Boston Collegiate Charter School | C14: C | D14: 2 | F14: Boston | G14: No Status | H14: 1998 | I14: Yes | J14: 1998 | K14: 21 | L14: 2003 | M14: 2008 | N14: 2013 | O14: 2018 | P14: 2003 | Q14: 2008 | R14: 2013 | S14: 2018 | T14: 2018 | U14: 2023 | V14: 2023 | W14: No | X14: No | Y14: 05-12 | Z14: 700 | AA14: Boston | AB14: MSHS | AC14: NA
A15: 424 | B15: Boston Day and Evening Academy Charter School | C15: HM | D15: 2 | F15: Boston | G15: No Status | H15: 1998 | I15: Yes | J15: 1998 | K15: 21 | L15: 2003 | M15: 2008 | N15: 2013 | O15: 2018 | P15: 2003 | Q15: 2008 | R15: 2013 | S15: 2018 | T15: 2018 | U15: 2023 | V15: 2023 | W15: NA | X15: No | Y15: 09-12 | Z15: 405 | AA15: Boston | AB15: HS | AC15: NA
A16: 411 | B16: Boston Green Academy Horace Mann Charter School | C16: HM | D16: 5 | F16: Boston | G16: Probation | H16: 2011 | I16: Yes | J16: 2011 | K16: 8 | L16: 2016 | M16: 2021 | N16: 2026 | O16: 2031 | P16: 2016 | Q16: NA | R16: NA | S16: NA | T16: 2016 | U16: 2021 | V16: 2021 | W16: NA | X16: No | Y16: 06-12 | Z16: 595 | AA16: Boston | AB16: MSHS | AC16: NA
A17: 416 | B17: Boston Preparatory Charter Public School | C17: C | D17: 3 | F17: Boston | G17: No Status | H17: 2003 | I17: Yes | J17: 2004 | K17: 15 | L17: 2009 | M17: 2014 | N17: 2019 | O17: 2024 | P17: 2009 | Q17: 2014 | R17: NA | S17: NA | T17: 2014 | U17: 2019 | V17: 2019 | W17: No | X17: No | Y17: 06-12 | Z17: 700 | AA17: Boston | AB17: MSHS | AC17: NA
A18: 481 | B18: Boston Renaissance Charter Public School | C18: C | D18: 4 | F18: Boston | G18: Conditions | H18: 1994 | I18: Yes | J18: 1995 | K18: 24 | L18: 2000 | M18: 2005 | N18: 2010 | O18: 2015 | P18: 2000 | Q18: 2005 | R18: 2010 | S18: 2015 | T18: 2015 | U18: 2020 | V18: 2020 | W18: No | X18: Former | Y18: PK-06 | Z18: 944 | AA18: Boston | AB18: ESMS | AC18: NA
A19: 417 | B19: Bridge Boston Charter School | C19: C | D19: 5 | F19: Boston | G19: No Status | H19: 2011 | I19: No | J19: 2011 | K19: 8 | L19: 2016 | M19: 2021 | N19: 2026 | O19: 2031 | P19: 2016 | Q19: NA | R19: NA | S19: NA | T19: 2016 | U19: 2021 | V19: 2021 | W19: No | X19: No | Y19: PK-8 | Z19: 335 | AA19: Boston | AB19: ESMS | AC19: NA
A20: 428 | B20: Brooke Charter School | C20: C | D20: 1 | F20: Boston | G20: No Status | H20: 2001 | I20: Yes | J20: 2002 | K20: 17 | L20: 2007 | M20: 2012 | N20: 2017 | O20: 2022 | P20: 2007 | Q20: 2012 | R20: 2017 | S20: NA | T20: 2017 | U20: 2022 | V20: 2022 | W20: Yes | X20: No | Y20: K-12 | Z20: 2221 | AA20: Boston | AB20: K12 | AC20: NA
A21: 432 | B21: Cape Cod Lighthouse Charter School | C21: C | D21: 4 | F21: Harwich | G21: No Status | H21: 1994 | I21: Yes | J21: 1995 | K21: 24 | L21: 2000 | M21: 2005 | N21: 2010 | O21: 2015 | P21: 2000 | Q21: 2005 | R21: 2010 | S21: 2015 | T21: 2015 | U21: 2020 | V21: 2020 | W21: Yes | X21: No | Y21: 06-08 | Z21: 260 | AA21: Suburb | AB21: MS | AC21: NA
A22: 418 | B22: Christa McAuliffe Charter School | C22: C | D22: 1 | F22: Framingham | G22: No Status | H22: 2001 | I22: Yes | J22: 2002 | K22: 17 | L22: 2007 | M22: 2012 | N22: 2017 | O22: 2022 | P22: 2007 | Q22: 2012 | R22: 2017 | S22: NA | T22: 2017 | U22: 2022 | V22: 2022 | W22: Yes | X22: Former | Y22: 06-08 | Z22: 396 | AA22: Suburb | AB22: MS | AC22: NA
A23: 437 | B23: City on a Hill Charter Public School Circuit Street | C23: C | D23: 4 | F23: Boston | G23: No Status | H23: 1994 | I23: Yes | J23: 1995 | K23: 24 | L23: 2000 | M23: 2005 | N23: 2010 | O23: 2015 | P23: 2000 | Q23: 2005 | R23: 2010 | S23: 2015 | T23: 2015 | U23: 2020 | V23: 2020 | W23: No | X23: No | Y23: 09-12 | Z23: 280 | AA23: Boston | AB23: HS | AC23: NA
A24: 3504 | B24: City on a Hill Charter Public School Dudley Square | C24: C | D24: 2 | F24: Boston | G24: No Status | H24: 2013 | I24: No | J24: 2013 | K24: 6 | L24: 2018 | M24: 2023 | N24: 2028 | O24: 2033 | P24: 2018 | Q24: NA | R24: NA | S24: NA | T24: 2018 | U24: 2023 | V24: 2023 | W24: No | X24: No | Y24: 09-12 | Z24: 280 | AA24: Boston | AB24: HS | AC24: NA
A25: 3507 | B25: City On A Hill Charter Public School New Bedford | C25: C | D25: 3 | F25: New Bedford | G25: No Status | H25: 2013 | I25: Yes | J25: 2014 | K25: 5 | L25: 2019 | M25: 2024 | N25: 2029 | O25: 2034 | P25: NA | Q25: NA | R25: NA | S25: NA | T25: 0 | U25: 2019 | V25: 2019 | W25: No | X25: No | Y25: 09-12 | Z25: 280 | AA25: Urban | AB25: HS | AC25: NA
A26: 438 | B26: Codman Academy Charter Public School | C26: C | D26: 5 | F26: Boston | G26: Conditions | H26: 2001 | I26: Yes | J26: 2001 | K26: 18 | L26: 2006 | M26: 2011 | N26: 2016 | O26: 2021 | P26: 2006 | Q26: 2011 | R26: 2016 | S26: NA | T26: 2016 | U26: 2021 | V26: 2021 | W26: No | X26: No | Y26: PK-12 | Z26: 345 | AA26: Boston | AB26: K12 | AC26: NA
A27: 3503 | B27: Collegiate Charter School of Lowell | C27: C | D27: 2 | F27: Lowell | G27: No Status | H27: 2012 | I27: No | J27: 2013 | K27: 6 | L27: 2018 | M27: 2023 | N27: 2028 | O27: 2033 | P27: 2018 | Q27: NA | R27: NA | S27: NA | T27: 2018 | U27: 2023 | V27: 2023 | W27: No | X27: Yes | Y27: K-12 | Z27: 1200 | AA27: Urban | AB27: K12 | AC27: NA
A28: 436 | B28: Community Charter School of Cambridge | C28: C | D28: 4 | F28: Cambridge | G28: No Status | H28: 2004 | I28: Yes | J28: 2005 | K28: 14 | L28: 2010 | M28: 2015 | N28: 2020 | O28: 2025 | P28: 2010 | Q28: 2015 | R28: NA | S28: NA | T28: 2015 | U28: 2020 | V28: 2020 | W28: No | X28: No | Y28: 06-12 | Z28: 420 | AA28: Urban | AB28: MSHS | AC28: NA
A29: 426 | B29: Community Day Charter Public School - Gateway | C29: C | D29: 1 | F29: Lawrence | G29: No Status | H29: 2011 | I29: No | J29: 2012 | K29: 7 | L29: 2017 | M29: 2022 | N29: 2027 | O29: 2032 | P29: 2017 | Q29: NA | R29: NA | S29: NA | T29: 2017 | U29: 2022 | V29: 2022 | W29: No | X29: Yes | Y29: PK-08 | Z29: 400 | AA29: Urban | AB29: ESMS | AC29: NA
A30: 440 | B30: Community Day Charter Public School - Prospect | C30: C | D30: 4 | F30: Lawrence | G30: No Status | H30: 1994 | I30: Yes | J30: 1995 | K30: 24 | L30: 2000 | M30: 2005 | N30: 2010 | O30: 2015 | P30: 2000 | Q30: 2005 | R30: 2010 | S30: 2015 | T30: 2015 | U30: 2020 | V30: 2020 | W30: No | X30: Yes | Y30: PK-08 | Z30: 400 | AA30: Urban | AB30: ESMS | AC30: NA
A31: 431 | B31: Community Day Charter Public School - R. Kingman Webster | C31: C | D31: 1 | F31: Lawrence | G31: No Status | H31: 2011 | I31: No | J31: 2012 | K31: 7 | L31: 2017 | M31: 2022 | N31: 2027 | O31: 2032 | P31: 2017 | Q31: NA | R31: NA | S31: NA | T31: 2017 | U31: 2022 | V31: 2022 | W31: No | X31: Yes | Y31: PK-08 | Z31: 400 | AA31: Urban | AB31: ESMS | AC31: NA
A32: 439 | B32: Conservatory Lab Charter School | C32: C | D32: 3 | F32: Boston | G32: No Status | H32: 1998 | I32: Yes | J32: 1999 | K32: 20 | L32: 2004 | M32: 2009 | N32: 2014 | O32: 2019 | P32: 2004 | Q32: 2009 | R32: 2014 | S32: NA | T32: 2014 | U32: 2019 | V32: 2019 | W32: No | X32: No | Y32: PK-08 | Z32: 444 | AA32: Boston | AB32: ESMS | AC32: NA
A33: 407 | B33: Dudley Street Neighborhood Charter School | C33: HM | D33: 1 | F33: Boston | G33: No Status | H33: 2012 | I33: Yes | J33: 2012 | K33: 7 | L33: 2017 | M33: 2022 | N33: 2027 | O33: 2032 | P33: 2017 | Q33: NA | R33: NA | S33: NA | T33: 2017 | U33: 2022 | V33: 2022 | W33: NA | X33: No | Y33: PK-5 | Z33: 325 | AA33: Boston | AB33: ES | AC33: NA
A34: 452 | B34: Edward M. Kennedy Academy for Health Careers: A Horace Mann Charter Public School | C34: HM | D34: 2 | F34: Boston | G34: No Status | H34: 1998 | I34: Yes | J34: 1998 | K34: 21 | L34: 2003 | M34: 2008 | N34: 2013 | O34: 2018 | P34: 2003 | Q34: 2008 | R34: 2013 | S34: 2018 | T34: 2018 | U34: 2023 | V34: 2023 | W34: NA | X34: No | Y34: 09-12 | Z34: 448 | AA34: Boston | AB34: HS | AC34: NA
A35: 410 | B35: Excel Academy Charter School | C35: C | D35: 2 | F35: Boston/Chelsea | G35: No Status | H35: 2003 | I35: Yes | J35: 2003 | K35: 16 | L35: 2008 | M35: 2013 | N35: 2018 | O35: 2023 | P35: 2008 | Q35: 2013 | R35: 2018 | S35: NA | T35: 2018 | U35: 2023 | V35: 2023 | W35: Yes | X35: No | Y35: 05-12 | Z35: 1344 | AA35: Boston | AB35: MSHS | AC35: NA
A36: 413 | B36: Four Rivers Charter Public School | C36: C | D36: 2 | F36: Greenfield | G36: No Status | H36: 2002 | I36: Yes | J36: 2003 | K36: 16 | L36: 2008 | M36: 2013 | N36: 2018 | O36: 2023 | P36: 2008 | Q36: 2013 | R36: 2018 | S36: NA | T36: 2018 | U36: 2023 | V36: 2023 | W36: Yes | X36: No | Y36: 07-12 | Z36: 220 | AA36: Urban | AB36: MSHS | AC36: NA
A37: 446 | B37: Foxborough Regional Charter School | C37: C | D37: 2 | F37: Foxborough | G37: No Status | H37: 1998 | I37: Yes | J37: 1998 | K37: 21 | L37: 2003 | M37: 2008 | N37: 2013 | O37: 2018 | P37: 2003 | Q37: 2008 | R37: 2013 | S37: 2018 | T37: 2018 | U37: 2023 | V37: 2023 | W37: Yes | X37: Former | Y37: K-12 | Z37: 1700 | AA37: Suburb | AB37: K12 | AC37: NA
A38: 478 | B38: Francis W. Parker Charter Essential School | C38: C | D38: 4 | F38: Devens | G38: No Status | H38: 1994 | I38: Yes | J38: 1995 | K38: 24 | L38: 2000 | M38: 2005 | N38: 2010 | O38: 2015 | P38: 2000 | Q38: 2005 | R38: 2010 | S38: 2015 | T38: 2015 | U38: 2020 | V38: 2020 | W38: Yes | X38: No | Y38: 07-12 | Z38: 400 | AA38: Suburb | AB38: MSHS | AC38: NA
A39: 496 | B39: Global Learning Charter Public School | C39: C | D39: 1 | F39: New Bedford | G39: No Status | H39: 2006 | I39: Yes | J39: 2007 | K39: 12 | L39: 2012 | M39: 2017 | N39: 2022 | O39: 2027 | P39: 2012 | Q39: 2017 | R39: NA | S39: NA | T39: 2017 | U39: 2022 | V39: 2022 | W39: No | X39: No | Y39: 05-12 | Z39: 500 | AA39: Urban | AB39: MSHS | AC39: NA
A40: 499 | B40: Hampden Charter School of Science | C40: C | D40: 3 | F40: Chicopee | G40: No Status | H40: 2008 | I40: Yes | J40: 2009 | K40: 10 | L40: 2014 | M40: 2019 | N40: 2024 | O40: 2029 | P40: 2014 | Q40: NA | R40: NA | S40: NA | T40: 2014 | U40: 2019 | V40: 2019 | W40: Yes | X40: No | Y40: 06-12 | Z40: 560 | AA40: Urban | AB40: MSHS | AC40: NA
A41: 3516 | B41: Hampden Charter School of Science West | C41: C | F41: Westfield | G41: No Status | H41: 2017 | I41: No | J41: 2018 | K41: 1 | L41: 2023 | M41: 2028 | N41: 2033 | O41: 2038 | P41: NA | Q41: NA | R41: NA | S41: NA | T41: 0 | U41: 2023 | V41: 2023 | W41: Yes | X41: No | Y41: 06-12 | Z41: 588 | AA41: Rural | AB41: MSHS | AC41: NA
A42: 419 | B42: Helen Y Davis Leadership Academy Charter Public School | C42: C | D42: 2 | F42: Boston | G42: Probation | H42: 2002 | I42: Yes | J42: 2003 | K42: 16 | L42: 2008 | M42: 2013 | N42: 2018 | O42: 2023 | P42: 2008 | Q42: 2013 | R42: 2018 | S42: NA | T42: 2018 | U42: 2023 | V42: 2023 | W42: No | X42: No | Y42: 06-08 | Z42: 216 | AA42: Boston | AB42: MS | AC42: NA
A43: 455 | B43: Hill View Montessori Charter Public School | C43: C | D43: 3 | F43: Haverhill | G43: No Status | H43: 2003 | I43: Yes | J43: 2004 | K43: 15 | L43: 2009 | M43: 2014 | N43: 2019 | O43: 2024 | P43: 2009 | Q43: 2014 | R43: NA | S43: NA | T43: 2014 | U43: 2019 | V43: 2019 | W43: No | X43: No | Y43: K-08 | Z43: 306 | AA43: Urban | AB43: ESMS | AC43: NA
A44: 450 | B44: Hilltown Cooperative Charter Public School | C44: C | D44: 4 | F44: East Hampton | G44: No Status | H44: 1994 | I44: Yes | J44: 1995 | K44: 24 | L44: 2000 | M44: 2005 | N44: 2010 | O44: 2015 | P44: 2000 | Q44: 2005 | R44: 2010 | S44: 2015 | T44: 2015 | U44: 2020 | V44: 2020 | W44: Yes | X44: No | Y44: K-08 | Z44: 218 | AA44: Rural | AB44: ESMS | AC44: NA
A45: 453 | B45: Holyoke Community Charter School | C45: C | D45: 4 | F45: Holyoke | G45: No Status | H45: 2001 | I45: Yes | J45: 2005 | K45: 14 | L45: 2010 | M45: 2015 | N45: 2020 | O45: 2025 | P45: 2010 | Q45: 2015 | R45: NA | S45: NA | T45: 2015 | U45: 2020 | V45: 2020 | W45: No | X45: Yes | Y45: K-08 | Z45: 702 | AA45: Urban | AB45: ESMS | AC45: NA
A46: 435 | B46: Innovation Academy Charter School | C46: C | D46: 5 | F46: Tyngsborough | G46: No Status | H46: 1995 | I46: Yes | J46: 1996 | K46: 23 | L46: 2001 | M46: 2006 | N46: 2011 | O46: 2016 | P46: 2001 | Q46: 2006 | R46: 2011 | S46: 2016 | T46: 2016 | U46: 2021 | V46: 2021 | W46: Yes | X46: Former | Y46: 05-12 | Z46: 800 | AA46: Suburb | AB46: MSHS | AC46: NA
A47: 463 | B47: KIPP Academy Boston Charter School | C47: C | D47: 1 | F47: Boston | G47: No Status | H47: 2011 | I47: No | J47: 2012 | K47: 7 | L47: 2017 | M47: 2022 | N47: 2027 | O47: 2032 | P47: 2017 | Q47: NA | R47: NA | S47: NA | T47: 2017 | U47: 2022 | V47: 2022 | W47: No | X47: No | Y47: K-08 | Z47: 588 | AA47: Boston | AB47: ESMS | AC47: NA
A48: 429 | B48: KIPP Academy Lynn Charter School | C48: C | D48: 3 | F48: Lynn | G48: No Status | H48: 2004 | I48: Yes | J48: 2004 | K48: 15 | L48: 2009 | M48: 2014 | N48: 2019 | O48: 2024 | P48: 2009 | Q48: 2014 | R48: NA | S48: NA | T48: 2014 | U48: 2019 | V48: 2019 | W48: No | X48: No | Y48: K-12 | Z48: 1586 | AA48: Urban | AB48: MSHS | AC48: NA
A49: 454 | B49: Lawrence Family Development Charter School | C49: C | D49: 4 | F49: Lawrence | G49: No Status | H49: 1995 | I49: Yes | J49: 1995 | K49: 24 | L49: 2000 | M49: 2005 | N49: 2010 | O49: 2015 | P49: 2000 | Q49: 2005 | R49: 2010 | S49: 2015 | T49: 2015 | U49: 2020 | V49: 2020 | W49: No | X49: No | Y49: PK-08 | Z49: 800 | AA49: Urban | AB49: ESMS | AC49: NA
A50: 3514 | B50: Libertas Academy Charter School (New school opening FY18) | C50: C | D50: Springfield | E50: No | F50: Springfield | G50: No Status | H50: 2016 | I50: No | J50: 2017 | K50: 2 | L50: 2022 | M50: 2027 | N50: 2032 | O50: 2037 | P50: NA | Q50: NA | R50: NA | S50: NA | T50: 0 | U50: 2022 | V50: 2022 | W50: No | X50: No | Y50: 06-12 | Z50: 630 | AA50: Urban | AB50: ESMS | AC50: NA
A51: 456 | B51: Lowell Community Charter Public School | C51: C | D51: 4 | F51: Lowell | G51: No Status | H51: 1999 | I51: Yes | J51: 2000 | K51: 19 | L51: 2005 | M51: 2010 | N51: 2015 | O51: 2020 | P51: 2005 | Q51: 2010 | R51: 2015 | S51: NA | T51: 2015 | U51: 2020 | V51: 2020 | W51: No | X51: Former | Y51: PK-08 | Z51: 800 | AA51: Urban | AB51: ESMS | AC51: NA
A52: 458 | B52: Lowell Middlesex Academy Charter School | C52: C | D52: 4 | F52: Lowell | G52: No Status | H52: 1994 | I52: Yes | J52: 1995 | K52: 24 | L52: 2000 | M52: 2005 | N52: 2010 | O52: 2015 | P52: 2000 | Q52: 2005 | R52: 2010 | S52: 2015 | T52: 2015 | U52: 2020 | V52: 2020 | W52: No | X52: No | Y52: 09-12 | Z52: 150 | AA52: Urban | AB52: HS | AC52: NA
A53: 3517 | B53: Map Academy Charter School | C53: C | F53: Plymouth | G53: No Status | H53: 2017 | I53: Yes | J53: 2018 | K53: 1 | L53: 2023 | M53: 2028 | N53: 2033 | O53: 2038 | P53: NA | Q53: NA | R53: NA | S53: NA | T53: 0 | U53: 2023 | V53: 2023 | W53: Yes | X53: No | Y53: 09-12 | Z53: 300 | AA53: Suburb | AB53: HS | AC53: NA
A54: 464 | B54: Marblehead Community Charter Public School | C54: C | D54: 4 | F54: Marblehead | G54: No Status | H54: 1994 | I54: Yes | J54: 1995 | K54: 24 | L54: 2000 | M54: 2005 | N54: 2010 | O54: 2015 | P54: 2000 | Q54: 2005 | R54: 2010 | S54: 2015 | T54: 2015 | U54: 2020 | V54: 2020 | W54: No | X54: No | Y54: 04-08 | Z54: 230 | AA54: Suburb | AB54: ESMS | AC54: NA
A55: 466 | B55: Martha's Vineyard Public Charter School | C55: C | D55: 5 | F55: West Tisbury | G55: No Status | H55: 1995 | I55: Yes | J55: 1996 | K55: 23 | L55: 2001 | M55: 2006 | N55: 2011 | O55: 2016 | P55: 2001 | Q55: 2006 | R55: 2011 | S55: 2016 | T55: 2016 | U55: 2021 | V55: 2021 | W55: Yes | X55: No | Y55: K-12 | Z55: 180 | AA55: Suburb | AB55: K12 | AC55: NA
A56: 492 | B56: Martin Luther King, Jr. Charter School of Excellence | C56: C | D56: 5 | F56: Springfield | G56: Conditions | H56: 2005 | I56: Yes | J56: 2006 | K56: 13 | L56: 2011 | M56: 2016 | N56: 2021 | O56: 2026 | P56: 2011 | Q56: 2016 | R56: NA | S56: NA | T56: 2016 | U56: 2021 | V56: 2021 | W56: No | X56: No | Y56: K-05 | Z56: 360 | AA56: Urban | AB56: ES | AC56: NA
A57: 469 | B57: Match Charter Public School | C57: C | D57: 4 | F57: Boston | G57: No Status | H57: 1999 | I57: Yes | J57: 2000 | K57: 19 | L57: 2005 | M57: 2010 | N57: 2015 | O57: 2020 | P57: 2005 | Q57: 2010 | R57: 2015 | S57: NA | T57: 2015 | U57: 2020 | V57: 2020 | W57: No | X57: No | Y57: PK-12 | Z57: 1250 | AA57: Boston | AB57: K12 | AC57: NA
A58: 470 | B58: Mystic Valley Regional Charter School | C58: C | D58: 2 | F58: Malden | G58: No Status | H58: 1998 | I58: Yes | J58: 1998 | K58: 21 | L58: 2003 | M58: 2008 | N58: 2013 | O58: 2018 | P58: 2003 | Q58: 2008 | R58: 2013 | S58: 2018 | T58: 2018 | U58: 2023 | V58: 2023 | W58: Yes | X58: Former | Y58: K-12 | Z58: 1900 | AA58: Urban | AB58: K12 | AC58: NA
A59: 444 | B59: Neighborhood House Charter School | C59: C | D59: 4 | F59: Boston | G59: No Status | H59: 1994 | I59: Yes | J59: 1995 | K59: 24 | L59: 2000 | M59: 2005 | N59: 2010 | O59: 2015 | P59: 2000 | Q59: 2005 | R59: 2010 | S59: 2015 | T59: 2015 | U59: 2020 | V59: 2020 | W59: No | X59: No | Y59: PK-12 | Z59: 828 | AA59: Boston | AB59: K12 | AC59: NA
A60: 3513 | B60: New Heights Charter School of Brockton | C60: C | D60: 315 | E60: 315 | F60: Brockton | G60: No Status | H60: 2016 | I60: No | J60: 2016 | K60: 3 | L60: 2021 | M60: 2026 | N60: 2031 | O60: 2036 | P60: NA | Q60: NA | R60: NA | S60: NA | T60: 0 | U60: 2021 | V60: 2021 | W60: Yes | X60: No | Y60: 06-12 | Z60: 735 | AA60: Urban | AB60: ESMS | AC60: NA
A61: 3515 | B61: Old Sturbridge Academy Charter Public School | C61: C | F61: Sturbridge | G61: No Status | H61: 2017 | I61: Yes | J61: 2017 | K61: 2 | L61: 2022 | M61: 2027 | N61: 2032 | O61: 2037 | P61: NA | Q61: NA | R61: NA | S61: NA | T61: 0 | U61: 2022 | V61: 2022 | W61: Yes | X61: Yes | Y61: K-08 | Z61: 360 | AA61: Rural | AB61: ESMS | AC61: NA
A62: 3501 | B62: Paulo Freire Social Justice Charter School | C62: C | D62: 2 | F62: Holyoke | G62: Probation | H62: 2012 | I62: No | J62: 2013 | K62: 6 | L62: 2018 | M62: 2023 | N62: 2028 | O62: 2033 | P62: 2018 | Q62: NA | R62: NA | S62: NA | T62: 2018 | U62: 2023 | V62: 2023 | W62: Yes | X62: No | Y62: 09-12 | Z62: 500 | AA62: Urban | AB62: HS | AC62: NA
A63: 493 | B63: Phoenix Academy Charter Public High School, Chelsea | C63: C | D63: 5 | F63: Chelsea | G63: No Status | H63: 2005 | I63: Yes | J63: 2006 | K63: 13 | L63: 2011 | M63: 2016 | N63: 2021 | O63: 2026 | P63: 2011 | Q63: 2016 | R63: NA | S63: NA | T63: 2016 | U63: 2021 | V63: 2021 | W63: Yes | X63: No | Y63: 09-12 | Z63: 225 | AA63: Urban | AB63: HS | AC63: NA
A64: 3518 | B64: Phoenix Academy Public Charter High School, Lawrence | C64: C | F64: Lawrence | G64: No Status | H64: 2018 | I64: No | J64: 2018 | K64: 1 | L64: 2023 | M64: 2028 | N64: 2033 | O64: 2038 | P64: NA | Q64: NA | R64: NA | S64: NA | T64: 0 | U64: 2023 | V64: 2023 | W64: Yes | X64: No | Y64: 09-12 | Z64: 250 | AA64: Urban | AB64: HS | AC64: NA
A65: 3508 | B65: Phoenix Academy Public Charter High School, Springfield | C65: C | D65: 3 | F65: Springfield | G65: No Status | H65: 2013 | I65: No | J65: 2014 | K65: 5 | L65: 2019 | M65: 2024 | N65: 2029 | O65: 2034 | P65: NA | Q65: NA | R65: NA | S65: NA | T65: 0 | U65: 2019 | V65: 2019 | W65: Yes | X65: No | Y65: 09-12 | Z65: 250 | AA65: Urban | AB65: HS | AC65: NA
A66: 494 | B66: Pioneer Charter School of Science | C66: C | D66: 1 | F66: Everett | G66: No Status | H66: 2006 | I66: Yes | J66: 2007 | K66: 12 | L66: 2012 | M66: 2017 | N66: 2022 | O66: 2027 | P66: 2012 | Q66: 2017 | R66: NA | S66: NA | T66: 2017 | U66: 2022 | V66: 2022 | W66: Yes | X66: No | Y66: K-12 | Z66: 780 | AA66: Urban | AB66: K12 | AC66: NA
A67: 3506 | B67: Pioneer Charter School of Science II | C67: C | D67: 3 | F67: Saugus | G67: No Status | H67: 2013 | I67: No | J67: 2013 | K67: 6 | L67: 2018 | M67: 2023 | N67: 2028 | O67: 2033 | P67: 2018 | Q67: NA | R67: NA | S67: NA | T67: 2018 | U67: 2023 | V67: 2023 | W67: Yes | X67: No | Y67: 07-12 | Z67: 360 | AA67: Urban | AB67: MSHS | AC67: NA
A68: 497 | B68: Pioneer Valley Chinese Immersion Charter School | C68: C | D68: 1 | F68: Hadley | G68: No Status | H68: 2007 | I68: Yes | J68: 2007 | K68: 12 | L68: 2012 | M68: 2017 | N68: 2022 | O68: 2027 | P68: 2012 | Q68: 2017 | R68: NA | S68: NA | T68: 2017 | U68: 2022 | V68: 2022 | W68: Yes | X68: No | Y68: K-12 | Z68: 584 | AA68: Suburb | AB68: K12 | AC68: NA
A69: 479 | B69: Pioneer Valley Performing Arts Charter Public School | C69: C | D69: 5 | F69: South Hadley | G69: No Status | H69: 1996 | I69: Yes | J69: 1996 | K69: 23 | L69: 2001 | M69: 2006 | N69: 2011 | O69: 2016 | P69: 2001 | Q69: 2006 | R69: 2011 | S69: 2016 | T69: 2016 | U69: 2021 | V69: 2021 | W69: Yes | X69: No | Y69: 07-12 | Z69: 400 | AA69: Suburb | AB69: MSHS | AC69: NA
A70: 487 | B70: Prospect Hill Academy Charter School | C70: C | D70: 5 | F70: Somerville (K-6); Cambridge (7-12) | G70: No Status | H70: 1996 | I70: Yes | J70: 1996 | K70: 23 | L70: 2001 | M70: 2006 | N70: 2011 | O70: 2016 | P70: 2001 | Q70: 2006 | R70: 2011 | S70: 2016 | T70: 2016 | U70: 2021 | V70: 2021 | W70: Yes | X70: Former | Y70: PK-12 | Z70: 1200 | AA70: Urban | AB70: K12 | AC70: NA
A71: 483 | B71: Rising Tide Charter Public School | C71: C | D71: 2 | F71: Plymouth | G71: No Status | H71: 1998 | I71: Yes | J71: 1998 | K71: 21 | L71: 2003 | M71: 2008 | N71: 2013 | O71: 2018 | P71: 2003 | Q71: 2008 | R71: 2013 | S71: 2018 | T71: 2018 | U71: 2023 | V71: 2023 | W71: Yes | X71: Former | Y71: 05-12 | Z71: 700 | AA71: Suburb | AB71: MSHS | AC71: NA
A72: 482 | B72: River Valley Charter School | C72: C | D72: 3 | F72: Newburyport | G72: No Status | H72: 1999 | I72: Yes | J72: 1999 | K72: 20 | L72: 2004 | M72: 2009 | N72: 2014 | O72: 2019 | P72: 2004 | Q72: 2009 | R72: 2014 | S72: NA | T72: 2014 | U72: 2019 | V72: 2019 | W72: Yes | X72: No | Y72: K-08 | Z72: 288 | AA72: Rural | AB72: ESMS | AC72: NA
A73: 484 | B73: Roxbury Preparatory Charter School | C73: C | D73: 3 | F73: Boston | G73: No Status | H73: 1998 | I73: Yes | J73: 1999 | K73: 20 | L73: 2004 | M73: 2009 | N73: 2014 | O73: 2019 | P73: 2004 | Q73: 2009 | R73: 2014 | S73: NA | T73: 2014 | U73: 2019 | V73: 2019 | W73: No | X73: Yes | Y73: 05-12 | Z73: 1800 | AA73: Boston | AB73: MSHS | AC73: NA
A74: 441 | B74: Sabis International Charter School | C74: C | D74: 4 | F74: Springfield | G74: Conditions | H74: 1995 | I74: Yes | J74: 1995 | K74: 24 | L74: 2000 | M74: 2005 | N74: 2010 | O74: 2015 | P74: 2000 | Q74: 2005 | R74: 2010 | S74: 2015 | T74: 2015 | U74: 2020 | V74: 2020 | W74: No | X74: Yes | Y74: K-12 | Z74: 1574 | AA74: Urban | AB74: K12 | AC74: NA
A75: 485 | B75: Salem Academy Charter School | C75: C | D75: 3 | F75: Salem | G75: No Status | H75: 2003 | I75: Yes | J75: 2004 | K75: 15 | L75: 2009 | M75: 2014 | N75: 2019 | O75: 2024 | P75: 2009 | Q75: 2014 | R75: NA | S75: NA | T75: 2014 | U75: 2019 | V75: 2019 | W75: No | X75: No | Y75: 06-12 | Z75: 480 | AA75: Urban | AB75: MSHS | AC75: NA
A76: 486 | B76: Seven Hills Charter Public School | C76: C | D76: 5 | F76: Worcester | G76: No Status | H76: 1994 | I76: Yes | J76: 1996 | K76: 23 | L76: 2001 | M76: 2006 | N76: 2011 | O76: 2016 | P76: 2001 | Q76: 2006 | R76: 2011 | S76: 2016 | T76: 2016 | U76: 2021 | V76: 2021 | W76: No | X76: Former | Y76: K-08 | Z76: 666 | AA76: Urban | AB76: ESMS | AC76: NA
A77: 474 | B77: Sizer School, A North Central Charter Essential School | C77: C | D77: 1 | F77: Fitchburg | G77: Conditions | H77: 2001 | I77: Yes | J77: 2002 | K77: 17 | L77: 2007 | M77: 2012 | N77: 2017 | O77: 2022 | P77: 2007 | Q77: 2012 | R77: 2017 | S77: NA | T77: 2017 | U77: 2022 | V77: 2022 | W77: Yes | X77: No | Y77: 07-12 | Z77: 400 | AA77: Urban | AB77: MSHS | AC77: NA
A78: 488 | B78: South Shore Charter Public School | C78: C | D78: 4 | F78: Norwell | G78: No Status | H78: 1994 | I78: Yes | J78: 1995 | K78: 24 | L78: 2000 | M78: 2005 | N78: 2010 | O78: 2015 | P78: 2000 | Q78: 2005 | R78: 2010 | S78: 2015 | T78: 2015 | U78: 2020 | V78: 2020 | W78: Yes | X78: No | Y78: K-12 | Z78: 1075 | AA78: Rural | AB78: K12 | AC78: NA
A79: 3510 | B79: Springfield Preparatory Charter School | C79: C | D79: 4 | F79: Springfield | G79: No Status | H79: 2014 | I79: No | J79: 2015 | K79: 4 | L79: 2020 | M79: 2025 | N79: 2030 | O79: 2035 | P79: NA | Q79: NA | R79: NA | S79: NA | T79: 0 | U79: 2020 | V79: 2020 | W79: No | X79: No | Y79: K-08 | Z79: 486 | AA79: Urban | AB79: ESMS | AC79: NA
A80: 489 | B80: Sturgis Charter Public School | C80: C | D80: 2 | F80: Hyannis | G80: No Status | H80: 1998 | I80: Yes | J80: 1998 | K80: 21 | L80: 2003 | M80: 2008 | N80: 2013 | O80: 2018 | P80: 2003 | Q80: 2008 | R80: 2013 | S80: 2018 | T80: 2018 | U80: 2023 | V80: 2023 | W80: Yes | X80: No | Y80: 09-12 | Z80: 850 | AA80: Suburb | AB80: HS | AC80: NA
A81: 480 | B81: UP Academy Charter School of Boston | C81: HM | D81: 5 | F81: Boston | G81: No Status | H81: 2011 | I81: Yes | J81: 2011 | K81: 8 | L81: 2016 | M81: 2021 | N81: 2026 | O81: 2031 | P81: 2016 | Q81: NA | R81: NA | S81: NA | T81: 2016 | U81: 2021 | V81: 2021 | W81: NA | X81: Yes | Y81: 06-08 | Z81: 540 | AA81: Boston | AB81: MS | AC81: NA
A82: 3505 | B82: UP Academy Charter School of Dorchester | C82: HM | D82: 2 | F82: Boston | G82: Conditions | H82: 2013 | I82: Yes | J82: 2013 | K82: 6 | L82: 2018 | M82: 2023 | N82: 2028 | O82: 2033 | P82: 2018 | Q82: NA | R82: NA | S82: NA | T82: 2018 | U82: 2023 | V82: 2023 | W82: NA | X82: Yes | Y82: PK-08 | Z82: 820 | AA82: Boston | AB82: ESMS | AC82: NA
A83: 498 | B83: Veritas Preparatory Charter School | C83: C | D83: 1 | F83: Springfield | G83: No Status | H83: 2011 | I83: Yes | J83: 2012 | K83: 7 | L83: 2017 | M83: 2022 | N83: 2027 | O83: 2032 | P83: 2017 | Q83: NA | R83: NA | S83: NA | T83: 2017 | U83: 2022 | V83: 2022 | W83: No | X83: No | Y83: 05-08 | Z83: 432 | AA83: Urban | AB83: MS | AC83: NA
A84: Closed Schools | O84: NA
A85: 415 | B85: Amesbury Academy Charter Public School | C85: HM | D85: 5 | F85: Amesbury | G85: NA | H85: 2001 | I85: NA | J85: 2001 | K85: NA | L85: 2006 | M85: 2011 | N85: Post-Opening Surrender | O85: NA | U85: NA | V85: NA | W85: No | X85: No | Y85: 9-12 | Z85: 50 | AA85: Rural | AB85: HS | AC85: 2015 | AD85: surrender
A86: 423 | B86: Barnstable Horace Mann Charter School | C86: HM | D86: NA | E86: NA | F86: Barnstable | G86: NA | H86: 1998 | I86: NA | J86: 1999 | K86: NA | L86: 2004 | M86: 2009 | N86: Post-Opening Surrender | O86: NA | U86: NA | V86: NA | W86: No | X86: No | Y86: 04-05 | Z86: 1000 | AA86: Suburb | AB86: MS | AC86: 2012 | AD86: surrender
A87: 425 | B87: Boston University Residential Charter School | C87: C | D87: NA | E87: NA | F87: Granby | G87: NA | H87: 1994 | I87: NA | J87: 1997 | K87: NA | L87: Post-Opening Surrender | M87: NA | N87: NA | O87: NA | U87: NA | V87: NA | W87: No | X87: No | Y87: 42594 | Z87: NA | AA87: Rural | AB87: MSHS | AC87: 2000 | AD87: surrender
A88: 457 | B88: Brooke Charter School East Boston (FY17-will merge with 0428 and 0457 as Brooke Charter School LEA, 428 K-12) | C88: C | D88: 1 | E88: VLOOKUP(A22, LIAISONS, 3, FALSE) | F88: Boston | G88: NA | H88: 2011 | I88: No | J88: 2012 | K88: NA | L88: Returned due to merger | M88: NA | N88: NA | O88: NA | U88: NA | V88: NA | W88: Yes | X88: No | Y88: K-08 | Z88: 510 | AA88: Boston | AB88: ESMS | AC88: 2016 | AD88: consolidation
A89: 443 | B89: Brooke Charter School Mattapan (FY17-will merge with 0428 and 0457 as Brooke Charter School LEA 428, K-12) | C89: C | D89: 5 | F89: Boston | G89: NA | H89: 2011 | I89: No | J89: 2011 | K89: NA | L89: Returned due to merger | M89: NA | N89: NA | O89: NA | U89: NA | V89: NA | W89: No | X89: No | Y89: K-08 | Z89: 510 | AA89: Boston | AB89: ESMS | AC89: 2016 | AD89: consolidation
A90: 434 | B90: Champion Charter Public School | C90: HM | D90: NA | E90: NA | F90: Brockton | G90: NA | H90: 1998 | I90: NA | J90: 1998 | K90: NA | L90: Post-Opening Surrender | M90: NA | N90: NA | O90: NA | U90: NA | V90: NA | W90: No | X90: No | Y90: 09-12 | Z90: 125 | AA90: Urban | AB90: HS | AC90: 2008 | AD90: surrender
A91: 433 | B91: Dorchester Prep | C91: C | D91: NA | E91: NA | F91: Boston | G91: NA | H91: 2011 | I91: NA | J91: NA | K91: NA | L91: Returned due to merger | M91: NA | N91: NA | O91: NA | U91: NA | V91: NA | W91: No | X91: Former | Y91: 05-12 | Z91: 600 | AA91: Urban | AB91: MSHS | AC91: NA | AD91: consolidation
A92: 475 | B92: Dorchester Collegiate Academy Charter School | C92: C | D92: 3 | F92: Boston | G92: NA | H92: 2008 | I92: NA | J92: 2009 | K92: NA | L92: 2014 | M92: Revocation | N92: NA | O92: NA | U92: NA | V92: NA | W92: No | X92: No | Y92: 04-08 | Z92: 238 | AA92: Boston | AB92: ESMS | AC92: 2016 | AD92: revocation
A93: 459 | B93: Excel Academy Charter School - Boston II | C93: C | D93: NA | E93: NA | F93: Boston | G93: NA | H93: 2011 | I93: NA | J93: 2012 | K93: NA | L93: Returned due to merger | M93: NA | N93: NA | O93: NA | U93: NA | V93: NA | W93: No | X93: No | Y93: 05-12 | Z93: 448 | AA93: Boston | AB93: MSHS | AC93: 2014 | AD93: consolidation
A94: 461 | B94: Excel Academy Charter School - Chelsea | C94: C | D94: NA | E94: NA | F94: Chelsea | G94: NA | H94: 2011 | I94: NA | J94: 2011 | K94: NA | L94: Returned due to merger | M94: NA | N94: NA | O94: NA | U94: NA | V94: NA | W94: No | X94: No | Y94: 05-12 | Z94: 448 | AA94: Urban | AB94: MSHS | AC94: 2014 | AD94: consolidation
A95: 495 | B95: Fall River Maritime Charter Public School | C95: C | D95: NA | E95: NA | F95: Fall River | G95: NA | H95: 2006 | I95: NA | J95: NA | K95: NA | L95: Pre-Opening Surrender | M95: NA | N95: NA | O95: NA | U95: NA | V95: NA | W95: No | X95: Former | Y95: 05-08 | Z95: 80 | AA95: Urban | AB95: MS | AC95: NA | AD95: surrender
A96: 442 | B96: Frederick Douglass Charter School | C96: C | D96: NA | E96: NA | F96: Boston | G96: NA | H96: 1999 | I96: NA | J96: 2000 | K96: NA | L96: Non-Renewal | M96: NA | N96: NA | O96: NA | U96: NA | V96: NA | W96: No | X96: No | Y96: 06-12 | Z96: 408 | AA96: Boston | AB96: MSHS | AC96: 2005 | AD96: revocation
A97: 448 | B97: Gloucester Community Arts Charter School | C97: C | D97: NA | E97: NA | F97: Gloucester | G97: NA | H97: 2009 | I97: NA | J97: 2010 | K97: NA | L97: Post-Opening Surrender | M97: NA | N97: NA | O97: NA | U97: NA | V97: NA | W97: No | X97: No | Y97: K-08 | Z97: 240 | AA97: Urban | AB97: ESMS | AC97: 2013 | AD97: surrender
A98: 462 | B98: Grove Hall Prep | C98: C | D98: NA | E98: NA | F98: Boston | G98: NA | H98: 2011 | I98: NA | J98: 2011 | K98: NA | L98: Returned due to merger | M98: NA | N98: NA | O98: NA | U98: NA | V98: NA | W98: No | X98: Former | Y98: 05-12 | Z98: 600 | AA98: Urban | AB98: MS | AC98: 2012 | AD98: consolidation
A99: 448 | B99: Horace Mann Charter School of Essential Studies | C99: HM | D99: NA | E99: NA | F99: Springfield | G99: NA | H99: 1999 | I99: NA | J99: NA | K99: NA | L99: Pre-Opening Surrender | M99: NA | N99: NA | O99: NA | U99: NA | V99: NA | W99: No | X99: No | Y99: 09-12 | Z99: 600 | AA99: Urban | AB99: ESMS | AC99: NA | AD99: surrender
A100: 460 | B100: Lynn Community Charter School | C100: C | D100: NA | E100: NA | F100: Lynn | G100: NA | H100: 1996 | I100: NA | J100: 1997 | K100: NA | L100: Non-Renewal | M100: NA | N100: NA | O100: NA | U100: NA | V100: NA | W100: No | X100: No | Y100: K-08 | Z100: 270 | AA100: Urban | AB100: ESMS | AC100: 2002 | AD100: non-renewal
A101: 465 | B101: MATCH Community Day Charter Public School | C101: C | D101: NA | E101: NA | F101: Boston | G101: NA | H101: 2011 | I101: NA | J101: 2011 | K101: NA | L101: Returned due to merger | M101: NA | N101: NA | O101: NA | U101: NA | V101: NA | W101: No | X101: No | Y101: PK-12 | Z101: 700 | AA101: Boston | AB101: K12 | AC101: 2014 | AD101: consolidation
A102: 472 | B102: New Bedford Global Learning Charter School | C102: HM | D102: NA | E102: NA | F102: New Bedford | G102: NA | H102: 2000 | I102: NA | J102: 2002 | K102: NA | L102: Post-Opening Surrender | M102: NA | N102: NA | O102: NA | U102: NA | V102: NA | W102: No | X102: No | Y102: 05-12 | Z102: 400 | AA102: Urban | AB102: MSHS | AC102: 2007 | AD102: expired
A103: 471 | B103: New Leadership Charter School | C103: HM | D103: NA | E103: NA | F103: Springfield | G103: NA | H103: 1998 | I103: NA | J103: 1998 | K103: NA | L103: 2003 | M103: 2008 | N103: Post-Opening Surrender | O103: NA | U103: NA | V103: NA | W103: No | X103: No | Y103: 06-12 | Z103: 500 | AA103: Urban | AB103: MSHS | AC103: 2013 | AD103: expired
A104: 467 | B104: New Liberty Charter School of Salem | C104: HM | D104: NA | E104: NA | F104: Salem | G104: NA | H104: 2011 | I104: NA | J104: 2011 | K104: NA | L104: Post-Opening Surrender | M104: NA | N104: NA | O104: NA | U104: NA | V104: NA | W104: NA | X104: No | Y104: 09-12 | Z104: 125 | AA104: Urban | AB104: HS | AC104: 2016 | AD104: expired
A105: 473 | B105: North Star Academy Charter School | C105: C | D105: NA | E105: NA | F105: Springfield | G105: NA | H105: 1995 | I105: NA | J105: 1996 | K105: NA | L105: Post-Opening Surrender | M105: NA | N105: NA | O105: NA | U105: NA | V105: NA | W105: No | X105: No | Y105: 09-12 | Z105: 250 | AA105: Urban | AB105: HS | AC105: 2001 | AD105: surrender
A106: 476 | B106: Northern Bristol County Charter School | C106: C | D106: NA | E106: NA | F106: Bristol County | G106: NA | H106: 2001 | I106: NA | J106: NA | K106: NA | L106: Pre-Opening Surrender | M106: NA | N106: NA | O106: NA | U106: NA | V106: NA | W106: Yes | X106: No | Y106: K-08 | Z106: 500 | AA106: Urban | AB106: ESMS | AC106: NA | AD106: surrender
A107: 451 | B107: Robert M. Hughes Academy Charter Public School | C107: C | D107: NA | E107: NA | F107: Springfield | G107: NA | H107: 1999 | I107: NA | J107: 1999 | K107: NA | L107: 2004 | M107: 2009 | N107: Revocation | O107: NA | U107: NA | V107: NA | W107: No | X107: No | Y107: K-08 | Z107: 180 | AA107: Urban | AB107: ESMS | AC107: 2010 | AD107: revocation
A108: 422 | B108: Roxbury Charter High Public School | C108: C | D108: NA | E108: NA | F108: Boston | G108: NA | H108: 2002 | I108: NA | J108: 2003 | K108: NA | L108: Revocation | M108: NA | N108: NA | O108: NA | U108: NA | V108: NA | W108: No | X108: No | Y108: 09-12 | Z108: 400 | AA108: Boston | AB108: HS | AC108: 2005 | AD108: revocation
A109: 477 | B109: Silver Hill Horace Mann Charter School | C109: HM | D109: NA | E109: NA | F109: Haverhill | G109: NA | H109: 2008 | I109: NA | J109: 2008 | K109: NA | L109: 2013 | M109: Post-Opening Surrender | V109: NA | W109: NA | X109: No | Y109: K-05 | Z109: 580 | AA109: Urban | AB109: ES | AC109: 2018 | AD109: surrender
A110: 421 | B110: South End College Preparatory Charter School | C110: C | D110: NA | E110: NA | F110: Boston | G110: NA | H110: 2002 | I110: NA | J110: NA | K110: NA | L110: Pre-Opening Surrender | M110: NA | N110: NA | O110: NA | U110: NA | V110: NA | W110: No | X110: No | Y110: K-08 | Z110: 500 | AA110: Boston | AB110: ESMS | AC110: 2003 | AD110: surrender
A111: 476 | B111: Spirit of Knowledge Charter School | C111: C | D111: NA | E111: NA | F111: Worcester | G111: NA | H111: 2010 | I111: NA | J111: 2010 | K111: NA | L111: Post-Opening Surrender | M111: NA | N111: NA | O111: NA | U111: NA | V111: NA | W111: No | X111: No | Y111: 07-12 | Z111: 275 | AA111: Urban | AB111: MSHS | AC111: 2014 | AD111: surrender
A112: 3512 | B112: UP Academy Charter School of Springfield | C112: HM | D112: NA | E112: NA | F112: Springfield | G112: NA | H112: NA | I112: NA | J112: NA | K112: NA | L112: Pre-Opening Surrender | U112: 5 | V112: NA | W112: NA | X112: Yes | Y112: 06-08 | Z112: 800 | AA112: Urban | AB112: MS | AC112: NA | AD112: surrender
A113: 490 | B113: Uphams Corner Charter School | C113: C | D113: NA | E113: NA | F113: Boston | G113: NA | H113: 2002 | I113: NA | J113: 2002 | K113: NA | L113: 2007 | M113: Revocation | N113: NA | O113: NA | U113: NA | V113: NA | W113: No | X113: No | Y113: 05-08 | Z113: 200 | AA113: Boston | AB113: MS | AC113: 2009 | AD113: revocation
A114: 498 | B114: Youth Build Boston Charter School | C114: C | D114: NA | E114: NA | F114: Boston | G114: NA | H114: 1994 | I114: NA | J114: 1995 | K114: NA | L114: Revocation | M114: NA | N114: NA | O114: NA | U114: NA | V114: NA | W114: No | X114: No | Y114: 09-12 | Z114: 300 | AA114: Boston | AB114: HS | AC114: 1997 | AD114: surrender
B115: Total Currently Operating Commonwealths: | C115: 74
B116: Total Currently Operating Horace Manns (I): | C116: 3
B117: Total Currently Operating Horace Manns (II): | C117: 0
B118: Total Currently Operating Horace Manns (III): | C118: 5
B119: Total Charters Approved but not yet open: | C119: 0
B120: Total Charters Closed or Never Opened Since 1994: | C120: 30
B121: Total Charters Granted by BOE Since 1994: | C121: 112
A122: Updated Augst 2018

Sheet TEACHEREPIMS (hidden)
U1: Teachers only
U2: NE = Not Existing
U3: Closed = Closed District
A5: ORG_CODE | B5: ORG_NAME | C5: LEA | D5: FTE_21D | E5: HC_21D | F5: FTE_21A | G5: HC_21A | H5: FTE_20D | I5: HC_20D | J5: FTE_20A | K5: HC_20A | L5: FTE_19d | M5: HC_19d | N5: FTE_19a | O5: HC_19a | P5: FTE_18d | Q5: HC_18d | R5: FTE_18a | S5: HC_18a | T5: FTE_17d | U5: HC_17d | V5: FTE_17a | W5: HC_17a | X5: FTE_16d | Y5: HC_16d | Z5: FTE_16a | AA5: HC_16a | AB5: FTE_15d | AC5: HC_15d | AD5: FTE_15a | AE5: HC_15a | AF5: FTE_14d | AG5: HC_14d | AH5: FTE_14a | AI5: HC_14a | AJ5: FTE_13d | AK5: HC_13d | AL5: FTE_13a | AM5: HC_13a | AN5: FTE_12d | AO5: HC_12d | AP5: FTE_12a | AQ5: HC_12a | AR5: FTE_11d | AS5: HC_11d | AT5: FTE_11a | AU5: HC_11a | AV5: FTE_10a | AW5: HC_10a
A6: 04070000 | B6: Dudley Street Neighborhood Charter School (District) | C6: 407 | D6: 20.5 | E6: 21 | F6: 10.25 | G6: 22 | H6: 20 | I6: 21 | J6: 21 | K6: 21 | L6: 22 | M6: 22 | N6: 22 | O6: 22 | P6: 19.5 | Q6: 20 | R6: 19 | S6: 19 | T6: 20.98 | U6: 21 | V6: 20.98 | W6: 21 | X6: 18.21 | Y6: 19 | Z6: 18.25 | AA6: 19 | AB6: 15.94 | AC6: 16 | AD6: 14.98 | AE6: 15 | AF6: 9.999 | AG6: 10 | AH6: 12.998 | AI6: 13 | AJ6: 7.994 | AK6: 8 | AL6: 7.994 | AM6: 8 | AN6: NE | AO6: NE | AP6: NE | AQ6: NE | AR6: NE | AS6: NE | AT6: NE | AU6: NE | AV6: NE | AW6: NE
A7: 04090000 | B7: Alma del Mar Charter School (District) | C7: 409 | D7: 63.002 | E7: 63 | F7: 63.002 | G7: 63 | H7: 52 | I7: 52 | J7: 52 | K7: 52 | L7: 34.48 | M7: 35 | N7: 36.5 | O7: 37 | P7: 36.006 | Q7: 36 | R7: 35.008 | S7: 35 | T7: 32.15 | U7: 32 | V7: 33.15 | W7: 33 | X7: 23.92 | Y7: 24 | Z7: 28.92 | AA7: 29 | AB7: 17.03 | AC7: 17 | AD7: 22.38 | AE7: 23 | AF7: 18.99 | AG7: 19 | AH7: 18.99 | AI7: 19 | AJ7: 15.24 | AK7: 15 | AL7: 16.28 | AM7: 16 | AN7: 13.88 | AO7: 14 | AP7: 13.88 | AQ7: 14 | AR7: NE | AS7: NE | AT7: NE | AU7: NE | AV7: NE | AW7: NE
A8: 04100000 | B8: Excel Academy Charter (District) | C8: 410 | D8: 113.207 | E8: 129 | F8: 115.192 | G8: 123 | H8: 115.906 | I8: 144 | J8: 117.994 | K8: 139 | L8: 105.66 | M8: 126 | N8: 101.315 | O8: 118 | P8: 88.989 | Q8: 108 | R8: 98.44 | S8: 112 | T8: 78.09 | U8: 88 | V8: 85.98 | W8: 92 | X8: 70.74 | Y8: 85 | Z8: 53.24 | AA8: 89 | AB8: 51.625 | AC8: 65 | AD8: 56.596 | AE8: 68 | AF8: 19.297 | AG8: 26 | AH8: 22.369 | AI8: 26 | AJ8: 19.602 | AK8: 24 | AL8: 18.97 | AM8: 22 | AN8: 18.887 | AO8: 22 | AP8: 18.97 | AQ8: 22 | AR8: 16 | AS8: 19 | AT8: 16 | AU8: 19 | AV8: 17.8 | AW8: 18
A9: 04110000 | B9: Boston Green Academy Horace Mann Charter School (District) | C9: 411 | D9: 43.256 | E9: 62 | F9: 57.53 | G9: 67 | H9: 41.78 | I9: 44 | J9: 39 | K9: 42 | L9: 41.91 | M9: 41 | N9: 41.504 | O9: 43 | P9: 44.42 | Q9: 47 | R9: 40.603 | S9: 47 | T9: 49.43 | U9: 51 | V9: 51.57 | W9: 53 | X9: 40.59 | Y9: 43 | Z9: 41.02 | AA9: 43 | AB9: 37 | AC9: 39 | AD9: 35.01 | AE9: 38 | AF9: 27.334 | AG9: 39 | AH9: 33.084 | AI9: 44 | AJ9: 27.659 | AK9: 42 | AL9: 30.85 | AM9: 40 | AN9: 25.36 | AO9: 32 | AP9: 25.3 | AQ9: 32 | AR9: NE | AS9: NE | AT9: NE | AU9: NE | AV9: NE | AW9: NE
A10: 04120000 | B10: Academy Of the Pacific Rim Charter Public (District) | C10: 412 | D10: 51.899 | E10: 54 | F10: 54.999 | G10: 56 | H10: 48.099 | I10: 50 | J10: 46.82 | K10: 49 | L10: 48.092 | M10: 49 | N10: 49.2 | O10: 51 | P10: 43.874 | Q10: 53 | R10: 48.099 | S10: 53 | T10: 44.216 | U10: 48 | V10: 44.33 | W10: 48 | X10: 40.58 | Y10: 44 | Z10: 42.2 | AA10: 46 | AB10: 42.334 | AC10: 45 | AD10: 42.5 | AE10: 45 | AF10: 36.65 | AG10: 39 | AH10: 38.65 | AI10: 41 | AJ10: 36.1 | AK10: 38 | AL10: 35.917 | AM10: 38 | AN10: 36.8 | AO10: 38 | AP10: 36.8 | AQ10: 38 | AR10: 33.997 | AS10: 36 | AT10: 34.8 | AU10: 37 | AV10: 35.05 | AW10: 36
A11: 04130000 | B11: Four Rivers Charter Public (District) | C11: 413 | D11: 19.92 | E11: 27 | F11: 21.314 | G11: 30 | H11: 20.266 | I11: 31 | J11: 20.83 | K11: 31 | L11: 20.49 | M11: 35 | N11: 21.81 | O11: 35 | P11: 21.127 | Q11: 31 | R11: 20.719 | S11: 31 | T11: 22.066 | U11: 31 | V11: 22 | W11: 31 | X11: 21.75 | Y11: 30 | Z11: 22.82 | AA11: 30 | AB11: 21.955 | AC11: 30 | AD11: 21.11 | AE11: 29 | AF11: 21.81 | AG11: 28 | AH11: 22.36 | AI11: 30 | AJ11: 21.855 | AK11: 28 | AL11: 21.268 | AM11: 28 | AN11: 21.86 | AO11: 29 | AP11: 21.66 | AQ11: 30 | AR11: 20.214 | AS11: 28 | AT11: 21.227 | AU11: 30 | AV11: 19.064 | AW11: 23
A12: 04140000 | B12: Berkshire Arts and Technology Charter Public (District) | C12: 414 | D12: 37.688 | E12: 41 | F12: 37.611 | G12: 43 | H12: 37.328 | I12: 40 | J12: 36.816 | K12: 39 | L12: 35.628 | M12: 39 | N12: 36.05 | O12: 39 | P12: 31.771 | Q12: 38 | R12: 34.01 | S12: 40 | T12: 33.097 | U12: 40 | V12: 32.9 | W12: 40 | X12: 31.51 | Y12: 37 | Z12: 31.299 | AA12: 37 | AB12: 28.99 | AC12: 37 | AD12: 29.59 | AE12: 34 | AF12: 30.11 | AG12: 37 | AH12: 30.34 | AI12: 37 | AJ12: 27.88 | AK12: 34 | AL12: 27.55 | AM12: 33 | AN12: 24.057 | AO12: 28 | AP12: 24.866 | AQ12: 29 | AR12: 23.2 | AS12: 26 | AT12: 23.416 | AU12: 26 | AV12: 22.2 | AW12: 23
A13: 04150000 | B13: Amesbury Academy Charter Public (District) | C13: 415 | D13: Closed | E13: Closed | F13: Closed | G13: Closed | H13: Closed | I13: Closed | J13: Closed | K13: Closed | L13: Closed | M13: Closed | N13: Closed | O13: Closed | P13: Closed | Q13: Closed | R13: Closed | S13: Closed | T13: Closed | U13: Closed | V13: Closed | W13: Closed | X13: Closed | Y13: Closed | Z13: Closed | AA13: Closed | AB13: 4.37 | AC13: 6 | AD13: 5.3 | AE13: 7 | AF13: 4.777 | AG13: 8 | AH13: 6.071 | AI13: 8 | AJ13: 5.658 | AK13: 7 | AL13: 7.203 | AM13: 9 | AN13: 4.772 | AO13: 9 | AP13: 5.473 | AQ13: 9 | AR13: 5.235 | AS13: 8 | AT13: 5.9 | AU13: 8 | AV13: 5.36 | AW13: 7
A14: 04160000 | B14: Boston Preparatory Charter Public (District) | C14: 416 | D14: 58.549 | E14: 63 | F14: 57.798 | G14: 62 | H14: 55.449 | I14: 61 | J14: 55.55 | K14: 63 | L14: 51.579 | M14: 59 | N14: 52.2 | O14: 58 | P14: 44.304 | Q14: 51 | R14: 44.071 | S14: 52 | T14: 35.46 | U14: 41 | V14: 37.2 | W14: 39 | X14: 32.32 | Y14: 37 | Z14: 34.55 | AA14: 38 | AB14: 30.433 | AC14: 33 | AD14: 33.05 | AE14: 37 | AF14: 34 | AG14: 35 | AH14: 34.5 | AI14: 36 | AJ14: 32.895 | AK14: 34 | AL14: 32.895 | AM14: 34 | AN14: 35 | AO14: 35 | AP14: 35 | AQ14: 35 | AR14: 33.7 | AS14: 34 | AT14: 33.7 | AU14: 34 | AV14: 31.2 | AW14: 32
A15: 04170000 | B15: Bridge Boston Charter School (District) | C15: 417 | D15: 41.999 | E15: 44 | F15: 36.4 | G15: 39 | H15: 31.8 | I15: 33 | J15: 31 | K15: 32 | L15: 34.76 | M15: 36 | N15: 34.6 | O15: 36 | P15: 27.84 | Q15: 30 | R15: 29.04 | S15: 31 | T15: 27.47 | U15: 30 | V15: 26.1 | W15: 29 | X15: 16.15 | Y15: 17 | Z15: 19.4 | AA15: 21 | AB15: 14 | AC15: 14 | AD15: 14 | AE15: 14 | AF15: 11.625 | AG15: 12 | AH15: 11.625 | AI15: 12 | AJ15: 6.488 | AK15: 7 | AL15: 7.488 | AM15: 8 | AN15: 4.87 | AO15: 6 | AP15: 5.15 | AQ15: 6 | AR15: NE | AS15: NE | AT15: NE | AU15: NE | AV15: NE | AW15: NE
A16: 04180000 | B16: Christa McAuliffe Charter Public (District) | C16: 418 | D16: 39.3 | E16: 40 | F16: 38.25 | G16: 40 | H16: 36.947 | I16: 40 | J16: 41.25 | K16: 43 | L16: 38.75 | M16: 40 | N16: 39.74 | O16: 41 | P16: 39.5 | Q16: 41 | R16: 41 | S16: 42 | T16: 34.549 | U16: 39 | V16: 35.05 | W16: 40 | X16: 38.75 | Y16: 41 | Z16: 38.5 | AA16: 41 | AB16: 37.014 | AC16: 40 | AD16: 38.1 | AE16: 39 | AF16: 32.888 | AG16: 34 | AH16: 30.3 | AI16: 32 | AJ16: 30.726 | AK16: 34 | AL16: 27.224 | AM16: 36 | AN16: 26.293 | AO16: 32 | AP16: 26.45 | AQ16: 31 | AR16: 23.444 | AS16: 25 | AT16: 23 | AU16: 24 | AV16: 22.4 | AW16: 24
A17: 04190000 | B17: Helen Y. Davis Leadership Academy Charter Public (District) | C17: 419 | D17: 16.5 | E17: 17 | F17: 19 | G17: 19 | H17: 21 | I17: 21 | J17: 17 | K17: 17 | L17: 14.384 | M17: 15 | N17: 16 | O17: 16 | P17: 11.852 | Q17: 12 | R17: 13.852 | S17: 14 | T17: 15.835 | U17: 16 | V17: 17 | W17: 17 | X17: 16 | Y17: 16 | Z17: 16 | AA17: 16 | AB17: 15 | AC17: 15 | AD17: 18 | AE17: 18 | AF17: 17 | AG17: 17 | AH17: 19 | AI17: 19 | AJ17: 19.72 | AK17: 20 | AL17: 20.22 | AM17: 20 | AN17: 15.098 | AO17: 16 | AP17: 18.093 | AQ17: 19 | AR17: 27.253 | AS17: 29 | AT17: 17.892 | AU17: 19 | AV17: 15.273 | AW17: 17
A18: 04200000 | B18: Benjamin Banneker Charter Public (District) | C18: 420 | D18: 19.967 | E18: 20 | F18: 21.5 | G18: 22 | H18: 19 | I18: 19 | J18: 19 | K18: 19 | L18: 18.8 | M18: 19 | N18: 17.8 | O18: 18 | P18: 17.8 | Q18: 18 | R18: 18.01 | S18: 19 | T18: 21.024 | U18: 21 | V18: 20.02 | W18: 20 | X18: 20.02 | Y18: 20 | Z18: 21.024 | AA18: 21 | AB18: 19.97 | AC18: 20 | AD18: 19.97 | AE18: 20 | AF18: 20 | AG18: 20 | AH18: 20 | AI18: 20 | AJ18: 21.973 | AK18: 22 | AL18: 22.473 | AM18: 23 | AN18: 23.473 | AO18: 24 | AP18: 23.473 | AQ18: 24 | AR18: 23.06 | AS18: 23 | AT18: 23 | AU18: 23 | AV18: 22 | AW18: 22
A19: 04230000 | B19: Barnstable Horace Mann Charter (District) | C19: 423 | D19: Closed | E19: Closed | F19: Closed | G19: Closed | H19: Closed | I19: Closed | J19: Closed | K19: Closed | L19: Closed | M19: Closed | N19: Closed | O19: Closed | P19: Closed | Q19: Closed | R19: Closed | S19: Closed | T19: Closed | U19: Closed | V19: Closed | W19: Closed | X19: Closed | Y19: Closed | Z19: Closed | AA19: Closed | AB19: Closed | AC19: Closed | AD19: Closed | AE19: Closed | AF19: Closed | AG19: Closed | AH19: Closed | AI19: Closed | AJ19: Closed | AK19: Closed | AL19: Closed | AM19: Closed | AN19: 57.239 | AO19: 60 | AP19: 57.239 | AQ19: 60 | AR19: 49.305 | AS19: 60 | AT19: 48.012 | AU19: 59 | AV19: 57.067 | AW19: 62
A20: 04240000 | B20: Boston Day and Evening Academy Charter (District) | C20: 424 | D20: 26.042 | E20: 29 | F20: 25.997 | G20: 28 | H20: 21.253 | I20: 29 | J20: 26.4 | K20: 27 | L20: 21.845 | M20: 28 | N20: 26 | O20: 26 | P20: 20.5 | Q20: 21 | R20: 23.05 | S20: 23 | T20: 20.55 | U20: 21 | V20: 23 | W20: 24 | X20: 20.75 | Y20: 21 | Z20: 21.6 | AA20: 22 | AB20: 20.6 | AC20: 21 | AD20: 22.6 | AE20: 23 | AF20: 24.65 | AG20: 27 | AH20: 26.4 | AI20: 28 | AJ20: 26.55 | AK20: 27 | AL20: 27.5 | AM20: 28 | AN20: 23.3 | AO20: 23 | AP20: 25.55 | AQ20: 27 | AR20: 20.7 | AS20: 21 | AT20: 24.6 | AU20: 25 | AV20: 21.8 | AW20: 22
A21: 04260000 | B21: Community Day Charter Public School - Gateway (District) | C21: 426 | D21: 40.996 | E21: 41 | F21: 42.991 | G21: 43 | H21: 44 | I21: 44 | J21: 43.992 | K21: 44 | L21: 40 | M21: 40 | N21: 40 | O21: 40 | P21: 32.5 | Q21: 34 | R21: 33 | S21: 35 | T21: 28.75 | U21: 32 | V21: 27.5 | W21: 31 | X21: 23.5 | Y21: 26 | Z21: 24 | AA21: 27 | AB21: 21.6 | AC21: 26 | AD21: 22.6 | AE21: 27 | AF21: 18.09 | AG21: 20 | AH21: 18.09 | AI21: 20 | AJ21: 12.836 | AK21: 14 | AL21: 12.836 | AM21: 14 | AN21: NE | AO21: NE | AP21: NE | AQ21: NE | AR21: NE | AS21: NE | AT21: NE | AU21: NE | AV21: NE | AW21: NE
A22: 04270000 | B22: Barnstable Community Horace Mann Charter Public (District) | C22: 427 | D22: Closed | E22: Closed | F22: Closed | G22: Closed | H22: Closed | I22: Closed | J22: Closed | K22: Closed | L22: 23.4 | M22: 25 | N22: 24 | O22: 26 | P22: 23 | Q22: 25 | R22: 24 | S22: 26 | T22: 24.8 | U22: 26 | V22: 21.99 | W22: 24 | X22: 25.61 | Y22: 26 | Z22: 26.008 | AA22: 26 | AB22: 24.392 | AC22: 26 | AD22: 23.608 | AE22: 24 | AF22: 23.608 | AG22: 24 | AH22: 23.741 | AI22: 24 | AJ22: 23.608 | AK22: 24 | AL22: 23.608 | AM22: 24 | AN22: 22.992 | AO22: 23 | AP22: 22.992 | AQ22: 23 | AR22: 22.3 | AS22: 23 | AT22: 22.3 | AU22: 23 | AV22: 25.4 | AW22: 26
A23: 04280000 | B23: Brooke Charter School (District) | C23: 428 | D23: 179.211 | E23: 191 | F23: 170.373 | G23: 176 | H23: 165.265 | I23: 169 | J23: 166.701 | K23: 170 | L23: 152.99 | M23: 153 | N23: 158 | O23: 158 | P23: 140.41 | Q23: 142 | R23: 139.39 | S23: 141 | T23: 109.457 | U23: 123 | V23: 110.29 | W23: 124 | X23: 39 | Y23: 39 | Z23: 39 | AA23: 39 | AB23: 42 | AC23: 42 | AD23: 41 | AE23: 41 | AF23: 40 | AG23: 41 | AH23: 41 | AI23: 42 | AJ23: 38 | AK23: 38 | AL23: 38 | AM23: 38 | AN23: 36 | AO23: 36 | AP23: 36 | AQ23: 36 | AR23: 33.373 | AS23: 33 | AT23: 34.995 | AU23: 35 | AV23: 36 | AW23: 36
A24: 04290000 | B24: KIPP Academy Lynn Charter (District) | C24: 429 | D24: 106.939 | E24: 116 | F24: 107.028 | G24: 116 | H24: 105.055 | I24: 113 | J24: 106.85 | K24: 115 | L24: 102.347 | M24: 109 | N24: 100.5 | O24: 106 | P24: 100.503 | Q24: 105 | R24: 109.634 | S24: 115 | T24: 95.666 | U24: 100 | V24: 99.74 | W24: 106 | X24: 88.33 | Y24: 93 | Z24: 87.574 | AA24: 94 | AB24: 76.927 | AC24: 80 | AD24: 76.72 | AE24: 80 | AF24: 49.04 | AG24: 54 | AH24: 65.63 | AI24: 69 | AJ24: 48.69 | AK24: 52 | AL24: 49.24 | AM24: 53 | AN24: 31.945 | AO24: 34 | AP24: 32.945 | AQ24: 35 | AR24: 25.86 | AS24: 26 | AT24: 25.86 | AU24: 26 | AV24: 26 | AW24: 28
A25: 04300000 | B25: Advanced Math and Science Academy Charter (District) | C25: 430 | D25: 73.548 | E25: 81 | F25: 79.43 | G25: 86 | H25: 78.959 | I25: 84 | J25: 79.959 | K25: 85 | L25: 79.23 | M25: 85 | N25: 81.539 | O25: 86 | P25: 78.48 | Q25: 83 | R25: 82.046 | S25: 87 | T25: 74.054 | U25: 81 | V25: 78.36 | W25: 81 | X25: 75.71 | Y25: 84 | Z25: 76.361 | AA25: 82 | AB25: 80.781 | AC25: 85 | AD25: 81.392 | AE25: 86 | AF25: 86.35 | AG25: 89 | AH25: 86.96 | AI25: 90 | AJ25: 81.544 | AK25: 86 | AL25: 80.463 | AM25: 87 | AN25: 80.509 | AO25: 83 | AP25: 80.358 | AQ25: 83 | AR25: 72.392 | AS25: 74 | AT25: 70.433 | AU25: 72 | AV25: 61.17 | AW25: 62
A26: 04310000 | B26: Community Day Charter Public School - R. Kingman Webster (District) | C26: 431 | D26: 41.496 | E26: 42 | F26: 40.489 | G26: 41 | H26: 39.999 | I26: 40 | J26: 41 | K26: 41 | L26: 39 | M26: 39 | N26: 39 | O26: 39 | P26: 32.5 | Q26: 34 | R26: 33.5 | S26: 35 | T26: 30.5 | U26: 33 | V26: 30.5 | W26: 33 | X26: 24.52 | Y26: 27 | Z26: 25.02 | AA26: 28 | AB26: 23.6 | AC26: 28 | AD26: 22.6 | AE26: 27 | AF26: 18.08 | AG26: 20 | AH26: 18.08 | AI26: 20 | AJ26: 13.83 | AK26: 15 | AL26: 13.83 | AM26: 15 | AN26: NE | AO26: NE | AP26: NE | AQ26: NE | AR26: NE | AS26: NE | AT26: NE | AU26: NE | AV26: NE | AW26: NE
A27: 04320000 | B27: Cape Cod Lighthouse Charter (District) | C27: 432 | D27: 18.011 | E27: 32 | F27: 23.692 | G27: 34 | H27: 21.207 | I27: 29 | J27: 22.61 | K27: 33 | L27: 20.909 | M27: 29 | N27: 21.455 | O27: 33 | P27: 21.685 | Q27: 32 | R27: 21.969 | S27: 29 | T27: 22.5 | U27: 33 | V27: 21.49 | W27: 28 | X27: 20.43 | Y27: 31 | Z27: 21.5 | AA27: 28 | AB27: 21.96 | AC27: 29 | AD27: 21.78 | AE27: 27 | AF27: 18.54 | AG27: 27 | AH27: 17.99 | AI27: 24 | AJ27: 18.41 | AK27: 29 | AL27: 18.12 | AM27: 26 | AN27: 18.18 | AO27: 28 | AP27: 18.14 | AQ27: 26 | AR27: 17.86 | AS27: 26 | AT27: 18.99 | AU27: 26 | AV27: 19.45 | AW27: 26
A28: 04350000 | B28: Innovation Academy Charter (District) | C28: 435 | D28: 62.648 | E28: 69 | F28: 65.25 | G28: 71 | H28: 70.613 | I28: 83 | J28: 69.833 | K28: 80 | L28: 67.683 | M28: 76 | N28: 70.23 | O28: 78 | P28: 74.263 | Q28: 82 | R28: 75.366 | S28: 81 | T28: 74.969 | U28: 85 | V28: 73.28 | W28: 79 | X28: 78.15 | Y28: 87 | Z28: 72.555 | AA28: 80 | AB28: 70.253 | AC28: 79 | AD28: 67.131 | AE28: 73 | AF28: 58.822 | AG28: 66 | AH28: 62.313 | AI28: 67 | AJ28: 58.345 | AK28: 65 | AL28: 59.636 | AM28: 65 | AN28: 56.005 | AO28: 63 | AP28: 56.945 | AQ28: 61 | AR28: 55.085 | AS28: 64 | AT28: 56.181 | AU28: 62 | AV28: 42.58 | AW28: 45
A29: 04360000 | B29: Community Charter School of Cambridge (District) | C29: 436 | D29: 30.106 | E29: 41 | F29: 32.947 | G29: 43 | H29: 34.415 | I29: 38 | J29: 35.144 | K29: 38 | L29: 35.752 | M29: 43 | N29: 36.69 | O29: 42 | P29: 39.189 | Q29: 46 | R29: 34.4 | S29: 43 | T29: 32.228 | U29: 54 | V29: 32.37 | W29: 55 | X29: 30.51 | Y29: 48 | Z29: 33.46 | AA29: 50 | AB29: 32.18 | AC29: 41 | AD29: 30.939 | AE29: 39 | AF29: 34.386 | AG29: 42 | AH29: 38.17 | AI29: 42 | AJ29: 35.39 | AK29: 38 | AL29: 34.41 | AM29: 37 | AN29: 30.96 | AO29: 34 | AP29: 31.185 | AQ29: 33 | AR29: 30.385 | AS29: 37 | AT29: 28.137 | AU29: 37 | AV29: 24.63 | AW29: 28
A30: 04370000 | B30: City on a Hill Charter Public School Circuit Street (District) | C30: 437 | D30: 21.464 | E30: 29 | F30: 22.998 | G30: 29 | H30: 35.905 | I30: 40 | J30: 12.018 | K30: 23 | L30: 22.79 | M30: 34 | N30: 23.7 | O30: 34 | P30: 26.7 | Q30: 33 | R30: 26.701 | S30: 33 | T30: 25.1 | U30: 31 | V30: 25.1 | W30: 31 | X30: 24.52 | Y30: 33 | Z30: 25.4 | AA30: 34 | AB30: 22.447 | AC30: 29 | AD30: 26.004 | AE30: 33 | AF30: 23.8 | AG30: 31 | AH30: 23.8 | AI30: 32 | AJ30: 24.77 | AK30: 32 | AL30: 24.9 | AM30: 32 | AN30: 22 | AO30: 30 | AP30: 21.9 | AQ30: 30 | AR30: 16.4 | AS30: 25 | AT30: 19 | AU30: 27 | AV30: 20.2 | AW30: 27
A31: 04380000 | B31: Codman Academy Charter Public (District) | C31: 438 | D31: 47.134 | E31: 53 | F31: 45.489 | G31: 52 | H31: 45.75 | I31: 53 | J31: 43.824 | K31: 51 | L31: 40.398 | M31: 43 | N31: 39.58 | O31: 43 | P31: 35.393 | Q31: 37 | R31: 36.966 | S31: 40 | T31: 36.05 | U31: 37 | V31: 35.94 | W31: 36 | X31: 29.42 | Y31: 33 | Z31: 30.35 | AA31: 33 | AB31: 20.75 | AC31: 23 | AD31: 25.903 | AE31: 28 | AF31: 17.41 | AG31: 19 | AH31: 18.71 | AI31: 20 | AJ31: 14.05 | AK31: 19 | AL31: 14.98 | AM31: 18 | AN31: 14.61 | AO31: 16 | AP31: 15.26 | AQ31: 16 | AR31: 14.07 | AS31: 17 | AT31: 14.2 | AU31: 18 | AV31: 15.1 | AW31: 18
A32: 04390000 | B32: Conservatory Lab Charter (District) | C32: 439 | D32: 28 | E32: 29 | F32: 29 | G32: 30 | H32: 27.2 | I32: 28 | J32: 26 | K32: 27 | L32: 25 | M32: 26 | N32: 25 | O32: 26 | P32: 24.25 | Q32: 26 | R32: 25.25 | S32: 27 | T32: 20.98 | U32: 21 | V32: 21.97 | W32: 22 | X32: 13.99 | Y32: 14 | Z32: 26.505 | AA32: 27 | AB32: 18 | AC32: 18 | AD32: 18 | AE32: 18 | AF32: 14.25 | AG32: 15 | AH32: 14 | AI32: 14 | AJ32: 8 | AK32: 8 | AL32: 8 | AM32: 8 | AN32: 9 | AO32: 9 | AP32: 9 | AQ32: 9 | AR32: 10 | AS32: 10 | AT32: 10 | AU32: 10 | AV32: 14.4 | AW32: 16
A33: 04400000 | B33: Community Day Charter Public School - Prospect (District) | C33: 440 | D33: 42.974 | E33: 43 | F33: 42.982 | G33: 43 | H33: 38.799 | I33: 40 | J33: 38.8 | K33: 40 | L33: 42.4 | M33: 43 | N33: 43.4 | O33: 44 | P33: 45.3 | Q33: 46 | R33: 45.3 | S33: 46 | T33: 44 | U33: 44 | V33: 45 | W33: 45 | X33: 42 | Y33: 42 | Z33: 42 | AA33: 42 | AB33: 43.3 | AC33: 48 | AD33: 43.8 | AE33: 49 | AF33: 33.83 | AG33: 36 | AH33: 33.83 | AI33: 36 | AJ33: 35.75 | AK33: 37 | AL33: 35.75 | AM33: 37 | AN33: 38.125 | AO33: 39 | AP33: 38.125 | AQ33: 39 | AR33: 34.462 | AS33: 37 | AT33: 34.462 | AU33: 37 | AV33: 34.617 | AW33: 37
A34: 04410000 | B34: Sabis International Charter (District) | C34: 441 | D34: 83.523 | E34: 85 | F34: 85.3 | G34: 86 | H34: 85.611 | I34: 88 | J34: 84.4 | K34: 86 | L34: 93.51 | M34: 94 | N34: 64.16 | O34: 92 | P34: 65.4 | Q34: 94 | R34: 66.01 | S34: 94 | T34: 67.81 | U34: 96 | V34: 65.78 | W34: 94 | X34: 65.98 | Y34: 96 | Z34: 64.16 | AA34: 94 | AB34: 65.45 | AC34: 96 | AD34: 64.59 | AE34: 95 | AF34: 65.45 | AG34: 96 | AH34: 63.23 | AI34: 94 | AJ34: 65.79 | AK34: 96 | AL34: 64.54 | AM34: 94 | AN34: 66.32 | AO34: 97 | AP34: 65.3 | AQ34: 96 | AR34: 63.23 | AS34: 95 | AT34: 63.93 | AU34: 97 | AV34: 70.1 | AW34: 93
A35: 04430000 | B35: Brooke Charter School Mattapan (District) | C35: 443 | D35: Closed | E35: Closed | F35: Closed | G35: Closed | H35: Closed | I35: Closed | J35: Closed | K35: Closed | L35: Closed | M35: Closed | N35: Closed | O35: Closed | P35: Closed | Q35: Closed | R35: Closed | S35: Closed | T35: Closed | U35: Closed | V35: Closed | W35: Closed | X35: 41 | Y35: 41 | Z35: 41 | AA35: 41 | AB35: 42.963 | AC35: 43 | AD35: 41.883 | AE35: 42 | AF35: 26 | AG35: 26 | AH35: 33 | AI35: 33 | AJ35: 24.25 | AK35: 26 | AL35: 24.25 | AM35: 26 | AN35: 16 | AO35: 16 | AP35: 16 | AQ35: 16 | AR35: NE | AS35: NE | AT35: NE | AU35: NE | AV35: NE | AW35: NE
A36: 04440000 | B36: Neighborhood House Charter (District) | C36: 444 | D36: 76.887 | E36: 77 | F36: 71.373 | G36: 72 | H36: 64.551 | I36: 66 | J36: 65.358 | K36: 68 | L36: 66.747 | M36: 74 | N36: 66.246 | O36: 71 | P36: 57.85 | Q36: 60 | R36: 57.848 | S36: 59 | T36: 47.91 | U36: 50 | V36: 49.11 | W36: 52 | X36: 36.5 | Y36: 38 | Z36: 37.504 | AA36: 39 | AB36: 34.334 | AC36: 36 | AD36: 34.334 | AE36: 36 | AF36: 34.64 | AG36: 35 | AH36: 32.35 | AI36: 33 | AJ36: 34.979 | AK36: 35 | AL36: 34.979 | AM36: 35 | AN36: 38.554 | AO36: 39 | AP36: 36.69 | AQ36: 37 | AR36: 42 | AS36: 42 | AT36: 41.8 | AU36: 42 | AV36: 40.8 | AW36: 41
A37: 04450000 | B37: Abby Kelley Foster Charter Public (District) | C37: 445 | D37: 114.216 | E37: 115 | F37: 115.113 | G37: 116 | H37: 115.921 | I37: 118 | J37: 117.15 | K37: 119 | L37: 116.599 | M37: 119 | N37: 116.393 | O37: 120 | P37: 112.453 | Q37: 116 | R37: 108.972 | S37: 111 | T37: 111.402 | U37: 111 | V37: 106.62 | W37: 109 | X37: 115.26 | Y37: 118 | Z37: 118.053 | AA37: 120 | AB37: 116.544 | AC37: 118 | AD37: 117.043 | AE37: 119 | AF37: 116.588 | AG37: 118 | AH37: 111.805 | AI37: 114 | AJ37: 113.555 | AK37: 116 | AL37: 116.58 | AM37: 120 | AN37: 113.06 | AO37: 113 | AP37: 111.898 | AQ37: 114 | AR37: 112.98 | AS37: 114 | AT37: 111.701 | AU37: 115 | AV37: 101.55 | AW37: 103
A38: 04460000 | B38: Foxborough Regional Charter (District) | C38: 446 | D38: 128.347 | E38: 132 | F38: 132.85 | G38: 137 | H38: 132.977 | I38: 136 | J38: 134.475 | K38: 137 | L38: 130.379 | M38: 134 | N38: 129.8 | O38: 134 | P38: 111.694 | Q38: 115 | R38: 111.699 | S38: 115 | T38: 94.644 | U38: 101 | V38: 92.25 | W38: 101 | X38: 80.8 | Y38: 90 | Z38: 82.182 | AA38: 93 | AB38: 84.061 | AC38: 92 | AD38: 86.003 | AE38: 91 | AF38: 86.643 | AG38: 91 | AH38: 82.119 | AI38: 91 | AJ38: 81.048 | AK38: 91 | AL38: 78.242 | AM38: 89 | AN38: 85.326 | AO38: 94 | AP38: 84.8 | AQ38: 94 | AR38: 79.269 | AS38: 89 | AT38: 83 | AU38: 91 | AV38: 77.4 | AW38: 77
A39: 04470000 | B39: Benjamin Franklin Classical Charter Public (District) | C39: 447 | D39: 54.985 | E39: 56 | F39: 59 | G39: 60 | H39: 54 | I39: 55 | J39: 56 | K39: 56 | L39: 29.996 | M39: 30 | N39: 30 | O39: 30 | P39: 32.8 | Q39: 33 | R39: 33 | S39: 33 | T39: 31.802 | U39: 38 | V39: 28.22 | W39: 35 | X39: 29.73 | Y39: 31 | Z39: 27.201 | AA39: 28 | AB39: 23.144 | AC39: 32 | AD39: 25.109 | AE39: 34 | AF39: 33.007 | AG39: 33 | AH39: 32.994 | AI39: 33 | AJ39: 31.001 | AK39: 31 | AL39: 32.994 | AM39: 33 | AN39: 28.934 | AO39: 30 | AP39: 36.782 | AQ39: 40 | AR39: 30.791 | AS39: 34 | AT39: 30.791 | AU39: 34 | AV39: 30.74 | AW39: 33
A40: 04480000 | B40: Gloucester Community Arts Charter (District) | C40: 448 | D40: Closed | E40: Closed | F40: Closed | G40: Closed | H40: Closed | I40: Closed | J40: Closed | K40: Closed | L40: Closed | M40: Closed | N40: Closed | O40: Closed | P40: Closed | Q40: Closed | R40: Closed | S40: Closed | T40: Closed | U40: Closed | V40: Closed | W40: Closed | X40: Closed | Y40: Closed | Z40: Closed | AA40: Closed | AB40: Closed | AC40: Closed | AD40: Closed | AE40: Closed | AF40: Closed | AG40: Closed | AH40: Closed | AI40: Closed | AJ40: Closed | AK40: Closed | AL40: 12.004 | AM40: 12 | AN40: 13.207 | AO40: 15 | AP40: 14.228 | AQ40: 18 | AR40: 7.8 | AS40: 8 | AT40: 8.8 | AU40: 9 | AV40: NE | AW40: NE
A41: 04490000 | B41: Boston Collegiate Charter (District) | C41: 449 | D41: 69.229 | E41: 73 | F41: 69.288 | G41: 72 | H41: 69.365 | I41: 73 | J41: 72.752 | K41: 78 | L41: 60.781 | M41: 71 | N41: 61.404 | O41: 68 | P41: 63.508 | Q41: 68 | R41: 63.504 | S41: 68 | T41: 60.767 | U41: 65 | V41: 65.74 | W41: 70 | X41: 59.14 | Y41: 62 | Z41: 63.206 | AA41: 64 | AB41: 59.167 | AC41: 63 | AD41: 58.741 | AE41: 64 | AF41: 60.177 | AG41: 62 | AH41: 62.11 | AI41: 64 | AJ41: 60.939 | AK41: 60 | AL41: 61.147 | AM41: 63 | AN41: 54.159 | AO41: 59 | AP41: 52.584 | AQ41: 58 | AR41: 44.555 | AS41: 56 | AT41: 44.405 | AU41: 55 | AV41: 39.018 | AW41: 49
A42: 04500000 | B42: Hilltown Cooperative Charter Public (District) | C42: 450 | D42: 19.95 | E42: 22 | F42: 19.95 | G42: 22 | H42: 20.45 | I42: 24 | J42: 19.7 | K42: 23 | L42: 20.27 | M42: 24 | N42: 19.62 | O42: 24 | P42: 19.93 | Q42: 23 | R42: 19.93 | S42: 23 | T42: 19.155 | U42: 22 | V42: 19.76 | W42: 23 | X42: 20.06 | Y42: 23 | Z42: 20.055 | AA42: 23 | AB42: 15.989 | AC42: 19 | AD42: 16.989 | AE42: 20 | AF42: 14.442 | AG42: 18 | AH42: 14.692 | AI42: 19 | AJ42: 14.692 | AK42: 18 | AL42: 14.692 | AM42: 18 | AN42: 14.391 | AO42: 18 | AP42: 14.391 | AQ42: 18 | AR42: 13.69 | AS42: 15 | AT42: 13.69 | AU42: 15 | AV42: 13.69 | AW42: 15
A43: 04510000 | B43: Robert M. Hughes Academy Charter Public (District) | C43: 451 | D43: Closed | E43: Closed | F43: Closed | G43: Closed | H43: Closed | I43: Closed | J43: Closed | K43: Closed | L43: Closed | M43: Closed | N43: Closed | O43: Closed | P43: Closed | Q43: Closed | R43: Closed | S43: Closed | T43: Closed | U43: Closed | V43: Closed | W43: Closed | X43: Closed | Y43: Closed | Z43: Closed | AA43: Closed | AB43: Closed | AC43: Closed | AD43: Closed | AE43: Closed | AF43: Closed | AG43: Closed | AH43: Closed | AI43: Closed | AJ43: Closed | AK43: Closed | AL43: Closed | AM43: Closed | AN43: Closed | AO43: Closed | AP43: Closed | AQ43: Closed | AR43: Closed | AS43: Closed | AT43: Closed | AU43: Closed | AV43: 8.48 | AW43: 10
